Workbook

Sheet INDEX
A2: Operation and Maintenance Model (O&M Model)
A3: Prepared for the Directlink Joint Venture
A4: Presents a bottom up cost study of the Directlink HVDC link
A5: Period July 2015 to June 2020
A8: INDEX
A9: Costed Worksheets | B9: Cost (2014$) | C9: Hyperlink to worksheet
A10: =Summary!C43 -> ELECTRICITY COSTS | B10: =Summary!D43 -> 3487888.575 | C10: =HYPERLINK("#"&ADDRESS(1,1,1,1,Summary!A43),"…") -> …
A11: =Summary!C44 -> CONTROL ROOM OPERATIONS | B11: =Summary!D44 -> 1031375.4 | C11: =HYPERLINK("#"&ADDRESS(1,1,1,1,Summary!A44),"…") -> …
A12: =Summary!C45 -> OPERATIONS MANAGER | B12: =Summary!D45 -> 753514.0787 | C12: =HYPERLINK("#"&ADDRESS(1,1,1,1,Summary!A45),"…") -> …
A13: =Summary!C46 -> RELIABILITY ENGINEER | B13: =Summary!D46 -> 648508.3 | C13: =HYPERLINK("#"&ADDRESS(1,1,1,1,Summary!A46),"…") -> …
A14: =Summary!C47 -> VEGETATION MANAGEMENT | B14: =Summary!D47 -> 465963.4697 | C14: =HYPERLINK("#"&ADDRESS(1,1,1,1,Summary!A47),"…") -> …
A15: =Summary!C48 -> POWER TRANSFORMER MAINTENANCE | B15: =Summary!D48 -> 427118.879 | C15: =HYPERLINK("#"&ADDRESS(1,1,1,1,Summary!A48),"…") -> …
A16: =Summary!C49 -> CIRCUIT BREAKER MAINTENANCE | B16: =Summary!D49 -> 373003.2174 | C16: =HYPERLINK("#"&ADDRESS(1,1,1,1,Summary!A49),"…") -> …
A17: =Summary!C50 -> TRAVEL | B17: =Summary!D50 -> 366293.4 | C17: =HYPERLINK("#"&ADDRESS(1,1,1,1,Summary!A50),"…") -> …
A18: =Summary!C51 -> SITE SECURITY | B18: =Summary!D51 -> 293282.3025 | C18: =HYPERLINK("#"&ADDRESS(1,1,1,1,Summary!A51),"…") -> …
A19: =Summary!C52 -> REMOTE COMMUNICATIONS | B19: =Summary!D52 -> 267095.4 | C19: =HYPERLINK("#"&ADDRESS(1,1,1,1,Summary!A52),"…") -> …
A20: =Summary!C53 -> CONTROL SYSTEM REPAIRS | B20: =Summary!D53 -> 202112.9 | C20: =HYPERLINK("#"&ADDRESS(1,1,1,1,Summary!A53),"…") -> …
A21: =Summary!C54 -> REACTOR MAINTENANCE | B21: =Summary!D54 -> 206011.6949 | C21: =HYPERLINK("#"&ADDRESS(1,1,1,1,Summary!A54),"…") -> …
A22: =Summary!C55 -> OTHER COSTS | B22: =Summary!D55 -> 186877.064 | C22: =HYPERLINK("#"&ADDRESS(1,1,1,1,Summary!A55),"…") -> …
A23: =Summary!C56 -> INCIDENTAL INVESTIGATIONS | B23: =Summary!D56 -> 166650 | C23: =HYPERLINK("#"&ADDRESS(1,1,1,1,Summary!A56),"…") -> …
A24: =Summary!C57 -> ENERGISED MAINTENANCE INSPECTION | B24: =Summary!D57 -> 165832.92 | C24: =HYPERLINK("#"&ADDRESS(1,1,1,1,Summary!A57),"…") -> …
A25: =Summary!C58 -> AIR BLAST COOLER MAINTENANCE | B25: =Summary!D58 -> 159146.1333 | C25: =HYPERLINK("#"&ADDRESS(1,1,1,1,Summary!A58),"…") -> …
A26: =Summary!C59 -> DIAL BEFORE YOU DIG | B26: =Summary!D59 -> 155551.3179 | C26: =HYPERLINK("#"&ADDRESS(1,1,1,1,Summary!A59),"…") -> …
A27: =Summary!C60 -> FIRE SPRINKER SYSTEM | B27: =Summary!D60 -> 139457.2156 | C27: =HYPERLINK("#"&ADDRESS(1,1,1,1,Summary!A60),"…") -> …
A28: =Summary!C61 -> YARD MAINTENANCE | B28: =Summary!D61 -> 130646.5097 | C28: =HYPERLINK("#"&ADDRESS(1,1,1,1,Summary!A61),"…") -> …
A29: =Summary!C62 -> CABLE MARKER SIGN MAINTENANCE | B29: =Summary!D62 -> 129885.888 | C29: =HYPERLINK("#"&ADDRESS(1,1,1,1,Summary!A62),"…") -> …
A30: =Summary!C63 -> BUILDING AIR-CONDITIONERS | B30: =Summary!D63 -> 125393.8372 | C30: =HYPERLINK("#"&ADDRESS(1,1,1,1,Summary!A63),"…") -> …
A31: =Summary!C64 -> VALVE COOLING SYSTEM MAINTENANCE | B31: =Summary!D64 -> 107256.3063 | C31: =HYPERLINK("#"&ADDRESS(1,1,1,1,Summary!A64),"…") -> …
A32: =Summary!C65 -> PHASE REACTOR MAINTENANCE | B32: =Summary!D65 -> 108141.6717 | C32: =HYPERLINK("#"&ADDRESS(1,1,1,1,Summary!A65),"…") -> …
A33: =Summary!C66 -> TRAINING COURSES FOR CONTRACTORS | B33: =Summary!D66 -> 99250.8 | C33: =HYPERLINK("#"&ADDRESS(1,1,1,1,Summary!A66),"…") -> …
A34: =Summary!C67 -> IGBT VALVE REPAIRS | B34: =Summary!D67 -> 86979.618 | C34: =HYPERLINK("#"&ADDRESS(1,1,1,1,Summary!A67),"…") -> …
A35: =Summary!C68 -> NITROGEN BOTTLE REPLACEMENT | B35: =Summary!D68 -> 80172.224 | C35: =HYPERLINK("#"&ADDRESS(1,1,1,1,Summary!A68),"…") -> …
A36: =Summary!C69 -> FIRE DETECTION & ALARM SYSTEM | B36: =Summary!D69 -> 65215.49523 | C36: =HYPERLINK("#"&ADDRESS(1,1,1,1,Summary!A69),"…") -> …
A37: =Summary!C70 -> OIL FILLED CAPACITOR MAINTENANCE | B37: =Summary!D70 -> 64266.708 | C37: =HYPERLINK("#"&ADDRESS(1,1,1,1,Summary!A70),"…") -> …
A38: =Summary!C71 -> IGBT VALVE MAINTENANCE | B38: =Summary!D71 -> 62743.824 | C38: =HYPERLINK("#"&ADDRESS(1,1,1,1,Summary!A71),"…") -> …
A39: =Summary!C72 -> PRESTART INSPECTIONS | B39: =Summary!D72 -> 38826.37688 | C39: =HYPERLINK("#"&ADDRESS(1,1,1,1,Summary!A72),"…") -> …
A40: =Summary!C73 -> ONSITE TEST EQUIPMENT MAINTENANCE | B40: =Summary!D73 -> 36670.832 | C40: =HYPERLINK("#"&ADDRESS(1,1,1,1,Summary!A73),"…") -> …
A41: =Summary!C74 -> VALVE COOLING MCC THERMOGRAPHIC IMAGING | B41: =Summary!D74 -> 35438.018 | C41: =HYPERLINK("#"&ADDRESS(1,1,1,1,Summary!A74),"…") -> …
A42: =Summary!C75 -> CONVERTER STATION THERMOGRAPHIC INSPECTION | B42: =Summary!D75 -> 35438.018 | C42: =HYPERLINK("#"&ADDRESS(1,1,1,1,Summary!A75),"…") -> …
A43: =Summary!C76 -> ZINC OXIDE SURGE ARRESTOR MAINTENANCE | B43: =Summary!D76 -> 33767.118 | C43: =HYPERLINK("#"&ADDRESS(1,1,1,1,Summary!A76),"…") -> …
A44: =Summary!C77 -> VALVE DEHUMIDIFIER MAINTENANCE | B44: =Summary!D77 -> 32942.118 | C44: =HYPERLINK("#"&ADDRESS(1,1,1,1,Summary!A77),"…") -> …
A45: =Summary!C78 -> UNINTERRUPTIBLE POWER SUPPLY | B45: =Summary!D78 -> 31518.3286 | C45: =HYPERLINK("#"&ADDRESS(1,1,1,1,Summary!A78),"…") -> …
A46: =Summary!C79 -> OUTDOOR POST TYPE CURRENT TRANSFORMER | B46: =Summary!D79 -> 29102.5416 | C46: =HYPERLINK("#"&ADDRESS(1,1,1,1,Summary!A79),"…") -> …
A47: =Summary!C80 -> AC FILTER RESISTOR MAINTENANCE | B47: =Summary!D80 -> 28817.118 | C47: =HYPERLINK("#"&ADDRESS(1,1,1,1,Summary!A80),"…") -> …
A48: =Summary!C81 -> VALVE COOLING SYSTEM PUMP MAINTENANCE | B48: =Summary!D81 -> 26342.118 | C48: =HYPERLINK("#"&ADDRESS(1,1,1,1,Summary!A81),"…") -> …
A49: =Summary!C82 -> PHASE REACTOR FAN MAINTENANCE | B49: =Summary!D82 -> 24790.5416 | C49: =HYPERLINK("#"&ADDRESS(1,1,1,1,Summary!A82),"…") -> …
A50: =Summary!C83 -> PORTABLE FIRE EXTINGUISHER INSPECTION | B50: =Summary!D83 -> 24381.236 | C50: =HYPERLINK("#"&ADDRESS(1,1,1,1,Summary!A83),"…") -> …
A51: =Summary!C84 -> EMERGENCY LIGHTING MAINTENANCE | B51: =Summary!D84 -> 23702.844 | C51: =HYPERLINK("#"&ADDRESS(1,1,1,1,Summary!A84),"…") -> …
A52: =Summary!C85 -> NITROGEN DISCHARGE UNIT MAINTENANCE | B52: =Summary!D85 -> 17750.5416 | C52: =HYPERLINK("#"&ADDRESS(1,1,1,1,Summary!A85),"…") -> …
A53: =Summary!C86 -> ROGOWSKI CURRENT TRANSDUCER MAINTENANCE | B53: =Summary!D86 -> 17679.618 | C53: =HYPERLINK("#"&ADDRESS(1,1,1,1,Summary!A86),"…") -> …
A54: =Summary!C87 -> DIRECT VOLTAGE DIVIDER MAINTENANCE | B54: =Summary!D87 -> 15912.3888 | C54: =HYPERLINK("#"&ADDRESS(1,1,1,1,Summary!A87),"…") -> …
A55: =Summary!C88 -> INSPECT SPILL KITS | B55: =Summary!D88 -> 15284.236 | C55: =HYPERLINK("#"&ADDRESS(1,1,1,1,Summary!A88),"…") -> …
A56: =Summary!C89 -> CAPACITIVE VOLTAGE TRANSFORMER MAINTENANCE | B56: =Summary!D89 -> 14379.618 | C56: =HYPERLINK("#"&ADDRESS(1,1,1,1,Summary!A89),"…") -> …
A57: =Summary!C90 -> HALL EFFECT CURRENT TRANSDUCER MAINTENANCE | B57: =Summary!D90 -> 12729.618 | C57: =HYPERLINK("#"&ADDRESS(1,1,1,1,Summary!A90),"…") -> …
A58: =Summary!C91 -> CABLE SCREEN CURRENT TRANSFORMER | B58: =Summary!D91 -> 11492.118 | C58: =HYPERLINK("#"&ADDRESS(1,1,1,1,Summary!A91),"…") -> …
A59: =Summary!C92 -> DC ZERO SEQUENCE SMOOTHING REACTOR MAINTENANCE | B59: =Summary!D92 -> 7779.618 | C59: =HYPERLINK("#"&ADDRESS(1,1,1,1,Summary!A92),"…") -> …
A60: =Summary!C93 -> AIR GAP SURGE LIMITER MAINTENANCE | B60: =Summary!D93 -> 7779.618 | C60: =HYPERLINK("#"&ADDRESS(1,1,1,1,Summary!A93),"…") -> …
A61: =Summary!C94 -> FUNCTIONAL TEST OF HIGH VOLTAGE TEST EQUIPMENT | B61: =Summary!D94 -> 4152.8025 | C61: =HYPERLINK("#"&ADDRESS(1,1,1,1,Summary!A94),"…") -> …
A62: =Summary!C95 -> CHECK EYE WASH STATION | B62: =Summary!D95 -> 3601.422 | C62: =HYPERLINK("#"&ADDRESS(1,1,1,1,Summary!A95),"…") -> …
A63: =Summary!C96 -> DISCONNECTOR & EARTH SWITCH MAINTENANCE | B63: =Summary!D96 -> 3288.4236 | C63: =HYPERLINK("#"&ADDRESS(1,1,1,1,Summary!A96),"…") -> …
A64: =Summary!C97 -> MOTORISED OPERATING MECHANISM MAINTENANCE | B64: =Summary!D97 -> 3288.4236 | C64: =HYPERLINK("#"&ADDRESS(1,1,1,1,Summary!A97),"…") -> …
A65: =Summary!C98 -> INSULATING WALL BUSHING MAINTENANCE | B65: =Summary!D98 -> 2793.4236 | C65: =HYPERLINK("#"&ADDRESS(1,1,1,1,Summary!A98),"…") -> …
A66: =Summary!C99 -> PLC FILTER TUNING UNIT MAINTENANCE | B66: =Summary!D99 -> 2354.8041 | C66: =HYPERLINK("#"&ADDRESS(1,1,1,1,Summary!A99),"…") -> …
A67: =Summary!C100 -> FUNCTIONAL TEST OF EMERGENCY STOP BUTTON | B67: =Summary!D100 -> 900.3555 | C67: =HYPERLINK("#"&ADDRESS(1,1,1,1,Summary!A100),"…") -> …
A68: =Summary!C101 -> CABLE REPAIRS | B68: =Summary!D101 -> 0 | C68: =HYPERLINK("#"&ADDRESS(1,1,1,1,Summary!A101),"…") -> …
A69: =Summary!C102 -> SENIOR RELIABILITY ENGINEER | B69: =Summary!D102 -> 0 | C69: =HYPERLINK("#"&ADDRESS(1,1,1,1,Summary!A102),"…") -> …
A70: =Summary!C103 -> WORKS PLANNER | B70: =Summary!D103 -> 0 | C70: =HYPERLINK("#"&ADDRESS(1,1,1,1,Summary!A103),"…") -> …
A71: =Summary!C104 -> WORK PRACTICES SPECIALIST | B71: =Summary!D104 -> 0 | C71: =HYPERLINK("#"&ADDRESS(1,1,1,1,Summary!A104),"…") -> …
A72: =Summary!C105 -> VALVE HUMIDITY CONTROL SYSTEM | B72: =Summary!D105 -> 0 | C72: =HYPERLINK("#"&ADDRESS(1,1,1,1,Summary!A105),"…") -> …
A73: =Summary!C106 -> MANUAL OPERATING MECHANISM MAINTENANCE | B73: =Summary!D106 -> 0 | C73: =HYPERLINK("#"&ADDRESS(1,1,1,1,Summary!A106),"…") -> …
A74: Summary Worksheets
A75: Read Me | C75: =HYPERLINK("#"&ADDRESS(1,1,1,1,INDEX!A75),"…") -> …
A76: Summary | C76: ...
A77: Summary Capex | C77: ...
A78: Asset Mgt Team | C78: =HYPERLINK("#"&ADDRESS(1,1,1,1,INDEX!A78),"…") -> …
A79: ='Summary of PMs'!A74 -> Summary of PMs | C79: =HYPERLINK("#"&ADDRESS(1,1,1,1,INDEX!A79),"…") -> …
A80: ='Summary of PMs'!A75 -> Modelling Assumptions | C80: =HYPERLINK("#"&ADDRESS(1,1,1,1,INDEX!A80),"…") -> …
A81: Supporting Worksheets
A82: ='Summary of PMs'!A76 -> Blank | C82: =HYPERLINK("#"&ADDRESS(1,1,1,1,INDEX!A82),"…") -> …
A83: ='Summary of PMs'!A77 -> DL OPEX Budget | C83: =HYPERLINK("#"&ADDRESS(1,1,1,1,INDEX!A83),"…") -> …
A84: ='Summary of PMs'!A78 -> Schematics | C84: =HYPERLINK("#"&ADDRESS(1,1,1,1,INDEX!A84),"…") -> …
A85: ='Summary of PMs'!A79 -> Components in Schematic | C85: =HYPERLINK("#"&ADDRESS(1,1,1,1,INDEX!A85),"…") -> …
A86: ='Summary of PMs'!A80 -> Grouped Components | C86: =HYPERLINK("#"&ADDRESS(1,1,1,1,INDEX!A86),"…") -> …
A87: ='Summary of PMs'!A81 -> ABB Maintenance | C87: =HYPERLINK("#"&ADDRESS(1,1,1,1,INDEX!A87),"…") -> …
A88: ='Summary of PMs'!A82 -> Byron Bay Trees | C88: =HYPERLINK("#"&ADDRESS(1,1,1,1,INDEX!A88),"…") -> …
A89: ='Summary of PMs'!A83 -> Electricity Invoices | C89: =HYPERLINK("#"&ADDRESS(1,1,1,1,INDEX!A89),"…") -> …
A90: ='Summary of PMs'!A84 -> Maintenance Documents | C90: =HYPERLINK("#"&ADDRESS(1,1,1,1,INDEX!A90),"…") -> …
A91: ='Summary of PMs'!A85 -> Chart Summary
A92: ='Summary of PMs'!A86 -> DL PMs | C92: =HYPERLINK("#"&ADDRESS(1,1,1,1,INDEX!A92),"…") -> …
A93: ='Summary of PMs'!A87 -> OnSite Contractors | C93: =HYPERLINK("#"&ADDRESS(1,1,1,1,INDEX!A93),"…") -> …

Sheet Read Me
B1: =UPPER(RIGHT(CELL("filename",A1),LEN(CELL("filename",A1))-FIND("]",CELL("filename",A1)))) -> READ ME
A2: Return to Index
A4: MOMCSA
A5: Directlink is operated in accordance with the Management Operations, Maintenance and Commercial Services Agreement (the MOMCSA)
A6: The MOMCSA requires a margin to be applied to all costs incurred in the operation and maintenance of Directlink
A7: Costs shown on individual worksheets describing maintenance tasks are the actual incurred costs and do not include the margin
A8: Costs shown on the Summary Sheets have been adjusted and include the margin
A9: The applicable margin percentage is included in the Modelling Assumptions worksheet
A12: KEY for information shown in the worksheets
A13: Information shown in Red have been estimated by Phacelift
A14: Information shown in Blue have been discussed with APA staff
A15: Important notes are highlighted
A18: Disclaimer
A19: This O&M Model its findings and its outcomes have been prepared for distribution to the Directlink Joint Venture (“the company”) and the Australian Energy Regulator (AER) in accordance with the agreed scope of work and associated terms and conditions. Phacelift Consulting Services Pty Ltd and its staff (“Phacelift”) disclaim any assumption of responsibility for any reliance on this model to any person other than the company or AER or for any purpose other than that for which it was prepared. Whilst Phacelift has prepared this model with due care and skill, it is a condition on the use of this model by the company that: (a) any compensation for liability made by the company on Phacelift in relation to the advice or content provided in the model be limited to a payment which is equal to the fees paid for that advice; and (b) the company indemnify Phacelift for any other loss suffered by the company following any negligence claim made against Phacelift.

Sheet Summary
B1: =UPPER(RIGHT(CELL("filename",A1),LEN(CELL("filename",A1))-FIND("]",CELL("filename",A1)))) -> SUMMARY
A2: Return to Index
A4: With Escalation (2014$) | C4: 2015/16 | D4: 2016/17 | E4: 2017/18 | F4: 2018/19 | G4: 2019/20 | I4: ='0000 (1)'!D2 -> Total in AER Period
A5: ='0000 (1)'!$A3 -> APA Staff Costs | C5: =SUM('0000 (1):Blank'!E3)*MOMCSA_Multiplier -> 650294.28 | D5: =SUM('0000 (1):Blank'!F3)*MOMCSA_Multiplier -> 517291.7803 | E5: =SUM('0000 (1):Blank'!G3)*MOMCSA_Multiplier -> 524083.7644 | F5: =SUM('0000 (1):Blank'!H3)*MOMCSA_Multiplier -> 522525.4747 | G5: =SUM('0000 (1):Blank'!I3)*MOMCSA_Multiplier -> 520018.9036 | I5: =SUM(C5:G5) -> 2734214.203
A6: ='0000 (1)'!$A4 -> APA Material Costs | C6: =SUM('0000 (1):Blank'!E4)*MOMCSA_Multiplier -> 1158444.392 | D6: =SUM('0000 (1):Blank'!F4)*MOMCSA_Multiplier -> 1072897.969 | E6: =SUM('0000 (1):Blank'!G4)*MOMCSA_Multiplier -> 1083567.969 | F6: =SUM('0000 (1):Blank'!H4)*MOMCSA_Multiplier -> 1082463.154 | G6: =SUM('0000 (1):Blank'!I4)*MOMCSA_Multiplier -> 1098633.154 | I6: =SUM(C6:G6) -> 5496006.638
A7: ='0000 (1)'!$A5 -> Contractor Labour | C7: =SUM('0000 (1):Blank'!E5)*MOMCSA_Multiplier -> 935542.1495 | D7: =SUM('0000 (1):Blank'!F5)*MOMCSA_Multiplier -> 454539.6495 | E7: =SUM('0000 (1):Blank'!G5)*MOMCSA_Multiplier -> 513032.1495 | F7: =SUM('0000 (1):Blank'!H5)*MOMCSA_Multiplier -> 463865.4495 | G7: =SUM('0000 (1):Blank'!I5)*MOMCSA_Multiplier -> 478877.1495 | I7: 2845856.548
A8: ='0000 (1)'!$A6 -> Contractor Materials | C8: =SUM('0000 (1):Blank'!E6)*MOMCSA_Multiplier -> 4862 | D8: =SUM('0000 (1):Blank'!F6)*MOMCSA_Multiplier -> 4400 | E8: =SUM('0000 (1):Blank'!G6)*MOMCSA_Multiplier -> 4400 | F8: =SUM('0000 (1):Blank'!H6)*MOMCSA_Multiplier -> 4400 | G8: =SUM('0000 (1):Blank'!I6)*MOMCSA_Multiplier -> 4400 | I8: 22462
C10: =SUM(C5:C8) -> 2749142.821 | D10: =SUM(D5:D8) -> 2049129.399 | E10: 2125083.883 | F10: 2073254.078 | G10: 2101929.207 | I10: =SUM(C5:G8) -> 11098539.39
H12: Average per year | I12: =AVERAGE(C10:G10) -> 2219707.878
A18: Without Escalation | C18: =C4 -> 2015/16 | D18: =D4 -> 2016/17 | E18: 2017/18 | F18: 2018/19 | G18: 2019/20
A19: =A5 -> APA Staff Costs | C19: =C5/'Modelling Assumptions'!E107 -> 650294.28 | D19: =D5/'Modelling Assumptions'!F107 -> 517291.7803 | E19: =E5/'Modelling Assumptions'!G107 -> 524083.7644 | F19: =F5/'Modelling Assumptions'!H107 -> 522525.4747 | G19: =G5/'Modelling Assumptions'!I107 -> 520018.9036 | I19: =SUM(C19:G19) -> 2734214.203
A20: =A6 -> APA Material Costs | C20: =C6/'Modelling Assumptions'!E108 -> 1158444.392 | D20: =D6/'Modelling Assumptions'!F108 -> 1072897.969 | E20: =E6/'Modelling Assumptions'!G108 -> 1083567.969 | F20: =F6/'Modelling Assumptions'!H108 -> 1082463.154 | G20: =G6/'Modelling Assumptions'!I108 -> 1098633.154 | I20: =SUM(C20:G20) -> 5496006.638
A21: =A7 -> Contractor Labour | C21: =C7/'Modelling Assumptions'!E107 -> 935542.1495 | D21: =D7/'Modelling Assumptions'!F107 -> 454539.6495 | E21: =E7/'Modelling Assumptions'!G107 -> 513032.1495 | F21: =F7/'Modelling Assumptions'!H107 -> 463865.4495 | G21: =G7/'Modelling Assumptions'!I107 -> 478877.1495 | I21: 2845856.548
A22: =A8 -> Contractor Materials | C22: =C8/'Modelling Assumptions'!E108 -> 4862 | D22: =D8/'Modelling Assumptions'!F108 -> 4400 | E22: =E8/'Modelling Assumptions'!G108 -> 4400 | F22: =F8/'Modelling Assumptions'!H108 -> 4400 | G22: =G8/'Modelling Assumptions'!I108 -> 4400 | I22: 22462
C24: =SUM(C19:C22) -> 2749142.821 | D24: =SUM(D19:D22) -> 2049129.399 | E24: 2125083.883 | F24: 2073254.078 | G24: 2101929.207 | I24: =SUM(C19:G22) -> 11098539.39
A28: As shown in the Report | C28: Budget | D28: No escalation from 2014$ | E28: Adjusted to 2014$
C29: =Summary!C4 -> 2015/16 | D29: =Summary!C24 -> 2749142.821 | E29: =Summary!C10 -> 2749142.821
C30: =Summary!D4 -> 2016/17 | D30: =Summary!D24 -> 2049129.399 | E30: =Summary!D10 -> 2049129.399
C31: =Summary!E4 -> 2017/18 | D31: =Summary!E24 -> 2125083.883 | E31: =Summary!E10 -> 2125083.883 | L31: 2015/16 | M31: 2016/17 | N31: 2017/18 | O31: 2018/19 | P31: 2019/20
C32: =Summary!F4 -> 2018/19 | D32: =Summary!F24 -> 2073254.078 | E32: =Summary!F10 -> 2073254.078 | L32: 666551.637 | M32: 543479.6767 | N32: 564380.8926 | O32: 576770.3546 | P32: 588353.6584
C33: =Summary!G4 -> 2019/20 | D33: =Summary!G24 -> 2101929.207 | E33: =Summary!G10 -> 2101929.207 | L33: 1191548.597 | M33: 1134848.5 | N33: 1178820.738 | O33: 1211165.951 | P33: 1264426.064
C34: Total | D34: =SUM(D29:D33) -> 11098539.39 | E34: =SUM(E29:E33) -> 11098539.39 | L34: 975297.5783 | M34: 477985.8506 | N34: 552925.5217 | O34: 512477.8225 | P34: 542274.1288
L35: 5007.86 | M35: 4667.96 | N35: 4807.9988 | O35: 4952.238764 | P35: 5100.805927
F42: Cumulative | G42: Rank
A43: Electricity Costs | B43: =HYPERLINK("#"&ADDRESS(1,1,1,1,A43),"…") -> … | C43: =INDIRECT("'"&A43&"'!$B$1") -> ELECTRICITY COSTS | D43: =SUM(INDIRECT("'"&A43&"'!$D$3:$D$6"))*MOMCSA_Multiplier -> 3487888.575 | F43: =D43/TotalOPEXInAERPeriod -> 0.3142655491 | G43: =ROW(G43)-ROW(G$42) -> 1
A44: Control Room Costs | B44: … | C44: CONTROL ROOM OPERATIONS | D44: 1031375.4 | F44: 0.09292893091 | G44: =ROW(G44)-ROW(G$42) -> 2
A45: Operations Manager | B45: … | C45: OPERATIONS MANAGER | D45: 753514.0787 | F45: 0.06789308506 | G45: 3
A46: Reliability Engineer | B46: … | C46: RELIABILITY ENGINEER | D46: 648508.3 | F46: 0.05843186002 | G46: 4
A47: 0017 | B47: … | C47: VEGETATION MANAGEMENT | D47: 465963.4697 | F47: 0.04198421553 | G47: 5
A48: 0028 | B48: … | C48: POWER TRANSFORMER MAINTENANCE | D48: 427118.879 | F48: 0.0384842423 | G48: 6
A49: 0140 | B49: … | C49: CIRCUIT BREAKER MAINTENANCE | D49: 373003.2174 | F49: 0.03360831586 | G49: 7
A50: Travel | B50: … | C50: TRAVEL | D50: 366293.4 | F50: 0.03300374826 | G50: 8
A51: Site Security | B51: … | C51: SITE SECURITY | D51: 293282.3025 | F51: 0.02642530627 | G51: 9
A52: Remote Comms | B52: … | C52: REMOTE COMMUNICATIONS | D52: 267095.4 | F52: 0.02406581539 | G52: 10
A53: Control System Repairs | B53: … | C53: CONTROL SYSTEM REPAIRS | D53: 202112.9 | F53: 0.01821076566 | G53: 11
A54: 0104 (1) | B54: … | C54: REACTOR MAINTENANCE | D54: 206011.6949 | F54: 0.01856205467 | G54: 12
A55: Other Items | B55: … | C55: OTHER COSTS | D55: 186877.064 | F55: 0.01683798719 | G55: 13
A56: Incidental Investigations | B56: … | C56: INCIDENTAL INVESTIGATIONS | D56: 166650 | F56: 0.01501548935 | G56: 14
A57: 0005 | B57: … | C57: ENERGISED MAINTENANCE INSPECTION | D57: 165832.92 | F57: 0.01494186885 | G57: 15
A58: 0056 | B58: … | C58: AIR BLAST COOLER MAINTENANCE | D58: 159146.1333 | F58: 0.01433937636 | G58: 16
A59: DBYD | B59: … | C59: DIAL BEFORE YOU DIG | D59: 155551.3179 | F59: 0.01401547649 | G59: 17
A60: 0000 (2) | B60: … | C60: FIRE SPRINKER SYSTEM | D60: 139457.2156 | F60: 0.01256536655 | G60: 18
A61: 0010 (1) | B61: … | C61: YARD MAINTENANCE | D61: 130646.5097 | F61: 0.0117715048 | G61: 19
A62: 0019 | B62: … | C62: CABLE MARKER SIGN MAINTENANCE | D62: 129885.888 | F62: 0.01170297131 | G62: 20
A63: Building ac | B63: … | C63: BUILDING AIR-CONDITIONERS | D63: 125393.8372 | F63: 0.01129822879 | G63: 21
A64: 0050 (1) | B64: … | C64: VALVE COOLING SYSTEM MAINTENANCE | D64: 107256.3063 | F64: 0.009664001951 | G64: 22
A65: 0104 (2) | B65: … | C65: PHASE REACTOR MAINTENANCE | D65: 108141.6717 | F65: 0.009743775093 | G65: 23
A66: Training Courses | B66: … | C66: TRAINING COURSES FOR CONTRACTORS | D66: 99250.8 | F66: 0.008942690252 | G66: 24
A67: IGBT Repairs | B67: … | C67: IGBT VALVE REPAIRS | D67: 86979.618 | F67: 0.00783703287 | G67: 25
A68: 0050 (2) | B68: … | C68: NITROGEN BOTTLE REPLACEMENT | D68: 80172.224 | F68: 0.007223673422 | G68: 26
A69: 0000 (1) | B69: … | C69: FIRE DETECTION & ALARM SYSTEM | D69: 65215.49523 | F69: 0.005876043049 | G69: 27
A70: 0010 (2) | B70: … | C70: OIL FILLED CAPACITOR MAINTENANCE | D70: 64266.708 | F70: 0.005790555473 | G70: 28
A71: 0110 | B71: … | C71: IGBT VALVE MAINTENANCE | D71: 62743.824 | F71: 0.005653340661 | G71: 29
A72: Prestart Inspection | B72: … | C72: PRESTART INSPECTIONS | D72: 38826.37688 | F72: 0.003498332124 | G72: 30
A73: Onsite Test Equipment | B73: … | C73: ONSITE TEST EQUIPMENT MAINTENANCE | D73: 36670.832 | F73: 0.003304113336 | G73: 31
A74: 0054 | B74: … | C74: VALVE COOLING MCC THERMOGRAPHIC IMAGING | D74: 35438.018 | F74: 0.003193034395 | G74: 32
A75: 0126 | B75: =HYPERLINK("#"&ADDRESS(1,1,1,1,A75),"…") -> … | C75: =INDIRECT("'"&A75&"'!$B$1") -> CONVERTER STATION THERMOGRAPHIC INSPECTION | D75: =SUM(INDIRECT("'"&A75&"'!$D$3:$D$6"))*MOMCSA_Multiplier -> 35438.018 | F75: =D75/TotalOPEXInAERPeriod -> 0.003193034395 | G75: 33
A76: 0038 (1) | B76: … | C76: ZINC OXIDE SURGE ARRESTOR MAINTENANCE | D76: 33767.118 | F76: 0.003042483053 | G76: 34
A77: 0060 | B77: … | C77: VALVE DEHUMIDIFIER MAINTENANCE | D77: 32942.118 | F77: 0.002968148947 | G77: 35
A78: 0006 | B78: … | C78: UNINTERRUPTIBLE POWER SUPPLY | D78: 31518.3286 | F78: 0.002839862751 | G78: 36
A79: 0022 | B79: … | C79: OUTDOOR POST TYPE CURRENT TRANSFORMER | D79: 29102.5416 | F79: 0.002622195641 | G79: 37
A80: 0042 | B80: … | C80: AC FILTER RESISTOR MAINTENANCE | D80: 28817.118 | F80: 0.002596478419 | G80: 38
A81: 0052 | B81: … | C81: VALVE COOLING SYSTEM PUMP MAINTENANCE | D81: 26342.118 | F81: 0.002373476102 | G81: 39
A82: 0104 (3) | B82: … | C82: PHASE REACTOR FAN MAINTENANCE | D82: 24790.5416 | F82: 0.002233676048 | G82: 40
A83: 0003 | B83: … | C83: PORTABLE FIRE EXTINGUISHER INSPECTION | D83: 24381.236 | F83: 0.002196796817 | G83: 41
A84: 0004 | B84: … | C84: EMERGENCY LIGHTING MAINTENANCE | D84: 23702.844 | F84: 0.002135672377 | G84: 42
A85: 0124 | B85: … | C85: NITROGEN DISCHARGE UNIT MAINTENANCE | D85: 17750.5416 | F85: 0.001599358346 | G85: 43
A86: 0016 | B86: … | C86: ROGOWSKI CURRENT TRANSDUCER MAINTENANCE | D86: 17679.618 | F86: 0.001592967992 | G86: 44
A87: 0120 | B87: … | C87: DIRECT VOLTAGE DIVIDER MAINTENANCE | D87: 15912.3888 | F87: 0.001433737201 | G87: 45
A88: 0011 | B88: … | C88: INSPECT SPILL KITS | D88: 15284.236 | F88: 0.001377139411 | G88: 46
A89: 0026 | B89: … | C89: CAPACITIVE VOLTAGE TRANSFORMER MAINTENANCE | D89: 14379.618 | F89: 0.001295631569 | G89: 47
A90: 0014 | B90: … | C90: HALL EFFECT CURRENT TRANSDUCER MAINTENANCE | D90: 12729.618 | F90: 0.001146963357 | G90: 48
A91: 0024 | B91: … | C91: CABLE SCREEN CURRENT TRANSFORMER | D91: 11492.118 | F91: 0.001035462199 | G91: 49
A92: 0104 (4) | B92: … | C92: DC ZERO SEQUENCE SMOOTHING REACTOR MAINTENANCE | D92: 7779.618 | F92: 0.0007009587233 | G92: 50
A93: 0038 (2) | B93: … | C93: AIR GAP SURGE LIMITER MAINTENANCE | D93: 7779.618 | F93: 0.0007009587233 | G93: 51
A94: 0013 | B94: … | C94: FUNCTIONAL TEST OF HIGH VOLTAGE TEST EQUIPMENT | D94: 4152.8025 | F94: 0.0003741755879 | G94: 52
A95: 0001 | B95: … | C95: CHECK EYE WASH STATION | D95: 3601.422 | F95: 0.0003244951317 | G95: 53
A96: 0160 (1) | B96: … | C96: DISCONNECTOR & EARTH SWITCH MAINTENANCE | D96: 3288.4236 | F96: 0.0002962933666 | G96: 54
A97: 0160 (2) | B97: … | C97: MOTORISED OPERATING MECHANISM MAINTENANCE | D97: 3288.4236 | F97: 0.0002962933666 | G97: 55
A98: 0142 | B98: … | C98: INSULATING WALL BUSHING MAINTENANCE | D98: 2793.4236 | F98: 0.0002516929032 | G98: 56
A99: 0150 | B99: … | C99: PLC FILTER TUNING UNIT MAINTENANCE | D99: 2354.8041 | F99: 0.0002121724326 | G99: 57
A100: 0128 | B100: … | C100: FUNCTIONAL TEST OF EMERGENCY STOP BUTTON | D100: 900.3555 | F100: 8.112378291e-05 | G100: 58
A101: Cable Repairs | B101: … | C101: CABLE REPAIRS | D101: 0 | F101: 0 | G101: 59
A102: Senior Reliability Engineer | B102: … | C102: SENIOR RELIABILITY ENGINEER | D102: 0 | F102: 0 | G102: 60
A103: Works Planner | B103: … | C103: WORKS PLANNER | D103: 0 | F103: =D103/TotalOPEXInAERPeriod -> 0 | G103: 61
A104: Work Practices Specialist | B104: … | C104: WORK PRACTICES SPECIALIST | D104: 0 | F104: =D104/TotalOPEXInAERPeriod -> 0 | G104: 62
A105: 0062 | B105: … | C105: VALVE HUMIDITY CONTROL SYSTEM | D105: 0 | F105: =D105/TotalOPEXInAERPeriod -> 0 | G105: 63
A106: 0180 | B106: … | C106: MANUAL OPERATING MECHANISM MAINTENANCE | D106: 0 | F106: =D106/TotalOPEXInAERPeriod -> 0 | G106: 64

Sheet Summary OPEX
B1: =UPPER(RIGHT(CELL("filename",A1),LEN(CELL("filename",A1))-FIND("]",CELL("filename",A1)))) -> SUMMARY OPEX
A2: Return to Index | B2: New Worksheet
A9: Table shows the Summary when Capitalise is set to TRUE
A11: With Escalation (2014$) | C11: 2015/16 | D11: 2016/17 | E11: 2017/18 | F11: 2018/19 | G11: 2019/20 | I11: Total in AER Period
A12: APA Staff Costs | C12: 650294.28 | D12: 517291.7803 | E12: 524083.7644 | F12: 522525.4747 | G12: 520018.9036 | I12: =SUM(C12:G12) -> 2734214.203
A13: APA Material Costs | C13: 1158444.392 | D13: 1072897.969 | E13: 1083567.969 | F13: 1082463.154 | G13: 1098633.154 | I13: =SUM(C13:G13) -> 5496006.638
A14: Contractor Labour | C14: 935542.1495 | D14: 454539.6495 | E14: 513032.1495 | F14: 463865.4495 | G14: 478877.1495 | I14: 2845856.548
A15: Contractor Materials | C15: 4862 | D15: 4400 | E15: 4400 | F15: 4400 | G15: 4400 | I15: 22462
C17: =SUM(C12:C15) -> 2749142.821 | D17: =SUM(D12:D15) -> 2049129.399 | E17: 2125083.883 | F17: 2073254.078 | G17: 2101929.207 | I17: =SUM(I12:I15) -> 11098539.39
A22: ELECTRICITY COSTS | C22: 3487888.575
A23: CONTROL ROOM OPERATIONS | C23: 1031375.4
A24: OPERATIONS MANAGER | C24: 753514.0787
A25: RELIABILITY ENGINEER | C25: 648508.3
A26: VEGETATION MANAGEMENT | C26: 465963.4697
A27: POWER TRANSFORMER MAINTENANCE | C27: 427118.879
A28: CIRCUIT BREAKER MAINTENANCE | C28: 373003.2174
A29: TRAVEL | C29: 366293.4
A30: SITE SECURITY | C30: 293282.3025
A31: REMOTE COMMUNICATIONS | C31: 267095.4
A32: REACTOR MAINTENANCE | C32: 206011.6949
A33: CONTROL SYSTEM REPAIRS | C33: 202112.9
A34: OTHER COSTS | C34: 186877.064
A35: INCIDENTAL INVESTIGATIONS | C35: 166650
A36: ENERGISED MAINTENANCE INSPECTION | C36: 165832.92
A37: AIR BLAST COOLER MAINTENANCE | C37: 159146.1333
A38: DIAL BEFORE YOU DIG | C38: 155551.3179
A39: FIRE SPRINKER SYSTEM | C39: 139457.2156
A40: YARD MAINTENANCE | C40: 130646.5097
A41: CABLE MARKER SIGN MAINTENANCE | C41: 129885.888
A42: BUILDING AIR-CONDITIONERS | C42: 125393.8372
A43: PHASE REACTOR MAINTENANCE | C43: 108141.6717
A44: VALVE COOLING SYSTEM MAINTENANCE | C44: 107256.3063
A45: TRAINING COURSES FOR CONTRACTORS | C45: 99250.8
A46: IGBT VALVE REPAIRS | C46: 86979.618
A47: NITROGEN BOTTLE REPLACEMENT | C47: 80172.224
A48: FIRE DETECTION & ALARM SYSTEM | C48: 65215.49523
A49: OIL FILLED CAPACITOR MAINTENANCE | C49: 64266.708
A50: IGBT VALVE MAINTENANCE | C50: 62743.824
A51: PRESTART INSPECTIONS | C51: 38826.37688
A52: ONSITE TEST EQUIPMENT MAINTENANCE | C52: 36670.832
A53: VALVE COOLING MCC THERMOGRAPHIC IMAGING | C53: 35438.018
A54: CONVERTER STATION THERMOGRAPHIC INSPECTION | C54: 35438.018
A55: ZINC OXIDE SURGE ARRESTOR MAINTENANCE | C55: 33767.118
A56: VALVE DEHUMIDIFIER MAINTENANCE | C56: 32942.118
A57: UNINTERRUPTIBLE POWER SUPPLY | C57: 31518.3286
A58: OUTDOOR POST TYPE CURRENT TRANSFORMER | C58: 29102.5416
A59: AC FILTER RESISTOR MAINTENANCE | C59: 28817.118
A60: VALVE COOLING SYSTEM PUMP MAINTENANCE | C60: 26342.118
A61: PHASE REACTOR FAN MAINTENANCE | C61: 24790.5416
A62: PORTABLE FIRE EXTINGUISHER INSPECTION | C62: 24381.236
A63: EMERGENCY LIGHTING MAINTENANCE | C63: 23702.844
A64: NITROGEN DISCHARGE UNIT MAINTENANCE | C64: 17750.5416
A65: ROGOWSKI CURRENT TRANSDUCER MAINTENANCE | C65: 17679.618
A66: DIRECT VOLTAGE DIVIDER MAINTENANCE | C66: 15912.3888
A67: INSPECT SPILL KITS | C67: 15284.236
A68: CAPACITIVE VOLTAGE TRANSFORMER MAINTENANCE | C68: 14379.618
A69: HALL EFFECT CURRENT TRANSDUCER MAINTENANCE | C69: 12729.618
A70: CABLE SCREEN CURRENT TRANSFORMER | C70: 11492.118
A71: DC ZERO SEQUENCE SMOOTHING REACTOR MAINTENANCE | C71: 7779.618
A72: AIR GAP SURGE LIMITER MAINTENANCE | C72: 7779.618
A73: FUNCTIONAL TEST OF HIGH VOLTAGE TEST EQUIPMENT | C73: 4152.8025
A74: CHECK EYE WASH STATION | C74: 3601.422
A75: DISCONNECTOR & EARTH SWITCH MAINTENANCE | C75: 3288.4236
A76: MOTORISED OPERATING MECHANISM MAINTENANCE | C76: 3288.4236
A77: INSULATING WALL BUSHING MAINTENANCE | C77: 2793.4236
A78: PLC FILTER TUNING UNIT MAINTENANCE | C78: 2354.8041
A79: FUNCTIONAL TEST OF EMERGENCY STOP BUTTON | C79: 900.3555
A80: CABLE REPAIRS | C80: 0
A81: SENIOR RELIABILITY ENGINEER | C81: 0
A82: WORKS PLANNER | C82: 0
A83: WORK PRACTICES SPECIALIST | C83: 0
A84: VALVE HUMIDITY CONTROL SYSTEM | C84: 0
A85: MANUAL OPERATING MECHANISM MAINTENANCE | C85: 0

Sheet Summary CAPEX
B1: =UPPER(RIGHT(CELL("filename",A1),LEN(CELL("filename",A1))-FIND("]",CELL("filename",A1)))) -> SUMMARY CAPEX
A2: Return to Index | B2: New Worksheet
A9: Table what has been capitalised
A11: With Escalation (2014$) | C11: 2015/16 | D11: 2016/17 | E11: 2017/18 | F11: 2018/19 | G11: 2019/20 | I11: Total in AER Period
A12: APA Staff Costs | C12: 475158.7764 | D12: 475158.7764 | E12: 475158.7764 | F12: 475158.7764 | G12: 475158.7764 | I12: =SUM(C12:G12) -> 2375793.882
A13: APA Material Costs | C13: 6600 | D13: 6600 | E13: 6600 | F13: 6600 | G13: 6600 | I13: =SUM(C13:G13) -> 33000
A14: Contractor Labour | C14: 250363.113 | D14: 250363.113 | E14: 250363.113 | F14: 250363.113 | G14: 250363.113 | I14: 1251815.565
A15: Contractor Materials | C15: 0 | D15: 0 | E15: 0 | F15: 0 | G15: 0 | I15: 0
C17: =SUM(C12:C15) -> 732121.8894 | D17: =SUM(D12:D15) -> 732121.8894 | E17: 732121.8894 | F17: 732121.8894 | G17: 732121.8894 | I17: =SUM(I12:I15) -> 3660609.447
A22: CABLE REPAIRS | C22: 1934285.958
A23: SENIOR RELIABILITY ENGINEER | C23: 677109.213
A24: WORKS PLANNER | C24: 524607.138
A25: WORK PRACTICES SPECIALIST | C25: 524607.138
A26: ELECTRICITY COSTS | C26: 0
A27: CONTROL ROOM OPERATIONS | C27: 0
A28: OPERATIONS MANAGER | C28: 0
A29: RELIABILITY ENGINEER | C29: 0
A30: VEGETATION MANAGEMENT | C30: 0
A31: POWER TRANSFORMER MAINTENANCE | C31: 0
A32: CIRCUIT BREAKER MAINTENANCE | C32: 0
A33: TRAVEL | C33: 0
A34: SITE SECURITY | C34: 0
A35: REMOTE COMMUNICATIONS | C35: 0
A36: CONTROL SYSTEM REPAIRS | C36: 0
A37: REACTOR MAINTENANCE | C37: 0
A38: OTHER COSTS | C38: 0
A39: INCIDENTAL INVESTIGATIONS | C39: 0
A40: ENERGISED MAINTENANCE INSPECTION | C40: 0
A41: AIR BLAST COOLER MAINTENANCE | C41: 0
A42: DIAL BEFORE YOU DIG | C42: 0
A43: FIRE SPRINKER SYSTEM | C43: 0
A44: YARD MAINTENANCE | C44: 0
A45: CABLE MARKER SIGN MAINTENANCE | C45: 0
A46: BUILDING AIR-CONDITIONERS | C46: 0
A47: VALVE COOLING SYSTEM MAINTENANCE | C47: 0
A48: PHASE REACTOR MAINTENANCE | C48: 0
A49: TRAINING COURSES FOR CONTRACTORS | C49: 0
A50: IGBT VALVE REPAIRS | C50: 0
A51: NITROGEN BOTTLE REPLACEMENT | C51: 0
A52: FIRE DETECTION & ALARM SYSTEM | C52: 0
A53: OIL FILLED CAPACITOR MAINTENANCE | C53: 0
A54: IGBT VALVE MAINTENANCE | C54: 0
A55: PRESTART INSPECTIONS | C55: 0
A56: ONSITE TEST EQUIPMENT MAINTENANCE | C56: 0
A57: VALVE COOLING MCC THERMOGRAPHIC IMAGING | C57: 0
A58: CONVERTER STATION THERMOGRAPHIC INSPECTION | C58: 0
A59: ZINC OXIDE SURGE ARRESTOR MAINTENANCE | C59: 0
A60: VALVE DEHUMIDIFIER MAINTENANCE | C60: 0
A61: UNINTERRUPTIBLE POWER SUPPLY | C61: 0
A62: OUTDOOR POST TYPE CURRENT TRANSFORMER | C62: 0
A63: AC FILTER RESISTOR MAINTENANCE | C63: 0
A64: VALVE COOLING SYSTEM PUMP MAINTENANCE | C64: 0
A65: PHASE REACTOR FAN MAINTENANCE | C65: 0
A66: PORTABLE FIRE EXTINGUISHER INSPECTION | C66: 0
A67: EMERGENCY LIGHTING MAINTENANCE | C67: 0
A68: NITROGEN DISCHARGE UNIT MAINTENANCE | C68: 0
A69: ROGOWSKI CURRENT TRANSDUCER MAINTENANCE | C69: 0
A70: DIRECT VOLTAGE DIVIDER MAINTENANCE | C70: 0
A71: INSPECT SPILL KITS | C71: 0
A72: CAPACITIVE VOLTAGE TRANSFORMER MAINTENANCE | C72: 0
A73: HALL EFFECT CURRENT TRANSDUCER MAINTENANCE | C73: 0
A74: CABLE SCREEN CURRENT TRANSFORMER | C74: 0
A75: DC ZERO SEQUENCE SMOOTHING REACTOR MAINTENANCE | C75: 0
A76: AIR GAP SURGE LIMITER MAINTENANCE | C76: 0
A77: FUNCTIONAL TEST OF HIGH VOLTAGE TEST EQUIPMENT | C77: 0
A78: CHECK EYE WASH STATION | C78: 0
A79: DISCONNECTOR & EARTH SWITCH MAINTENANCE | C79: 0
A80: MOTORISED OPERATING MECHANISM MAINTENANCE | C80: 0
A81: INSULATING WALL BUSHING MAINTENANCE | C81: 0
A82: PLC FILTER TUNING UNIT MAINTENANCE | C82: 0
A83: FUNCTIONAL TEST OF EMERGENCY STOP BUTTON | C83: 0
A84: VALVE HUMIDITY CONTROL SYSTEM | C84: 0
A85: MANUAL OPERATING MECHANISM MAINTENANCE | C85: 0

Sheet Asset Mgt Team
B1: =UPPER(RIGHT(CELL("filename",A1),LEN(CELL("filename",A1))-FIND("]",CELL("filename",A1)))) -> ASSET MGT TEAM
A2: Return to Index
A4: The following tables are only valid if the Working section is manually updated
B7: ='Operations Manager'!E2 -> 2015/16 | C7: ='Operations Manager'!F2 -> 2016/17 | D7: ='Operations Manager'!G2 -> 2017/18 | E7: ='Operations Manager'!H2 -> 2018/19 | F7: ='Operations Manager'!I2 -> 2019/20 | H7: Total
A8: Operations Manager | B8: =INDIRECT("'"&$A8&"'!$E3") -> 148205.4948 | C8: =INDIRECT("'"&$A8&"'!$F3") -> 134201.826 | D8: =INDIRECT("'"&$A8&"'!$G3") -> 134201.826 | E8: =INDIRECT("'"&$A8&"'!$H3") -> 134201.826 | F8: =INDIRECT("'"&$A8&"'!$I3") -> 134201.826 | H8: =SUM(B8:F8) -> 685012.7988
A9: Senior Reliability Engineer | B9: =INDIRECT("'"&$A9&"'!$E3") -> 0 | C9: =INDIRECT("'"&$A9&"'!$F3") -> 0 | D9: =INDIRECT("'"&$A9&"'!$G3") -> 0 | E9: =INDIRECT("'"&$A9&"'!$H3") -> 0 | F9: =INDIRECT("'"&$A9&"'!$I3") -> 0 | H9: =SUM(B9:F9) -> 0
A10: Reliability Engineer | B10: 110910.6 | C10: 110910.6 | D10: 110910.6 | E10: 110910.6 | F10: 110910.6 | H10: 554553
A11: Work Practices Specialist | B11: =INDIRECT("'"&$A11&"'!$E3") -> 0 | C11: =INDIRECT("'"&$A11&"'!$F3") -> 0 | D11: =INDIRECT("'"&$A11&"'!$G3") -> 0 | E11: =INDIRECT("'"&$A11&"'!$H3") -> 0 | F11: =INDIRECT("'"&$A11&"'!$I3") -> 0 | H11: =SUM(B11:F11) -> 0
A12: O&M Supervisor | B12: =B29-B30 -> -380152.2342 | C12: =C29-C30 -> -439197.8172 | D12: =D29-D30 -> -457030.6048 | E12: =E29-E30 -> -482873.3053 | F12: =F29-F30 -> -510390.0787 | H12: =SUM(B12:F12) -> -2269644.04
A13: Works Planner | B13: =INDIRECT("'"&$A13&"'!$E3") -> 0 | C13: =INDIRECT("'"&$A13&"'!$F3") -> 0 | D13: =INDIRECT("'"&$A13&"'!$G3") -> 0 | E13: =INDIRECT("'"&$A13&"'!$H3") -> 0 | F13: =INDIRECT("'"&$A13&"'!$I3") -> 0 | H13: 0
A14: Technicians | B14: =B29-B31 -> -113197.6756 | C14: =C29-C31 -> -238886.5227 | D14: =D29-D31 -> -257600.6884 | E14: =E29-E31 -> -277224.4775 | F14: =F29-F31 -> -297013.6096 | H14: -1183922.974
A15: Total | B15: =SUM(B8:B14) -> -234233.815 | C15: -432971.9139 | D15: -469518.8672 | E15: -514985.3569 | F15: -562291.2623 | H15: =SUM(H8:H14) -> -2214001.215
A18: Converting to hours | B18: =B7 -> 2015/16 | C18: =C7 -> 2016/17 | D18: =D7 -> 2017/18 | E18: =E7 -> 2018/19 | F18: =F7 -> 2019/20
A19: =A8 -> Operations Manager | B19: =B8/(HourlyRateAPAOperationsManager*'Modelling Assumptions'!E$107) -> 965.2 | C19: =C8/(HourlyRateAPAOperationsManager*'Modelling Assumptions'!F$107) -> 874 | D19: =D8/(HourlyRateAPAOperationsManager*'Modelling Assumptions'!G$107) -> 874 | E19: =E8/(HourlyRateAPAOperationsManager*'Modelling Assumptions'!H$107) -> 874 | F19: =F8/(HourlyRateAPAOperationsManager*'Modelling Assumptions'!I$107) -> 874
A20: Senior Reliability Engineer | B20: =B9/(HourlyRateSeniorReliabilityEng*'Modelling Assumptions'!E$107) -> 0 | C20: =C9/(HourlyRateSeniorReliabilityEng*'Modelling Assumptions'!F$107) -> 0 | D20: =D9/(HourlyRateSeniorReliabilityEng*'Modelling Assumptions'!G$107) -> 0 | E20: =E9/(HourlyRateSeniorReliabilityEng*'Modelling Assumptions'!H$107) -> 0 | F20: =F9/(HourlyRateSeniorReliabilityEng*'Modelling Assumptions'!I$107) -> 0
A21: Reliability Engineer | B21: =B10/(HourlyRateAPAReliabilityEng*'Modelling Assumptions'!E$107) -> 874 | C21: =C10/(HourlyRateAPAReliabilityEng*'Modelling Assumptions'!F$107) -> 874 | D21: =D10/(HourlyRateAPAReliabilityEng*'Modelling Assumptions'!G$107) -> 874 | E21: =E10/(HourlyRateAPAReliabilityEng*'Modelling Assumptions'!H$107) -> 874 | F21: =F10/(HourlyRateAPAReliabilityEng*'Modelling Assumptions'!I$107) -> 874
A22: Work Practices Specialist | B22: =B11/(HourlyRateAPAWorkPracticesSpecialist*'Modelling Assumptions'!E$107) -> 0 | C22: =C11/(HourlyRateAPAWorkPracticesSpecialist*'Modelling Assumptions'!F$107) -> 0 | D22: =D11/(HourlyRateAPAWorkPracticesSpecialist*'Modelling Assumptions'!G$107) -> 0 | E22: =E11/(HourlyRateAPAWorkPracticesSpecialist*'Modelling Assumptions'!H$107) -> 0 | F22: =F11/(HourlyRateAPAWorkPracticesSpecialist*'Modelling Assumptions'!I$107) -> 0
A23: O&M Supervisor | B23: =B12/(HourlyRateAPAOMSupervisor*'Modelling Assumptions'!E$107) -> -2995.683485 | C23: =C12/(HourlyRateAPAOMSupervisor*'Modelling Assumptions'!F$107) -> -3460.975706 | D23: =D12/(HourlyRateAPAOMSupervisor*'Modelling Assumptions'!G$107) -> -3601.502008 | E23: =E12/(HourlyRateAPAOMSupervisor*'Modelling Assumptions'!H$107) -> -3805.14819 | F23: =F12/(HourlyRateAPAOMSupervisor*'Modelling Assumptions'!I$107) -> -4021.986435
A24: Works Planner | B24: =B13/(HourlyRateAPAWorksPlanner*'Modelling Assumptions'!E$107) -> 0 | C24: =C13/(HourlyRateAPAWorksPlanner*'Modelling Assumptions'!F$107) -> 0 | D24: =D13/(HourlyRateAPAWorksPlanner*'Modelling Assumptions'!G$107) -> 0 | E24: =E13/(HourlyRateAPAWorksPlanner*'Modelling Assumptions'!H$107) -> 0 | F24: =F13/(HourlyRateAPAWorksPlanner*'Modelling Assumptions'!I$107) -> 0
A25: Technicians | B25: =B14/(HourlyRateAPAMaintenanceStaff*'Modelling Assumptions'!E$107) -> -1129.142608 | C25: =C14/(HourlyRateAPAMaintenanceStaff*'Modelling Assumptions'!F$107) -> -2382.884188 | D25: =D14/(HourlyRateAPAMaintenanceStaff*'Modelling Assumptions'!G$107) -> -2569.557295 | E25: =E14/(HourlyRateAPAMaintenanceStaff*'Modelling Assumptions'!H$107) -> -2765.303863 | F25: =F14/(HourlyRateAPAMaintenanceStaff*'Modelling Assumptions'!I$107) -> -2962.69972
A28: Working
A29: APA Staff Cost from Summary tab | B29: =Summary!C5 -> 650294.28 | C29: =Summary!D5 -> 517291.7803 | D29: =Summary!E5 -> 524083.7644 | E29: =Summary!F5 -> 522525.4747 | F29: =Summary!G5 -> 520018.9036 | H29: Live APA Staff Values
A30: Setting O&M Supervisor cost to $0 | B30: 1030446.514 | C30: 956489.5974 | D30: 981114.3692 | E30: 1005398.78 | F30: 1030408.982 | H30: Pasted Values
A31: Setting Technician cost to $0 | B31: 763491.9556 | C31: 756178.303 | D31: 781684.4528 | E31: 799749.9522 | F31: 817032.5132 | H31: Pasted Values

Sheet Summary of PMs
B1: =UPPER(RIGHT(CELL("filename",A1),LEN(CELL("filename",A1))-FIND("]",CELL("filename",A1)))) -> SUMMARY OF PMS
A2: Return to Index
A4: Sheet Name | B4: Link | D4: Total | E4: APA Staff Costs | F4: APA Material Costs | G4: Contractor Labour | H4: Contractor Materials | I4: Maintenance Connect Reference | L4: Photographic evidence
A5: 0000 (1) | B5: =HYPERLINK("#"&ADDRESS(1,1,1,1,A5),"…") -> … | C5: =INDIRECT("'"&A5&"'!$B$1") -> FIRE DETECTION & ALARM SYSTEM | D5: =SUM(INDIRECT("'"&A5&"'!$D$3:$D$6")) -> 59286.81385 | E5: =IF(INDIRECT("'"&A5&"'!$D$3")=0,"",INDIRECT("'"&A5&"'!$D$3")) -> 22726.81385 | F5: =IF(INDIRECT("'"&A5&"'!$D$4")=0,"",INDIRECT("'"&A5&"'!$D$4")) ->  | G5: =IF(INDIRECT("'"&A5&"'!$D$5")=0,"",INDIRECT("'"&A5&"'!$D$5")) -> 36560 | H5: =IF(INDIRECT("'"&A5&"'!$D$6")=0,"",INDIRECT("'"&A5&"'!$D$6")) ->  | I5: QLD-ET-WI-PMxxx-0000 | J5: 4 | L5: Log book
A6: 0000 (2) | B6: =HYPERLINK("#"&ADDRESS(1,1,1,1,A6),"…") -> … | C6: FIRE SPRINKER SYSTEM | D6: 126779.2869 | E6: 17099.28692 | G6: 109680 | I6: QLD-ET-WI-PMxxx-0000 | J6: 1 | L6: Log book
A7: 0001 | B7: … | C7: CHECK EYE WASH STATION | D7: 3274.02 | E7: 3274.02 | I7: QLD-ET-WI-PMxxx-0001 | J7: 1
A8: 0003 | B8: … | C8: PORTABLE FIRE EXTINGUISHER INSPECTION | D8: 22164.76 | E8: 11894.76 | G8: 10270 | I8: QLD-ET-WI-PMxxx-0003 | J8: 1
A9: 0004 | B9: … | C9: EMERGENCY LIGHTING MAINTENANCE | D9: 21548.04 | E9: 6548.04 | F9: 15000 | I9: QLD-ET-WI-PMxxx-0004 | J9: 1 | L9: Log book
A10: 0005 | B10: … | C10: ENERGISED MAINTENANCE INSPECTION | D10: 150757.2 | E10: 150757.2 | I10: QLD-ET-WI-PMxxx-0005 | J10: 1 | L10: Photographic + Direct Entry
A11: 0006 | B11: … | C11: UNINTERRUPTIBLE POWER SUPPLY | D11: 28653.026 | E11: 21853.026 | F11: 6800 | I11: QLD-ET-WI-PMxxx-0006 | J11: 1 | L11: Log book
A12: 0010 (1) | B12: … | C12: YARD MAINTENANCE | D12: 118769.5543 | E12: 31674.24 | G12: 87095.31429 | I12: QLD-ET-WI-PMxxx-0010 | J12: 1
A13: 0010 (2) | B13: … | C13: OIL FILLED CAPACITOR MAINTENANCE | D13: 58424.28 | E13: 6074.28 | G13: 52350 | I13: QLD-ET-WI-PMxxx-0010 | J13: 2 | L13: Log book + Photographs
A14: 0011 | B14: … | C14: INSPECT SPILL KITS | D14: 13894.76 | E14: 11894.76 | G14: 2000 | I14: QLD-ET-WI-PMxxx-0011 | J14: 1
A15: 0013 | B15: … | C15: FUNCTIONAL TEST OF HIGH VOLTAGE TEST EQUIPMENT | D15: 3775.275 | E15: 3775.275 | I15: QLD-ET-WI-PMxxx-0013 | J15: 1 | L15: Log book
A16: 0014 | B16: … | C16: HALL EFFECT CURRENT TRANSDUCER MAINTENANCE | D16: 11572.38 | E16: 5947.38 | G16: 5625 | I16: QLD-ET-WI-PMxxx-0014 | J16: 1 | L16: Log book
A17: 0016 | B17: … | C17: ROGOWSKI CURRENT TRANSDUCER MAINTENANCE | D17: 16072.38 | E17: 5947.38 | G17: 10125 | I17: QLD-ET-WI-PMxxx-0016 | J17: 1 | L17: Log book
A18: 0017 | B18: … | C18: VEGETATION MANAGEMENT | D18: 423603.1543 | E18: 31674.24 | G18: 391928.9143 | I18: QLD-ET-WI-PMxxx-0017 | J18: 1 | L18: Photographic + Log book
A19: 0019 | B19: … | C19: CABLE MARKER SIGN MAINTENANCE | D19: 118078.08 | E19: 112078.08 | F19: 6000 | I19: QLD-ET-WI-PMxxx-0019 | J19: 1 | L19: Photographic + Log book
A20: 0022 | B20: … | C20: OUTDOOR POST TYPE CURRENT TRANSFORMER | D20: 26456.856 | E20: 7136.856 | G20: 18900 | H20: 420 | I20: QLD-ET-WI-PMxxx-0022 | J20: 2 | L20: Log book
A21: 0024 | B21: … | C21: CABLE SCREEN CURRENT TRANSFORMER | D21: 10447.38 | E21: 5947.38 | G21: 4500 | I21: QLD-ET-WI-PMxxx-0024 | J21: 1 | L21: Log book
A22: 0026 | B22: … | C22: CAPACITIVE VOLTAGE TRANSFORMER MAINTENANCE | D22: 13072.38 | E22: 5947.38 | G22: 7125 | I22: QLD-ET-WI-PMxxx-0026 | J22: 1 | L22: Log book
A23: 0028 | B23: … | C23: POWER TRANSFORMER MAINTENANCE | D23: 388289.89 | E23: 6949.89 | F23: 2500 | G23: 378840 | I23: QLD-ET-WI-PMxxx-0028 | J23: 1 | L23: Log book
A24: 0038 (1) | B24: … | C24: ZINC OXIDE SURGE ARRESTOR MAINTENANCE | D24: 30697.38 | E24: 5947.38 | G24: 24750 | I24: QLD-ET-WI-PMxxx-0038 | J24: 1 | L24: Log book
A25: 0038 (2) | B25: … | C25: AIR GAP SURGE LIMITER MAINTENANCE | D25: 7072.38 | E25: 5947.38 | G25: 1125 | I25: QLD-ET-WI-PMxxx-0038 | J25: 1 | L25: Log book
A26: 0042 | B26: … | C26: AC FILTER RESISTOR MAINTENANCE | D26: 26197.38 | E26: 5947.38 | G26: 20250 | I26: QLD-ET-WI-PMxxx-0042 | J26: 1 | L26: Log book
A27: 0050 (1) | B27: … | C27: VALVE COOLING SYSTEM MAINTENANCE | D27: 97505.733 | E27: 6755.733 | F27: 52500 | G27: 38250 | I27: QLD-ET-WI-PMxxx-0050 | J27: 3 | L27: Log book
A28: 0050 (2) | B28: … | C28: NITROGEN BOTTLE REPLACEMENT | D28: 72883.84 | E28: 31674.24 | F28: 41209.6 | I28: QLD-ET-WI-PMxxx-0050 | J28: 1 | L28: Log book
A29: 0052 | B29: … | C29: VALVE COOLING SYSTEM PUMP MAINTENANCE | D29: 23947.38 | E29: 5947.38 | G29: 18000 | I29: QLD-ET-WI-PMxxx-0052 | J29: 1 | L29: Log book
A30: 0054 | B30: … | C30: VALVE COOLING MCC THERMOGRAPHIC IMAGING | D30: 32216.38 | E30: 7216.38 | G30: 15000 | H30: 10000 | I30: QLD-ET-WI-PMxxx-0054 | J30: 1 | L30: Photographic + Log book
A31: 0056 | B31: … | C31: AIR BLAST COOLER MAINTENANCE | D31: 144678.303 | E31: 39153.303 | F31: 44100 | G31: 61425 | I31: QLD-ET-WI-PMxxx-0056 | J31: 1 | L31: Log book
A32: 0060 | B32: … | C32: VALVE DEHUMIDIFIER MAINTENANCE | D32: 29947.38 | E32: 5947.38 | G32: 24000 | I32: QLD-ET-WI-PMxxx-0060 | J32: 1 | L32: Log book
A33: 0062 | B33: … | C33: VALVE HUMIDITY CONTROL SYSTEM | D33: 0 | I33: QLD-ET-WI-PMxxx-0062 | J33: 1 | L33: Log book
A34: 0104 (1) | B34: … | C34: REACTOR MAINTENANCE | D34: 187283.359 | E34: 36095.859 | F34: 64000 | G34: 87187.5 | I34: QLD-ET-WI-PMxxx-0104 | J34: 2
A35: 0104 (2) | B35: … | C35: PHASE REACTOR MAINTENANCE | D35: 98310.6106 | E35: 28550.6106 | F35: 7260 | G35: 62500 | I35: QLD-ET-WI-PMxxx-0104 | J35: 1 | L35: Log book
A36: 0104 (3) | B36: … | C36: PHASE REACTOR FAN MAINTENANCE | D36: 22536.856 | E36: 7136.856 | F36: 1600 | G36: 13800 | I36: QLD-ET-WI-PMxxx-0104 | J36: 2
A37: 0104 (4) | B37: … | C37: DC ZERO SEQUENCE SMOOTHING REACTOR MAINTENANCE | D37: 7072.38 | E37: 5947.38 | G37: 1125 | I37: QLD-ET-WI-PMxxx-0104 | J37: 1
A38: 0110 | B38: … | C38: IGBT VALVE MAINTENANCE | D38: 57039.84 | E38: 19914.84 | G38: 37125 | I38: QLD-ET-WI-PMxxx-0110 | J38: 1 | L38: Log book
A39: 0120 | B39: … | C39: DIRECT VOLTAGE DIVIDER MAINTENANCE | D39: 14465.808 | E39: 9515.808 | G39: 4950 | I39: QLD-ET-WI-PMxxx-0120 | J39: 2 | L39: Log book
A40: 0124 | B40: … | C40: NITROGEN DISCHARGE UNIT MAINTENANCE | D40: 16136.856 | E40: 7136.856 | G40: 9000 | I40: QLD-ET-WI-PMxxx-0124 | J40: 2 | L40: Log book
A41: 0126 | B41: … | C41: CONVERTER STATION THERMOGRAPHIC INSPECTION | D41: 32216.38 | E41: 7216.38 | G41: 15000 | H41: 10000 | I41: QLD-ET-WI-PMxxx-0126 | J41: 1 | L41: Photographic
A42: 0128 | B42: … | C42: FUNCTIONAL TEST OF EMERGENCY STOP BUTTON | D42: 818.505 | E42: 818.505 | I42: QLD-ET-WI-PMxxx-0128 | J42: 1 | L42: Log book
A43: 0140 | B43: … | C43: CIRCUIT BREAKER MAINTENANCE | D43: 339093.834 | E43: 47865.834 | F43: 6000 | G43: 285228 | I43: QLD-ET-WI-PMxxx-0140 | J43: 3 | L43: Photographic + Log book
A44: 0142 | B44: … | C44: INSULATING WALL BUSHING MAINTENANCE | D44: 2539.476 | E44: 1189.476 | G44: 1350 | I44: QLD-ET-WI-PMxxx-0142 | J44: 1 | L44: Photographic + Log book
A45: 0150 | B45: … | C45: PLC FILTER TUNING UNIT MAINTENANCE | D45: 2140.731 | E45: 1690.731 | G45: 450 | I45: QLD-ET-WI-PMxxx-0150 | J45: 1 | L45: Log book
A46: 0160 (1) | B46: … | C46: DISCONNECTOR & EARTH SWITCH MAINTENANCE | D46: 2989.476 | E46: 1189.476 | G46: 1800 | I46: QLD-ET-WI-PMxxx-0160 | J46: 1 | L46: Photographic + Log book
A47: 0160 (2) | B47: … | C47: MOTORISED OPERATING MECHANISM MAINTENANCE | D47: 2989.476 | E47: 1189.476 | G47: 1800 | I47: QLD-ET-WI-PMxxx-0160 | J47: 1 | L47: Log book
A48: 0180 | B48: … | C48: MANUAL OPERATING MECHANISM MAINTENANCE | D48: 0 | I48: QLD-ET-WI-PMxxx-0180 | J48: 1 | L48: Log book
A50: Prestart Inspection | B50: … | C50: =INDIRECT("'"&A50&"'!$B$1") -> PRESTART INSPECTIONS | D50: =SUM(INDIRECT("'"&A50&"'!$D$3:$D$6")) -> 35296.70625 | E50: =IF(INDIRECT("'"&A50&"'!$D$3")=0,"",INDIRECT("'"&A50&"'!$D$3")) -> 35296.70625 | F50: =IF(INDIRECT("'"&A50&"'!$D$4")=0,"",INDIRECT("'"&A50&"'!$D$4")) ->  | G50: =IF(INDIRECT("'"&A50&"'!$D$5")=0,"",INDIRECT("'"&A50&"'!$D$5")) ->  | H50: =IF(INDIRECT("'"&A50&"'!$D$6")=0,"",INDIRECT("'"&A50&"'!$D$6")) -> 
A51: Cable Repairs | B51: … | C51: CABLE REPAIRS | D51: 0
A52: IGBT Repairs | B52: … | C52: IGBT VALVE REPAIRS | D52: 79072.38 | E52: 5947.38 | G52: 73125
A53: Control System Repairs | B53: … | C53: CONTROL SYSTEM REPAIRS | D53: 183739 | E53: 166239 | F53: 17500
A54: Building ac | B54: … | C54: BUILDING AIR-CONDITIONERS | D54: 113994.3975 | E54: 38691.81 | G54: 75302.5875
A55: Electricity Costs | B55: … | C55: ELECTRICITY COSTS | D55: 3170807.796 | E55: 7614 | F55: 3163193.796
A56: Control Room Costs | B56: … | C56: CONTROL ROOM OPERATIONS | D56: 937614 | E56: 7614 | F56: 930000
A57: Remote Comms | B57: … | C57: REMOTE COMMUNICATIONS | D57: 242814 | E57: 7614 | F57: 235200
A58: DBYD | B58: … | C58: DIAL BEFORE YOU DIG | D58: 141410.289 | E58: 106910.289 | F58: 34500
A59: Site Security | B59: … | C59: SITE SECURITY | D59: 266620.275 | E59: 7614 | F59: 259006.275
A60: Training Courses | B60: … | C60: TRAINING COURSES FOR CONTRACTORS | D60: 90228 | E60: 15228 | F60: 75000
A61: Onsite Test Equipment | B61: … | C61: ONSITE TEST EQUIPMENT MAINTENANCE | D61: 33337.12 | E61: 15837.12 | G61: 17500
A62: Incidental Investigations | B62: … | C62: INCIDENTAL INVESTIGATIONS | D62: 151500 | G62: 151500
A63: Travel | B63: … | C63: TRAVEL | D63: 332994 | E63: 32994 | G63: 300000
A64: Other Items | B64: … | C64: OTHER COSTS | D64: 169888.24 | E64: 39288.24 | G64: 130600
A65: Operations Manager | B65: =HYPERLINK("#"&ADDRESS(1,1,1,1,A65),"…") -> … | C65: OPERATIONS MANAGER | D65: 685012.7988 | E65: 685012.7988
A66: Senior Reliability Engineer | B66: =HYPERLINK("#"&ADDRESS(1,1,1,1,A66),"…") -> … | C66: SENIOR RELIABILITY ENGINEER | D66: 0
A67: Reliability Engineer | B67: =HYPERLINK("#"&ADDRESS(1,1,1,1,A67),"…") -> … | C67: RELIABILITY ENGINEER | D67: 589553 | E67: 554553 | F67: 35000
A68: Works Planner | B68: =HYPERLINK("#"&ADDRESS(1,1,1,1,A68),"…") -> … | C68: WORKS PLANNER | D68: 0
A69: Work Practices Specialist | B69: =HYPERLINK("#"&ADDRESS(1,1,1,1,A69),"…") -> … | C69: WORK PRACTICES SPECIALIST | D69: 0
A71: Other Worksheets
A72: Summary | B72: =HYPERLINK("#"&ADDRESS(1,1,1,1,A72),"…") -> … | C72: =INDIRECT("'"&A72&"'!$B$1") -> SUMMARY
A73: Asset Mgt Team | B73: … | C73: ASSET MGT TEAM
A74: Summary of PMs | B74: … | C74: SUMMARY OF PMS
A75: Modelling Assumptions | B75: … | C75: MODELLING ASSUMPTIONS
A76: Blank | B76: … | C76: BLANK
A77: DL OPEX Budget | B77: … | C77: DL OPEX BUDGET
A78: Schematics | B78: … | C78: SCHEMATICS
A79: Components in Schematic | B79: … | C79: COMPONENTS IN SCHEMATIC
A80: Grouped Components | B80: … | C80: GROUPED COMPONENTS
A81: ABB Maintenance | B81: … | C81: ABB MAINTENANCE
A82: Byron Bay Trees | B82: … | C82: BYRON BAY TREES
A83: Electricity Invoices | B83: … | C83: ELECTRICITY INVOICES
A84: Maintenance Documents | B84: … | C84: MAINTENANCE DOCUMENTS
A85: Chart Summary | B85: …
A86: DL PMs | B86: …
A87: OnSite Contractors | B87: …

Sheet Modelling Assumptions
B1: =UPPER(RIGHT(CELL("filename",A1),LEN(CELL("filename",A1))-FIND("]",CELL("filename",A1)))) -> MODELLING ASSUMPTIONS
A2: Return to Index
A6: Historical Costs calculated in the Reference Year
A7: Reference Financial Year | B7: 2014/15
A8: Reference Year | B8: 2014 | D8: =CONCATENATE("First year of the Financial Year ",B8,"/",(B8+1-2000)) -> First year of the Financial Year 2014/15
A10: All the following figures should be considered anecdotal
A13: Charge Out Rates for APA Staff
A14: Hourly rate for APA technicians including HCC | B14: =B22*(1+HCCPercentage) -> 100.251 | D14: Calculated from the following figures
A15: Hourly rate for APA O&M Supervisor including HCC | B15: 126.9 | D15: Calculated from the following figures
A16: Hourly rate for APA Reliability Engineer including HCC | B16: 126.9 | D16: Calculated from the following figures
A17: Hourly rate for APA Operations Manager including HCC | B17: 153.549 | D17: Calculated from the following figures
A18: Hourly rate for Senior Reliability Engineer including HCC | B18: 140.859 | D18: Calculated from the following figures
A19: Hourly rate for Works Planner including HCC | B19: 109.134 | D19: Calculated from the following figures
A20: Hourly rate for Work Practices Specialist including HCC | B20: =B28*(1+HCCPercentage) -> 109.134 | D20: Calculated from the following figures
A22: Hourly rate for APA technicians | B22: 79 | D22: Average rate for the two APA technicians | I22: Anecdotal data taken from email from regulatory manager 24/3/14
A23: Hourly rate for APA O&M Supervisor | B23: 100 | D23: Rate for a leading hand | I23: Anecdotal data taken from email from regulatory manager 24/3/14
A24: Hourly rate for APA Reliability Engineer | B24: 100 | D24: Rate for an engineer | I24: Anecdotal data taken from email from regulatory manager 24/3/14
A25: Hourly rate for APA Operations Manager | B25: 121 | D25: Rate for APA Operations Manager | I25: Anecdotal data taken from email from regulatory manager 24/3/14
A26: Hourly rate for Senior Reliability Engineer | B26: =111 -> 111 | D26: Assumed rate for the Senior Reliability Engineer | I26: Assumed to fall between the Engineer and Operations Manager
A27: Hourly rate for Works Planner | B27: 86 | D27: Assumed rate for the Works Planner | I27: Assumed to be the rate of a senior technician
A28: Hourly rate for Work Practices Specialist | B28: 86 | D28: Assumed rate for the Work Practices Specialist | I28: Assumed to be the rate of a senior technician
A30: Home Cost Centre Cost Allocation Percentage | B30: 0.269 | I30: Anecdotal - Source draft CY14/FY15 budget
A33: Rates of Inflation
A34: The modelling has used the Reserve Bank of Australia (RBA) target range of 2 to 3%
A35: For Labour rates the mid point has been selected
A36: Exposure to overseas prices for most materials means the model has selected the upper end of the RBA's
A38: Annual Increase in Contractor Labour Rates | B38: 0 | D38: Applied to all labour rates (explained in Appendix A of the report) | K38: Discussed with the regulatory manager | P38: Changed to align with AER
A39: Annual Increase in cost of Materials | B39: 0 | D39: Applied to all materials (explained in Appendix A of the report) | K39: Discussed with the regulatory manager | P39: ditto
A41: MOMCSA
A42: Management Operations, Maintenance and Commercial Services Agreement (the MOMCSA)
A43: Agreed Margin from 10.1 (c) (i) | B43: 0.1
A45: APA O&M Supervisor
A46: Hours per maintenance item | B46: =SUM(N48:N67)/60 -> 8.583333333 | D46: This time includes
N47: Minutes
D48: Open and Read the preventative maintenance task from Maintenance Connection | N48: 10
D49: Plan the steps in the Work Order | N49: 30
D50: Identify and assess suitable contractors for the work | N50: 60
D51: Schedule the maintenance (ensure contractors are available during the planned outages) | N51: 120
D52: Raise the Purchase Order in the financial management system | N52: 20
D53: Locate the Work Instructions (stored separately from Maintenance Connection) | N53: 15
D54: Assemble and Send detailed work package to the contractors | N54: 30
D55: Onsite supervision of the work (especially during major scheduled outages) | N55: 90
E56: There are two periods when APA schedule preventative maintenance
E57: During these two periods it is usual for the O&M Supervisor to be onsite
E58: Approximately 5% of the allocated time includes travel time
D59: Complete the work order
E60: Attach maintenance results | N60: 20
E61: Update results fields | N61: 10
E62: Close work order | N62: 5
D63: Process contractor invoice including check the invoice is for an approved purchase order | N63: 30
D64: Prepare invoice for payment approval by the Operations Manager | N64: 10
D65: Close the Purchase Order and enter Invoice details into the systems | N65: 15
D66: Check the Maintenance Log updated | N66: 20
D67: Debrief with the contractor after work has been completed | N67: 30
D68: It excludes photographic updating (this is added separately when for those items requiring a photographic record)
A70: APA Onsite Technicians
A71: Contractor Access to Site | B71: 1 | D71: There is a requirement to undertake an onsite safety briefing whenever contractors are given access to the site
D72: While this briefing only takes 30 minutes (anecdotal) it occurs at both sites
D73: Since maintenance work always occurs equally at both sites the model simply uses a value of 1 hour
A75: APA Standard Week | B75: 38 | D75: hours
A76: Working weeks per year | B76: 46 | D76: weeks (52 - 4 weeks annual leave - 10 days of public holidays)
A77: Full time hours per year | B77: =B75*B76 -> 1748 | D77: hours
A79: Contractors
A80: Byron Bay Trees | B80: ='Byron Bay Trees'!D38 -> 87095.31429 | D80: Total Per Annum in Reference Year (including any clearing for cable repairs)
A81: Percentage of vegetation management in Yard | B81: 0.1 | D81: This percentage appears under Yard Maintenance the remainder in Vegetation Management (of the Cable Route)
A83: Thearle/SAE | B83: 75 | D83: Anecdotal - this figure was chosen as a reasonable average Hourly Rate
D84: Thearle base rate is $65 but most invoices show considerable amounts of overtime at $85 (and also must allow for travel).
D85: Anecdotally SAE are quoted as $75 per hour (from O&M Supervisor)
A87: Proactive Cable Replacement Program
A88: Capitalise All Cable Replacement Costs | B88: TRUE | D88: When set to TRUE costs associated with cable replacement (including additional staff) are allocated to CAPEX | Q88: TRUE
A90: Gotland Solution Implemented
A91: Filters installed to phase reactors | B91: TRUE | D91: When set to TRUE phase reactor maintenance is reduced
A94: Component Costs | D94: Select if the component cost is capitalised (if TRUE then value is excluded from OPEX forecast)
A95: Capitalise | B95: TRUE | D95: TRUE or FALSE | M95: TRUE
M96: FALSE
A97: Cost Per IGBT | B97: 5000 | D97: Anecdotal per IGBT
A98: Cost Per Cable Joint | B98: 14348 | D98: Anecdotal per cable joint (two required per repair)
A99: Cost of Cable | B99: 168 | D99: Anecdotal per metre
A100: Cost per Oil Filled Capacitor | B100: ='0010 (2)'!B63 -> 6340 | D100: Anecdotal average from a recent order
A104: Values derived from above figures (do not edit)
A105: Financial Year | E105: =Summary!C4 -> 2015/16 | F105: =Summary!D4 -> 2016/17 | G105: =Summary!E4 -> 2017/18 | H105: =Summary!F4 -> 2018/19 | I105: =Summary!G4 -> 2019/20
A106: First Year in the Financial Year | E106: 2015 | F106: 2016 | G106: 2017 | H106: 2018 | I106: 2019
A107: Adjustment factor Labour | E107: =POWER(1+InflationContractorLabour,E$106-$B$8) -> 1 | F107: =POWER(1+InflationContractorLabour,F$106-$B$8) -> 1 | G107: =POWER(1+InflationContractorLabour,G$106-$B$8) -> 1 | H107: =POWER(1+InflationContractorLabour,H$106-$B$8) -> 1 | I107: =POWER(1+InflationContractorLabour,I$106-$B$8) -> 1
A108: Adjustment factor materials | E108: =POWER(1+InflationContractorMaterial,E$106-$B$8) -> 1 | F108: =POWER(1+InflationContractorMaterial,F$106-$B$8) -> 1 | G108: =POWER(1+InflationContractorMaterial,G$106-$B$8) -> 1 | H108: =POWER(1+InflationContractorMaterial,H$106-$B$8) -> 1 | I108: =POWER(1+InflationContractorMaterial,I$106-$B$8) -> 1
A111: MOMCSA Multiplier | B111: =(1+B43) -> 1.1

Sheet 0000 (1)
A1: Summary | B1: FIRE DETECTION & ALARM SYSTEM
A2: Return to Index | D2: Total in AER Period | E2: =Summary!C4 -> 2015/16 | F2: =Summary!D4 -> 2016/17 | G2: =Summary!E4 -> 2017/18 | H2: =Summary!F4 -> 2018/19 | I2: =Summary!G4 -> 2019/20
A3: APA Staff Costs | D3: =SUM(E3:I3) -> 22726.81385 | E3: =E48+E49+E81+E101+E121 -> 4494.602769 | F3: =F48+F49+F81+F101+F121 -> 4621.502769 | G3: 4494.602769 | H3: 4621.502769 | I3: 4494.602769
A4: APA Material Costs | D4: =SUM(E4:I4) -> 0 | E4: =E50+E82+E102+E122 -> 0 | F4: 0 | G4: 0 | H4: 0 | I4: 0
A5: Contractor Labour | D5: 36560 | E5: =E51+E83+E103+E123 -> 7312 | F5: 7312 | G5: 7312 | H5: 7312 | I5: 7312
A6: Contractor Materials | D6: 0 | E6: =E52+E84+E104+E124 -> 0 | F6: 0 | G6: 0 | H6: 0 | I6: 0
A9: Scheduled Outage Required | B9: Yes
A10: Work Instruction | B10: not sighted
A13: Fire Detection and Alarm System
B14: Sites | C14: 2
A15: Number of Components to be serviced | C15: =C14 -> 2
A17: Discussion
A18: This worksheet calculates the additional hours (travel) required for the technician at one site to travel to the other site (because the other technician is unavailable)
A19: This is only undertaken on this worksheet due to the requirement for monthly maintenance
A20: This worksheet does not make a material contribution to the total O&M Direct Cost
E21: =Summary!C4 -> 2015/16 | F21: =Summary!D4 -> 2016/17 | G21: =Summary!E4 -> 2017/18 | H21: =Summary!F4 -> 2018/19 | I21: =Summary!G4 -> 2019/20
A22: QLD-ET-WI-PM001-0000 | B22: Every 1 month(s) | E22: 12 | F22: 12 | G22: 12 | H22: 12 | I22: 12
A23: APA Costs
A24: APA Maintenance Staff (Hrs) | B24: =B35 -> 1.076923077 | C24: Hours per site per visit
A25: APA Supervision (Hrs) | B25: 0.5 | C25: Hours per site (ensuring invoices correctly entered on system and log completed)
A26: APA Material Costs | B26: 0
A28: APA Hours
A29: Standard Time | B29: 0.5 | C29: hours to undertake onsite briefing
A30: Additional time required when onsite technician must travel to the opposite site
A31: Round trip from one site to other | B31: 1.5 | C31: hours
A32: Trips per year (due to annual leave) | B32: =12*2*4/52 -> 1.846153846 | C32: 4 weeks annual leave means on average each local technician will be on leave for 1 of the monthly visits. The technician at the other site is then required to travel to give Hawkins access. Two technicians hence 12 x 2 x 4 / 52 trips
A33: Trips per year (due to Cable Faults) | B33: =2*12/52*0.5*12 -> 2.769230769 | C33: When there is a cable fault one of the technicians is assigned full time to the repair. Assuming 12 cable faults per year and 1 week for each fault = 12 x 1 / 52 x 50% (because might be at other site)
A34: Additional Hours (p.a.) | B34: =(B32+B33)*B31 -> 6.923076923 | C34: Note this has only claimed the travel time - it is assumed that while the technician is at the other site they perform maintenance tasks
A35: Total APA hours | B35: =B29+B34/12 -> 1.076923077
A37: Contractor Costs
A38: Contractor Labour (Hrs)
A39: Contractor Hourly Rate
A40: Contractor Labour | B40: =(B61+B65)/12/C15 -> 304.6666667 | C40: Contracted rate per site
A41: Contractor Materials | B41: 0 | C41: Invoices indicate there are material costs but have not been included
B47: Reference Year | C47: Total in Reference Year (per maintenance cycle) | D47: Total in AER Period | E47: =Summary!C4 -> 2015/16 | F47: =Summary!D4 -> 2016/17 | G47: =Summary!E4 -> 2017/18 | H47: =Summary!F4 -> 2018/19 | I47: =Summary!G4 -> 2019/20
A48: APA Staff Costs (Techs) | B48: =B24*HourlyRateAPAMaintenanceStaff -> 107.9626154 | C48: =B48*$C$15 -> 215.9252308 | D48: =C48*SUMPRODUCT(LabourAdjustmentFactor,E$22:I$22) -> 12955.51385 | E48: =$C48*E$22*'Modelling Assumptions'!E$107 -> 2591.102769 | F48: =$C48*F$22*'Modelling Assumptions'!F$107 -> 2591.102769 | G48: =$C48*G$22*'Modelling Assumptions'!G$107 -> 2591.102769 | H48: =$C48*H$22*'Modelling Assumptions'!H$107 -> 2591.102769 | I48: =$C48*I$22*'Modelling Assumptions'!I$107 -> 2591.102769
A49: APA Staff Costs (O&M Sup) | B49: =B25*HourlyRateAPAOMSupervisor -> 63.45 | C49: =B49*$C$15 -> 126.9 | D49: =C49*SUMPRODUCT(LabourAdjustmentFactor,E$22:I$22) -> 7614 | E49: =$C49*E$22*'Modelling Assumptions'!E$107 -> 1522.8 | F49: =$C49*F$22*'Modelling Assumptions'!F$107 -> 1522.8 | G49: =$C49*G$22*'Modelling Assumptions'!G$107 -> 1522.8 | H49: =$C49*H$22*'Modelling Assumptions'!H$107 -> 1522.8 | I49: =$C49*I$22*'Modelling Assumptions'!I$107 -> 1522.8
A50: APA Material Costs | B50: =B26 -> 0 | C50: =B50*$C$15 -> 0 | D50: =C50*SUMPRODUCT(MaterialsAdjustmentFactor,E$22:I$22) -> 0 | E50: =$C50*E$22*'Modelling Assumptions'!E$108 -> 0 | F50: =$C50*F$22*'Modelling Assumptions'!F$108 -> 0 | G50: =$C50*G$22*'Modelling Assumptions'!G$108 -> 0 | H50: =$C50*H$22*'Modelling Assumptions'!H$108 -> 0 | I50: =$C50*I$22*'Modelling Assumptions'!I$108 -> 0
A51: Contractor Labour | B51: =B40 -> 304.6666667 | C51: =B51*$C$15 -> 609.3333333 | D51: =C51*SUMPRODUCT(LabourAdjustmentFactor,E$22:I$22) -> 36560 | E51: =$C51*E$22*'Modelling Assumptions'!E$107 -> 7312 | F51: =$C51*F$22*'Modelling Assumptions'!F$107 -> 7312 | G51: =$C51*G$22*'Modelling Assumptions'!G$107 -> 7312 | H51: =$C51*H$22*'Modelling Assumptions'!H$107 -> 7312 | I51: =$C51*I$22*'Modelling Assumptions'!I$107 -> 7312
A52: Contractor Materials | B52: =B41 -> 0 | C52: =B52*$C$15 -> 0 | D52: =C52*SUMPRODUCT(MaterialsAdjustmentFactor,E$22:I$22) -> 0 | E52: =$C52*E$22*'Modelling Assumptions'!E$108 -> 0 | F52: =$C52*F$22*'Modelling Assumptions'!F$108 -> 0 | G52: =$C52*G$22*'Modelling Assumptions'!G$108 -> 0 | H52: =$C52*H$22*'Modelling Assumptions'!H$108 -> 0 | I52: =$C52*I$22*'Modelling Assumptions'!I$108 -> 0
A55: Discussion
A56: Hawkins on Fire charge a fixed rate for all the required maintenance + Call out fee
A57: This has been captured in monthly maintenance hence no additional costs are shown for less frequent maintenance
A58: Maintenance Connection will still raise Work Orders for the less frequent maintenance hence a small allowance has been included to process these events
A60: Annual Cost of Maintenance Contract
B61: 4960 | C61: Per Annum (Anecdotal value from Operations Manager 7/5/14)
A62: Call out fee
B63: 98 | C63: per hour (anecdotal from operations manager 7/5/14)
B64: =B63*2 -> 196 | C64: per month (Two sites must be visited)
B65: =B64*12 -> 2352 | C65: Annual Call out fee
E67: =Summary!C4 -> 2015/16 | F67: =Summary!D4 -> 2016/17 | G67: =Summary!E4 -> 2017/18 | H67: =Summary!F4 -> 2018/19 | I67: =Summary!G4 -> 2019/20
A68: QLD-ET-WI-PM006-0000 | B68: Every 6 month(s) | E68: 2 | F68: 2 | G68: 2 | H68: 2 | I68: 2
A69: APA Costs
A70: APA Maintenance Staff (Hrs) | B70: 0 | C70: Hours per site (this work is captured in the monthly maintenance shown above)
A71: APA Supervision (Hrs) | B71: 0.5 | C71: Hours per site (there is still a requirement to open and close multiple WOs generated by Maintenance Connection (as listed below))
A72: APA Material Costs | B72: 0
A74: Contractor Costs
A75: Contractor Labour (Hrs)
A76: Contractor Hourly Rate
A77: Contractor Labour | B77: 0 | C77: This work is captured in the monthly maintenance
A78: Contractor Materials | B78: 0
B80: Reference Year | C80: Total in Reference Year (per maintenance cycle) | D80: Total in AER Period | E80: =Summary!C4 -> 2015/16 | F80: =Summary!D4 -> 2016/17 | G80: =Summary!E4 -> 2017/18 | H80: =Summary!F4 -> 2018/19 | I80: =Summary!G4 -> 2019/20
A81: APA Staff Costs | B81: =B70*HourlyRateAPAMaintenanceStaff+B71*HourlyRateAPAOMSupervisor -> 63.45 | C81: =B81*$C$15 -> 126.9 | D81: =C81*SUMPRODUCT(LabourAdjustmentFactor,E$68:I$68) -> 1269 | E81: =$C81*E$68*'Modelling Assumptions'!E$107 -> 253.8 | F81: =$C81*F$68*'Modelling Assumptions'!F$107 -> 253.8 | G81: =$C81*G$68*'Modelling Assumptions'!G$107 -> 253.8 | H81: =$C81*H$68*'Modelling Assumptions'!H$107 -> 253.8 | I81: =$C81*I$68*'Modelling Assumptions'!I$107 -> 253.8
A82: APA Material Costs | B82: =B72 -> 0 | C82: =B82*$C$15 -> 0 | D82: =C82*SUMPRODUCT(MaterialsAdjustmentFactor,E$68:I$68) -> 0 | E82: =$C82*E$68*'Modelling Assumptions'!E$108 -> 0 | F82: =$C82*F$68*'Modelling Assumptions'!F$108 -> 0 | G82: =$C82*G$68*'Modelling Assumptions'!G$108 -> 0 | H82: =$C82*H$68*'Modelling Assumptions'!H$108 -> 0 | I82: =$C82*I$68*'Modelling Assumptions'!I$108 -> 0
A83: Contractor Labour | B83: =B77 -> 0 | C83: =B83*$C$15 -> 0 | D83: =C83*SUMPRODUCT(LabourAdjustmentFactor,E$68:I$68) -> 0 | E83: =$C83*E$68*'Modelling Assumptions'!E$107 -> 0 | F83: =$C83*F$68*'Modelling Assumptions'!F$107 -> 0 | G83: =$C83*G$68*'Modelling Assumptions'!G$107 -> 0 | H83: =$C83*H$68*'Modelling Assumptions'!H$107 -> 0 | I83: =$C83*I$68*'Modelling Assumptions'!I$107 -> 0
A84: Contractor Materials | B84: =B78 -> 0 | C84: =B84*$C$15 -> 0 | D84: =C84*SUMPRODUCT(MaterialsAdjustmentFactor,E$68:I$68) -> 0 | E84: =$C84*E$68*'Modelling Assumptions'!E$108 -> 0 | F84: =$C84*F$68*'Modelling Assumptions'!F$108 -> 0 | G84: =$C84*G$68*'Modelling Assumptions'!G$108 -> 0 | H84: =$C84*H$68*'Modelling Assumptions'!H$108 -> 0 | I84: =$C84*I$68*'Modelling Assumptions'!I$108 -> 0
E87: =Summary!C4 -> 2015/16 | F87: =Summary!D4 -> 2016/17 | G87: =Summary!E4 -> 2017/18 | H87: =Summary!F4 -> 2018/19 | I87: =Summary!G4 -> 2019/20
A88: QLD-ET-WI-PM012-0000 | B88: Every 1 year(s) | E88: 1 | F88: 1 | G88: 1 | H88: 1 | I88: 1
A89: APA Costs
A90: APA Maintenance Staff (Hrs) | B90: 0 | C90: Hours per site (this work is captured in the monthly maintenance shown above)
A91: APA Supervision (Hrs) | B91: 0.5 | C91: Hours per site (there is still a requirement to close the WOs)
A92: APA Material Costs | B92: 0
A94: Contractor Costs
A95: Contractor Labour (Hrs)
A96: Contractor Hourly Rate
A97: Contractor Labour | B97: 0 | C97: This work is captured in the monthly maintenance
A98: Contractor Materials | B98: 0
B100: Reference Year | C100: Total in Reference Year (per maintenance cycle) | D100: Total in AER Period | E100: =Summary!C4 -> 2015/16 | F100: =Summary!D4 -> 2016/17 | G100: =Summary!E4 -> 2017/18 | H100: =Summary!F4 -> 2018/19 | I100: =Summary!G4 -> 2019/20
A101: APA Staff Costs | B101: =B90*HourlyRateAPAMaintenanceStaff+B91*HourlyRateAPAOMSupervisor -> 63.45 | C101: =B101*$C$15 -> 126.9 | D101: =C101*SUMPRODUCT(LabourAdjustmentFactor,E$88:I$88) -> 634.5 | E101: =$C101*E$88*'Modelling Assumptions'!E$107 -> 126.9 | F101: =$C101*F$88*'Modelling Assumptions'!F$107 -> 126.9 | G101: =$C101*G$88*'Modelling Assumptions'!G$107 -> 126.9 | H101: =$C101*H$88*'Modelling Assumptions'!H$107 -> 126.9 | I101: =$C101*I$88*'Modelling Assumptions'!I$107 -> 126.9
A102: APA Material Costs | B102: =B92 -> 0 | C102: =B102*$C$15 -> 0 | D102: =C102*SUMPRODUCT(MaterialsAdjustmentFactor,E$88:I$88) -> 0 | E102: =$C102*E$88*'Modelling Assumptions'!E$108 -> 0 | F102: =$C102*F$88*'Modelling Assumptions'!F$108 -> 0 | G102: =$C102*G$88*'Modelling Assumptions'!G$108 -> 0 | H102: =$C102*H$88*'Modelling Assumptions'!H$108 -> 0 | I102: =$C102*I$88*'Modelling Assumptions'!I$108 -> 0
A103: Contractor Labour | B103: =B97 -> 0 | C103: =B103*$C$15 -> 0 | D103: =C103*SUMPRODUCT(LabourAdjustmentFactor,E$88:I$88) -> 0 | E103: =$C103*E$88*'Modelling Assumptions'!E$107 -> 0 | F103: =$C103*F$88*'Modelling Assumptions'!F$107 -> 0 | G103: =$C103*G$88*'Modelling Assumptions'!G$107 -> 0 | H103: =$C103*H$88*'Modelling Assumptions'!H$107 -> 0 | I103: =$C103*I$88*'Modelling Assumptions'!I$107 -> 0
A104: Contractor Materials | B104: =B98 -> 0 | C104: =B104*$C$15 -> 0 | D104: =C104*SUMPRODUCT(MaterialsAdjustmentFactor,E$88:I$88) -> 0 | E104: =$C104*E$88*'Modelling Assumptions'!E$108 -> 0 | F104: =$C104*F$88*'Modelling Assumptions'!F$108 -> 0 | G104: =$C104*G$88*'Modelling Assumptions'!G$108 -> 0 | H104: =$C104*H$88*'Modelling Assumptions'!H$108 -> 0 | I104: =$C104*I$88*'Modelling Assumptions'!I$108 -> 0
E107: =Summary!C4 -> 2015/16 | F107: =Summary!D4 -> 2016/17 | G107: =Summary!E4 -> 2017/18 | H107: =Summary!F4 -> 2018/19 | I107: =Summary!G4 -> 2019/20
A108: QLD-ET-WI-PM024-0000 | B108: Every 2 year(s) | E108: 0 | F108: 1 | G108: 0 | H108: 1 | I108: 0
A109: APA Costs
A110: APA Maintenance Staff (Hrs) | B110: 0 | C110: Hours per site
A111: APA Supervision (Hrs) | B111: 0.5 | C111: Hours per site (there is still a requirement to close the WOs)
A112: APA Material Costs | B112: 0
A114: Contractor Costs
A115: Contractor Labour (Hrs)
A116: Contractor Hourly Rate
A117: Contractor Labour | B117: 0 | C117: This work is captured in the monthly maintenance
A118: Contractor Materials | B118: 0
B120: Reference Year | C120: Total in Reference Year (per maintenance cycle) | D120: Total in AER Period | E120: =Summary!C4 -> 2015/16 | F120: =Summary!D4 -> 2016/17 | G120: =Summary!E4 -> 2017/18 | H120: =Summary!F4 -> 2018/19 | I120: =Summary!G4 -> 2019/20
A121: APA Staff Costs | B121: =B110*HourlyRateAPAMaintenanceStaff+B111*HourlyRateAPAOMSupervisor -> 63.45 | C121: =B121*$C$15 -> 126.9 | D121: =C121*SUMPRODUCT(LabourAdjustmentFactor,E$108:I$108) -> 253.8 | E121: =$C121*E$108*'Modelling Assumptions'!E$107 -> 0 | F121: =$C121*F$108*'Modelling Assumptions'!F$107 -> 126.9 | G121: =$C121*G$108*'Modelling Assumptions'!G$107 -> 0 | H121: =$C121*H$108*'Modelling Assumptions'!H$107 -> 126.9 | I121: =$C121*I$108*'Modelling Assumptions'!I$107 -> 0
A122: APA Material Costs | B122: =B112 -> 0 | C122: =B122*$C$15 -> 0 | D122: =C122*SUMPRODUCT(MaterialsAdjustmentFactor,E$108:I$108) -> 0 | E122: =$C122*E$108*'Modelling Assumptions'!E$108 -> 0 | F122: =$C122*F$108*'Modelling Assumptions'!F$108 -> 0 | G122: =$C122*G$108*'Modelling Assumptions'!G$108 -> 0 | H122: =$C122*H$108*'Modelling Assumptions'!H$108 -> 0 | I122: =$C122*I$108*'Modelling Assumptions'!I$108 -> 0
A123: Contractor Labour | B123: =B117 -> 0 | C123: =B123*$C$15 -> 0 | D123: =C123*SUMPRODUCT(LabourAdjustmentFactor,E$108:I$108) -> 0 | E123: =$C123*E$108*'Modelling Assumptions'!E$107 -> 0 | F123: =$C123*F$108*'Modelling Assumptions'!F$107 -> 0 | G123: =$C123*G$108*'Modelling Assumptions'!G$107 -> 0 | H123: =$C123*H$108*'Modelling Assumptions'!H$107 -> 0 | I123: =$C123*I$108*'Modelling Assumptions'!I$107 -> 0
A124: Contractor Materials | B124: =B118 -> 0 | C124: =B124*$C$15 -> 0 | D124: =C124*SUMPRODUCT(MaterialsAdjustmentFactor,E$108:I$108) -> 0 | E124: =$C124*E$108*'Modelling Assumptions'!E$108 -> 0 | F124: =$C124*F$108*'Modelling Assumptions'!F$108 -> 0 | G124: =$C124*G$108*'Modelling Assumptions'!G$108 -> 0 | H124: =$C124*H$108*'Modelling Assumptions'!H$108 -> 0 | I124: =$C124*I$108*'Modelling Assumptions'!I$108 -> 0
A130: Scheduled Maintenance
A131: PM ID | B131: PM Name | C131: Parent Location
A132: QLD-ET-WI-PM001-0000 | B132: Every 1 month(s)
A133: QLD-ET-WI-PM001-0000 | B133: FIRE DETECTION & ALARM SYSTEM - 1M | C133: Bungalora System 1 - Fire System Equipment | D133: Bungalora System 1 - Fire Alarm System
A134: QLD-ET-WI-PM001-0000 | B134: FIRE DETECTION & ALARM SYSTEM - 1M | C134: Bungalora System 2 - Fire System Equipment | D134: Bungalora System 2 - Fire Alarm System
A135: QLD-ET-WI-PM001-0000 | B135: FIRE DETECTION & ALARM SYSTEM - 1M | C135: Bungalora System 3 - Fire System Equipment | D135: Bungalora System 3 - Fire Alarm System
A136: QLD-ET-WI-PM001-0000 | B136: FIRE DETECTION & ALARM SYSTEM - 1M | C136: Mullumbimby System 1 - Fire System Equipment | D136: Mullumbimby System 1 - Fire Alarm System
A137: QLD-ET-WI-PM001-0000 | B137: FIRE DETECTION & ALARM SYSTEM - 1M | C137: Mullumbimby System 2 - Fire System Equipment | D137: Mullumbimby System 2 - Fire Alarm System
A138: QLD-ET-WI-PM001-0000 | B138: FIRE DETECTION & ALARM SYSTEM - 1M | C138: Mullumbimby System 3 - Fire System Equipment | D138: Mullumbimby System 3 - Fire Alarm System
A140: QLD-ET-WI-PM006-0000 | B140: Every 6 month(s)
A141: QLD-ET-WI-PM006-0000 | B141: FIRE DETECTION & ALARM SYSTEM - 6M | C141: Bungalora System 1 - Fire System Equipment | D141: Bungalora System 1 - Fire Alarm System
A142: QLD-ET-WI-PM006-0000 | B142: FIRE DETECTION & ALARM SYSTEM - 6M | C142: Bungalora System 2 - Fire System Equipment | D142: Bungalora System 2 - Fire Alarm System
A143: QLD-ET-WI-PM006-0000 | B143: FIRE DETECTION & ALARM SYSTEM - 6M | C143: Bungalora System 3 - Fire System Equipment | D143: Bungalora System 3 - Fire Alarm System
A144: QLD-ET-WI-PM006-0000 | B144: FIRE DETECTION & ALARM SYSTEM - 6M | C144: Mullumbimby System 1 - Fire System Equipment | D144: Mullumbimby System 1 - Fire Alarm System
A145: QLD-ET-WI-PM006-0000 | B145: FIRE DETECTION & ALARM SYSTEM - 6M | C145: Mullumbimby System 2 - Fire System Equipment | D145: Mullumbimby System 2 - Fire Alarm System
A146: QLD-ET-WI-PM006-0000 | B146: FIRE DETECTION & ALARM SYSTEM - 6M | C146: Mullumbimby System 3 - Fire System Equipment | D146: Mullumbimby System 3 - Fire Alarm System
A148: QLD-ET-WI-PM012-0000 | B148: Every 1 year(s)
A149: QLD-ET-WI-PM012-0000 | B149: FIRE DETECTION & ALARM SYSTEM - 1YR | C149: Bungalora System 1 - Fire System Equipment | D149: Bungalora System 1 - Fire Alarm System
A150: QLD-ET-WI-PM012-0000 | B150: FIRE DETECTION & ALARM SYSTEM - 1YR | C150: Bungalora System 2 - Fire System Equipment | D150: Bungalora System 2 - Fire Alarm System
A151: QLD-ET-WI-PM012-0000 | B151: FIRE DETECTION & ALARM SYSTEM - 1YR | C151: Bungalora System 3 - Fire System Equipment | D151: Bungalora System 3 - Fire Alarm System
A152: QLD-ET-WI-PM012-0000 | B152: FIRE DETECTION & ALARM SYSTEM - 1YR | C152: Mullumbimby System 1 - Fire System Equipment | D152: Mullumbimby System 1 - Fire Alarm System
A153: QLD-ET-WI-PM012-0000 | B153: FIRE DETECTION & ALARM SYSTEM - 1YR | C153: Mullumbimby System 2 - Fire System Equipment | D153: Mullumbimby System 2 - Fire Alarm System
A154: QLD-ET-WI-PM012-0000 | B154: FIRE DETECTION & ALARM SYSTEM - 1YR | C154: Mullumbimby System 3 - Fire System Equipment | D154: Mullumbimby System 3 - Fire Alarm System
A156: QLD-ET-WI-PM024-0000 | B156: Every 2 year(s)
A157: QLD-ET-WI-PM024-0000 | B157: FIRE DETECTION & ALARM SYSTEM - 2YR | C157: Bungalora System 1 - Fire System Equipment | D157: Bungalora System 1 - Fire Alarm System
A158: QLD-ET-WI-PM024-0000 | B158: FIRE DETECTION & ALARM SYSTEM - 2YR | C158: Bungalora System 2 - Fire System Equipment | D158: Bungalora System 2 - Fire Alarm System
A159: QLD-ET-WI-PM024-0000 | B159: FIRE DETECTION & ALARM SYSTEM - 2YR | C159: Bungalora System 3 - Fire System Equipment | D159: Bungalora System 3 - Fire Alarm System
A160: QLD-ET-WI-PM024-0000 | B160: FIRE DETECTION & ALARM SYSTEM - 2YR | C160: Mullumbimby System 1 - Fire System Equipment | D160: Mullumbimby System 1 - Fire Alarm System
A161: QLD-ET-WI-PM024-0000 | B161: FIRE DETECTION & ALARM SYSTEM - 2YR | C161: Mullumbimby System 2 - Fire System Equipment | D161: Mullumbimby System 2 - Fire Alarm System
A162: QLD-ET-WI-PM024-0000 | B162: FIRE DETECTION & ALARM SYSTEM - 2YR | C162: Mullumbimby System 3 - Fire System Equipment | D162: Mullumbimby System 3 - Fire Alarm System
A168: Work Order # | B168: FIRE DETECTION & ALARM SYSTEM - 1M
A169: QLD-183917 | B169: Hawkins On Fire | C169: PM | D169: 2013-12-09T10:18:00 | E169: Done,
A170: QLD-178321 | B170: Hawkins On Fire | C170: PM | D170: 2013-10-17T17:43:00 | E170: Hawkins on fire October invoice 107456 payed
A171: QLD-174525 | B171: Hawkins On Fire | C171: PM | D171: 2013-10-01T16:30:00 | E171: Carried out by Hawkins
A172: QLD-170624 | B172: Hawkins On Fire | C172: PM | D172: 2013-09-16T17:27:00 | E172: Complted during annual.
A173: QLD-166838 | B173: Hawkins On Fire | C173: PM | D173: 2013-07-19T16:07:00
A174: QLD-162957 | B174: Hawkins On Fire | C174: PM | D174: 2013-06-27T10:16:00
A175: QLD-183918 | B175: Hawkins On Fire | C175: PM | D175: 2013-12-09T10:18:00 | E175: Done,
A176: QLD-178324 | B176: Hawkins On Fire | C176: PM | D176: 2013-10-17T17:43:00 | E176: Hawkins on fire October invoice 107456 payed
A177: QLD-174528 | B177: Hawkins On Fire | C177: PM | D177: 2013-10-01T16:30:00 | E177: Carried out by Hawkins
A178: QLD-170626 | B178: Hawkins On Fire | C178: PM | D178: 2013-09-16T17:27:00 | E178: Complted during annual.
A179: QLD-166841 | B179: Hawkins On Fire | C179: PM | D179: 2013-07-19T16:07:00
A180: QLD-162960 | B180: Hawkins On Fire | C180: PM | D180: 2013-06-27T10:16:00
A181: QLD-183919 | B181: Hawkins On Fire | C181: PM | D181: 2013-12-09T10:18:00 | E181: Done,
A182: QLD-178325 | B182: Hawkins On Fire | C182: PM | D182: 2013-10-17T17:43:00 | E182: Hawkins on fire October invoice 107456 payed
A183: QLD-174529 | B183: Hawkins On Fire | C183: PM | D183: 2013-10-01T16:30:00 | E183: Carried out by Hawkins
A184: QLD-170625 | B184: Hawkins On Fire | C184: PM | D184: 2013-09-16T17:27:00 | E184: Complted during annual.
A185: QLD-166842 | B185: Hawkins On Fire | C185: PM | D185: 2013-07-19T16:07:00
A186: QLD-162961 | B186: Hawkins On Fire | C186: PM | D186: 2013-06-27T10:16:00
A187: QLD-183920 | B187: Hawkins On Fire | C187: PM | D187: 2013-12-09T10:18:00 | E187: Done,
A188: QLD-178326 | B188: Hawkins On Fire | C188: PM | D188: 2013-10-17T17:43:00 | E188: Hawkins on fire October invoice 107456 payed
A189: QLD-174530 | B189: Hawkins On Fire | C189: PM | D189: 2013-10-01T16:30:00 | E189: Carried out by Hawkins
A190: QLD-170627 | B190: Hawkins On Fire | C190: PM | D190: 2013-09-16T17:27:00 | E190: Complted during annual.
A191: QLD-166843 | B191: Hawkins On Fire | C191: PM | D191: 2013-07-19T16:07:00
A192: QLD-162962 | B192: Hawkins On Fire | C192: PM | D192: 2013-06-27T10:16:00
A193: QLD-183921 | B193: Hawkins On Fire | C193: PM | D193: 2013-12-09T10:18:00 | E193: Done,
A194: QLD-178327 | B194: Hawkins On Fire | C194: PM | D194: 2013-10-17T17:43:00 | E194: Hawkins on fire October invoice 107456 payed
A195: QLD-174531 | B195: Hawkins On Fire | C195: PM | D195: 2013-10-01T16:30:00 | E195: Carried out by Hawkins
A196: QLD-170629 | B196: Hawkins On Fire | C196: PM | D196: 2013-09-16T17:27:00 | E196: Complted during annual.
A197: QLD-166844 | B197: Hawkins On Fire | C197: PM | D197: 2013-07-19T16:07:00
A198: QLD-162963 | B198: Hawkins On Fire | C198: PM | D198: 2013-06-27T10:16:00
A199: QLD-183922 | B199: Hawkins On Fire | C199: PM | D199: 2013-12-09T10:18:00 | E199: Done,
A200: QLD-178328 | B200: Hawkins On Fire | C200: PM | D200: 2013-10-17T17:43:00 | E200: Hawkins on fire October invoice 107456 payed
A201: QLD-174532 | B201: Hawkins On Fire | C201: PM | D201: 2013-10-01T16:30:00 | E201: Carried out by Hawkins
A202: QLD-170631 | B202: Hawkins On Fire | C202: PM | D202: 2013-09-16T17:27:00 | E202: Complted during annual.
A203: QLD-166845 | B203: Hawkins On Fire | C203: PM | D203: 2013-07-19T16:07:00
A204: QLD-162964 | B204: Hawkins On Fire | C204: PM | D204: 2013-06-27T10:16:00
A206: Work Order # | B206: FIRE DETECTION & ALARM SYSTEM - 6M
A207: QLD-166856 | B207: Hawkins On Fire | C207: PM | D207: 2013-08-21T13:43:00
A208: QLD-166857 | B208: Hawkins On Fire | C208: PM | D208: 2013-08-21T13:43:00
A209: QLD-166858 | B209: Hawkins On Fire | C209: PM | D209: 2013-08-21T13:43:00
A210: QLD-166859 | B210: Hawkins On Fire | C210: PM | D210: 2013-08-21T13:43:00
A211: QLD-166860 | B211: Hawkins On Fire | C211: PM | D211: 2013-08-21T13:43:00
A212: QLD-166861 | B212: Hawkins On Fire | C212: PM | D212: 2013-08-21T13:43:00
A214: Work Order # | B214: FIRE DETECTION & ALARM SYSTEM - 1YR
A215: QLD-164887 | B215: Hawkins On Fire | C215: PM | D215: 2013-08-21T13:40:00
A216: QLD-164888 | B216: Hawkins On Fire | C216: PM | D216: 2013-08-21T13:40:00
A217: QLD-164889 | B217: Hawkins On Fire | C217: PM | D217: 2013-08-21T13:40:00
A218: QLD-164890 | B218: Hawkins On Fire | C218: PM | D218: 2013-08-21T13:40:00
A219: QLD-164891 | B219: Hawkins On Fire | C219: PM | D219: 2013-08-21T13:40:00
A220: QLD-164892 | B220: Hawkins On Fire | C220: PM | D220: 2013-08-21T13:40:00
A224: GL Period Name | B224: Project No | C224: Task Num | D224: Expenditure Type | E224: Original Transaction Reference | F224: Quantity | G224: Cost Amount | H224: PA Description | I224: Vendor / Customer Name | J224: MA Account | K224: Task Name | L224: Po Number | M224: Receipt Comments
A225: 2012-11-01 | B225: 30264 | C225: 560.01 PLANT AND EQUIP | D225: SAFETY EQUIPMENT | E225: 2530566 | F225: 584.49 | G225: 584.49 | H225: Standing Order for Essential Services Monthly Contracted Charge for 2012-13 FY | I225: HAWKINS ON FIRE | J225: Other Operating Costs | K225: PLANT AND EQUIPMENT | L225: 272223 | M225: Inv #9221 - Approved by S. Coomber
A226: 2012-12-01 | B226: 30264 | C226: 560.01 PLANT AND EQUIP | D226: SAFETY EQUIPMENT | E226: 2663124 | F226: 584.49 | G226: 584.49 | H226: Standing Order for Essential Services Monthly Contracted Charge for 2012-13 FY | I226: HAWKINS ON FIRE | J226: Other Operating Costs | K226: PLANT AND EQUIPMENT | L226: 272223 | M226: Inv #95879 - Approved by S. Coomber
A227: 2013-02-01 | B227: 30264 | C227: 560.01 PLANT AND EQUIP | D227: SAFETY EQUIPMENT | E227: 2832680 | F227: 584.49 | G227: 584.49 | H227: Standing Order for Essential Services Monthly Contracted Charge for 2012-13 FY | I227: HAWKINS ON FIRE | J227: Other Operating Costs | K227: PLANT AND EQUIPMENT | L227: 272223 | M227: Inv #9828 - Approved by S. Coomber
A228: 2013-02-01 | B228: 30264 | C228: 560.01 PLANT AND EQUIP | D228: SAFETY EQUIPMENT | E228: 2853064 | F228: 584.49 | G228: 584.49 | H228: Standing Order for Essential Services Monthly Contracted Charge for 2012-13 FY | I228: HAWKINS ON FIRE | J228: Other Operating Costs | K228: PLANT AND EQUIPMENT | L228: 272223 | M228: Inv #8737 - Approved by S. Coomber
A229: 2013-02-01 | B229: 30264 | C229: 560.01 PLANT AND EQUIP | D229: SAFETY EQUIPMENT | E229: 2853064 | F229: 584.49 | G229: 584.49 | H229: Standing Order for Essential Services Monthly Contracted Charge for 2012-13 FY | I229: HAWKINS ON FIRE | J229: Other Operating Costs | K229: PLANT AND EQUIPMENT | L229: 272223 | M229: Inv #8853 - Approved by S. Coomber
A230: 2013-02-01 | B230: 30264 | C230: 560.01 PLANT AND EQUIP | D230: SAFETY EQUIPMENT | E230: 2853064 | F230: 584.49 | G230: 584.49 | H230: Standing Order for Essential Services Monthly Contracted Charge for 2012-13 FY | I230: HAWKINS ON FIRE | J230: Other Operating Costs | K230: PLANT AND EQUIPMENT | L230: 272223 | M230: Inv #9064 - Approved by S. Coomber
A231: 2013-02-01 | B231: 30264 | C231: 560.01 PLANT AND EQUIP | D231: SAFETY EQUIPMENT | E231: 2853064 | F231: 584.49 | G231: 584.49 | H231: Standing Order for Essential Services Monthly Contracted Charge for 2012-13 FY | I231: HAWKINS ON FIRE | J231: Other Operating Costs | K231: PLANT AND EQUIPMENT | L231: 272223 | M231: Inv #9221 - Approved by S. Coomber
A232: 2013-02-01 | B232: 30264 | C232: 560.01 PLANT AND EQUIP | D232: SAFETY EQUIPMENT | E232: 2853064 | F232: 584.49 | G232: 584.49 | H232: Standing Order for Essential Services Monthly Contracted Charge for 2012-13 FY | I232: HAWKINS ON FIRE | J232: Other Operating Costs | K232: PLANT AND EQUIPMENT | L232: 272223 | M232: Inv #9396 - Approved by S. Coomber
A233: 2013-02-01 | B233: 30264 | C233: 560.01 PLANT AND EQUIP | D233: SAFETY EQUIPMENT | E233: 2884553 | F233: 584.49 | G233: 584.49 | H233: Standing Order for Essential Services Monthly Contracted Charge for 2012-13 FY | I233: HAWKINS ON FIRE | J233: Other Operating Costs | K233: PLANT AND EQUIPMENT | L233: 272223 | M233: Inv #10071 - Approved by S. Coomber
A234: 2013-03-01 | B234: 30264 | C234: 560.01 PLANT AND EQUIP | D234: SAFETY EQUIPMENT | E234: 2948842 | F234: 824 | G234: 824 | H234: Standing Order for Essential Services Monthly Contracted Charge for 2012-13 FY | I234: HAWKINS ON FIRE | J234: Other Operating Costs | K234: PLANT AND EQUIPMENT | L234: 272223 | M234: Inv #8851 - Approved by S. Coomber
A235: 2013-05-01 | B235: 30264 | C235: 560.01 PLANT AND EQUIP | D235: SAFETY EQUIPMENT | E235: 3168661 | F235: 584.49 | G235: 584.49 | H235: Standing Order for Essential Services Monthly Contracted Charge for 2012-13 FY | I235: HAWKINS ON FIRE | J235: Other Operating Costs | K235: PLANT AND EQUIPMENT | L235: 272223 | M235: Inv #103402 - Approved by S. Coomber
A236: 2013-06-01 | B236: 30264 | C236: 560.01 PLANT AND EQUIP | D236: SAFETY EQUIPMENT | E236: 3264219 | F236: 584.49 | G236: 584.49 | H236: Standing Order for Essential Services Monthly Contracted Charge for 2012-13 FY | I236: HAWKINS ON FIRE | J236: Other Operating Costs | K236: PLANT AND EQUIPMENT | L236: 272223 | M236: Inv #103186 - Approved by S. Coomber
A237: 2013-06-01 | B237: 30264 | C237: 560.01 PLANT AND EQUIP | D237: SAFETY EQUIPMENT | E237: 3264219 | F237: 584.49 | G237: 584.49 | H237: Standing Order for Essential Services Monthly Contracted Charge for 2012-13 FY | I237: HAWKINS ON FIRE | J237: Other Operating Costs | K237: PLANT AND EQUIPMENT | L237: 272223 | M237: Inv #10307 - Approved by S. Coomber
A238: 2013-06-01 | B238: 30264 | C238: 560.01 PLANT AND EQUIP | D238: SAFETY EQUIPMENT | E238: 3268374 | F238: 584.49 | G238: 584.49 | H238: Standing Order for Essential Services Monthly Contracted Charge for 2012-13 FY | I238: HAWKINS ON FIRE | J238: Other Operating Costs | K238: PLANT AND EQUIPMENT | L238: 272223 | M238: Inv #103600 - Approved by S. Coomber
A239: 2013-07-01 | B239: 30264 | C239: 560.01 PLANT AND EQUIP | D239: SAFETY EQUIPMENT | E239: 3357512 | F239: 596.94 | G239: 596.94 | H239: Standing Order for Essential Services Monthly Contracted Charge for 2013-14 FY | I239: HAWKINS ON FIRE | J239: Other Operating Costs | K239: PLANT AND EQUIPMENT | L239: 293833 | M239: Inv #103785 - Approved by S. Coomber
A240: 2013-08-01 | B240: 30264 | C240: 560.01 PLANT AND EQUIP | D240: SAFETY EQUIPMENT | E240: 3461865 | F240: 596.94 | G240: 596.94 | H240: Standing Order for Essential Services Monthly Contracted Charge for 2013-14 FY | I240: HAWKINS ON FIRE | J240: Other Operating Costs | K240: PLANT AND EQUIPMENT | L240: 293833 | M240: Inv #106920 - Approved by S. Coomber
A241: 2013-09-01 | B241: 30264 | C241: 560.01 PLANT AND EQUIP | D241: SAFETY EQUIPMENT | E241: 3594102 | F241: 596.94 | G241: 596.94 | H241: Standing Order for Essential Services Monthly Contracted Charge for 2013-14 FY | I241: HAWKINS ON FIRE | J241: Other Operating Costs | K241: PLANT AND EQUIPMENT | L241: 293833 | M241: Inv # 107286 26.09.13
A242: 2013-10-01 | B242: 30264 | C242: 560.01 PLANT AND EQUIP | D242: SAFETY EQUIPMENT | E242: 3676531 | F242: 596.94 | G242: 596.94 | H242: Standing Order for Essential Services Monthly Contracted Charge for 2013-14 FY | I242: HAWKINS ON FIRE | J242: Other Operating Costs | K242: PLANT AND EQUIPMENT | L242: 293833 | M242: Inv #107456 - Approved by S. Coomber

Sheet 0000 (2)
A1: Summary | B1: FIRE SPRINKER SYSTEM
A2: Return to Index | D2: Total in AER Period | E2: =Summary!C4 -> 2015/16 | F2: =Summary!D4 -> 2016/17 | G2: =Summary!E4 -> 2017/18 | H2: =Summary!F4 -> 2018/19 | I2: =Summary!G4 -> 2019/20
A3: APA Staff Costs | D3: =D55 -> 17099.28692 | E3: =E55 -> 3419.857385 | F3: =F55 -> 3419.857385 | G3: 3419.857385 | H3: 3419.857385 | I3: 3419.857385
A4: APA Material Costs | D4: 0 | E4: =E56 -> 0 | F4: 0 | G4: 0 | H4: 0 | I4: 0
A5: Contractor Labour | D5: 109680 | E5: =E57 -> 21936 | F5: 21936 | G5: 21936 | H5: 21936 | I5: 21936
A6: Contractor Materials | D6: 0 | E6: =E58 -> 0 | F6: 0 | G6: 0 | H6: 0 | I6: 0
A9: Scheduled Outage Required | B9: Yes
A10: Work Instruction | B10: future
A12: Discussion
A13: After the Mullumbimby fire it has been decided to install a fire suppression systems in the converter buildings
A14: The first system is a sprinkler system
A15: The aim is to extinguishing any fire before it can destroy the entire converter station (as occurred at Mullumbimby)
A16: Drying components (even if they must be uninstalled and sent for professional treatment) will be much less expensive than replacement
A17: The sprinkler system will consist of
B18: Diesel pumps (two)
B19: Fuel Storage
B20: Water Tanks
B21: Control System
B22: Valves
B23: Reticulation (pipework)
A24: All these components will require specialist maintenance
A25: The modelling has assumed that this will be contracted to a specialist fire company
A26: Anecdotally the Operations Managers suggested that the cost of the maintenance will be "three times higher than maintenance of the current fire system"
A27: The new sprinkler system is installed before July 2015
A29: At this stage it is unclear if APA will also install a parallel Gas Suppression system - hence this option has not been costed
A32: Fire Detection and Alarm System
B33: Buildings | C33: 6
A34: Number of Components to be serviced | C34: =C33 -> 6
E37: =Summary!C4 -> 2015/16 | F37: =Summary!D4 -> 2016/17 | G37: =Summary!E4 -> 2017/18 | H37: =Summary!F4 -> 2018/19 | I37: =Summary!G4 -> 2019/20
A38: QLD-ET-WI-PM001-0000 | B38: Every 1 month(s) | E38: 12 | F38: 12 | G38: 12 | H38: 12 | I38: 12
A39: APA Costs
A40: APA Maintenance Staff (Hrs) | B40: =APATechnicianHours/C34 + '0000 (1)'!B34/12/C34 -> 0.2628205128 | C40: Hours per building per visit (since occurs monthly have included estimated time for the technician to travel from the other site (refer tab 0000 (1)))
A41: APA Supervision (Hrs) | B41: =1/C34 -> 0.1666666667 | C41: Hours per site (ensuring invoices correctly entered on system and log completed)
A42: APA Material Costs | B42: 0 | C42: Nominal cost to purchase and replace diesel fuel for the two pumps assumed to be included in the contractor costs
A45: Contractor Costs
A46: Contractor Labour (Hrs)
A47: Contractor Hourly Rate
A48: Contractor Labour | B48: =B51 -> 304.6666667 | C48: Contracted rate per building
A49: Contractor Materials | B49: 0
A51: Maintenance Contract | B51: =3*'0000 (1)'!B40*'0000 (1)'!C15/C34 -> 304.6666667 | C51: Per Building Per Inspection (Anecdotal as recommended by Operations manager who indicated the "cost will be three times the cost of maintaining the current fire system")
B54: Reference Year | C54: Total in Reference Year (per maintenance cycle) | D54: Total in AER Period | E54: =Summary!C4 -> 2015/16 | F54: =Summary!D4 -> 2016/17 | G54: =Summary!E4 -> 2017/18 | H54: =Summary!F4 -> 2018/19 | I54: =Summary!G4 -> 2019/20
A55: APA Staff Costs | B55: =B40*HourlyRateAPAMaintenanceStaff+B41*HourlyRateAPAOMSupervisor -> 47.49801923 | C55: =B55*$C$34 -> 284.9881154 | D55: =SUM(E55:I55) -> 17099.28692 | E55: =$C55*E$38*'Modelling Assumptions'!E$107 -> 3419.857385 | F55: =$C55*F$38*'Modelling Assumptions'!F$107 -> 3419.857385 | G55: =$C55*G$38*'Modelling Assumptions'!G$107 -> 3419.857385 | H55: =$C55*H$38*'Modelling Assumptions'!H$107 -> 3419.857385 | I55: =$C55*I$38*'Modelling Assumptions'!I$107 -> 3419.857385
A56: APA Material Costs | B56: =B42 -> 0 | C56: =B56*$C$34 -> 0 | D56: =SUM(E56:I56) -> 0 | E56: =$C56*E$38*'Modelling Assumptions'!E$108 -> 0 | F56: =$C56*F$38*'Modelling Assumptions'!F$108 -> 0 | G56: =$C56*G$38*'Modelling Assumptions'!G$108 -> 0 | H56: =$C56*H$38*'Modelling Assumptions'!H$108 -> 0 | I56: =$C56*I$38*'Modelling Assumptions'!I$108 -> 0
A57: Contractor Labour | B57: =B48 -> 304.6666667 | C57: =B57*$C$34 -> 1828 | D57: 109680 | E57: =$C57*E$38*'Modelling Assumptions'!E$107 -> 21936 | F57: =$C57*F$38*'Modelling Assumptions'!F$107 -> 21936 | G57: =$C57*G$38*'Modelling Assumptions'!G$107 -> 21936 | H57: =$C57*H$38*'Modelling Assumptions'!H$107 -> 21936 | I57: =$C57*I$38*'Modelling Assumptions'!I$107 -> 21936
A58: Contractor Materials | B58: =B49 -> 0 | C58: =B58*$C$34 -> 0 | D58: 0 | E58: =$C58*E$38*'Modelling Assumptions'!E$108 -> 0 | F58: =$C58*F$38*'Modelling Assumptions'!F$108 -> 0 | G58: =$C58*G$38*'Modelling Assumptions'!G$108 -> 0 | H58: =$C58*H$38*'Modelling Assumptions'!H$108 -> 0 | I58: =$C58*I$38*'Modelling Assumptions'!I$108 -> 0

Sheet 0001
A1: Summary | B1: CHECK EYE WASH STATION
A2: Return to Index | D2: Total in AER Period | E2: =Summary!C4 -> 2015/16 | F2: =Summary!D4 -> 2016/17 | G2: =Summary!E4 -> 2017/18 | H2: =Summary!F4 -> 2018/19 | I2: =Summary!G4 -> 2019/20
A3: APA Staff Costs | D3: =D36 -> 3274.02 | E3: 654.804 | F3: 654.804 | G3: 654.804 | H3: 654.804 | I3: 654.804
A4: APA Material Costs | D4: 0 | E4: 0 | F4: 0 | G4: 0 | H4: 0 | I4: 0
A5: Contractor Labour | D5: 0 | E5: 0 | F5: 0 | G5: 0 | H5: 0 | I5: 0
A6: Contractor Materials | D6: 0 | E6: 0 | F6: 0 | G6: 0 | H6: 0 | I6: 0
A9: Scheduled Outage Required | B9: No
A10: Work Instruction | B10: not sighted
A13: Eye Stations
B14: Sites | C14: 2
A15: Number of Components to be serviced | C15: =C14 -> 2
A17: Discussion
A18: Anecdotally : "Turn on the tap and ensure that water comes out"
A19: Checking of the Eye Wash Station is a health and safety requirement so this worksheet includes APA staff time to ensure that the maintenance is done and LOGS updated
A20: This worksheet does not make a material contribution to the total O&M Direct Cost
E22: =Summary!C4 -> 2015/16 | F22: =Summary!D4 -> 2016/17 | G22: =Summary!E4 -> 2017/18 | H22: =Summary!F4 -> 2018/19 | I22: =Summary!G4 -> 2019/20
A23: QLD-ET-WI-PM003-0001 | B23: Every 3 month(s) | E23: 4 | F23: 4 | G23: 4 | H23: 4 | I23: 4
A24: APA Costs
A25: APA Maintenance Staff (Hrs) | B25: 0.5 | C25: Hours per site (including the check and updating Log book)
A26: APA Supervision (Hrs) | B26: 0.25 | C26: Hours per site (check log completed)
A27: APA Material Costs | B27: 0
A29: Contractor Costs
A30: Contractor Labour (Hrs)
A31: Contractor Hourly Rate
A32: Contractor Labour | B32: 0
A33: Contractor Materials | B33: 0
B35: Reference Year | C35: Total in Reference Year (per maintenance cycle) | D35: Total in AER Period | E35: =Summary!C4 -> 2015/16 | F35: =Summary!D4 -> 2016/17 | G35: =Summary!E4 -> 2017/18 | H35: =Summary!F4 -> 2018/19 | I35: =Summary!G4 -> 2019/20
A36: APA Staff Costs | B36: =B25*HourlyRateAPAMaintenanceStaff+B26*HourlyRateAPAOMSupervisor -> 81.8505 | C36: =B36*$C$15 -> 163.701 | D36: =C36*SUMPRODUCT(LabourAdjustmentFactor,E$23:I$23) -> 3274.02 | E36: =$C36*E$23*'Modelling Assumptions'!E$107 -> 654.804 | F36: =$C36*F$23*'Modelling Assumptions'!F$107 -> 654.804 | G36: =$C36*G$23*'Modelling Assumptions'!G$107 -> 654.804 | H36: =$C36*H$23*'Modelling Assumptions'!H$107 -> 654.804 | I36: =$C36*I$23*'Modelling Assumptions'!I$107 -> 654.804
A37: APA Material Costs | B37: =B27 -> 0 | C37: =B37*$C$15 -> 0 | D37: =C37*SUMPRODUCT(MaterialsAdjustmentFactor,E$23:I$23) -> 0 | E37: =$C37*E$23*'Modelling Assumptions'!E$108 -> 0 | F37: =$C37*F$23*'Modelling Assumptions'!F$108 -> 0 | G37: =$C37*G$23*'Modelling Assumptions'!G$108 -> 0 | H37: =$C37*H$23*'Modelling Assumptions'!H$108 -> 0 | I37: =$C37*I$23*'Modelling Assumptions'!I$108 -> 0
A38: Contractor Labour | B38: =B32 -> 0 | C38: =B38*$C$15 -> 0 | D38: =C38*SUMPRODUCT(LabourAdjustmentFactor,E$23:I$23) -> 0 | E38: =$C38*E$23*'Modelling Assumptions'!E$107 -> 0 | F38: =$C38*F$23*'Modelling Assumptions'!F$107 -> 0 | G38: =$C38*G$23*'Modelling Assumptions'!G$107 -> 0 | H38: =$C38*H$23*'Modelling Assumptions'!H$107 -> 0 | I38: =$C38*I$23*'Modelling Assumptions'!I$107 -> 0
A39: Contractor Materials | B39: =B33 -> 0 | C39: =B39*$C$15 -> 0 | D39: =C39*SUMPRODUCT(MaterialsAdjustmentFactor,E$23:I$23) -> 0 | E39: =$C39*E$23*'Modelling Assumptions'!E$108 -> 0 | F39: =$C39*F$23*'Modelling Assumptions'!F$108 -> 0 | G39: =$C39*G$23*'Modelling Assumptions'!G$108 -> 0 | H39: =$C39*H$23*'Modelling Assumptions'!H$108 -> 0 | I39: =$C39*I$23*'Modelling Assumptions'!I$108 -> 0
A43: Scheduled Maintenance
A44: PM ID | B44: PM Name | C44: Parent Location
A45: QLD-ET-WI-PM003-0001 | B45: Every 3 month(s)
A46: QLD-ET-WI-PM003-0001 | B46: CHECK EYE WASH STATION | C46: Bungalora System 1 - Small Plant & Safety Equipment | D46: Bungalora System 1 - Eye Wash Station
A47: QLD-ET-WI-PM003-0001 | B47: CHECK EYE WASH STATION | C47: Mullumbimby System 1 - Small Plant & Safety Equipment | D47: Mullumbimby System 1 - Eye Wash Station
A53: Work Order # | B53: CHECK EYE WASH STATION
A54: QLD-185525 | B54: COOMBER Stuart | C54: PM | D54: 2013-12-09T10:27:00 | E54: Check by SC
A55: QLD-171848 | B55: COOMBER Stuart | C55: PM | D55: 2013-09-18T13:51:00 | E55: tested, working sc
A56: QLD-160542 | B56: HARRIS James | C56: PM | D56: 2013-06-27T08:07:00
A57: QLD-185526 | B57: COOMBER Stuart | C57: PM | D57: 2013-12-09T10:27:00 | E57: Check by SC
A58: QLD-171849 | B58: COOMBER Stuart | C58: PM | D58: 2013-10-18T11:45:00 | E58: sc checked 16/10/13
A59: QLD-160543 | B59: HARRIS James | C59: PM | D59: 2013-06-27T08:07:00

Sheet 0003
A1: Summary | B1: PORTABLE FIRE EXTINGUISHER INSPECTION
A2: Return to Index | D2: Total in AER Period | E2: =Summary!C4 -> 2015/16 | F2: =Summary!D4 -> 2016/17 | G2: =Summary!E4 -> 2017/18 | H2: =Summary!F4 -> 2018/19 | I2: =Summary!G4 -> 2019/20
A3: APA Staff Costs | D3: =D44 -> 11894.76 | E3: 2378.952 | F3: 2378.952 | G3: 2378.952 | H3: 2378.952 | I3: 2378.952
A4: APA Material Costs | D4: 0 | E4: 0 | F4: 0 | G4: 0 | H4: 0 | I4: 0
A5: Contractor Labour | D5: 10270 | E5: 2054 | F5: 2054 | G5: 2054 | H5: 2054 | I5: 2054
A6: Contractor Materials | D6: 0 | E6: 0 | F6: 0 | G6: 0 | H6: 0 | I6: 0
A9: Scheduled Outage Required | B9: No
A10: Work Instruction | B10: not sighted
A13: Portable Fire Extinguishers
B14: Sites | C14: 2
A15: Number of Components to be serviced | C15: =C14 -> 2
A17: Discussion
A18: Maintenance of the fire extinguishers is contracted to Hawkins on Fire
A19: The tag on each extinguisher indicates when it requires maintenance
A20: The contractor exchanges extinguishers as required
A21: The contract also covers testing of hose reels and hydrants
A22: An additional charge is included to undertake hydrant flow tests
A23: This worksheet does not make a material contribution to the total O&M Direct Cost
E25: =Summary!C4 -> 2015/16 | F25: =Summary!D4 -> 2016/17 | G25: =Summary!E4 -> 2017/18 | H25: =Summary!F4 -> 2018/19 | I25: =Summary!G4 -> 2019/20
A26: QLD-ET-WI-PM006-0003 | B26: Every 6 month(s) | E26: 2 | F26: 2 | G26: 2 | H26: 2 | I26: 2
A27: APA Costs
A28: APA Maintenance Staff (Hrs) | B28: =APATechnicianHours/C15 -> 0.5 | C28: Hours per site (access)
A29: APA Supervision (Hrs) | B29: =APASupervisorHours/C15 -> 4.291666667 | C29: Hours per site (ensuring invoices correctly entered on system and log completed)
A30: APA Material Costs | B30: 0
A32: Contractor Costs
A33: Contractor Labour (Hrs)
A34: Contractor Hourly Rate
A35: Contractor Labour | B35: =(B39+B40)/C15/2 -> 513.5 | C35: Hawkins On Fire - Contracted rate per 6 months per site
A36: Contractor Materials | B36: 0
A38: Annual Contractor Costs
A39: Portable Fire Extinguishers | B39: 1154 | C39: Annual Contracted Fee (Anecdotal : From Operations Manager 7/5/14)
A40: Hydrant Flow Tests | B40: 900 | C40: Annual Contracted Fee (Anecdotal : From Operations Manager 7/5/14)
B43: Reference Year | C43: Total in Reference Year (per maintenance cycle) | D43: Total in AER Period | E43: =Summary!C4 -> 2015/16 | F43: =Summary!D4 -> 2016/17 | G43: =Summary!E4 -> 2017/18 | H43: =Summary!F4 -> 2018/19 | I43: =Summary!G4 -> 2019/20
A44: APA Staff Costs | B44: =B28*HourlyRateAPAMaintenanceStaff+B29*HourlyRateAPAOMSupervisor -> 594.738 | C44: =B44*$C$15 -> 1189.476 | D44: =C44*SUMPRODUCT(LabourAdjustmentFactor,E$26:I$26) -> 11894.76 | E44: =$C44*E$26*'Modelling Assumptions'!E$107 -> 2378.952 | F44: =$C44*F$26*'Modelling Assumptions'!F$107 -> 2378.952 | G44: =$C44*G$26*'Modelling Assumptions'!G$107 -> 2378.952 | H44: =$C44*H$26*'Modelling Assumptions'!H$107 -> 2378.952 | I44: =$C44*I$26*'Modelling Assumptions'!I$107 -> 2378.952
A45: APA Material Costs | B45: =B30 -> 0 | C45: =B45*$C$15 -> 0 | D45: =C45*SUMPRODUCT(MaterialsAdjustmentFactor,E$26:I$26) -> 0 | E45: =$C45*E$26*'Modelling Assumptions'!E$108 -> 0 | F45: =$C45*F$26*'Modelling Assumptions'!F$108 -> 0 | G45: =$C45*G$26*'Modelling Assumptions'!G$108 -> 0 | H45: =$C45*H$26*'Modelling Assumptions'!H$108 -> 0 | I45: =$C45*I$26*'Modelling Assumptions'!I$108 -> 0
A46: Contractor Labour | B46: =B35 -> 513.5 | C46: =B46*C15 -> 1027 | D46: =C46*SUMPRODUCT(LabourAdjustmentFactor,E$26:I$26) -> 10270 | E46: =$C46*E$26*'Modelling Assumptions'!E$107 -> 2054 | F46: =$C46*F$26*'Modelling Assumptions'!F$107 -> 2054 | G46: =$C46*G$26*'Modelling Assumptions'!G$107 -> 2054 | H46: =$C46*H$26*'Modelling Assumptions'!H$107 -> 2054 | I46: =$C46*I$26*'Modelling Assumptions'!I$107 -> 2054
A47: Contractor Materials | B47: =B36 -> 0 | C47: =B47*$C$15 -> 0 | D47: =C47*SUMPRODUCT(MaterialsAdjustmentFactor,E$26:I$26) -> 0 | E47: =$C47*E$26*'Modelling Assumptions'!E$108 -> 0 | F47: =$C47*F$26*'Modelling Assumptions'!F$108 -> 0 | G47: =$C47*G$26*'Modelling Assumptions'!G$108 -> 0 | H47: =$C47*H$26*'Modelling Assumptions'!H$108 -> 0 | I47: =$C47*I$26*'Modelling Assumptions'!I$108 -> 0
A58: Scheduled Maintenance
A59: PM ID | B59: PM Name | C59: Parent Location
A60: QLD-ET-WI-PM006-0003 | B60: Every 6 month(s)
A61: QLD-ET-WI-PM006-0003 | B61: PORTABLE FIRE EXTINGUISHER INSPECTION | C61: Bungalora System 1 - Fire System Equipment | D61: Bungalora System 1 - Portable Fire Extinguisher
A62: QLD-ET-WI-PM006-0003 | B62: PORTABLE FIRE EXTINGUISHER INSPECTION | C62: Bungalora System 2 - Fire System Equipment | D62: Bungalora System 2 - Portable Fire Extinguisher
A63: QLD-ET-WI-PM006-0003 | B63: PORTABLE FIRE EXTINGUISHER INSPECTION | C63: Bungalora System 3 - Fire System Equipment | D63: Bungalora System 3 - Portable Fire Extinguisher
A64: QLD-ET-WI-PM006-0003 | B64: PORTABLE FIRE EXTINGUISHER INSPECTION | C64: Mullumbimby System 1 - Fire System Equipment | D64: Mullumbimby System 1 - Portable Fire Extinguisher
A65: QLD-ET-WI-PM006-0003 | B65: PORTABLE FIRE EXTINGUISHER INSPECTION | C65: Mullumbimby System 2 - Fire System Equipment | D65: Mullumbimby System 2 - Portable Fire Extinguisher
A66: QLD-ET-WI-PM006-0003 | B66: PORTABLE FIRE EXTINGUISHER INSPECTION | C66: Mullumbimby System 3 - Fire System Equipment | D66: Mullumbimby System 3 - Portable Fire Extinguisher
A72: Work Order # | B72: PORTABLE FIRE EXTINGUISHER INSPECTION
A73: QLD-166862 | B73: Hawkins On Fire | C73: PM | D73: 2013-08-21T13:43:00
A74: QLD-166863 | B74: Hawkins On Fire | C74: PM | D74: 2013-08-21T13:43:00
A75: QLD-166864 | B75: Hawkins On Fire | C75: PM | D75: 2013-08-21T13:43:00
A76: QLD-166865 | B76: Hawkins On Fire | C76: PM | D76: 2013-08-21T13:43:00
A77: QLD-166866 | B77: Hawkins On Fire | C77: PM | D77: 2013-08-21T13:43:00
A78: QLD-166867 | B78: Hawkins On Fire | C78: PM | D78: 2013-08-21T13:43:00
A83: GL Period Name | B83: Project No | C83: Task Num | D83: Expenditure Type | E83: Original Transaction Reference | F83: Quantity | G83: Cost Amount | H83: PA Description | I83: Vendor / Customer Name | J83: MA Account | K83: Task Name | L83: Po Number | M83: Receipt Comments
A84: 2012-12-01 | B84: 30264 | C84: 560.01 PLANT AND EQUIP | D84: SAFETY EQUIPMENT | E84: 2663124 | F84: 132 | G84: 132 | H84: Standing Order for Essential Services Monthly Contracted Charge for 2012-13 FY | I84: HAWKINS ON FIRE | J84: Other Operating Costs | K84: PLANT AND EQUIPMENT | L84: 272223 | M84: Inv #9594 - Approved by S. Coomber
A85: 2013-02-01 | B85: 30264 | C85: 560.01 PLANT AND EQUIP | D85: SAFETY EQUIPMENT | E85: 2853064 | F85: 297 | G85: 297 | H85: Standing Order for Essential Services Monthly Contracted Charge for 2012-13 FY | I85: HAWKINS ON FIRE | J85: Other Operating Costs | K85: PLANT AND EQUIPMENT | L85: 272223 | M85: Inv #8874 - Approved by S. Coomber
A86: 2013-03-01 | B86: 30264 | C86: 560.01 PLANT AND EQUIP | D86: SAFETY EQUIPMENT | E86: 2948842 | F86: 434 | G86: 434 | H86: Standing Order for Essential Services Monthly Contracted Charge for 2012-13 FY | I86: HAWKINS ON FIRE | J86: Other Operating Costs | K86: PLANT AND EQUIPMENT | L86: 272223 | M86: Inv #8850 - Approved by S. Coomber
A87: 2013-03-01 | B87: 30264 | C87: 560.01 PLANT AND EQUIP | D87: SAFETY EQUIPMENT | E87: 2948842 | F87: 824 | G87: 824 | H87: Standing Order for Essential Services Monthly Contracted Charge for 2012-13 FY | I87: HAWKINS ON FIRE | J87: Other Operating Costs | K87: PLANT AND EQUIPMENT | L87: 272223 | M87: Inv #8851 - Approved by S. Coomber
A88: 2013-06-01 | B88: 30264 | C88: 560.01 PLANT AND EQUIP | D88: SAFETY EQUIPMENT | E88: 3264219 | F88: 824.5 | G88: 824.5 | H88: Standing Order for Essential Services Monthly Contracted Charge for 2012-13 FY | I88: HAWKINS ON FIRE | J88: Other Operating Costs | K88: PLANT AND EQUIPMENT | L88: 272223 | M88: Inv #103343 - Approved by S. Coomber
A89: 2013-09-01 | B89: 30264 | C89: 560.01 PLANT AND EQUIP | D89: SAFETY EQUIPMENT | E89: 3594102 | F89: 322 | G89: 322 | H89: Standing Order for Essential Services Monthly Contracted Charge for 2013-14 FY | I89: HAWKINS ON FIRE | J89: Other Operating Costs | K89: PLANT AND EQUIPMENT | L89: 293833 | M89: Inv # 107287 26.09.13

Sheet 0004
A1: Summary | B1: EMERGENCY LIGHTING MAINTENANCE
A2: Return to Index | D2: Total in AER Period | E2: =Summary!C4 -> 2015/16 | F2: =Summary!D4 -> 2016/17 | G2: =Summary!E4 -> 2017/18 | H2: =Summary!F4 -> 2018/19 | I2: =Summary!G4 -> 2019/20
A3: APA Staff Costs | D3: =D37 -> 6548.04 | E3: 1309.608 | F3: 1309.608 | G3: 1309.608 | H3: 1309.608 | I3: 1309.608
A4: APA Material Costs | D4: 15000 | E4: 3000 | F4: 3000 | G4: 3000 | H4: 3000 | I4: 3000
A5: Contractor Labour | D5: 0 | E5: 0 | F5: 0 | G5: 0 | H5: 0 | I5: 0
A6: Contractor Materials | D6: 0 | E6: 0 | F6: 0 | G6: 0 | H6: 0 | I6: 0
A9: Scheduled Outage Required | B9: No
A10: Work Instruction | B10: not sighted
A13: Emergency Lighting
B14: Buildings | C14: 6
A15: Number of Components to be serviced | C15: =C14 -> 6
A17: Discussion
A18: Currently there is limited emergency lighting installed at the two sites
A19: It will be upgraded in the near future
A20: This modelling has assumed that the enhanced emergency lighting is installed before July 2015
A21: This worksheet does not make a material contribution to the total O&M Direct Cost
E23: =Summary!C4 -> 2015/16 | F23: =Summary!D4 -> 2016/17 | G23: =Summary!E4 -> 2017/18 | H23: =Summary!F4 -> 2018/19 | I23: =Summary!G4 -> 2019/20
A24: QLD-ET-WI-PM006-0004 | B24: Every 6 month(s) | E24: 2 | F24: 2 | G24: 2 | H24: 2 | I24: 2
A25: APA Costs
A26: APA Maintenance Staff (Hrs) | B26: =B45 -> 0.6666666667 | C26: Hours per building
A27: APA Supervision (Hrs) | B27: =2/C15 -> 0.3333333333 | C27: Hours per building (ensuring invoices correctly entered on system and log completed - contractor hours (not used) + additional time to order and invoice required batteries)
A28: APA Material Costs | B28: =B55/2 -> 250 | C28: Battery replacement as needed
A30: Contractor Costs
A31: Contractor Labour (Hrs)
A32: Contractor Hourly Rate
A33: Contractor Labour | B33: 0 | C33: Hours per building
A34: Contractor Materials | B34: 0
B36: Reference Year | C36: Total in Reference Year (per maintenance cycle) | D36: Total in AER Period | E36: =Summary!C4 -> 2015/16 | F36: =Summary!D4 -> 2016/17 | G36: =Summary!E4 -> 2017/18 | H36: =Summary!F4 -> 2018/19 | I36: =Summary!G4 -> 2019/20
A37: APA Staff Costs | B37: =B26*HourlyRateAPAMaintenanceStaff+B27*HourlyRateAPAOMSupervisor -> 109.134 | C37: =B37*$C$15 -> 654.804 | D37: =C37*SUMPRODUCT(LabourAdjustmentFactor,E$24:I$24) -> 6548.04 | E37: =$C37*E$24*'Modelling Assumptions'!E$107 -> 1309.608 | F37: =$C37*F$24*'Modelling Assumptions'!F$107 -> 1309.608 | G37: =$C37*G$24*'Modelling Assumptions'!G$107 -> 1309.608 | H37: =$C37*H$24*'Modelling Assumptions'!H$107 -> 1309.608 | I37: =$C37*I$24*'Modelling Assumptions'!I$107 -> 1309.608
A38: APA Material Costs | B38: =B28 -> 250 | C38: =B38*$C$15 -> 1500 | D38: =C38*SUMPRODUCT(MaterialsAdjustmentFactor,E$24:I$24) -> 15000 | E38: =$C38*E$24*'Modelling Assumptions'!E$108 -> 3000 | F38: =$C38*F$24*'Modelling Assumptions'!F$108 -> 3000 | G38: =$C38*G$24*'Modelling Assumptions'!G$108 -> 3000 | H38: =$C38*H$24*'Modelling Assumptions'!H$108 -> 3000 | I38: =$C38*I$24*'Modelling Assumptions'!I$108 -> 3000
A39: Contractor Labour | B39: =B33 -> 0 | C39: =B39*$C$15 -> 0 | D39: =C39*SUMPRODUCT(LabourAdjustmentFactor,E$24:I$24) -> 0 | E39: =$C39*E$24*'Modelling Assumptions'!E$107 -> 0 | F39: =$C39*F$24*'Modelling Assumptions'!F$107 -> 0 | G39: =$C39*G$24*'Modelling Assumptions'!G$107 -> 0 | H39: =$C39*H$24*'Modelling Assumptions'!H$107 -> 0 | I39: =$C39*I$24*'Modelling Assumptions'!I$107 -> 0
A40: Contractor Materials | B40: =B34 -> 0 | C40: =B40*$C$15 -> 0 | D40: =C40*SUMPRODUCT(MaterialsAdjustmentFactor,E$24:I$24) -> 0 | E40: =$C40*E$24*'Modelling Assumptions'!E$108 -> 0 | F40: =$C40*F$24*'Modelling Assumptions'!F$108 -> 0 | G40: =$C40*G$24*'Modelling Assumptions'!G$108 -> 0 | H40: =$C40*H$24*'Modelling Assumptions'!H$108 -> 0 | I40: =$C40*I$24*'Modelling Assumptions'!I$108 -> 0
A42: APA Staff Hours
A43: Testing | B43: 15 | C43: minutes
A44: Replacement | B44: 5 | C44: minutes / light
A45: Total Time | B45: =(B43+B44*B53/2)/60 -> 0.6666666667 | C45: hours (annual battery replacements / 2 since done every 6 months)
A48: Material Costs
A49: Assumption: Each light has its own battery (likely to avoid cable runs)
A50: Internally lights required at 5 doors | B50: 5
A51: Externally lights required around perimeter | B51: 20
A52: Lifetime of each battery | B52: 2.5 | C52: years (2-3 years is reasonable given the harsh conditions)
A53: Battery replacements per year | B53: =(B50+B51)/B52 -> 10 | C53: Should probably discount for the first year (given the batteries are new) but since this does not make a material difference have ignored
A54: Cost of each battery | B54: 50 | C54: Commercial Grade Sealed Lead Acid Battery (7Ah)
A55: Annual cost of batteries | B55: =B53*B54 -> 500
A59: Scheduled Maintenance
A60: PM ID | B60: PM Name | C60: Parent Location
A61: QLD-ET-WI-PM006-0004 | B61: Every 6 month(s)
A62: QLD-ET-WI-PM006-0004 | B62: EMERGENCY LIGHTING MAINTENANCE | C62: Bungalora | D62: Bungalora - System 1
A63: QLD-ET-WI-PM006-0004 | B63: EMERGENCY LIGHTING MAINTENANCE | C63: Bungalora | D63: Bungalora - System 2
A64: QLD-ET-WI-PM006-0004 | B64: EMERGENCY LIGHTING MAINTENANCE | C64: Bungalora | D64: Bungalora - System 3
A65: QLD-ET-WI-PM006-0004 | B65: EMERGENCY LIGHTING MAINTENANCE | C65: Mullumbimby | D65: Mullumbimby - System 1
A66: QLD-ET-WI-PM006-0004 | B66: EMERGENCY LIGHTING MAINTENANCE | C66: Mullumbimby | D66: Mullumbimby - System 2
A67: QLD-ET-WI-PM006-0004 | B67: EMERGENCY LIGHTING MAINTENANCE | C67: Mullumbimby | D67: Mullumbimby - System 3
A73: Work Order # | B73: EMERGENCY LIGHTING MAINTENANCE
A74: QLD-175944 | B74: COOMBER Stuart | C74: PM | D74: 2013-09-19T09:56:00 | E74: decommision

Sheet 0005
A1: Summary | B1: ENERGISED MAINTENANCE INSPECTION
A2: Return to Index | D2: Total in AER Period | E2: =Summary!C4 -> 2015/16 | F2: =Summary!D4 -> 2016/17 | G2: =Summary!E4 -> 2017/18 | H2: =Summary!F4 -> 2018/19 | I2: =Summary!G4 -> 2019/20
A3: APA Staff Costs | D3: =D31 -> 150757.2 | E3: 30151.44 | F3: 30151.44 | G3: 30151.44 | H3: 30151.44 | I3: 30151.44
A4: APA Material Costs | D4: 0 | E4: 0 | F4: 0 | G4: 0 | H4: 0 | I4: 0
A5: Contractor Labour | D5: 0 | E5: 0 | F5: 0 | G5: 0 | H5: 0 | I5: 0
A6: Contractor Materials | D6: 0 | E6: 0 | F6: 0 | G6: 0 | H6: 0 | I6: 0
A9: Scheduled Outage Required | B9: No
A10: Work Instruction | B10: DL-WI-17
A13: Energised Maintenance
B14: Sites | C14: 2
A15: Number of Components to be serviced | C15: =C14 -> 2
E17: =Summary!C4 -> 2015/16 | F17: =Summary!D4 -> 2016/17 | G17: =Summary!E4 -> 2017/18 | H17: =Summary!F4 -> 2018/19 | I17: =Summary!G4 -> 2019/20
A18: QLD-ET-WI-PM006-0005 | B18: Every 1 month(s) | E18: 12 | F18: 12 | G18: 12 | H18: 12 | I18: 12
A19: APA Costs
A20: APA Maintenance Staff (Hrs) | B20: =8+2 -> 10 | C20: Hours per site (8 hours for the inspection and 2 hours for log book update + upload of photographs)
A21: APA Supervision (Hrs) | B21: 2 | C21: Hours per site (raise and close work order, check log completed and catalogue photographs)
A22: APA Material Costs | B22: 0
A24: Contractor Costs
A25: Contractor Labour (Hrs)
A26: Contractor Hourly Rate
A27: Contractor Labour | B27: 0
A28: Contractor Materials | B28: 0
B30: Reference Year | C30: Total in Reference Year (per maintenance cycle) | D30: Total in AER Period | E30: =Summary!C4 -> 2015/16 | F30: =Summary!D4 -> 2016/17 | G30: =Summary!E4 -> 2017/18 | H30: =Summary!F4 -> 2018/19 | I30: =Summary!G4 -> 2019/20
A31: APA Staff Costs | B31: =B20*HourlyRateAPAMaintenanceStaff+B21*HourlyRateAPAOMSupervisor -> 1256.31 | C31: =B31*$C$15 -> 2512.62 | D31: =C31*SUMPRODUCT(LabourAdjustmentFactor,E$18:I$18) -> 150757.2 | E31: =$C31*E$18*'Modelling Assumptions'!E$107 -> 30151.44 | F31: =$C31*F$18*'Modelling Assumptions'!F$107 -> 30151.44 | G31: =$C31*G$18*'Modelling Assumptions'!G$107 -> 30151.44 | H31: =$C31*H$18*'Modelling Assumptions'!H$107 -> 30151.44 | I31: =$C31*I$18*'Modelling Assumptions'!I$107 -> 30151.44
A32: APA Material Costs | B32: =B22 -> 0 | C32: =B32*$C$15 -> 0 | D32: =C32*SUMPRODUCT(MaterialsAdjustmentFactor,E$18:I$18) -> 0 | E32: =$C32*E$18*'Modelling Assumptions'!E$108 -> 0 | F32: =$C32*F$18*'Modelling Assumptions'!F$108 -> 0 | G32: =$C32*G$18*'Modelling Assumptions'!G$108 -> 0 | H32: =$C32*H$18*'Modelling Assumptions'!H$108 -> 0 | I32: =$C32*I$18*'Modelling Assumptions'!I$108 -> 0
A33: Contractor Labour | B33: =B27 -> 0 | C33: =B33*$C$15 -> 0 | D33: =C33*SUMPRODUCT(LabourAdjustmentFactor,E$18:I$18) -> 0 | E33: =$C33*E$18*'Modelling Assumptions'!E$107 -> 0 | F33: =$C33*F$18*'Modelling Assumptions'!F$107 -> 0 | G33: =$C33*G$18*'Modelling Assumptions'!G$107 -> 0 | H33: =$C33*H$18*'Modelling Assumptions'!H$107 -> 0 | I33: =$C33*I$18*'Modelling Assumptions'!I$107 -> 0
A34: Contractor Materials | B34: =B28 -> 0 | C34: =B34*$C$15 -> 0 | D34: =C34*SUMPRODUCT(MaterialsAdjustmentFactor,E$18:I$18) -> 0 | E34: =$C34*E$18*'Modelling Assumptions'!E$108 -> 0 | F34: =$C34*F$18*'Modelling Assumptions'!F$108 -> 0 | G34: =$C34*G$18*'Modelling Assumptions'!G$108 -> 0 | H34: =$C34*H$18*'Modelling Assumptions'!H$108 -> 0 | I34: =$C34*I$18*'Modelling Assumptions'!I$108 -> 0
A38: Scheduled Maintenance
A39: PM ID | B39: PM Name | C39: Parent Location
A40: QLD-ET-WI-PM001-0005 | B40: Every 1 month(s)
A41: QLD-ET-WI-PM001-0005 | B41: ENERGISED MAINTENANCE INSPECTION | C41: Bungalora | D41: Bungalora - System 1
A42: QLD-ET-WI-PM001-0005 | B42: ENERGISED MAINTENANCE INSPECTION | C42: Bungalora | D42: Bungalora - System 2
A43: QLD-ET-WI-PM001-0005 | B43: ENERGISED MAINTENANCE INSPECTION | C43: Bungalora | D43: Bungalora - System 3
A44: QLD-ET-WI-PM001-0005 | B44: ENERGISED MAINTENANCE INSPECTION | C44: Mullumbimby | D44: Mullumbimby - System 1
A45: QLD-ET-WI-PM001-0005 | B45: ENERGISED MAINTENANCE INSPECTION | C45: Mullumbimby | D45: Mullumbimby - System 2
A46: QLD-ET-WI-PM001-0005 | B46: ENERGISED MAINTENANCE INSPECTION | C46: Mullumbimby | D46: Mullumbimby - System 3
A52: Work Order # | B52: ENERGISED MAINTENANCE INSPECTION
A53: QLD-188340 | B53: COOMBER Stuart | C53: PM | D53: 2013-12-09T14:19:00 | E53: system decommisioned
A54: QLD-178332 | B54: COOMBER Stuart | C54: PM | D54: 2013-10-18T11:43:00 | E54: not needed as Directlink not operating due to reactor repair
A55: QLD-174536 | B55: COOMBER Stuart | C55: PM | D55: 2013-09-16T17:48:00 | E55: Directlink off line this month fpr reactor repairs
A56: QLD-170637 | B56: COOMBER Stuart | C56: PM | D56: 2013-07-19T15:53:00 | E56: Annual maintanance peroid.
A57: QLD-166849 | B57: EDWARDS2 Luke | C57: PM | D57: 2013-08-21T13:49:00 | E57: Annual Maintenance period
A58: QLD-162968 | B58: EDWARDS2 Luke | C58: PM | D58: 2013-06-27T10:11:00
A59: QLD-178333 | B59: COOMBER Stuart | C59: PM | D59: 2013-10-18T11:43:00 | E59: not needed as Directlink not operating due to reactor repair
A60: QLD-174537 | B60: COOMBER Stuart | C60: PM | D60: 2013-09-16T17:48:00 | E60: Directlink off line this month fpr reactor repairs
A61: QLD-170638 | B61: COOMBER Stuart | C61: PM | D61: 2013-07-19T15:53:00 | E61: Annual maintanance peroid.
A62: QLD-166850 | B62: EDWARDS2 Luke | C62: PM | D62: 2013-08-21T13:49:00 | E62: Annual Maintenance period
A63: QLD-162969 | B63: EDWARDS2 Luke | C63: PM | D63: 2013-06-27T10:11:00
A64: QLD-178337 | B64: COOMBER Stuart | C64: PM | D64: 2013-10-18T11:43:00 | E64: not needed as Directlink not operating due to reactor repair
A65: QLD-174541 | B65: COOMBER Stuart | C65: PM | D65: 2013-09-16T17:48:00 | E65: Directlink off line this month fpr reactor repairs
A66: QLD-170641 | B66: COOMBER Stuart | C66: PM | D66: 2013-07-19T15:53:00 | E66: Annual maintanance peroid.
A67: QLD-166854 | B67: EDWARDS2 Luke | C67: PM | D67: 2013-08-21T13:49:00 | E67: Annual Maintenance period
A68: QLD-162973 | B68: EDWARDS2 Luke | C68: PM | D68: 2013-06-27T10:11:00
A69: QLD-188342 | B69: COOMBER Stuart | C69: PM | D69: 2013-12-09T14:19:00 | E69: system decommisioned
A70: QLD-178334 | B70: COOMBER Stuart | C70: PM | D70: 2013-10-18T11:43:00 | E70: not needed as Directlink not operating due to reactor repair
A71: QLD-174538 | B71: COOMBER Stuart | C71: PM | D71: 2013-09-16T17:48:00 | E71: Directlink off line this month fpr reactor repairs
A72: QLD-170635 | B72: COOMBER Stuart | C72: PM | D72: 2013-07-19T15:53:00 | E72: Annual maintanance peroid.
A73: QLD-166851 | B73: COOMBER Stuart | C73: PM | D73: 2013-07-08T13:18:00
A74: QLD-162970 | B74: HARRIS James | C74: PM | D74: 2013-07-18T15:48:00
A75: QLD-178335 | B75: COOMBER Stuart | C75: PM | D75: 2013-10-18T11:43:00 | E75: not needed as Directlink not operating due to reactor repair
A76: QLD-174539 | B76: COOMBER Stuart | C76: PM | D76: 2013-09-16T17:48:00 | E76: Directlink off line this month fpr reactor repairs
A77: QLD-170636 | B77: COOMBER Stuart | C77: PM | D77: 2013-07-19T15:53:00 | E77: Annual maintanance peroid.
A78: QLD-166852 | B78: HARRIS James | C78: PM | D78: 2013-08-21T13:50:00 | E78: Annual maintenance peroid.
A79: QLD-162971 | B79: HARRIS James | C79: PM | D79: 2013-07-18T15:48:00
A80: QLD-178336 | B80: COOMBER Stuart | C80: PM | D80: 2013-10-18T11:43:00 | E80: not needed as Directlink not operating due to reactor repair
A81: QLD-174540 | B81: COOMBER Stuart | C81: PM | D81: 2013-09-16T17:48:00 | E81: Directlink off line this month fpr reactor repairs
A82: QLD-170639 | B82: COOMBER Stuart | C82: PM | D82: 2013-07-19T15:53:00 | E82: Annual maintanance peroid.
A83: QLD-166853 | B83: HARRIS James | C83: PM | D83: 2013-08-21T13:50:00 | E83: Annual maintenance peroid.
A84: QLD-162972 | B84: HARRIS James | C84: PM | D84: 2013-07-18T15:48:00

Sheet 0006
A1: Summary | B1: UNINTERRUPTIBLE POWER SUPPLY
A2: Return to Index | D2: Total in AER Period | E2: =Summary!C4 -> 2015/16 | F2: =Summary!D4 -> 2016/17 | G2: =Summary!E4 -> 2017/18 | H2: =Summary!F4 -> 2018/19 | I2: =Summary!G4 -> 2019/20
A3: APA Staff Costs | D3: =D36 -> 21853.026 | E3: 4370.6052 | F3: 4370.6052 | G3: 4370.6052 | H3: 4370.6052 | I3: 4370.6052
A4: APA Material Costs | D4: 6800 | E4: 1360 | F4: 1360 | G4: 1360 | H4: 1360 | I4: 1360
A5: Contractor Labour | D5: 0 | E5: 0 | F5: 0 | G5: 0 | H5: 0 | I5: 0
A6: Contractor Materials | D6: 0 | E6: 0 | F6: 0 | G6: 0 | H6: 0 | I6: 0
A9: Scheduled Outage Required | B9: No
A10: Work Instruction | B10: not sighted
A13: Uninterruptible Power Supplies
B14: DC disconnectors | C14: 12
B15: Control System | C15: 12
B16: Comms | C16: 8
B17: OWS Computers | C17: 2
A18: Number of Components to be serviced | C18: =SUM(C14:C17) -> 34
A20: Discussions
A21: This worksheet does not make a material contribution to the total O&M Direct Cost
E22: =Summary!C4 -> 2015/16 | F22: =Summary!D4 -> 2016/17 | G22: =Summary!E4 -> 2017/18 | H22: =Summary!F4 -> 2018/19 | I22: =Summary!G4 -> 2019/20
A23: QLD-ET-WI-PM006-0006 | B23: Every 6 month(s) | E23: 2 | F23: 2 | G23: 2 | H23: 2 | I23: 2
A24: APA Costs
A25: APA Maintenance Staff (Hrs) | B25: =B44 -> 0.5666666667 | C25: Hours per UPS | D25: Test pull the cord out of the back and test it survives, must be done sequentially
A26: APA Supervision (Hrs) | B26: =2/C18 -> 0.05882352941 | C26: Hours per UPS (discounted time recognising no contractors involved but must still ensure invoices correctly entered on system and log completed)
A27: APA Material Costs | B27: =B50 -> 20 | C27: per UPS
A29: Contractor Costs
A30: Contractor Labour (Hrs)
A31: Contractor Hourly Rate
A32: Contractor Labour | B32: 0
A33: Contractor Materials | B33: 0
B35: Reference Year | C35: Total in Reference Year (per maintenance cycle) | D35: Total in AER Period | E35: =Summary!C4 -> 2015/16 | F35: =Summary!D4 -> 2016/17 | G35: =Summary!E4 -> 2017/18 | H35: =Summary!F4 -> 2018/19 | I35: =Summary!G4 -> 2019/20
A36: APA Staff Costs | B36: =B25*HourlyRateAPAMaintenanceStaff+B26*HourlyRateAPAOMSupervisor -> 64.27360588 | C36: =B36*$C$18 -> 2185.3026 | D36: =C36*SUMPRODUCT(LabourAdjustmentFactor,E$23:I$23) -> 21853.026 | E36: =$C36*E$23*'Modelling Assumptions'!E$107 -> 4370.6052 | F36: =$C36*F$23*'Modelling Assumptions'!F$107 -> 4370.6052 | G36: =$C36*G$23*'Modelling Assumptions'!G$107 -> 4370.6052 | H36: =$C36*H$23*'Modelling Assumptions'!H$107 -> 4370.6052 | I36: =$C36*I$23*'Modelling Assumptions'!I$107 -> 4370.6052
A37: APA Material Costs | B37: =B27 -> 20 | C37: =B37*$C$18 -> 680 | D37: =C37*SUMPRODUCT(MaterialsAdjustmentFactor,E$23:I$23) -> 6800 | E37: =$C37*E$23*'Modelling Assumptions'!E$108 -> 1360 | F37: =$C37*F$23*'Modelling Assumptions'!F$108 -> 1360 | G37: =$C37*G$23*'Modelling Assumptions'!G$108 -> 1360 | H37: =$C37*H$23*'Modelling Assumptions'!H$108 -> 1360 | I37: =$C37*I$23*'Modelling Assumptions'!I$108 -> 1360
A38: Contractor Labour | B38: =B32 -> 0 | C38: =B38*$C$18 -> 0 | D38: =C38*SUMPRODUCT(LabourAdjustmentFactor,E$23:I$23) -> 0 | E38: =$C38*E$23*'Modelling Assumptions'!E$107 -> 0 | F38: =$C38*F$23*'Modelling Assumptions'!F$107 -> 0 | G38: =$C38*G$23*'Modelling Assumptions'!G$107 -> 0 | H38: =$C38*H$23*'Modelling Assumptions'!H$107 -> 0 | I38: =$C38*I$23*'Modelling Assumptions'!I$107 -> 0
A39: Contractor Materials | B39: =B33 -> 0 | C39: =B39*$C$18 -> 0 | D39: =C39*SUMPRODUCT(MaterialsAdjustmentFactor,E$23:I$23) -> 0 | E39: =$C39*E$23*'Modelling Assumptions'!E$108 -> 0 | F39: =$C39*F$23*'Modelling Assumptions'!F$108 -> 0 | G39: =$C39*G$23*'Modelling Assumptions'!G$108 -> 0 | H39: =$C39*H$23*'Modelling Assumptions'!H$108 -> 0 | I39: =$C39*I$23*'Modelling Assumptions'!I$108 -> 0
A41: APA Staff Hours
A42: Testing | B42: 15 | C42: minutes (pull the cord out of the back and test it survives, must be done on each UPS separately and sequentially)
A43: Replacement | B43: 10 | C43: minutes / UPS
A44: Total Time | B44: =(2*B42+B43/B48)/60 -> 0.5666666667 | C44: hours (annual battery test and replacement)
A46: Material Costs
A47: Each UPS contains a battery
A48: Lifetime of each battery | B48: 2.5 | C48: years (2-3 years is reasonable given commercial sealed lead acid battery and the harsh conditions)
A49: Cost of each battery | B49: 50
A50: Average cost of batteries | B50: =B49/B48 -> 20 | C50: Per UPS per year
A53: Scheduled Maintenance
A54: PM ID | B54: PM Name | C54: Parent Location
A55: QLD-ET-WI-PM006-0006 | B55: Every 6 month(s)
A56: QLD-ET-WI-PM006-0006 | B56: UNINTERRUPTIBLE POWER SUPPLY | C56: Bungalora System 1 - Station Service Power System | D56: Bungalora System 1 - Uniterruptable DC and AC Supply A
A57: QLD-ET-WI-PM006-0006 | B57: UNINTERRUPTIBLE POWER SUPPLY | C57: Bungalora System 1 - Station Service Power System | D57: Bungalora System 1 - Uniterruptable DC and AC Supply B
A58: QLD-ET-WI-PM006-0006 | B58: UNINTERRUPTIBLE POWER SUPPLY | C58: Bungalora System 2 - Station Service Power System | D58: Bungalora System 2 - Uniterruptable DC and AC Supply A
A59: QLD-ET-WI-PM006-0006 | B59: UNINTERRUPTIBLE POWER SUPPLY | C59: Bungalora System 2 - Station Service Power System | D59: Bungalora System 2 - Uniterruptable DC and AC Supply B
A60: QLD-ET-WI-PM006-0006 | B60: UNINTERRUPTIBLE POWER SUPPLY | C60: Bungalora System 3 - Station Service Power System | D60: Bungalora System 3 - Uniterruptable DC and AC Supply A
A61: QLD-ET-WI-PM006-0006 | B61: UNINTERRUPTIBLE POWER SUPPLY | C61: Bungalora System 3 - Station Service Power System | D61: Bungalora System 3 - Uniterruptable DC and AC Supply B
A62: QLD-ET-WI-PM006-0006 | B62: UNINTERRUPTIBLE POWER SUPPLY | C62: Mullumbimby System 1 - Station Service Power System | D62: Mullumbimby System 1 - Uninterruptable DC and AC Supply A
A63: QLD-ET-WI-PM006-0006 | B63: UNINTERRUPTIBLE POWER SUPPLY | C63: Mullumbimby System 1 - Station Service Power System | D63: Mullumbimby System 1 - Uninterruptable DC and AC Supply B
A64: QLD-ET-WI-PM006-0006 | B64: UNINTERRUPTIBLE POWER SUPPLY | C64: Mullumbimby System 2 - Station Service Power System | D64: Mullumbimby System 2 - Uninterruptable DC and AC Supply A
A65: QLD-ET-WI-PM006-0006 | B65: UNINTERRUPTIBLE POWER SUPPLY | C65: Mullumbimby System 2 - Station Service Power System | D65: Mullumbimby System 2 - Uninterruptable DC and AC Supply B
A66: QLD-ET-WI-PM006-0006 | B66: UNINTERRUPTIBLE POWER SUPPLY | C66: Mullumbimby System 3 - Station Service Power System | D66: Mullumbimby System 3 - Uninterruptable DC and AC Supply A
A67: QLD-ET-WI-PM006-0006 | B67: UNINTERRUPTIBLE POWER SUPPLY | C67: Mullumbimby System 3 - Station Service Power System | D67: Mullumbimby System 3 - Uninterruptable DC and AC Supply B
A73: Work Order # | B73: UNINTERRUPTIBLE POWER SUPPLY
A74: QLD-166868 | B74: EDWARDS2 Luke | C74: PM | D74: 2013-09-18T14:15:00 | E74: done during shutdown, , entered sc.
A75: QLD-166869 | B75: EDWARDS2 Luke | C75: PM | D75: 2013-09-18T14:15:00 | E75: done during shutdown, , entered sc.
A76: QLD-166870 | B76: EDWARDS2 Luke | C76: PM | D76: 2013-09-18T14:15:00 | E76: done during shutdown, , entered sc.
A77: QLD-166871 | B77: EDWARDS2 Luke | C77: PM | D77: 2013-09-18T14:15:00 | E77: done during shutdown, , entered sc.
A78: QLD-166872 | B78: EDWARDS2 Luke | C78: PM | D78: 2013-09-18T14:15:00 | E78: done during shutdown, , entered sc.
A79: QLD-166873 | B79: EDWARDS2 Luke | C79: PM | D79: 2013-09-18T14:15:00 | E79: done during shutdown, , entered sc.
A80: QLD-166874 | B80: COOMBER Stuart | C80: PM | D80: 2013-09-18T13:10:00 | E80: decommissioned
A81: QLD-166875 | B81: COOMBER Stuart | C81: PM | D81: 2013-09-18T13:10:00 | E81: decommissioned
A82: QLD-166878 | B82: COOMBER Stuart | C82: PM | D82: 2013-10-01T15:46:00 | E82: tested during annual shutdown , PCP A ups replaced.
A83: QLD-166879 | B83: COOMBER Stuart | C83: PM | D83: 2013-10-01T15:45:00 | E83: Tested during annual maintenace, replaced PCP A UPS

Sheet 0010 (1)
A1: Summary | B1: YARD MAINTENANCE
A2: Return to Index | D2: Total in AER Period | E2: =Summary!C4 -> 2015/16 | F2: =Summary!D4 -> 2016/17 | G2: =Summary!E4 -> 2017/18 | H2: =Summary!F4 -> 2018/19 | I2: =Summary!G4 -> 2019/20
A3: APA Staff Costs | D3: =D35 -> 31674.24 | E3: 6334.848 | F3: 6334.848 | G3: 6334.848 | H3: 6334.848 | I3: 6334.848
A4: APA Material Costs | D4: 0 | E4: 0 | F4: 0 | G4: 0 | H4: 0 | I4: 0
A5: Contractor Labour | D5: 87095.31429 | E5: 17419.06286 | F5: 17419.06286 | G5: 17419.06286 | H5: 17419.06286 | I5: 17419.06286
A6: Contractor Materials | D6: 0 | E6: 0 | F6: 0 | G6: 0 | H6: 0 | I6: 0
A9: Scheduled Outage Required | B9: No
A10: Work Instruction | B10: not sighted
A13: Yard Maintenance
B14: Yards | C14: 2
A15: Number of Components to be serviced | C15: =C14 -> 2
A17: Discussion
A18: Was unable to separate Yard Maintenance from Vegetation Management along the cable route
A19: =CONCATENATE("Have therefore assigned ",100*VegetationManagementYardPercentage,"% of the total cost from Byron Bay Trees (the contractor) to Yard Maintenance") -> Have therefore assigned 10% of the total cost from Byron Bay Trees (the contractor) to Yard Maintenance
A20: Refer to worksheet Modelling Assumptions to change the percentage
E21: =Summary!C4 -> 2015/16 | F21: =Summary!D4 -> 2016/17 | G21: =Summary!E4 -> 2017/18 | H21: =Summary!F4 -> 2018/19 | I21: =Summary!G4 -> 2019/20
A22: QLD-ET-WI-PM001-0010 | B22: The last Fr of every 1 month(s) | E22: 12 | F22: 12 | G22: 12 | H22: 12 | I22: 12
A23: APA Costs
A24: APA Maintenance Staff (Hrs) | B24: 2 | C24: Hours per yard per month (some supervision required)
A25: APA Supervision (Hrs) | B25: =1/C15 -> 0.5 | C25: Hours per yard per month (ensuring invoices correctly entered on system and log completed)
A26: APA Material Costs | B26: 0
A28: Contractor Costs
A29: Contractor Labour (Hrs) | C29: Hours per yard per month
A30: Contractor Hourly Rate | C30: Contractor Byron Bay Trees
A31: Contractor Labour | B31: =VegetationManagement*VegetationManagementYardPercentage/12 -> 725.7942857 | C31: This value comes from the Modelling Assumption worksheet
A32: Contractor Materials | B32: 0
B34: Reference Year | C34: Total in Reference Year (per maintenance cycle) | D34: Total in AER Period | E34: =Summary!C4 -> 2015/16 | F34: =Summary!D4 -> 2016/17 | G34: =Summary!E4 -> 2017/18 | H34: =Summary!F4 -> 2018/19 | I34: =Summary!G4 -> 2019/20
A35: APA Staff Costs | B35: =B24*HourlyRateAPAMaintenanceStaff+B25*HourlyRateAPAOMSupervisor -> 263.952 | C35: =B35*$C$15 -> 527.904 | D35: =C35*SUMPRODUCT(LabourAdjustmentFactor,E$22:I$22) -> 31674.24 | E35: =$C35*E$22*'Modelling Assumptions'!E$107 -> 6334.848 | F35: =$C35*F$22*'Modelling Assumptions'!F$107 -> 6334.848 | G35: =$C35*G$22*'Modelling Assumptions'!G$107 -> 6334.848 | H35: =$C35*H$22*'Modelling Assumptions'!H$107 -> 6334.848 | I35: =$C35*I$22*'Modelling Assumptions'!I$107 -> 6334.848
A36: APA Material Costs | B36: =B26 -> 0 | C36: =B36*$C$15 -> 0 | D36: =C36*SUMPRODUCT(MaterialsAdjustmentFactor,E$22:I$22) -> 0 | E36: =$C36*E$22*'Modelling Assumptions'!E$108 -> 0 | F36: =$C36*F$22*'Modelling Assumptions'!F$108 -> 0 | G36: =$C36*G$22*'Modelling Assumptions'!G$108 -> 0 | H36: =$C36*H$22*'Modelling Assumptions'!H$108 -> 0 | I36: =$C36*I$22*'Modelling Assumptions'!I$108 -> 0
A37: Contractor Labour | B37: =B31 -> 725.7942857 | C37: =B37*$C$15 -> 1451.588571 | D37: =C37*SUMPRODUCT(LabourAdjustmentFactor,E$22:I$22) -> 87095.31429 | E37: =$C37*E$22*'Modelling Assumptions'!E$107 -> 17419.06286 | F37: =$C37*F$22*'Modelling Assumptions'!F$107 -> 17419.06286 | G37: =$C37*G$22*'Modelling Assumptions'!G$107 -> 17419.06286 | H37: =$C37*H$22*'Modelling Assumptions'!H$107 -> 17419.06286 | I37: =$C37*I$22*'Modelling Assumptions'!I$107 -> 17419.06286
A38: Contractor Materials | B38: =B32 -> 0 | C38: =B38*$C$15 -> 0 | D38: =C38*SUMPRODUCT(MaterialsAdjustmentFactor,E$22:I$22) -> 0 | E38: =$C38*E$22*'Modelling Assumptions'!E$108 -> 0 | F38: =$C38*F$22*'Modelling Assumptions'!F$108 -> 0 | G38: =$C38*G$22*'Modelling Assumptions'!G$108 -> 0 | H38: =$C38*H$22*'Modelling Assumptions'!H$108 -> 0 | I38: =$C38*I$22*'Modelling Assumptions'!I$108 -> 0
A42: Scheduled Maintenance
A43: PM ID | B43: PM Name | C43: Parent Location
A44: QLD-ET-WI-PM001-0010 | B44: The last Fr of every 1 month(s)
A45: QLD-ET-WI-PM001-0010 | B45: YARD MAINTENANCE | C45: Bungalora | D45: Bungalora - 110kV Overhead Bus
A46: QLD-ET-WI-PM001-0010 | B46: YARD MAINTENANCE | C46: Mullumbimby | D46: Mullumbimby - 132kV Overhead Bus
A50: Work Order # | B50: YARD MAINTENANCE
A51: QLD-180915 | B51: COOMBER Stuart | C51: PM | D51: 2013-10-17T17:53:00 | E51: Done during extended Annual outage 2013
A52: QLD-176791 | B52: EDWARDS2 Luke | C52: PM | D52: 2013-09-16T17:38:00 | E52: Both sites were accessed during the anual maintenace period , with weed control carried %0D%0Aout
A53: QLD-173196 | B53: EDWARDS2 Luke | C53: PM | D53: 2013-09-16T17:54:00 | E53: done during annual maintence 2013
A54: QLD-168780 | B54: EDWARDS2 Luke | C54: PM | D54: 2013-08-21T15:12:00
A55: QLD-165611 | B55: COOMBER Stuart | C55: PM | D55: 2013-06-27T10:10:00
A56: QLD-180916 | B56: COOMBER Stuart | C56: PM | D56: 2013-10-17T17:53:00 | E56: Done during extended Annual outage 2013
A57: QLD-176792 | B57: EDWARDS2 Luke | C57: PM | D57: 2013-09-16T17:38:00 | E57: Both sites were accessed during the anual maintenace period , with weed control carried %0D%0Aout
A58: QLD-173197 | B58: EDWARDS2 Luke | C58: PM | D58: 2013-09-16T17:54:00 | E58: done during annual maintence 2013
A59: QLD-168781 | B59: HARRIS James | C59: PM | D59: 2013-07-18T11:01:00 | E59: Check and removed weeds from AC Yard
A60: QLD-168781 | B60: EDWARDS2 Luke | C60: PM | D60: 2013-07-18T11:01:00 | E60: Check and removed weeds from AC Yard
A61: QLD-165612 | B61: COOMBER Stuart | C61: PM | D61: 2013-06-27T10:10:00

Sheet 0010 (2)
A1: Summary | B1: OIL FILLED CAPACITOR MAINTENANCE
A2: Return to Index | D2: Total in AER Period | E2: =Summary!C4 -> 2015/16 | F2: =Summary!D4 -> 2016/17 | G2: =Summary!E4 -> 2017/18 | H2: =Summary!F4 -> 2018/19 | I2: =Summary!G4 -> 2019/20
A3: APA Staff Costs | D3: =D48+D80 -> 6074.28 | E3: 1189.476 | F3: 1189.476 | G3: 1316.376 | H3: 1189.476 | I3: 1189.476
A4: APA Material Costs | D4: 0 | E4: 0 | F4: 0 | G4: 0 | H4: 0 | I4: 0
A5: Contractor Labour | D5: 52350 | E5: 6150 | F5: 6150 | G5: 27750 | H5: 6150 | I5: 6150
A6: Contractor Materials | D6: 0 | E6: 0 | F6: 0 | G6: 0 | H6: 0 | I6: 0
A9: Scheduled Outage Required | B9: Yes
A10: Work Instruction | B10: DL-WI-30 & DL-WI-38
A12: AC Capacitor
B13: WT.C1 | C13: 6
B14: WT.C2 | C14: 6
B15: WA.Z1.C1 | C15: 18
B16: WA.Z1.C2 | C16: 18
B17: WA.Z1.Z11.C1 | C17: 18
B18: WA.Z1.Z12.C1 | C18: 18
A20: DC Capacitor
B21: U.C1 | C21: 6
B22: U.C2 | C22: 6
B23: U.Vx.C1 | C23: 18
B24: U.Vx.C2 | C24: 18
B25: WPx.C1 | C25: 12
A26: Number of Components to be serviced | C26: =SUM(C13:C25) -> 144
A28: Discussion
A29: Note: That each capacitor is actually made up of banks of capacitors. The above figure is the number of BANKS of capacitors
A30: Capacitors which are found to be leaking oil (annual inspection) or measured capacitance is down (three yearly inspection) are replaced
A31: No figures were provided for the number of capacitors which are replaced
A32: The cost of the capacitors would be CAPEX - however should have included contractor costs for the replacement
A33: This worksheet does not make a material contribution to the total O&M Direct Cost
E34: =Summary!C4 -> 2015/16 | F34: =Summary!D4 -> 2016/17 | G34: =Summary!E4 -> 2017/18 | H34: =Summary!F4 -> 2018/19 | I34: =Summary!G4 -> 2019/20
A35: QLD-ET-WI-PM012-0010 | B35: Every 1 year(s) | E35: 1 | F35: 1 | G35: 1 | H35: 1 | I35: 1
A36: APA Costs
A37: APA Maintenance Staff (Hrs) | B37: =APATechnicianHours/C26 -> 0.006944444444 | C37: Hours per capacitor (site access for contractor)
A38: APA Supervision (Hrs) | B38: =APASupervisorHours/C26 -> 0.05960648148 | C38: Hours per capacitor (engaging contractor, scheduling contractor, ensuring invoices correctly entered on system and log completed)
A39: APA Material Costs | B39: =B65 -> 0
A41: Contractor Costs
A42: Contractor Labour (Hrs) | B42: =0.5+B59 -> 0.5694444444 | C42: Hours per capacitor
A43: Contractor Hourly Rate | B43: =ElectricalContractorHourlyRate -> 75 | C43: Thearle/SAE
A44: Contractor Labour | B44: =B42*B43 -> 42.70833333
A45: Contractor Materials | B45: 0
B47: Reference Year | C47: Total in Reference Year (per maintenance cycle) | D47: Total in AER Period | E47: =Summary!C4 -> 2015/16 | F47: =Summary!D4 -> 2016/17 | G47: =Summary!E4 -> 2017/18 | H47: =Summary!F4 -> 2018/19 | I47: =Summary!G4 -> 2019/20
A48: APA Staff Costs | B48: =B37*HourlyRateAPAMaintenanceStaff+B38*HourlyRateAPAOMSupervisor -> 8.26025 | C48: =B48*$C$26 -> 1189.476 | D48: =C48*SUMPRODUCT(LabourAdjustmentFactor,E$35:I$35) -> 5947.38 | E48: =$C48*E$35*'Modelling Assumptions'!E$107 -> 1189.476 | F48: =$C48*F$35*'Modelling Assumptions'!F$107 -> 1189.476 | G48: =$C48*G$35*'Modelling Assumptions'!G$107 -> 1189.476 | H48: =$C48*H$35*'Modelling Assumptions'!H$107 -> 1189.476 | I48: =$C48*I$35*'Modelling Assumptions'!I$107 -> 1189.476
A49: APA Material Costs | B49: =B39 -> 0 | C49: =B49*$C$26 -> 0 | D49: =C49*SUMPRODUCT(MaterialsAdjustmentFactor,E$35:I$35) -> 0 | E49: =$C49*E$35*'Modelling Assumptions'!E$108 -> 0 | F49: =$C49*F$35*'Modelling Assumptions'!F$108 -> 0 | G49: =$C49*G$35*'Modelling Assumptions'!G$108 -> 0 | H49: =$C49*H$35*'Modelling Assumptions'!H$108 -> 0 | I49: =$C49*I$35*'Modelling Assumptions'!I$108 -> 0
A50: Contractor Labour | B50: =B44 -> 42.70833333 | C50: =B50*$C$26 -> 6150 | D50: =C50*SUMPRODUCT(LabourAdjustmentFactor,E$35:I$35) -> 30750 | E50: =$C50*E$35*'Modelling Assumptions'!E$107 -> 6150 | F50: =$C50*F$35*'Modelling Assumptions'!F$107 -> 6150 | G50: =$C50*G$35*'Modelling Assumptions'!G$107 -> 6150 | H50: =$C50*H$35*'Modelling Assumptions'!H$107 -> 6150 | I50: =$C50*I$35*'Modelling Assumptions'!I$107 -> 6150
A51: Contractor Materials | B51: =B45 -> 0 | C51: =B51*$C$26 -> 0 | D51: =C51*SUMPRODUCT(MaterialsAdjustmentFactor,E$35:I$35) -> 0 | E51: =$C51*E$35*'Modelling Assumptions'!E$108 -> 0 | F51: =$C51*F$35*'Modelling Assumptions'!F$108 -> 0 | G51: =$C51*G$35*'Modelling Assumptions'!G$108 -> 0 | H51: =$C51*H$35*'Modelling Assumptions'!H$108 -> 0 | I51: =$C51*I$35*'Modelling Assumptions'!I$108 -> 0
A53: Replacement Costs
A54: Hours to replace each capacitor | B54: 5 | C54: hours (two staff for 2.5 hours)
A55: Assumed failure rate | B55: 0.005 | C55: While 5 capacitors were purchased in 2013 the modelling assumes this failure rate
A56: Total Number of Capacitors | B56: 702
A57: Average number replaced pa | B57: =B55*B56 -> 3.51 | C57: This is figure is conservative (given 5 purchased in 12 months)
A58: Total hours to replace failed capacitors | B58: =B54*2 -> 10 | C58: hours per year
A59: Average hours to replace caps | B59: =B58/C26 -> 0.06944444444 | C59: hours per year per capacitor
A61: CAPITALISED COST OF CAPACITORS | C61: Will only be included if Modelling Assumptions CAPITALISE = FALSE
A62: Average cost (2013) | B62: =31700/5 -> 6340 | C62: Purchase of 5 capacitors was placed in August 2013 totalling $31700 (From Operation Manager 4/4/14)
A63: Average cost in Reference Year (2014) | B63: =B62*'Modelling Assumptions'!$E$108 -> 6340
A64: Average replacement cost | B64: =B63*B57/C26 -> 154.5375 | C64: Per "Capacitor shown on schematic" per year
A65: Modelled replacement cost | B65: =IF(CapitaliseThisItem= TRUE,0,B63*B57/C26) -> 0 | C65: If $0 then check CAPITALIZE on the Modelling Assumptions Sheet
E66: =Summary!C4 -> 2015/16 | F66: =Summary!D4 -> 2016/17 | G66: =Summary!E4 -> 2017/18 | H66: =Summary!F4 -> 2018/19 | I66: =Summary!G4 -> 2019/20
A67: QLD-ET-WI-PM036-0010 | B67: Every 3 year(s) | E67: 0 | F67: 0 | G67: 1 | H67: 0 | I67: 0
A68: APA Costs
A69: APA Maintenance Staff (Hrs) | B69: 0 | C69: Hours per capacitor (no additional time for APA staff)
A70: APA Supervision (Hrs) | B70: =1/C26 -> 0.006944444444 | C70: Must still process the WO generated by Maintenance Connection (Time PER CAPACITOR)
A71: APA Material Costs | B71: 0
A73: Contractor Costs
A74: Contractor Labour (Hrs) | B74: 2 | C74: Hours per capacitor (requires measurements to be made)
A75: Contractor Hourly Rate | B75: =ElectricalContractorHourlyRate -> 75 | C75: Thearle/SAE
A76: Contractor Labour | B76: =B74*B75 -> 150
A77: Contractor Materials | B77: 0
B79: Reference Year | C79: Total in Reference Year (per maintenance cycle) | D79: Total in AER Period | E79: =Summary!C4 -> 2015/16 | F79: =Summary!D4 -> 2016/17 | G79: =Summary!E4 -> 2017/18 | H79: =Summary!F4 -> 2018/19 | I79: =Summary!G4 -> 2019/20
A80: APA Staff Costs | B80: =B69*HourlyRateAPAMaintenanceStaff+B70*HourlyRateAPAOMSupervisor -> 0.88125 | C80: =B80*$C$26 -> 126.9 | D80: =C80*SUMPRODUCT(LabourAdjustmentFactor,E$67:I$67) -> 126.9 | E80: =$C80*E$67*'Modelling Assumptions'!E$107 -> 0 | F80: =$C80*F$67*'Modelling Assumptions'!F$107 -> 0 | G80: =$C80*G$67*'Modelling Assumptions'!G$107 -> 126.9 | H80: =$C80*H$67*'Modelling Assumptions'!H$107 -> 0 | I80: =$C80*I$67*'Modelling Assumptions'!I$107 -> 0
A81: APA Material Costs | B81: =B71 -> 0 | C81: =B81*$C$26 -> 0 | D81: =C81*SUMPRODUCT(MaterialsAdjustmentFactor,E$67:I$67) -> 0 | E81: =$C81*E$67*'Modelling Assumptions'!E$108 -> 0 | F81: =$C81*F$67*'Modelling Assumptions'!F$108 -> 0 | G81: =$C81*G$67*'Modelling Assumptions'!G$108 -> 0 | H81: =$C81*H$67*'Modelling Assumptions'!H$108 -> 0 | I81: =$C81*I$67*'Modelling Assumptions'!I$108 -> 0
A82: Contractor Labour | B82: =B76 -> 150 | C82: =B82*$C$26 -> 21600 | D82: =C82*SUMPRODUCT(LabourAdjustmentFactor,E$67:I$67) -> 21600 | E82: =$C82*E$67*'Modelling Assumptions'!E$107 -> 0 | F82: =$C82*F$67*'Modelling Assumptions'!F$107 -> 0 | G82: =$C82*G$67*'Modelling Assumptions'!G$107 -> 21600 | H82: =$C82*H$67*'Modelling Assumptions'!H$107 -> 0 | I82: =$C82*I$67*'Modelling Assumptions'!I$107 -> 0
A83: Contractor Materials | B83: =B77 -> 0 | C83: =B83*$C$26 -> 0 | D83: =C83*SUMPRODUCT(MaterialsAdjustmentFactor,E$67:I$67) -> 0 | E83: =$C83*E$67*'Modelling Assumptions'!E$108 -> 0 | F83: =$C83*F$67*'Modelling Assumptions'!F$108 -> 0 | G83: =$C83*G$67*'Modelling Assumptions'!G$108 -> 0 | H83: =$C83*H$67*'Modelling Assumptions'!H$108 -> 0 | I83: =$C83*I$67*'Modelling Assumptions'!I$108 -> 0
A89: Scheduled Maintenance
A90: PM ID | B90: PM Name | C90: Parent Location
A91: QLD-ET-WI-PM036-0010 | B91: Every 3 year(s)
A92: QLD-ET-WI-PM036-0010-BLA | B92: OIL FILLED CAPACITOR MAINTENANCE - 3YR | C92: Bungalora | D92: Bungalora - 110kV Overhead Bus
A93: QLD-ET-WI-PM036-0010-BLA1 | B93: OIL FILLED CAPACITOR MAINTENANCE - 3YR | C93: Bungalora | D93: Bungalora - System 1
A94: QLD-ET-WI-PM036-0010-BLA2 | B94: OIL FILLED CAPACITOR MAINTENANCE - 3YR | C94: Bungalora | D94: Bungalora - System 2
A95: QLD-ET-WI-PM036-0010-BLA3 | B95: OIL FILLED CAPACITOR MAINTENANCE - 3YR | C95: Bungalora | D95: Bungalora - System 3
A96: QLD-ET-WI-PM036-0010-MUL | B96: OIL FILLED CAPACITOR MAINTENANCE - 3YR | C96: Mullumbimby | D96: Mullumbimby - 132kV Overhead Bus
A97: QLD-ET-WI-PM036-0010-MUL1 | B97: OIL FILLED CAPACITOR MAINTENANCE - 3YR | C97: Mullumbimby | D97: Mullumbimby - System 1
A98: QLD-ET-WI-PM036-0010-MUL2 | B98: OIL FILLED CAPACITOR MAINTENANCE - 3YR | C98: Mullumbimby | D98: Mullumbimby - System 2
A99: QLD-ET-WI-PM036-0010-MUL3 | B99: OIL FILLED CAPACITOR MAINTENANCE - 3YR | C99: Mullumbimby | D99: Mullumbimby - System 3

Sheet 0011
A1: Summary | B1: INSPECT SPILL KITS
A2: Return to Index | D2: Total in AER Period | E2: =Summary!C4 -> 2015/16 | F2: =Summary!D4 -> 2016/17 | G2: =Summary!E4 -> 2017/18 | H2: =Summary!F4 -> 2018/19 | I2: =Summary!G4 -> 2019/20
A3: APA Staff Costs | D3: =D35 -> 11894.76 | E3: 2378.952 | F3: 2378.952 | G3: 2378.952 | H3: 2378.952 | I3: 2378.952
A4: APA Material Costs | D4: 0 | E4: 0 | F4: 0 | G4: 0 | H4: 0 | I4: 0
A5: Contractor Labour | D5: 2000 | E5: 400 | F5: 400 | G5: 400 | H5: 400 | I5: 400
A6: Contractor Materials | D6: 0 | E6: 0 | F6: 0 | G6: 0 | H6: 0 | I6: 0
A9: Scheduled Outage Required | B9: No
A10: Work Instruction | B10: not sighted
A13: Spill Kits
B14: Spill Kits | C14: 2
A15: Number of Components to be serviced | C15: =C14 -> 2
A17: Discussion
A18: Anecdotally a contractor inspects the spill kits every 6 months
A19: This worksheet does not make a material contribution to the total O&M Direct Cost
E21: =Summary!C4 -> 2015/16 | F21: =Summary!D4 -> 2016/17 | G21: =Summary!E4 -> 2017/18 | H21: =Summary!F4 -> 2018/19 | I21: =Summary!G4 -> 2019/20
A22: QLD-ET-WI-PM006-0011 | B22: Every 6 month(s) | E22: 2 | F22: 2 | G22: 2 | H22: 2 | I22: 2
A23: APA Costs
A24: APA Maintenance Staff (Hrs) | B24: =APATechnicianHours/C15 -> 0.5 | C24: Hours per spill kit
A25: APA Supervision (Hrs) | B25: =APASupervisorHours/C15 -> 4.291666667 | C25: Hours per spill kit
A26: APA Material Costs | B26: 0
A28: Contractor Costs
A29: Contractor Labour (Hrs)
A30: Contractor Hourly Rate
A31: Contractor Labour | B31: 100 | C31: Anecdotal figure suggested during discussions with O&M Supervisor
A32: Contractor Materials | B32: 0
B34: Reference Year | C34: Total in Reference Year (per maintenance cycle) | D34: Total in AER Period | E34: =Summary!C4 -> 2015/16 | F34: =Summary!D4 -> 2016/17 | G34: =Summary!E4 -> 2017/18 | H34: =Summary!F4 -> 2018/19 | I34: =Summary!G4 -> 2019/20
A35: APA Staff Costs | B35: =B24*HourlyRateAPAMaintenanceStaff+B25*HourlyRateAPAOMSupervisor -> 594.738 | C35: =B35*$C$15 -> 1189.476 | D35: =C35*SUMPRODUCT(LabourAdjustmentFactor,E$22:I$22) -> 11894.76 | E35: =$C35*E$22*'Modelling Assumptions'!E$107 -> 2378.952 | F35: =$C35*F$22*'Modelling Assumptions'!F$107 -> 2378.952 | G35: =$C35*G$22*'Modelling Assumptions'!G$107 -> 2378.952 | H35: =$C35*H$22*'Modelling Assumptions'!H$107 -> 2378.952 | I35: =$C35*I$22*'Modelling Assumptions'!I$107 -> 2378.952
A36: APA Material Costs | B36: =B26 -> 0 | C36: =B36*$C$15 -> 0 | D36: =C36*SUMPRODUCT(MaterialsAdjustmentFactor,E$22:I$22) -> 0 | E36: =$C36*E$22*'Modelling Assumptions'!E$108 -> 0 | F36: =$C36*F$22*'Modelling Assumptions'!F$108 -> 0 | G36: =$C36*G$22*'Modelling Assumptions'!G$108 -> 0 | H36: =$C36*H$22*'Modelling Assumptions'!H$108 -> 0 | I36: =$C36*I$22*'Modelling Assumptions'!I$108 -> 0
A37: Contractor Labour | B37: =B31 -> 100 | C37: =B37*$C$15 -> 200 | D37: =C37*SUMPRODUCT(LabourAdjustmentFactor,E$22:I$22) -> 2000 | E37: =$C37*E$22*'Modelling Assumptions'!E$107 -> 400 | F37: =$C37*F$22*'Modelling Assumptions'!F$107 -> 400 | G37: =$C37*G$22*'Modelling Assumptions'!G$107 -> 400 | H37: =$C37*H$22*'Modelling Assumptions'!H$107 -> 400 | I37: =$C37*I$22*'Modelling Assumptions'!I$107 -> 400
A38: Contractor Materials | B38: =B32 -> 0 | C38: =B38*$C$15 -> 0 | D38: =C38*SUMPRODUCT(MaterialsAdjustmentFactor,E$22:I$22) -> 0 | E38: =$C38*E$22*'Modelling Assumptions'!E$108 -> 0 | F38: =$C38*F$22*'Modelling Assumptions'!F$108 -> 0 | G38: =$C38*G$22*'Modelling Assumptions'!G$108 -> 0 | H38: =$C38*H$22*'Modelling Assumptions'!H$108 -> 0 | I38: =$C38*I$22*'Modelling Assumptions'!I$108 -> 0
A42: Scheduled Maintenance
A43: PM ID | B43: PM Name | C43: Parent Location
A44: QLD-ET-WI-PM006-0011 | B44: Every 6 month(s)
A45: QLD-ET-WI-PM006-0011 | B45: INSPECT SPILL KITS | C45: Bungalora System 1 - Small Plant & Safety Equipment | D45: Bungalora System 1 - Spill Kits
A46: QLD-ET-WI-PM006-0011 | B46: INSPECT SPILL KITS | C46: Mullumbimby System 1 - Small Plant & Safety Equipment | D46: Mullumbimby System 1 - Spill Kits
A52: Work Order # | B52: INSPECT SPILL KITS
A53: QLD-171850 | B53: EDWARDS2 Luke | C53: PM | D53: 2013-09-19T10:00:00 | E53: checked by luke. 5.8.13
A54: QLD-171851 | B54: COOMBER Stuart | C54: PM | D54: 2013-10-18T11:45:00 | E54: sc checked 16/10/13

Sheet 0013
A1: Summary | B1: FUNCTIONAL TEST OF HIGH VOLTAGE TEST EQUIPMENT
A2: Return to Index | D2: Total in AER Period | E2: =Summary!C4 -> 2015/16 | F2: =Summary!D4 -> 2016/17 | G2: =Summary!E4 -> 2017/18 | H2: =Summary!F4 -> 2018/19 | I2: =Summary!G4 -> 2019/20
A3: APA Staff Costs | D3: =D37 -> 3775.275 | E3: 755.055 | F3: 755.055 | G3: 755.055 | H3: 755.055 | I3: 755.055
A4: APA Material Costs | D4: 0 | E4: 0 | F4: 0 | G4: 0 | H4: 0 | I4: 0
A5: Contractor Labour | D5: 0 | E5: 0 | F5: 0 | G5: 0 | H5: 0 | I5: 0
A6: Contractor Materials | D6: 0 | E6: 0 | F6: 0 | G6: 0 | H6: 0 | I6: 0
A9: Scheduled Outage Required | B9: No
A10: Work Instruction | B10: not sighted
A13: Functional Test of High Voltage Test Equipment
B14: Per set of test equipment | C14: 1 | D14: only one set
A15: Number of Components to be serviced | C15: =C14 -> 1
A17: Discussion
A18: This is a functional test only - Calibration of the equipment is captured under Onsite Test Equipment
A19: Thumper | B19: Used to locate faults in the cable (after a cable fault)
A20: Hi-Pot | B20: Used to test the cable after a cable repair
A21: This worksheet does not make a material contribution to the total O&M Direct Cost
E23: =Summary!C4 -> 2015/16 | F23: =Summary!D4 -> 2016/17 | G23: =Summary!E4 -> 2017/18 | H23: =Summary!F4 -> 2018/19 | I23: =Summary!G4 -> 2019/20
A24: QLD-ET-WI-PM006-0013 | B24: Every 6 month(s) | E24: 2 | F24: 2 | G24: 2 | H24: 2 | I24: 2
A25: APA Costs
A26: APA Maintenance Staff (Hrs) | B26: 2.5 | C26: Get the thumper and hi-pot test equipment out of storage and test they are working
A27: APA Supervision (Hrs) | B27: 1 | C27: Hours per site (raise and close WO, check that log has been updated)
A28: APA Material Costs | B28: 0
A30: Contractor Costs
A31: Contractor Labour (Hrs)
A32: Contractor Hourly Rate
A33: Contractor Labour | B33: 0
A34: Contractor Materials | B34: 0
B36: Reference Year | C36: Total in Reference Year | D36: Total in AER Period | E36: =Summary!C4 -> 2015/16 | F36: =Summary!D4 -> 2016/17 | G36: =Summary!E4 -> 2017/18 | H36: =Summary!F4 -> 2018/19 | I36: =Summary!G4 -> 2019/20
A37: APA Staff Costs | B37: =B26*HourlyRateAPAMaintenanceStaff+B27*HourlyRateAPAOMSupervisor -> 377.5275 | C37: =B37*$C$15 -> 377.5275 | D37: =C37*SUMPRODUCT(LabourAdjustmentFactor,E$24:I$24) -> 3775.275 | E37: =$C37*E$24*'Modelling Assumptions'!E$107 -> 755.055 | F37: =$C37*F$24*'Modelling Assumptions'!F$107 -> 755.055 | G37: =$C37*G$24*'Modelling Assumptions'!G$107 -> 755.055 | H37: =$C37*H$24*'Modelling Assumptions'!H$107 -> 755.055 | I37: =$C37*I$24*'Modelling Assumptions'!I$107 -> 755.055
A38: APA Material Costs | B38: =B28 -> 0 | C38: =B38*$C$15 -> 0 | D38: =C38*SUMPRODUCT(MaterialsAdjustmentFactor,E$24:I$24) -> 0 | E38: =$C38*E$24*'Modelling Assumptions'!E$108 -> 0 | F38: =$C38*F$24*'Modelling Assumptions'!F$108 -> 0 | G38: =$C38*G$24*'Modelling Assumptions'!G$108 -> 0 | H38: =$C38*H$24*'Modelling Assumptions'!H$108 -> 0 | I38: =$C38*I$24*'Modelling Assumptions'!I$108 -> 0
A39: Contractor Labour | B39: =B33 -> 0 | C39: =B39*$C$15 -> 0 | D39: =C39*SUMPRODUCT(LabourAdjustmentFactor,E$24:I$24) -> 0 | E39: =$C39*E$24*'Modelling Assumptions'!E$107 -> 0 | F39: =$C39*F$24*'Modelling Assumptions'!F$107 -> 0 | G39: =$C39*G$24*'Modelling Assumptions'!G$107 -> 0 | H39: =$C39*H$24*'Modelling Assumptions'!H$107 -> 0 | I39: =$C39*I$24*'Modelling Assumptions'!I$107 -> 0
A40: Contractor Materials | B40: =B34 -> 0 | C40: =B40*$C$15 -> 0 | D40: =C40*SUMPRODUCT(MaterialsAdjustmentFactor,E$24:I$24) -> 0 | E40: =$C40*E$24*'Modelling Assumptions'!E$108 -> 0 | F40: =$C40*F$24*'Modelling Assumptions'!F$108 -> 0 | G40: =$C40*G$24*'Modelling Assumptions'!G$108 -> 0 | H40: =$C40*H$24*'Modelling Assumptions'!H$108 -> 0 | I40: =$C40*I$24*'Modelling Assumptions'!I$108 -> 0
A44: Scheduled Maintenance
A45: PM ID | B45: PM Name | C45: Parent Location
A46: QLD-ET-WI-PM006-0013 | B46: FUNCTIONAL TEST OF HIGH VOLTAGE TEST EQUIPMENT | C46: DirectLink | D46: DirectLink Easement

Sheet 0014
A1: Summary | B1: HALL EFFECT CURRENT TRANSDUCER MAINTENANCE
A2: Return to Index | D2: Total in AER Period | E2: =Summary!C4 -> 2015/16 | F2: =Summary!D4 -> 2016/17 | G2: =Summary!E4 -> 2017/18 | H2: =Summary!F4 -> 2018/19 | I2: =Summary!G4 -> 2019/20
A3: APA Staff Costs | D3: =D36 -> 5947.38 | E3: 1189.476 | F3: 1189.476 | G3: 1189.476 | H3: 1189.476 | I3: 1189.476
A4: APA Material Costs | D4: =D37 -> 0 | E4: 0 | F4: 0 | G4: 0 | H4: 0 | I4: 0
A5: Contractor Labour | D5: =D38 -> 5625 | E5: 1125 | F5: 1125 | G5: 1125 | H5: 1125 | I5: 1125
A6: Contractor Materials | D6: =D39 -> 0 | E6: 0 | F6: 0 | G6: 0 | H6: 0 | I6: 0
A9: Scheduled Outage Required | B9: Yes
A10: Work Instruction | B10: DL-WI-31
A13: Hall Effect Current Transformers
B14: WPx.T11 | C14: 12
B15: WPx.T12 | C15: 12
B16: WA.Z1.T1 | C16: 18
B17: WA.Z1.T2 | C17: 18
A18: Number of Components to be serviced | C18: =SUM(C14:C17) -> 60
A20: Discussion
A21: This worksheet does not make a material contribution to the total O&M Direct Cost
E22: =Summary!C4 -> 2015/16 | F22: =Summary!D4 -> 2016/17 | G22: =Summary!E4 -> 2017/18 | H22: =Summary!F4 -> 2018/19 | I22: =Summary!G4 -> 2019/20
A23: QLD-ET-WI-PM012-0014 | B23: Every 1 year(s) | E23: 1 | F23: 1 | G23: 1 | H23: 1 | I23: 1
A24: APA Costs
A25: APA Maintenance Staff (Hrs) | B25: =APATechnicianHours/C18 -> 0.01666666667 | C25: Hours per CT
A26: APA Supervision (Hrs) | B26: =APASupervisorHours/C18 -> 0.1430555556 | C26: Hours per CT
A27: APA Material Costs | B27: 0
A29: Contractor Costs
A30: Contractor Labour (Hrs) | B30: 0.25 | C30: Hours per CT
A31: Contractor Hourly Rate | B31: =ElectricalContractorHourlyRate -> 75
A32: Contractor Labour | B32: =B30*B31 -> 18.75
A33: Contractor Materials | B33: 0
B35: Reference Year | C35: Total in Reference Year | D35: Total in AER Period | E35: =Summary!C4 -> 2015/16 | F35: =Summary!D4 -> 2016/17 | G35: =Summary!E4 -> 2017/18 | H35: =Summary!F4 -> 2018/19 | I35: =Summary!G4 -> 2019/20
A36: APA Staff Costs | B36: =B25*HourlyRateAPAMaintenanceStaff+B26*HourlyRateAPAOMSupervisor -> 19.8246 | C36: =B36*$C$18 -> 1189.476 | D36: =C36*SUMPRODUCT(LabourAdjustmentFactor,E$23:I$23) -> 5947.38 | E36: =$C36*E$23*'Modelling Assumptions'!E$107 -> 1189.476 | F36: =$C36*F$23*'Modelling Assumptions'!F$107 -> 1189.476 | G36: =$C36*G$23*'Modelling Assumptions'!G$107 -> 1189.476 | H36: =$C36*H$23*'Modelling Assumptions'!H$107 -> 1189.476 | I36: =$C36*I$23*'Modelling Assumptions'!I$107 -> 1189.476
A37: APA Material Costs | B37: =B27 -> 0 | C37: =B37*$C$18 -> 0 | D37: =C37*SUMPRODUCT(MaterialsAdjustmentFactor,E$23:I$23) -> 0 | E37: =$C37*E$23*'Modelling Assumptions'!E$108 -> 0 | F37: =$C37*F$23*'Modelling Assumptions'!F$108 -> 0 | G37: =$C37*G$23*'Modelling Assumptions'!G$108 -> 0 | H37: =$C37*H$23*'Modelling Assumptions'!H$108 -> 0 | I37: =$C37*I$23*'Modelling Assumptions'!I$108 -> 0
A38: Contractor Labour | B38: =B32 -> 18.75 | C38: =B38*$C$18 -> 1125 | D38: =C38*SUMPRODUCT(LabourAdjustmentFactor,E$23:I$23) -> 5625 | E38: =$C38*E$23*'Modelling Assumptions'!E$107 -> 1125 | F38: =$C38*F$23*'Modelling Assumptions'!F$107 -> 1125 | G38: =$C38*G$23*'Modelling Assumptions'!G$107 -> 1125 | H38: =$C38*H$23*'Modelling Assumptions'!H$107 -> 1125 | I38: =$C38*I$23*'Modelling Assumptions'!I$107 -> 1125
A39: Contractor Materials | B39: =B33 -> 0 | C39: =B39*$C$18 -> 0 | D39: =C39*SUMPRODUCT(MaterialsAdjustmentFactor,E$23:I$23) -> 0 | E39: =$C39*E$23*'Modelling Assumptions'!E$108 -> 0 | F39: =$C39*F$23*'Modelling Assumptions'!F$108 -> 0 | G39: =$C39*G$23*'Modelling Assumptions'!G$108 -> 0 | H39: =$C39*H$23*'Modelling Assumptions'!H$108 -> 0 | I39: =$C39*I$23*'Modelling Assumptions'!I$108 -> 0
A43: Scheduled Maintenance
A44: PM ID | B44: PM Name | C44: Parent Location
A45: QLD-ET-WI-PM012-0014-BLA1 | B45: HALL EFFECT CURRENT TRANSDUCER MAINTENANCE | C45: Bungalora
A46: QLD-ET-WI-PM012-0014-BLA2 | B46: HALL EFFECT CURRENT TRANSDUCER MAINTENANCE | C46: Bungalora
A47: QLD-ET-WI-PM012-0014-BLA3 | B47: HALL EFFECT CURRENT TRANSDUCER MAINTENANCE | C47: Bungalora
A48: QLD-ET-WI-PM012-0014-MUL1 | B48: HALL EFFECT CURRENT TRANSDUCER MAINTENANCE | C48: Mullumbimby | D48: Asset Name
A49: QLD-ET-WI-PM012-0014-MUL2 | B49: HALL EFFECT CURRENT TRANSDUCER MAINTENANCE | C49: Mullumbimby | D49: Bungalora - System 1
A50: QLD-ET-WI-PM012-0014-MUL3 | B50: HALL EFFECT CURRENT TRANSDUCER MAINTENANCE | C50: Mullumbimby | D50: Bungalora - System 2
D51: Bungalora - System 3
D52: Mullumbimby - System 1
D53: Mullumbimby - System 2
D54: Mullumbimby - System 3
A56: Work Order # | B56: HALL EFFECT CURRENT TRANSDUCER MAINTENANCE
A57: QLD-166905 | B57: COOMBER Stuart | C57: PM
A58: QLD-166906 | B58: MCALLISTER Jack (no PIO) | C58: PM
A59: QLD-166907 | B59: EDWARDS2 Luke | C59: PM
A60: QLD-166908 | B60: COOMBER Stuart | C60: PM
A61: QLD-166909 | B61: Thearle Electrical | C61: PM | D61: 2013-07-19T13:51:00 | E61: not in service
A62: QLD-166910 | B62: Thearle Electrical | C62: PM | D62: 2013-09-16T13:56:00 | E62: Done, entered sc,
D63: 2013-09-04T13:42:00
D64: 2013-07-19T13:52:00 | E64: not in service
D65: 2013-09-16T13:49:00 | E65: done annaul maintenance
D66: 2013-09-16T13:49:00 | E66: done annaul maintenance

Sheet 0016
A1: Summary | B1: ROGOWSKI CURRENT TRANSDUCER MAINTENANCE
A2: Return to Index | D2: Total in AER Period | E2: =Summary!C4 -> 2015/16 | F2: =Summary!D4 -> 2016/17 | G2: =Summary!E4 -> 2017/18 | H2: =Summary!F4 -> 2018/19 | I2: =Summary!G4 -> 2019/20
A3: APA Staff Costs | D3: =D36 -> 5947.38 | E3: 1189.476 | F3: 1189.476 | G3: 1189.476 | H3: 1189.476 | I3: 1189.476
A4: APA Material Costs | D4: =D37 -> 0 | E4: 0 | F4: 0 | G4: 0 | H4: 0 | I4: 0
A5: Contractor Labour | D5: =D38 -> 10125 | E5: 2025 | F5: 2025 | G5: 2025 | H5: 2025 | I5: 2025
A6: Contractor Materials | D6: =D39 -> 0 | E6: 0 | F6: 0 | G6: 0 | H6: 0 | I6: 0
A9: Scheduled Outage Required | B9: Yes
A10: Work Instruction | B10: DL-WI-28
A14: Rogowski Current Transformers
B15: U.Vx.T1 | C15: 18
B16: U.Vx.T2 | C16: 18
B17: U.Vx.T3 | C17: 18
A18: Number of Components to be serviced | C18: =SUM(C15:C17) -> 54
A20: Discussion
A21: This worksheet does not make a material contribution to the total O&M Direct Cost
E22: =Summary!C4 -> 2015/16 | F22: =Summary!D4 -> 2016/17 | G22: =Summary!E4 -> 2017/18 | H22: =Summary!F4 -> 2018/19 | I22: =Summary!G4 -> 2019/20
A23: QLD-ET-WI-PM012-0016 | B23: Every 1 year(s) | E23: 1 | F23: 1 | G23: 1 | H23: 1 | I23: 1
A24: APA Costs
A25: APA Maintenance Staff (Hrs) | B25: =APATechnicianHours/C18 -> 0.01851851852 | C25: Hours per CT
A26: APA Supervision (Hrs) | B26: =APASupervisorHours/C18 -> 0.1589506173 | C26: Hours per CT
A27: APA Material Costs | B27: 0
A29: Contractor Costs
A30: Contractor Labour (Hrs) | B30: 0.5 | C30: Hours per CT (this is half the value detailed on the ABB recommended maintenance)
A31: Contractor Hourly Rate | B31: 75 | C31: Thearle/SAE
A32: Contractor Labour | B32: =B30*B31 -> 37.5
A33: Contractor Materials | B33: 0
B35: Reference Year | C35: Total in Reference Year | D35: Total in AER Period | E35: =Summary!C4 -> 2015/16 | F35: =Summary!D4 -> 2016/17 | G35: =Summary!E4 -> 2017/18 | H35: =Summary!F4 -> 2018/19 | I35: =Summary!G4 -> 2019/20
A36: APA Staff Costs | B36: =B25*HourlyRateAPAMaintenanceStaff+B26*HourlyRateAPAOMSupervisor -> 22.02733333 | C36: =B36*$C$18 -> 1189.476 | D36: =C36*SUMPRODUCT(LabourAdjustmentFactor,E$23:I$23) -> 5947.38 | E36: =$C36*E$23*'Modelling Assumptions'!E$107 -> 1189.476 | F36: =$C36*F$23*'Modelling Assumptions'!F$107 -> 1189.476 | G36: =$C36*G$23*'Modelling Assumptions'!G$107 -> 1189.476 | H36: =$C36*H$23*'Modelling Assumptions'!H$107 -> 1189.476 | I36: =$C36*I$23*'Modelling Assumptions'!I$107 -> 1189.476
A37: APA Material Costs | B37: =B27 -> 0 | C37: =B37*$C$18 -> 0 | D37: =C37*SUMPRODUCT(MaterialsAdjustmentFactor,E$23:I$23) -> 0 | E37: =$C37*E$23*'Modelling Assumptions'!E$108 -> 0 | F37: =$C37*F$23*'Modelling Assumptions'!F$108 -> 0 | G37: =$C37*G$23*'Modelling Assumptions'!G$108 -> 0 | H37: =$C37*H$23*'Modelling Assumptions'!H$108 -> 0 | I37: =$C37*I$23*'Modelling Assumptions'!I$108 -> 0
A38: Contractor Labour | B38: =B32 -> 37.5 | C38: 2025 | D38: =C38*SUMPRODUCT(LabourAdjustmentFactor,E$23:I$23) -> 10125 | E38: =$C38*E$23*'Modelling Assumptions'!E$107 -> 2025 | F38: =$C38*F$23*'Modelling Assumptions'!F$107 -> 2025 | G38: =$C38*G$23*'Modelling Assumptions'!G$107 -> 2025 | H38: =$C38*H$23*'Modelling Assumptions'!H$107 -> 2025 | I38: =$C38*I$23*'Modelling Assumptions'!I$107 -> 2025
A39: Contractor Materials | B39: =B33 -> 0 | C39: 0 | D39: =C39*SUMPRODUCT(MaterialsAdjustmentFactor,E$23:I$23) -> 0 | E39: =$C39*E$23*'Modelling Assumptions'!E$108 -> 0 | F39: =$C39*F$23*'Modelling Assumptions'!F$108 -> 0 | G39: =$C39*G$23*'Modelling Assumptions'!G$108 -> 0 | H39: =$C39*H$23*'Modelling Assumptions'!H$108 -> 0 | I39: =$C39*I$23*'Modelling Assumptions'!I$108 -> 0
A43: Scheduled Maintenance
A44: PM ID | B44: PM Name | C44: Parent Location
A45: QLD-ET-WI-PM012-0016 | B45: ROGOWSKI CURRENT TRANSDUCER MAINTENANCE | C45: Bungalora - System 1 | D45: Bungalora System 1 - Inverter / Rectifier Area
A46: QLD-ET-WI-PM012-0016 | B46: ROGOWSKI CURRENT TRANSDUCER MAINTENANCE | C46: Bungalora - System 2 | D46: Bungalora System 2 - Inverter / Rectifier Area
A47: QLD-ET-WI-PM012-0016 | B47: ROGOWSKI CURRENT TRANSDUCER MAINTENANCE | C47: Bungalora - System 3 | D47: Bungalora System 3 - Inverter / Rectifier Area
A48: QLD-ET-WI-PM012-0016 | B48: ROGOWSKI CURRENT TRANSDUCER MAINTENANCE | C48: Mullumbimby - System 1 | D48: Mullumbimby System 1 - Inverter / Rectifier Area
A49: QLD-ET-WI-PM012-0016 | B49: ROGOWSKI CURRENT TRANSDUCER MAINTENANCE | C49: Mullumbimby - System 2 | D49: Mullumbimby System 2 - Inverter / Rectifier Area
A50: QLD-ET-WI-PM012-0016 | B50: ROGOWSKI CURRENT TRANSDUCER MAINTENANCE | C50: Mullumbimby - System 3 | D50: Mullumbimby System 3 - Inverter / Rectifier Area
A56: Work Order # | B56: ROGOWSKI CURRENT TRANSDUCER MAINTENANCE
A57: QLD-164876 | B57: COOMBER Stuart | C57: PM | D57: 2013-09-04T13:33:00 | E57: out of service
A58: QLD-164879 | B58: COOMBER Stuart | C58: PM | D58: 2013-09-18T13:00:00 | E58: decommisioned
A59: QLD-164880 | B59: HARRIS James | C59: PM | D59: 2013-09-16T13:44:00 | E59: Work complete during annual, enetred by sc
A60: QLD-164881 | B60: HARRIS James | C60: PM | D60: 2013-09-16T13:44:00 | E60: Work complete during annual, enetred by sc

Sheet 0017
A1: Summary | B1: VEGETATION MANAGEMENT
A2: Return to Index | D2: Total in AER Period | E2: =Summary!C4 -> 2015/16 | F2: =Summary!D4 -> 2016/17 | G2: =Summary!E4 -> 2017/18 | H2: =Summary!F4 -> 2018/19 | I2: =Summary!G4 -> 2019/20
A3: APA Staff Costs | D3: =D35 -> 31674.24 | E3: 6334.848 | F3: 6334.848 | G3: 6334.848 | H3: 6334.848 | I3: 6334.848
A4: APA Material Costs | D4: 0 | E4: 0 | F4: 0 | G4: 0 | H4: 0 | I4: 0
A5: Contractor Labour | D5: 391928.9143 | E5: 78385.78286 | F5: 78385.78286 | G5: 78385.78286 | H5: 78385.78286 | I5: 78385.78286
A6: Contractor Materials | D6: 0 | E6: 0 | F6: 0 | G6: 0 | H6: 0 | I6: 0
A9: Scheduled Outage Required | B9: No
A10: Work Instruction | B10: DL-OP-28
A13: Vegetation Management
B14: Cable Route | C14: 1 | D14: Once per month
A15: Number of Components to be serviced | C15: =C14 -> 1
A17: Discussion
A18: Was unable to separate Vegetation Management from the Bryon Bay Tree company invoices
A19: =CONCATENATE("Have therefore assigned ",100*(1-VegetationManagementYardPercentage),"% of the total cost from Byron Bay Trees (the contractor) to Vegetation management along the cable route") -> Have therefore assigned 90% of the total cost from Byron Bay Trees (the contractor) to Vegetation management along the cable route
A20: Refer to sheet Modelling Assumptions to change the percentage
E21: =Summary!C4 -> 2015/16 | F21: =Summary!D4 -> 2016/17 | G21: =Summary!E4 -> 2017/18 | H21: =Summary!F4 -> 2018/19 | I21: =Summary!G4 -> 2019/20
A22: QLD-ET-WI-PM001-0017 | B22: Every 1 month(s) | E22: 12 | F22: 12 | G22: 12 | H22: 12 | I22: 12
A23: APA Costs
A24: APA Maintenance Staff (Hrs) | B24: 4 | C24: Hours per month (Technicians meet with contractor regularly to explain what is needed)
A25: APA Supervision (Hrs) | B25: =1/C15 -> 1 | C25: Hours per month (entering invoices and cataloguing provided photographs)
A26: APA Material Costs | B26: 0
A28: Contractor Costs
A29: Contractor Labour (Hrs)
A30: Contractor Hourly Rate | C30: Contractor Byron Bay Trees
A31: Contractor Labour | B31: =VegetationManagement*(1-VegetationManagementYardPercentage)/12 -> 6532.148571 | C31: This value comes from the Modelling Assumption worksheet
A32: Contractor Materials | B32: 0
B34: Reference Year | C34: Total in Reference Year (per maintenance cycle) | D34: Total in AER Period | E34: =Summary!C4 -> 2015/16 | F34: =Summary!D4 -> 2016/17 | G34: =Summary!E4 -> 2017/18 | H34: =Summary!F4 -> 2018/19 | I34: =Summary!G4 -> 2019/20
A35: APA Staff Costs | B35: =B24*HourlyRateAPAMaintenanceStaff+B25*HourlyRateAPAOMSupervisor -> 527.904 | C35: =B35*$C$15 -> 527.904 | D35: =C35*SUMPRODUCT(LabourAdjustmentFactor,E$22:I$22) -> 31674.24 | E35: =$C35*E$22*'Modelling Assumptions'!E$107 -> 6334.848 | F35: =$C35*F$22*'Modelling Assumptions'!F$107 -> 6334.848 | G35: =$C35*G$22*'Modelling Assumptions'!G$107 -> 6334.848 | H35: =$C35*H$22*'Modelling Assumptions'!H$107 -> 6334.848 | I35: =$C35*I$22*'Modelling Assumptions'!I$107 -> 6334.848
A36: APA Material Costs | B36: =B26 -> 0 | C36: =B36*$C$15 -> 0 | D36: =C36*SUMPRODUCT(MaterialsAdjustmentFactor,E$22:I$22) -> 0 | E36: =$C36*E$22*'Modelling Assumptions'!E$108 -> 0 | F36: =$C36*F$22*'Modelling Assumptions'!F$108 -> 0 | G36: =$C36*G$22*'Modelling Assumptions'!G$108 -> 0 | H36: =$C36*H$22*'Modelling Assumptions'!H$108 -> 0 | I36: =$C36*I$22*'Modelling Assumptions'!I$108 -> 0
A37: Contractor Labour | B37: =B31 -> 6532.148571 | C37: =B37*$C$15 -> 6532.148571 | D37: =C37*SUMPRODUCT(LabourAdjustmentFactor,E$22:I$22) -> 391928.9143 | E37: =$C37*E$22*'Modelling Assumptions'!E$107 -> 78385.78286 | F37: =$C37*F$22*'Modelling Assumptions'!F$107 -> 78385.78286 | G37: =$C37*G$22*'Modelling Assumptions'!G$107 -> 78385.78286 | H37: =$C37*H$22*'Modelling Assumptions'!H$107 -> 78385.78286 | I37: =$C37*I$22*'Modelling Assumptions'!I$107 -> 78385.78286
A38: Contractor Materials | B38: =B32 -> 0 | C38: =B38*$C$15 -> 0 | D38: =C38*SUMPRODUCT(MaterialsAdjustmentFactor,E$22:I$22) -> 0 | E38: =$C38*E$22*'Modelling Assumptions'!E$108 -> 0 | F38: =$C38*F$22*'Modelling Assumptions'!F$108 -> 0 | G38: =$C38*G$22*'Modelling Assumptions'!G$108 -> 0 | H38: =$C38*H$22*'Modelling Assumptions'!H$108 -> 0 | I38: =$C38*I$22*'Modelling Assumptions'!I$108 -> 0
A42: Scheduled Maintenance
A43: PM ID | B43: PM Name | C43: Parent Location
A44: QLD-ET-WI-PM001-0017 | B44: Every 1 month(s)
A45: QLD-ET-WI-PM001-0017 | B45: VEGETATION MANAGEMENT - 1M | C45: DirectLink | D45: DirectLink Easement
A51: Work Order # | B51: VEGETATION MANAGEMENT - 1M
A52: QLD-190837 | B52: EDWARDS2 Luke | C52: PM | D52: 2014-01-23T14:38:00 | E52: byron bay trees complted on 7/1/14
A53: QLD-186932 | B53: EDWARDS2 Luke | C53: PM | D53: 2014-01-23T14:37:00 | E53: byron bay tree servoce invoice 4355 paid
A54: QLD-181577 | B54: EDWARDS2 Luke | C54: PM | D54: 2013-12-09T16:07:00 | E54: Luke sent emails to DBYD customers to liase regarding earthworks
A55: QLD-177397 | B55: EDWARDS2 Luke | C55: PM | D55: 2013-12-09T10:48:00 | E55: Byron trees stokers siding, mclouds farm
A56: QLD-173218 | B56: COOMBER Stuart | C56: PM | D56: 2013-12-09T10:03:00
A61: GL Period Name | B61: Project No | C61: Task Num | D61: Expenditure Type | E61: Original Transaction Reference | F61: Quantity | G61: Cost Amount | H61: PA Description | I61: Vendor / Customer Name | J61: MA Account | K61: Task Name | L61: Po Number | M61: Receipt Comments
A62: 2013-01-01 | B62: 30264 | C62: 554.01 EASEMENT | D62: CONTRACTORS - O/M | E62: 2754117 | F62: 1134.55 | G62: 1134.55 | H62: Standing Order for Vegetation Maintenance for 2012-2013 FY | I62: BYRON BAY TREE SERVICES & LANDSCAPES PTY LTD | J62: Contractors - O&M | K62: EASEMENT | L62: 269473 | M62: Inv #00002961 - Approved by S. Coomber
A63: 2013-02-01 | B63: 30264 | C63: 554.01 EASEMENT | D63: CONTRACTORS - O/M | E63: 2832680 | F63: 3085.5 | G63: 3085.5 | H63: Standing Order for Vegetation Maintenance for 2012-2013 FY | I63: BYRON BAY TREE SERVICES & LANDSCAPES PTY LTD | J63: Contractors - O&M | K63: EASEMENT | L63: 269473 | M63: Inv #00002980 - Approved by S. Coomber
A64: 2013-04-01 | B64: 30264 | C64: 554.01 EASEMENT | D64: CONTRACTORS - O/M | E64: 3001175 | F64: 1200 | G64: 1200 | H64: Standing Order for Vegetation Maintenance for 2012-2013 FY | I64: BYRON BAY TREE SERVICES & LANDSCAPES PTY LTD | J64: Contractors - O&M | K64: EASEMENT | L64: 269473 | M64: Inv # 00003020 25.04.13
A65: 2013-05-01 | B65: 30264 | C65: 554.01 EASEMENT | D65: CONTRACTORS - O/M | E65: 3130562 | F65: 660 | G65: 660 | H65: Standing Order for Vegetation Maintenance for 2012-2013 FY | I65: BYRON BAY TREE SERVICES & LANDSCAPES PTY LTD | J65: Contractors - O&M | K65: EASEMENT | L65: 269473 | M65: Byron Bay Tree Services & Landscapes P/L. Inv #00004016. 09.05.13.
A66: 2013-05-01 | B66: 30264 | C66: 554.01 EASEMENT | D66: CONTRACTORS - O/M | E66: 3168661 | F66: 1440 | G66: 1440 | H66: Standing Order for Vegetation Maintenance for 2012-2013 FY | I66: BYRON BAY TREE SERVICES & LANDSCAPES PTY LTD | J66: Contractors - O&M | K66: EASEMENT | L66: 269473 | M66: Inv #00004047 - Approved by S. Coomber
A67: 2013-05-01 | B67: 30264 | C67: 554.01 EASEMENT | D67: CONTRACTORS - O/M | E67: 3168661 | F67: 1120 | G67: 1120 | H67: Standing Order for Vegetation Maintenance for 2012-2013 FY | I67: BYRON BAY TREE SERVICES & LANDSCAPES PTY LTD | J67: Contractors - O&M | K67: EASEMENT | L67: 269473 | M67: Inv #00004044 - Approved by S. Coomber
A68: 2013-06-01 | B68: 30264 | C68: 554.01 EASEMENT | D68: CONTRACTORS - O/M | E68: 3244904 | F68: 5754.25 | G68: 5754.25 | H68: Standing Order for Vegetation Maintenance for 2012-2013 FY | I68: BYRON BAY TREE SERVICES & LANDSCAPES PTY LTD | J68: Contractors - O&M | K68: EASEMENT | L68: 269473 | M68: Inv #00004080 - Approved by S. Coomber
A69: 2013-06-01 | B69: 30264 | C69: 554.01 EASEMENT | D69: CONTRACTORS - O/M | E69: 3264219 | F69: 2888 | G69: 2888 | H69: Standing Order for Vegetation Maintenance for 2012-2013 FY | I69: BYRON BAY TREE SERVICES & LANDSCAPES PTY LTD | J69: Contractors - O&M | K69: EASEMENT | L69: 269473 | M69: Inv #00004091 - Approved by S. Coomber
A70: 2013-07-01 | B70: 30264 | C70: 554.01 EASEMENT | D70: CONTRACTORS - O/M | E70: 3335804 | F70: 2024 | G70: 2024 | H70: Standing Order for Vegetation Maintenance for 2013-2014 FY | I70: BYRON BAY TREE SERVICES & LANDSCAPES PTY LTD | J70: Contractors - O&M | K70: EASEMENT | L70: 293836 | M70: Inv #00004121 - Approved by S. Coomber
A71: 2013-08-01 | B71: 30264 | C71: 554.01 EASEMENT | D71: CONTRACTORS - O/M | E71: 3465031 | F71: 320 | G71: 320 | H71: Standing Order for Vegetation Maintenance for 2013-2014 FY | I71: BYRON BAY TREE SERVICES & LANDSCAPES PTY LTD | J71: Contractors - O&M | K71: EASEMENT | L71: 293836 | M71: Inv #00004185 - Approved by S. Coomber
A72: 2013-09-01 | B72: 30264 | C72: 554.01 EASEMENT | D72: CONTRACTORS - O/M | E72: 3598803 | F72: 1160 | G72: 1160 | H72: Standing Order for Vegetation Maintenance for 2013-2014 FY | I72: BYRON BAY TREE SERVICES & LANDSCAPES PTY LTD | J72: Contractors - O&M | K72: EASEMENT | L72: 293836 | M72: Byron Bay Tree Services & Landscapes Pty Ltd. Inv No 00004219. 26.09.13
A73: 2013-10-01 | B73: 30264 | C73: 554.01 EASEMENT | D73: CONTRACTORS - O/M | E73: 3690557 | F73: 5323.5 | G73: 5323.5 | H73: Standing Order for Vegetation Maintenance for 2013-2014 FY | I73: BYRON BAY TREE SERVICES & LANDSCAPES PTY LTD | J73: Contractors - O&M | K73: EASEMENT | L73: 293836 | M73: Inv #00004236 - Approved by S. Dodds
A74: 2013-11-01 | B74: 30264 | C74: 554.01 EASEMENT | D74: CONTRACTORS - O/M | E74: 4414726 | F74: 15190.5 | G74: 15190.5 | H74: Standing Order for Vegetation Maintenance for 2013-2014 FY | I74: BYRON BAY TREE SERVICES & LANDSCAPES PTY LTD | J74: Contractors - O&M | K74: EASEMENT | L74: 293836 | M74: Byron Bay Tree Services & Landscapes P/L. Inv No 00004263. 27.11.13. Approved by Stuart Dodds
A75: 2013-12-01 | B75: 30264 | C75: 554.01 EASEMENT | D75: CONTRACTORS - O/M | E75: 5126743 | F75: 440 | G75: 440 | H75: Standing Order for Vegetation Maintenance for 2013-2014 FY | I75: BYRON BAY TREE SERVICES & LANDSCAPES PTY LTD | J75: Contractors - O&M | K75: EASEMENT | L75: 293836 | M75: Byron Bay Tree Services & Landscapes P/L. Inv No 00004324. 28.11.13. Approved by Stuart Dodds.
A76: 2013-12-01 | B76: 30264 | C76: 554.01 EASEMENT | D76: CONTRACTORS - O/M | E76: 5701408 | F76: 15190.5 | G76: 15190.5 | H76: Standing Order for Vegetation Maintenance for 2013-2014 FY | I76: BYRON BAY TREE SERVICES & LANDSCAPES PTY LTD | J76: Contractors - O&M | K76: EASEMENT | L76: 293836 | M76: Inv #00004263 - Approved by S. Coomber
A77: 2013-12-01 | B77: 30264 | C77: 554.01 EASEMENT | D77: CONTRACTORS - O/M | E77: 5701408 | F77: 440 | G77: 440 | H77: Standing Order for Vegetation Maintenance for 2013-2014 FY | I77: BYRON BAY TREE SERVICES & LANDSCAPES PTY LTD | J77: Contractors - O&M | K77: EASEMENT | L77: 293836 | M77: Inv #00004324 - Approved by S. Coomber
A78: 2013-12-01 | B78: 30264 | C78: 554.01 EASEMENT | D78: CONTRACTORS - O/M | E78: 6163935 | F78: 1684 | G78: 1684 | H78: Standing Order for Vegetation Maintenance for 2013-2014 FY | I78: BYRON BAY TREE SERVICES & LANDSCAPES PTY LTD | J78: Contractors - O&M | K78: EASEMENT | L78: 293836 | M78: Inv #00004361 - Approved by S. Dodds
A79: 2014-01-01 | B79: 30264 | C79: 554.01 EASEMENT | D79: CONTRACTORS - O/M | E79: 6350551 | F79: 440 | G79: 440 | H79: Standing Order for Vegetation Maintenance for 2013-2014 FY | I79: BYRON BAY TREE SERVICES & LANDSCAPES PTY LTD | J79: Contractors - O&M | K79: EASEMENT | L79: 293836 | M79: Inv #00004385 - Approved by S. Dodds
A80: 2014-02-01 | B80: 30264 | C80: 554.01 EASEMENT | D80: CONTRACTORS - O/M | E80: 6379779 | F80: 484 | G80: 484 | H80: Standing Order for Vegetation Maintenance for 2013-2014 FY | I80: BYRON BAY TREE SERVICES & LANDSCAPES PTY LTD | J80: Contractors - O&M | K80: EASEMENT | L80: 293836 | M80: Inv #00004407 - Approved by S. Dodds
A81: 2014-02-01 | B81: 30264 | C81: 554.01 EASEMENT | D81: CONTRACTORS - O/M | E81: 6379779 | F81: 9596 | G81: 9596 | H81: Standing Order for Vegetation Maintenance for 2013-2014 FY | I81: BYRON BAY TREE SERVICES & LANDSCAPES PTY LTD | J81: Contractors - O&M | K81: EASEMENT | L81: 293836 | M81: Inv #00004370 - Approved by S. Dodds

Sheet 0019
A1: Summary | B1: CABLE MARKER SIGN MAINTENANCE
A2: Return to Index | D2: Total in AER Period | E2: =Summary!C4 -> 2015/16 | F2: =Summary!D4 -> 2016/17 | G2: =Summary!E4 -> 2017/18 | H2: =Summary!F4 -> 2018/19 | I2: =Summary!G4 -> 2019/20
A3: APA Staff Costs | D3: =D36 -> 112078.08 | E3: 22415.616 | F3: 22415.616 | G3: 22415.616 | H3: 22415.616 | I3: 22415.616
A4: APA Material Costs | D4: 6000 | E4: 1200 | F4: 1200 | G4: 1200 | H4: 1200 | I4: 1200
A5: Contractor Labour | D5: 0 | E5: 0 | F5: 0 | G5: 0 | H5: 0 | I5: 0
A6: Contractor Materials | D6: 0 | E6: 0 | F6: 0 | G6: 0 | H6: 0 | I6: 0
A9: Scheduled Outage Required | B9: No
A10: Work Instruction | B10: not sighted
A13: Cable Easement
B14: Cable Route | C14: 1
A15: Number of Components to be serviced | C15: =C14 -> 1
A17: Discussion
A18: APA try to walk the full 56km of the cable route once a year
A19: Each month the technicians pick a different section of the route
A20: Due to the difficult and isolated terrain both technicians are required
A21: In addition to replacing the Cable Markers this is used as a pre-inspection of areas requiring vegetation management
E22: =Summary!C4 -> 2015/16 | F22: =Summary!D4 -> 2016/17 | G22: =Summary!E4 -> 2017/18 | H22: =Summary!F4 -> 2018/19 | I22: =Summary!G4 -> 2019/20
A23: QLD-ET-WI-PM001-0019 | B23: Every 1 month(s) | E23: 12 | F23: 12 | G23: 12 | H23: 12 | I23: 12
A24: APA Costs
A25: APA Maintenance Staff (Hrs) | B25: 18 | C25: Hours per month (two technicians and updating vegetation contractor on areas requiring work)
A26: APA Supervision (Hrs) | B26: =0.5 -> 0.5 | C26: Hours per month
A27: APA Material Costs | B27: 100 | C27: Cost of the signs per month (Suggested allowance from the Operations Manager)
A29: Contractor Costs
A30: Contractor Labour (Hrs)
A31: Contractor Hourly Rate
A32: Contractor Labour
A33: Contractor Materials
B35: Reference Year | C35: Total in Reference Year (per maintenance cycle) | D35: Total in AER Period | E35: =Summary!C4 -> 2015/16 | F35: =Summary!D4 -> 2016/17 | G35: =Summary!E4 -> 2017/18 | H35: =Summary!F4 -> 2018/19 | I35: =Summary!G4 -> 2019/20
A36: APA Staff Costs | B36: =B25*HourlyRateAPAMaintenanceStaff+B26*HourlyRateAPAOMSupervisor -> 1867.968 | C36: =B36*$C$15 -> 1867.968 | D36: =C36*SUMPRODUCT(LabourAdjustmentFactor,E$23:I$23) -> 112078.08 | E36: =$C36*E$23*'Modelling Assumptions'!E$107 -> 22415.616 | F36: =$C36*F$23*'Modelling Assumptions'!F$107 -> 22415.616 | G36: =$C36*G$23*'Modelling Assumptions'!G$107 -> 22415.616 | H36: =$C36*H$23*'Modelling Assumptions'!H$107 -> 22415.616 | I36: =$C36*I$23*'Modelling Assumptions'!I$107 -> 22415.616
A37: APA Material Costs | B37: =B27 -> 100 | C37: =B37*$C$15 -> 100 | D37: =C37*SUMPRODUCT(MaterialsAdjustmentFactor,E$23:I$23) -> 6000 | E37: =$C37*E$23*'Modelling Assumptions'!E$108 -> 1200 | F37: =$C37*F$23*'Modelling Assumptions'!F$108 -> 1200 | G37: =$C37*G$23*'Modelling Assumptions'!G$108 -> 1200 | H37: =$C37*H$23*'Modelling Assumptions'!H$108 -> 1200 | I37: =$C37*I$23*'Modelling Assumptions'!I$108 -> 1200
A38: Contractor Labour | B38: =B32 -> 0 | C38: =B38*$C$15 -> 0 | D38: =C38*SUMPRODUCT(LabourAdjustmentFactor,E$23:I$23) -> 0 | E38: =$C38*E$23*'Modelling Assumptions'!E$107 -> 0 | F38: =$C38*F$23*'Modelling Assumptions'!F$107 -> 0 | G38: =$C38*G$23*'Modelling Assumptions'!G$107 -> 0 | H38: =$C38*H$23*'Modelling Assumptions'!H$107 -> 0 | I38: =$C38*I$23*'Modelling Assumptions'!I$107 -> 0
A39: Contractor Materials | B39: =B33 -> 0 | C39: =B39*$C$15 -> 0 | D39: =C39*SUMPRODUCT(MaterialsAdjustmentFactor,E$23:I$23) -> 0 | E39: =$C39*E$23*'Modelling Assumptions'!E$108 -> 0 | F39: =$C39*F$23*'Modelling Assumptions'!F$108 -> 0 | G39: =$C39*G$23*'Modelling Assumptions'!G$108 -> 0 | H39: =$C39*H$23*'Modelling Assumptions'!H$108 -> 0 | I39: =$C39*I$23*'Modelling Assumptions'!I$108 -> 0
A43: Scheduled Maintenance
A44: PM ID | B44: PM Name | C44: Parent Location
A45: QLD-ET-WI-PM001-0019 | B45: Every 1 month(s)
A46: QLD-ET-WI-PM001-0019 | B46: CABLE MARKER SIGN MAINTENANCE - 1M | C46: DirectLink | D46: DirectLink Easement
A50: Work Order # | B50: CABLE MARKER SIGN MAINTENANCE- 1M
A51: QLD-181579 | B51: EDWARDS2 Luke | C51: PM | D51: 2013-11-26T09:35:00 | E51: stokers siding, sihn repair/replacement
A52: QLD-177400 | B52: EDWARDS2 Luke | C52: PM | D52: 2013-12-09T11:03:00 | E52: Stokers siding
A53: QLD-173220 | B53: EDWARDS2 Luke | C53: PM | D53: 2013-12-09T10:04:00 | E53: replced signs along rail track going into Muwulmbar

Sheet 0022
A1: Summary | B1: OUTDOOR POST TYPE CURRENT TRANSFORMER
A2: Return to Index | D2: Total in AER Period | E2: =Summary!C4 -> 2015/16 | F2: =Summary!D4 -> 2016/17 | G2: =Summary!E4 -> 2017/18 | H2: =Summary!F4 -> 2018/19 | I2: =Summary!G4 -> 2019/20
A3: APA Staff Costs | D3: =D35+D55 -> 7136.856 | E3: =E35+E55 -> 2378.952 | F3: 1189.476 | G3: 1189.476 | H3: 1189.476 | I3: 1189.476
A4: APA Material Costs | D4: =D36+D56 -> 0 | E4: 0 | F4: 0 | G4: 0 | H4: 0 | I4: 0
A5: Contractor Labour | D5: =D37+D57 -> 18900 | E5: 6300 | F5: 3150 | G5: 3150 | H5: 3150 | I5: 3150
A6: Contractor Materials | D6: =D38+D58 -> 420 | E6: 420 | F6: 0 | G6: 0 | H6: 0 | I6: 0
A9: Scheduled Outage Required | B9: Yes
A10: Work Instruction | B10: DL-WI-32 (1Yr)
A13: OUTDOOR POST TYPE CURRENT TRANSFORMER
B14: WA.Z1.Z11.T1 | C14: 18
B15: WA.Z1.Z12.T1 | C15: 18
B16: U.T1 | C16: 6
A17: Number of Components to be serviced | C17: =SUM(C14:C16) -> 42
A19: Discussion
A20: This worksheet does not make a material contribution to the total O&M Direct Cost
E21: =Summary!C4 -> 2015/16 | F21: =Summary!D4 -> 2016/17 | G21: =Summary!E4 -> 2017/18 | H21: =Summary!F4 -> 2018/19 | I21: =Summary!G4 -> 2019/20
A22: QLD-ET-WI-PM012-0022 | B22: Every 1 year(s) | E22: 1 | F22: 1 | G22: 1 | H22: 1 | I22: 1
A23: APA Costs
A24: APA Maintenance Staff (Hrs) | B24: =APATechnicianHours/C17 -> 0.02380952381 | C24: Hours per CT
A25: APA Supervision (Hrs) | B25: =APASupervisorHours/$C$17 -> 0.2043650794 | C25: Hours per CT
A26: APA Material Costs | B26: 0
A28: Contractor Costs
A29: Contractor Labour (Hrs) | B29: 1 | C29: Hours per CT (as per ABB recommended maintenance for WA.Z1.Z1x.T1)
A30: Contractor Hourly Rate | B30: =ElectricalContractorHourlyRate -> 75 | C30: Thearle/SAE
A31: Contractor Labour | B31: =B29*B30 -> 75
A32: Contractor Materials | B32: 0
B34: Reference Year | C34: Total in Reference Year | D34: Total in AER Period | E34: =Summary!C4 -> 2015/16 | F34: =Summary!D4 -> 2016/17 | G34: =Summary!E4 -> 2017/18 | H34: =Summary!F4 -> 2018/19 | I34: =Summary!G4 -> 2019/20
A35: APA Staff Costs | B35: =B24*HourlyRateAPAMaintenanceStaff+B25*HourlyRateAPAOMSupervisor -> 28.32085714 | C35: =B35*$C$17 -> 1189.476 | D35: =C35*SUMPRODUCT(LabourAdjustmentFactor,E$22:I$22) -> 5947.38 | E35: =$C35*E$22*'Modelling Assumptions'!E$107 -> 1189.476 | F35: =$C35*F$22*'Modelling Assumptions'!F$107 -> 1189.476 | G35: =$C35*G$22*'Modelling Assumptions'!G$107 -> 1189.476 | H35: =$C35*H$22*'Modelling Assumptions'!H$107 -> 1189.476 | I35: =$C35*I$22*'Modelling Assumptions'!I$107 -> 1189.476
A36: APA Material Costs | B36: =B26 -> 0 | C36: =B36*$C$17 -> 0 | D36: =C36*SUMPRODUCT(MaterialsAdjustmentFactor,E$22:I$22) -> 0 | E36: =$C36*E$22*'Modelling Assumptions'!E$108 -> 0 | F36: =$C36*F$22*'Modelling Assumptions'!F$108 -> 0 | G36: =$C36*G$22*'Modelling Assumptions'!G$108 -> 0 | H36: =$C36*H$22*'Modelling Assumptions'!H$108 -> 0 | I36: =$C36*I$22*'Modelling Assumptions'!I$108 -> 0
A37: Contractor Labour | B37: =B31 -> 75 | C37: =B37*$C$17 -> 3150 | D37: =C37*SUMPRODUCT(LabourAdjustmentFactor,E$22:I$22) -> 15750 | E37: =$C37*E$22*'Modelling Assumptions'!E$107 -> 3150 | F37: =$C37*F$22*'Modelling Assumptions'!F$107 -> 3150 | G37: =$C37*G$22*'Modelling Assumptions'!G$107 -> 3150 | H37: =$C37*H$22*'Modelling Assumptions'!H$107 -> 3150 | I37: =$C37*I$22*'Modelling Assumptions'!I$107 -> 3150
A38: Contractor Materials | B38: =B32 -> 0 | C38: =B38*$C$17 -> 0 | D38: =C38*SUMPRODUCT(MaterialsAdjustmentFactor,E$22:I$22) -> 0 | E38: =$C38*E$22*'Modelling Assumptions'!E$108 -> 0 | F38: =$C38*F$22*'Modelling Assumptions'!F$108 -> 0 | G38: =$C38*G$22*'Modelling Assumptions'!G$108 -> 0 | H38: =$C38*H$22*'Modelling Assumptions'!H$108 -> 0 | I38: =$C38*I$22*'Modelling Assumptions'!I$108 -> 0
E41: =Summary!C4 -> 2015/16 | F41: =Summary!D4 -> 2016/17 | G41: =Summary!E4 -> 2017/18 | H41: =Summary!F4 -> 2018/19 | I41: =Summary!G4 -> 2019/20
A42: QLD-ET-WI-PM060-0022 | B42: Every 5 year(s) | E42: 1 | F42: 0 | G42: 0 | H42: 0 | I42: 0
A43: APA Costs
A44: APA Maintenance Staff (Hrs) | B44: =APATechnicianHours/C17 -> 0.02380952381 | C44: Hours per CT
A45: APA Supervision (Hrs) | B45: =APASupervisorHours/$C$17 -> 0.2043650794 | C45: Hours per CT
A46: APA Material Costs | B46: 0
A48: Contractor Costs
A49: Contractor Labour (Hrs) | B49: 1 | C49: Hours per CT (not shown on the ABB maintenance - however anecdotal discussions highlighted maintenance including application of grease)
A50: Contractor Hourly Rate | B50: 75 | C50: Thearle/SAE
A51: Contractor Labour | B51: =B49*B50 -> 75
A52: Contractor Materials | B52: 10 | C52: Estimate as a nominal amount for grease per CT
B54: Reference Year | C54: Total in Reference Year | D54: Total in AER Period | E54: =Summary!C4 -> 2015/16 | F54: =Summary!D4 -> 2016/17 | G54: =Summary!E4 -> 2017/18 | H54: =Summary!F4 -> 2018/19 | I54: =Summary!G4 -> 2019/20
A55: APA Staff Costs | B55: =B44*HourlyRateAPAMaintenanceStaff+B45*HourlyRateAPAOMSupervisor -> 28.32085714 | C55: =B55*$C$17 -> 1189.476 | D55: =C55*SUMPRODUCT(LabourAdjustmentFactor,E$42:I$42) -> 1189.476 | E55: =$C55*E$42*'Modelling Assumptions'!E$107 -> 1189.476 | F55: =$C55*F$42*'Modelling Assumptions'!F$107 -> 0 | G55: =$C55*G$42*'Modelling Assumptions'!G$107 -> 0 | H55: =$C55*H$42*'Modelling Assumptions'!H$107 -> 0 | I55: =$C55*I$42*'Modelling Assumptions'!I$107 -> 0
A56: APA Material Costs | B56: =B46 -> 0 | C56: =B56*$C$17 -> 0 | D56: =C56*SUMPRODUCT(MaterialsAdjustmentFactor,E$42:I$42) -> 0 | E56: =$C56*E$42*'Modelling Assumptions'!E$108 -> 0 | F56: =$C56*F$42*'Modelling Assumptions'!F$108 -> 0 | G56: =$C56*G$42*'Modelling Assumptions'!G$108 -> 0 | H56: =$C56*H$42*'Modelling Assumptions'!H$108 -> 0 | I56: =$C56*I$42*'Modelling Assumptions'!I$108 -> 0
A57: Contractor Labour | B57: =B51 -> 75 | C57: =B57*$C$17 -> 3150 | D57: =C57*SUMPRODUCT(LabourAdjustmentFactor,E$42:I$42) -> 3150 | E57: =$C57*E$42*'Modelling Assumptions'!E$107 -> 3150 | F57: =$C57*F$42*'Modelling Assumptions'!F$107 -> 0 | G57: =$C57*G$42*'Modelling Assumptions'!G$107 -> 0 | H57: =$C57*H$42*'Modelling Assumptions'!H$107 -> 0 | I57: =$C57*I$42*'Modelling Assumptions'!I$107 -> 0
A58: Contractor Materials | B58: =B52 -> 10 | C58: =B58*$C$17 -> 420 | D58: =C58*SUMPRODUCT(MaterialsAdjustmentFactor,E$42:I$42) -> 420 | E58: =$C58*E$42*'Modelling Assumptions'!E$108 -> 420 | F58: =$C58*F$42*'Modelling Assumptions'!F$108 -> 0 | G58: =$C58*G$42*'Modelling Assumptions'!G$108 -> 0 | H58: =$C58*H$42*'Modelling Assumptions'!H$108 -> 0 | I58: =$C58*I$42*'Modelling Assumptions'!I$108 -> 0
A65: Scheduled Maintenance
A66: PM ID | B66: PM Name | C66: Parent Location
A67: QLD-ET-WI-PM012-0022-BLA1 | B67: OUTDOOR POST TYPE CURRENT TRANSFORMER - 1YR | C67: Bungalora | D67: Asset Name
A68: QLD-ET-WI-PM012-0022-BLA2 | B68: OUTDOOR POST TYPE CURRENT TRANSFORMER - 1YR | C68: Bungalora | D68: Bungalora - System 1
A69: QLD-ET-WI-PM012-0022-BLA3 | B69: OUTDOOR POST TYPE CURRENT TRANSFORMER - 1YR | C69: Bungalora | D69: Bungalora - System 2
A70: QLD-ET-WI-PM012-0022-MUL1 | B70: OUTDOOR POST TYPE CURRENT TRANSFORMER - 1YR | C70: Mullumbimby | D70: Bungalora - System 3
A71: QLD-ET-WI-PM012-0022-MUL2 | B71: OUTDOOR POST TYPE CURRENT TRANSFORMER - 1YR | C71: Mullumbimby | D71: Mullumbimby - System 1
A72: QLD-ET-WI-PM012-0022-MUL3 | B72: OUTDOOR POST TYPE CURRENT TRANSFORMER - 1YR | C72: Mullumbimby | D72: Mullumbimby - System 2
D73: Mullumbimby - System 3
A74: QLD-ET-WI-PM060-0022-BLA1 | B74: OUTDOOR POST TYPE CURRENT TRANSFORMER - 5YR | C74: Bungalora
A75: QLD-ET-WI-PM060-0022-BLA2 | B75: OUTDOOR POST TYPE CURRENT TRANSFORMER - 5YR | C75: Bungalora | D75: Bungalora - System 1
A76: QLD-ET-WI-PM060-0022-BLA3 | B76: OUTDOOR POST TYPE CURRENT TRANSFORMER - 5YR | C76: Bungalora | D76: Bungalora - System 2
A77: QLD-ET-WI-PM060-0022-MUL1 | B77: OUTDOOR POST TYPE CURRENT TRANSFORMER - 5YR | C77: Mullumbimby | D77: Bungalora - System 3
A78: QLD-ET-WI-PM060-0022-MUL2 | B78: OUTDOOR POST TYPE CURRENT TRANSFORMER - 5YR | C78: Mullumbimby | D78: Mullumbimby - System 1
A79: QLD-ET-WI-PM060-0022-MUL3 | B79: OUTDOOR POST TYPE CURRENT TRANSFORMER - 5YR | C79: Mullumbimby | D79: Mullumbimby - System 2
D80: Mullumbimby - System 3
A85: Work Order # | B85: OUTDOOR POST TYPE CURRENT TRANSFORMER - 1YR
A86: QLD-166911 | B86: COOMBER Stuart | C86: PM
A87: QLD-166912 | B87: EDWARDS2 Luke | C87: PM | D87: 2013-07-19T13:58:00 | E87: done, entered sc.
A88: QLD-166913 | B88: Thearle Electrical | C88: PM | D88: 2013-09-18T14:09:00 | E88: done entered sc
A89: QLD-166914 | B89: COOMBER Stuart | C89: PM | D89: 2013-09-16T14:00:00
A90: QLD-166915 | B90: Thearle Electrical | C90: PM | D90: 2013-07-19T13:58:00 | E90: done entered sc
A91: QLD-166916 | B91: Thearle Electrical | C91: PM | D91: 2013-09-16T14:00:00 | E91: done entered sc
D92: 2013-09-16T14:00:00

Sheet 0024
A1: Summary | B1: CABLE SCREEN CURRENT TRANSFORMER
A2: Return to Index | D2: Total in AER Period | E2: =Summary!C4 -> 2015/16 | F2: =Summary!D4 -> 2016/17 | G2: =Summary!E4 -> 2017/18 | H2: =Summary!F4 -> 2018/19 | I2: =Summary!G4 -> 2019/20
A3: APA Staff Costs | D3: =D36 -> 5947.38 | E3: 1189.476 | F3: 1189.476 | G3: 1189.476 | H3: 1189.476 | I3: 1189.476
A4: APA Material Costs | D4: 0 | E4: 0 | F4: 0 | G4: 0 | H4: 0 | I4: 0
A5: Contractor Labour | D5: 4500 | E5: 900 | F5: 900 | G5: 900 | H5: 900 | I5: 900
A6: Contractor Materials | D6: 0 | E6: 0 | F6: 0 | G6: 0 | H6: 0 | I6: 0
A9: Scheduled Outage Required | B9: Yes
A10: Work Instruction | B10: DL-WI-33
A13: Cable Screen Current Transformer
B14: R1.T11 | C14: 6
B15: R1.T12 | C15: 6
B16: R1.T21 | C16: 6
B17: R1.T22 | C17: 6
A18: Number of Components to be serviced | C18: =SUM(C14:C17) -> 24
A20: Discussion
A21: This worksheet does not make a material contribution to the total O&M Direct Cost
E22: =Summary!C4 -> 2015/16 | F22: =Summary!D4 -> 2016/17 | G22: =Summary!E4 -> 2017/18 | H22: =Summary!F4 -> 2018/19 | I22: =Summary!G4 -> 2019/20
A23: QLD-ET-WI-PM012-0024 | B23: Every 1 year(s) | E23: 1 | F23: 1 | G23: 1 | H23: 1 | I23: 1
A24: APA Costs
A25: APA Maintenance Staff (Hrs) | B25: =APATechnicianHours/C18 -> 0.04166666667 | C25: Hours per CT
A26: APA Supervision (Hrs) | B26: =APASupervisorHours/C18 -> 0.3576388889 | C26: Hours per CT
A27: APA Material Costs | B27: 0
A29: Contractor Costs
A30: Contractor Labour (Hrs) | B30: 0.5 | C30: Hours per CT (agrees with ABB recommended maintenance)
A31: Contractor Hourly Rate | B31: =ElectricalContractorHourlyRate -> 75
A32: Contractor Labour | B32: =B30*B31 -> 37.5
A33: Contractor Materials | B33: 0
B35: Reference Year | C35: Total in Reference Year | D35: Total in AER Period | E35: =Summary!C4 -> 2015/16 | F35: =Summary!D4 -> 2016/17 | G35: =Summary!E4 -> 2017/18 | H35: =Summary!F4 -> 2018/19 | I35: =Summary!G4 -> 2019/20
A36: APA Staff Costs | B36: =B25*HourlyRateAPAMaintenanceStaff+B26*HourlyRateAPAOMSupervisor -> 49.5615 | C36: =B36*$C$18 -> 1189.476 | D36: =C36*SUMPRODUCT(LabourAdjustmentFactor,E$23:I$23) -> 5947.38 | E36: =$C36*E$23*'Modelling Assumptions'!E$107 -> 1189.476 | F36: =$C36*F$23*'Modelling Assumptions'!F$107 -> 1189.476 | G36: =$C36*G$23*'Modelling Assumptions'!G$107 -> 1189.476 | H36: =$C36*H$23*'Modelling Assumptions'!H$107 -> 1189.476 | I36: =$C36*I$23*'Modelling Assumptions'!I$107 -> 1189.476
A37: APA Material Costs | B37: =B27 -> 0 | C37: =B37*$C$18 -> 0 | D37: =C37*SUMPRODUCT(MaterialsAdjustmentFactor,E$23:I$23) -> 0 | E37: =$C37*E$23*'Modelling Assumptions'!E$108 -> 0 | F37: =$C37*F$23*'Modelling Assumptions'!F$108 -> 0 | G37: =$C37*G$23*'Modelling Assumptions'!G$108 -> 0 | H37: =$C37*H$23*'Modelling Assumptions'!H$108 -> 0 | I37: =$C37*I$23*'Modelling Assumptions'!I$108 -> 0
A38: Contractor Labour | B38: =B32 -> 37.5 | C38: =B38*$C$18 -> 900 | D38: =C38*SUMPRODUCT(LabourAdjustmentFactor,E$23:I$23) -> 4500 | E38: =$C38*E$23*'Modelling Assumptions'!E$107 -> 900 | F38: =$C38*F$23*'Modelling Assumptions'!F$107 -> 900 | G38: =$C38*G$23*'Modelling Assumptions'!G$107 -> 900 | H38: =$C38*H$23*'Modelling Assumptions'!H$107 -> 900 | I38: =$C38*I$23*'Modelling Assumptions'!I$107 -> 900
A39: Contractor Materials | B39: =B33 -> 0 | C39: =B39*$C$18 -> 0 | D39: =C39*SUMPRODUCT(MaterialsAdjustmentFactor,E$23:I$23) -> 0 | E39: =$C39*E$23*'Modelling Assumptions'!E$108 -> 0 | F39: =$C39*F$23*'Modelling Assumptions'!F$108 -> 0 | G39: =$C39*G$23*'Modelling Assumptions'!G$108 -> 0 | H39: =$C39*H$23*'Modelling Assumptions'!H$108 -> 0 | I39: =$C39*I$23*'Modelling Assumptions'!I$108 -> 0
A42: Scheduled Maintenance
A43: PM ID | B43: PM Name | C43: Parent Location | D43: Asset Name
A44: QLD-ET-WI-PM012-0024-BLA1 | B44: CABLE SCREEN CURRENT TRANSFORMER | C44: Bungalora - System 1 | D44: Bungalora System 1 - DC Filter Area
A45: QLD-ET-WI-PM012-0024-BLA2 | B45: CABLE SCREEN CURRENT TRANSFORMER | C45: Bungalora - System 2 | D45: Bungalora System 2 - DC Filter Area
A46: QLD-ET-WI-PM012-0024-BLA3 | B46: CABLE SCREEN CURRENT TRANSFORMER | C46: Bungalora - System 3 | D46: Bungalora System 3 - DC Filter Area
A47: QLD-ET-WI-PM012-0024-MUL1 | B47: CABLE SCREEN CURRENT TRANSFORMER | C47: Mullumbimby - System 1 | D47: Mullumbimby System 1 - DC Filter Area
A48: QLD-ET-WI-PM012-0024-MUL2 | B48: CABLE SCREEN CURRENT TRANSFORMER | C48: Mullumbimby - System 2 | D48: Mullumbimby System 2 - DC Filter Area
A49: QLD-ET-WI-PM012-0024-MUL3 | B49: CABLE SCREEN CURRENT TRANSFORMER | C49: Mullumbimby - System 3 | D49: Mullumbimby System 3 - DC Filter Area
A55: Work Order # | B55: CABLE SCREEN CURRENT TRANSFORMER
A56: QLD-166917 | B56: COOMBER Stuart | C56: PM | D56: 2013-07-19T14:09:00 | E56: out of service
A57: QLD-166918 | B57: Thearle Electrical | C57: PM | D57: 2013-09-16T14:08:00 | E57: done, entered sc
A58: QLD-166919 | B58: Thearle Electrical | C58: PM | D58: 2013-09-16T14:08:00 | E58: done, entered sc
A59: QLD-166920 | B59: COOMBER Stuart | C59: PM | D59: 2013-07-19T14:09:00 | E59: out of service
A60: QLD-166921 | B60: Thearle Electrical | C60: PM | D60: 2013-09-16T14:08:00 | E60: done, entered sc
A61: QLD-166922 | B61: Thearle Electrical | C61: PM | D61: 2013-09-16T14:08:00 | E61: done, entered sc

Sheet 0026
A1: Summary | B1: CAPACITIVE VOLTAGE TRANSFORMER MAINTENANCE
A2: Return to Index | D2: Total in AER Period | E2: =Summary!C4 -> 2015/16 | F2: =Summary!D4 -> 2016/17 | G2: =Summary!E4 -> 2017/18 | H2: =Summary!F4 -> 2018/19 | I2: =Summary!G4 -> 2019/20
A3: APA Staff Costs | D3: =D35 -> 5947.38 | E3: 1189.476 | F3: 1189.476 | G3: 1189.476 | H3: 1189.476 | I3: 1189.476
A4: APA Material Costs | D4: 0 | E4: 0 | F4: 0 | G4: 0 | H4: 0 | I4: 0
A5: Contractor Labour | D5: 7125 | E5: 1425 | F5: 1425 | G5: 1425 | H5: 1425 | I5: 1425
A6: Contractor Materials | D6: 0 | E6: 0 | F6: 0 | G6: 0 | H6: 0 | I6: 0
A9: Scheduled Outage Required | B9: Yes
A10: Work Instruction | B10: DL-WI-37
A13: Capacitive Voltage Transformers
B14: WA.Z1.T11 | C14: 18
B15: WT.T11 | C15: 1 | D15: Only shown on the single line diagram - Not shown in ABB schematic
A16: Number of Components to be serviced | C16: =C15+C14 -> 19
A18: Discussion
A19: This worksheet does not make a material contribution to the total O&M Direct Cost
E21: =Summary!C4 -> 2015/16 | F21: =Summary!D4 -> 2016/17 | G21: =Summary!E4 -> 2017/18 | H21: =Summary!F4 -> 2018/19 | I21: =Summary!G4 -> 2019/20
A22: QLD-ET-WI-PM012-0026 | B22: Every 1 year(s) | E22: 1 | F22: 1 | G22: 1 | H22: 1 | I22: 1
A23: APA Costs
A24: APA Maintenance Staff (Hrs) | B24: =APATechnicianHours/C16 -> 0.05263157895 | C24: Hours per VT
A25: APA Supervision (Hrs) | B25: =APASupervisorHours/C16 -> 0.451754386 | C25: Hours per VT
A26: APA Material Costs | B26: 0
A28: Contractor Costs
A29: Contractor Labour (Hrs) | B29: 1 | C29: Hours per VT (from the ABB recommended maintenance)
A30: Contractor Hourly Rate | B30: =ElectricalContractorHourlyRate -> 75
A31: Contractor Labour | B31: =B29*B30 -> 75
A32: Contractor Materials | B32: 0
B34: Reference Year | C34: Total in Reference Year | D34: Total in AER Period | E34: =Summary!C4 -> 2015/16 | F34: =Summary!D4 -> 2016/17 | G34: =Summary!E4 -> 2017/18 | H34: =Summary!F4 -> 2018/19 | I34: =Summary!G4 -> 2019/20
A35: APA Staff Costs | B35: =B24*HourlyRateAPAMaintenanceStaff+B25*HourlyRateAPAOMSupervisor -> 62.604 | C35: =B35*$C$16 -> 1189.476 | D35: =C35*SUMPRODUCT(LabourAdjustmentFactor,E$22:I$22) -> 5947.38 | E35: =$C35*E$22*'Modelling Assumptions'!E$107 -> 1189.476 | F35: =$C35*F$22*'Modelling Assumptions'!F$107 -> 1189.476 | G35: =$C35*G$22*'Modelling Assumptions'!G$107 -> 1189.476 | H35: =$C35*H$22*'Modelling Assumptions'!H$107 -> 1189.476 | I35: =$C35*I$22*'Modelling Assumptions'!I$107 -> 1189.476
A36: APA Material Costs | B36: =B26 -> 0 | C36: =B36*$C$16 -> 0 | D36: =C36*SUMPRODUCT(MaterialsAdjustmentFactor,E$22:I$22) -> 0 | E36: =$C36*E$22*'Modelling Assumptions'!E$108 -> 0 | F36: =$C36*F$22*'Modelling Assumptions'!F$108 -> 0 | G36: =$C36*G$22*'Modelling Assumptions'!G$108 -> 0 | H36: =$C36*H$22*'Modelling Assumptions'!H$108 -> 0 | I36: =$C36*I$22*'Modelling Assumptions'!I$108 -> 0
A37: Contractor Labour | B37: =B31 -> 75 | C37: =B37*$C$16 -> 1425 | D37: =C37*SUMPRODUCT(LabourAdjustmentFactor,E$22:I$22) -> 7125 | E37: =$C37*E$22*'Modelling Assumptions'!E$107 -> 1425 | F37: =$C37*F$22*'Modelling Assumptions'!F$107 -> 1425 | G37: =$C37*G$22*'Modelling Assumptions'!G$107 -> 1425 | H37: =$C37*H$22*'Modelling Assumptions'!H$107 -> 1425 | I37: =$C37*I$22*'Modelling Assumptions'!I$107 -> 1425
A38: Contractor Materials | B38: =B32 -> 0 | C38: =B38*$C$16 -> 0 | D38: =C38*SUMPRODUCT(MaterialsAdjustmentFactor,E$22:I$22) -> 0 | E38: =$C38*E$22*'Modelling Assumptions'!E$108 -> 0 | F38: =$C38*F$22*'Modelling Assumptions'!F$108 -> 0 | G38: =$C38*G$22*'Modelling Assumptions'!G$108 -> 0 | H38: =$C38*H$22*'Modelling Assumptions'!H$108 -> 0 | I38: =$C38*I$22*'Modelling Assumptions'!I$108 -> 0
A41: Scheduled Maintenance
A42: PM ID | B42: PM Name | C42: Parent Location | D42: Asset Name
A43: QLD-ET-WI-PM012-0026 | B43: CAPACITIVE VOLTAGE TRANSFORMER MAINTENANCE - 1YR | C43: Bungalora System 1 - AC Filter Area | D43: Bungalora System 1 - Capacitive Voltage Transformer WA.Z1.T11
A44: QLD-ET-WI-PM012-0026 | B44: CAPACITIVE VOLTAGE TRANSFORMER MAINTENANCE - 1YR | C44: Bungalora - 110kV Overhead Bus | D44: Bungalora System 1 - Main Stn Incoming Capacitive Volt Transformer WT.T11
A45: QLD-ET-WI-PM012-0026 | B45: CAPACITIVE VOLTAGE TRANSFORMER MAINTENANCE - 1YR | C45: Bungalora System 2 - AC Filter Area | D45: Bungalora System 2 - Capacitive Voltage Transformer WA.Z1.T11
A46: QLD-ET-WI-PM012-0026 | B46: CAPACITIVE VOLTAGE TRANSFORMER MAINTENANCE - 1YR | C46: Bungalora System 3 - AC Filter Area | D46: Bungalora System 3 - Capacitive Voltage Transformer WA.Z1.T11
A47: QLD-ET-WI-PM012-0026 | B47: CAPACITIVE VOLTAGE TRANSFORMER MAINTENANCE - 1YR | C47: Mullumbimby System 1 - AC Filter Area | D47: Mullumbimby System 1 - Capacitive Voltage Transformer WA.Z1.T11
A48: QLD-ET-WI-PM012-0026 | B48: CAPACITIVE VOLTAGE TRANSFORMER MAINTENANCE - 1YR | C48: Mullumbimby System 2 - AC Filter Area | D48: Mullumbimby System 2 - Capacitive Voltage Transformer WA.Z1.T11
A49: QLD-ET-WI-PM012-0026 | B49: CAPACITIVE VOLTAGE TRANSFORMER MAINTENANCE - 1YR | C49: Mullumbimby System 3 - AC Filter Area | D49: Mullumbimby System 3 - Capacitive Voltage Transformer WA.Z1.T11
A55: Work Order # | B55: CAPACITIVE VOLTAGE TRANSFORMER MAINTENANCE - 1YR
A56: QLD-166929 | B56: COOMBER Stuart | C56: PM | D56: 2013-07-19T15:34:00 | E56: out of service
A57: QLD-166928 | B57: MCALLISTER Jack (no PIO) | C57: PM | D57: 2013-09-16T14:14:00 | E57: Rust found WT T11 L1,L2,L3, arrange painter and cleaning.New work order opened, sc
A58: QLD-166923 | B58: MCALLISTER Jack (no PIO) | C58: PM | D58: 2013-09-16T14:14:00 | E58: Rust found WT T11 L1,L2,L3, arrange painter and cleaning.New work order opened, sc
A59: QLD-166924 | B59: MCALLISTER Jack (no PIO) | C59: PM | D59: 2013-09-16T14:14:00 | E59: Rust found WT T11 L1,L2,L3, arrange painter and cleaning.New work order opened, sc
A60: QLD-166925 | B60: COOMBER Stuart | C60: PM | D60: 2013-07-19T15:34:00 | E60: out of service
A61: QLD-166926 | B61: HARRIS James | C61: PM | D61: 2013-09-16T14:48:00 | E61: Done, enetered SC,
A62: QLD-166927 | B62: HARRIS James | C62: PM | D62: 2013-09-16T14:48:00 | E62: Done, enetered SC,

Sheet 0028
A1: Summary | B1: POWER TRANSFORMER MAINTENANCE
A2: Return to Index | D2: Total in AER Period | E2: =Summary!C4 -> 2015/16 | F2: =Summary!D4 -> 2016/17 | G2: =Summary!E4 -> 2017/18 | H2: =Summary!F4 -> 2018/19 | I2: =Summary!G4 -> 2019/20
A3: APA Staff Costs | D3: =D35 -> 6949.89 | E3: 1389.978 | F3: 1389.978 | G3: 1389.978 | H3: 1389.978 | I3: 1389.978
A4: APA Material Costs | D4: 2500 | E4: 500 | F4: 500 | G4: 500 | H4: 500 | I4: 500
A5: Contractor Labour | D5: 378840 | E5: 75768 | F5: 75768 | G5: 75768 | H5: 75768 | I5: 75768
A6: Contractor Materials | D6: 0 | E6: 0 | F6: 0 | G6: 0 | H6: 0 | I6: 0
A9: Scheduled Outage Required | B9: Yes
A10: Work Instruction | B10: not sighted
A12: Power Transformer
B13: WT2.T1 | C13: 7 | D13: Including Spare
A14: Number of Components to be serviced | C14: =C13 -> 7
A16: Discussion
A17: The Transformer OEM has been contracted to undertake this maintenance
A18: =CONCATENATE("The contract is reported as $",B41," per year for each site") -> The contract is reported as $32472 per year for each site
A19: There are three transformers at each site
A20: There is one spare transformer
E21: =Summary!C4 -> 2015/16 | F21: =Summary!D4 -> 2016/17 | G21: =Summary!E4 -> 2017/18 | H21: =Summary!F4 -> 2018/19 | I21: =Summary!G4 -> 2019/20
A22: QLD-ET-WI-PM012-0028 | B22: Every 1 year(s) | E22: 1 | F22: 1 | G22: 1 | H22: 1 | I22: 1
A23: APA Costs
A24: APA Maintenance Staff (Hrs) | B24: =(APATechnicianHours+B49*B47*2)/C14 -> 0.4285714286 | C24: Hours per transformer
A25: APA Supervision (Hrs) | B25: =APASupervisorHours/C14 -> 1.226190476 | C25: Hours per transformer
A26: APA Material Costs | B26: =B49*B48/C14 -> 71.42857143 | C26: Oil sample checking now included in the Wilson contract was $1,000 p.a.
A28: Contractor Costs
A29: Contractor Labour (Hrs)
A30: Contractor Hourly Rate
A31: Contractor Labour | B31: =B43/C14 -> 10824 | C31: =CONCATENATE("Anecdotal: The Operations Manager reported as $",B41," per year for each site") -> Anecdotal: The Operations Manager reported as $32472 per year for each site
A32: Contractor Materials | B32: 0
B34: Reference Year | C34: Total in Reference Year | D34: Total in AER Period | E34: =Summary!C4 -> 2015/16 | F34: =Summary!D4 -> 2016/17 | G34: =Summary!E4 -> 2017/18 | H34: =Summary!F4 -> 2018/19 | I34: =Summary!G4 -> 2019/20
A35: APA Staff Costs | B35: =B24*HourlyRateAPAMaintenanceStaff+B25*HourlyRateAPAOMSupervisor -> 198.5682857 | C35: =B35*$C$14 -> 1389.978 | D35: =C35*SUMPRODUCT(LabourAdjustmentFactor,E$22:I$22) -> 6949.89 | E35: =$C35*E$22*'Modelling Assumptions'!E$107 -> 1389.978 | F35: =$C35*F$22*'Modelling Assumptions'!F$107 -> 1389.978 | G35: =$C35*G$22*'Modelling Assumptions'!G$107 -> 1389.978 | H35: =$C35*H$22*'Modelling Assumptions'!H$107 -> 1389.978 | I35: =$C35*I$22*'Modelling Assumptions'!I$107 -> 1389.978
A36: APA Material Costs | B36: =B26 -> 71.42857143 | C36: =B36*$C$14 -> 500 | D36: =C36*SUMPRODUCT(MaterialsAdjustmentFactor,E$22:I$22) -> 2500 | E36: =$C36*E$22*'Modelling Assumptions'!E$108 -> 500 | F36: =$C36*F$22*'Modelling Assumptions'!F$108 -> 500 | G36: =$C36*G$22*'Modelling Assumptions'!G$108 -> 500 | H36: =$C36*H$22*'Modelling Assumptions'!H$108 -> 500 | I36: =$C36*I$22*'Modelling Assumptions'!I$108 -> 500
A37: Contractor Labour | B37: =B31 -> 10824 | C37: =B37*$C$14 -> 75768 | D37: =C37*SUMPRODUCT(LabourAdjustmentFactor,E$22:I$22) -> 378840 | E37: =$C37*E$22*'Modelling Assumptions'!E$107 -> 75768 | F37: =$C37*F$22*'Modelling Assumptions'!F$107 -> 75768 | G37: =$C37*G$22*'Modelling Assumptions'!G$107 -> 75768 | H37: =$C37*H$22*'Modelling Assumptions'!H$107 -> 75768 | I37: =$C37*I$22*'Modelling Assumptions'!I$107 -> 75768
A38: Contractor Materials | B38: =B32 -> 0 | C38: =B38*$C$14 -> 0 | D38: =C38*SUMPRODUCT(MaterialsAdjustmentFactor,E$22:I$22) -> 0 | E38: =$C38*E$22*'Modelling Assumptions'!E$108 -> 0 | F38: =$C38*F$22*'Modelling Assumptions'!F$108 -> 0 | G38: =$C38*G$22*'Modelling Assumptions'!G$108 -> 0 | H38: =$C38*H$22*'Modelling Assumptions'!H$108 -> 0 | I38: =$C38*I$22*'Modelling Assumptions'!I$108 -> 0
A40: Contracted Cost of the Maintenance
A41: Per Site | B41: 32472 | C41: Figure provided in email from Operations Manager 31/3/14
A42: Spare Transformer | B42: 10824 | C42: Figure provided in email from Operations Manager 31/3/14
A43: Total | B43: =2*B41+B42 -> 75768 | C43: In 2014$
A46: APA Oil Sample
A47: APA staff | B47: 2 | C47: One APA technician for 2 hours at each site
A48: Material Cost of the testing | B48: 1000 | C48: For all 7 samples
A49: Discount | B49: 0.5 | C49: Additional testing is only done periodically
A51: Scheduled Maintenance
A52: PM ID | B52: PM Name | C52: Parent Location | D52: Asset Name
A53: QLD-ET-WI-PM012-0028-BLA1 | B53: POWER TRANSFORMER MAINTENANCE | C53: Bungalora - System 1 | D53: Bungalora System 1 - AC Switchyard Area WT2
A54: QLD-ET-WI-PM012-0028 | B54: POWER TRANSFORMER MAINTENANCE | C54: Bungalora System 2 - AC Switchyard Area WT2 | D54: Bungalora System 2 - Power Transformer WT2.T1
A55: QLD-ET-WI-PM012-0028 | B55: POWER TRANSFORMER MAINTENANCE | C55: Bungalora System 3 - AC Switchyard Area WT2 | D55: Bungalora System 3 - Power Transformer WT2.T1
A56: QLD-ET-WI-PM012-0028 | B56: POWER TRANSFORMER MAINTENANCE | C56: Mullumbimby System 1 - AC Switchyard Area WT2 | D56: Mullumbimby System 1 - Power Transformer WT2.T1
A57: QLD-ET-WI-PM012-0028 | B57: POWER TRANSFORMER MAINTENANCE | C57: Mullumbimby System 2 - AC Switchyard Area WT2 | D57: Mullumbimby System 2 - Power Transformer WT2.T1
A58: QLD-ET-WI-PM012-0028 | B58: POWER TRANSFORMER MAINTENANCE | C58: Mullumbimby System 3 - AC Switchyard Area WT2 | D58: Mullumbimby System 3 - Power Transformer WT2.T1
A64: Work Order # | B64: POWER TRANSFORMER MAINTENANCE
A65: QLD-166930 | B65: EDWARDS2 Luke | C65: PM | D65: 2013-11-18T17:29:00 | E65: Painted during this outage.Oil samples done.
A66: QLD-166880 | B66: COOMBER Stuart | C66: PM | D66: 2013-12-06T11:01:00 | E66: Oils samples done, all good. Results on server
A67: QLD-166881 | B67: EDWARDS2 Luke | C67: PM | D67: 2013-11-18T17:21:00 | E67: Painted during this outage.Oil samples done.
A68: QLD-166882 | B68: COOMBER Stuart | C68: PM | D68: 2013-12-06T11:01:00 | E68: Oils samples done, all good. Results on server
A69: QLD-166883 | B69: COOMBER Stuart | C69: PM | D69: 2013-12-06T11:01:00 | E69: Oils samples done, all good. Results on server
A70: QLD-166884 | B70: COOMBER Stuart | C70: PM | D70: 2013-12-06T11:01:00 | E70: Oils samples done, all good. Results on server

Sheet 0038 (1)
A1: Summary | B1: ZINC OXIDE SURGE ARRESTOR MAINTENANCE
A2: Return to Index | D2: Total in AER Period | E2: =Summary!C4 -> 2015/16 | F2: =Summary!D4 -> 2016/17 | G2: =Summary!E4 -> 2017/18 | H2: =Summary!F4 -> 2018/19 | I2: =Summary!G4 -> 2019/20
A3: APA Staff Costs | D3: =D42 -> 5947.38 | E3: 1189.476 | F3: 1189.476 | G3: 1189.476 | H3: 1189.476 | I3: 1189.476
A4: APA Material Costs | D4: 0 | E4: 0 | F4: 0 | G4: 0 | H4: 0 | I4: 0
A5: Contractor Labour | D5: 24750 | E5: 4950 | F5: 4950 | G5: 4950 | H5: 4950 | I5: 4950
A6: Contractor Materials | D6: 0 | E6: 0 | F6: 0 | G6: 0 | H6: 0 | I6: 0
A9: Scheduled Outage Required | B9: Yes
A10: Work Instruction | B10: DL-WI-34
A12: AC Surge Arrestor
B13: WT2.F1 | C13: 18
B14: WT2.F2 | C14: 6
B15: WA.Z1.F1 | C15: 18
A17: DC Surge Arrester
B18: WP1.F1 | C18: 6
B19: WP2.F1 | C19: 6
A21: DC Cable Screen Arrestor
B22: R1.F1 | C22: 6
B23: R1.F2 | C23: 6
A24: Number of Components to be serviced | C24: =SUM(C13:C23) -> 66
A26: Discussion
A27: This worksheet does not make a material contribution to the total O&M Direct Cost
E28: =Summary!C4 -> 2015/16 | F28: =Summary!D4 -> 2016/17 | G28: =Summary!E4 -> 2017/18 | H28: =Summary!F4 -> 2018/19 | I28: =Summary!G4 -> 2019/20
A29: QLD-ET-WI-PM012-0038 | B29: Every 1 year(s) | E29: 1 | F29: 1 | G29: 1 | H29: 1 | I29: 1
A30: APA Costs
A31: APA Maintenance Staff (Hrs) | B31: =APATechnicianHours/C24 -> 0.01515151515 | C31: Hours per arrestor
A32: APA Supervision (Hrs) | B32: =APASupervisorHours/C24 -> 0.1300505051 | C32: Hours per arrestor
A33: APA Material Costs | B33: 0
A35: Contractor Costs
A36: Contractor Labour (Hrs) | B36: 1 | C36: Hours per arrestor (from ABB recommended maintenance)
A37: Contractor Hourly Rate | B37: =ElectricalContractorHourlyRate -> 75 | C37: Thearle/SAE
A38: Contractor Labour | B38: =B36*B37 -> 75
A39: Contractor Materials | B39: 0
B41: Reference Year | C41: Total in Reference Year | D41: Total in AER Period | E41: =Summary!C4 -> 2015/16 | F41: =Summary!D4 -> 2016/17 | G41: =Summary!E4 -> 2017/18 | H41: =Summary!F4 -> 2018/19 | I41: =Summary!G4 -> 2019/20
A42: APA Staff Costs | B42: =B31*HourlyRateAPAMaintenanceStaff+B32*HourlyRateAPAOMSupervisor -> 18.02236364 | C42: =B42*$C$24 -> 1189.476 | D42: =C42*SUMPRODUCT(LabourAdjustmentFactor,E$29:I$29) -> 5947.38 | E42: =$C42*E$29*'Modelling Assumptions'!E$107 -> 1189.476 | F42: =$C42*F$29*'Modelling Assumptions'!F$107 -> 1189.476 | G42: =$C42*G$29*'Modelling Assumptions'!G$107 -> 1189.476 | H42: =$C42*H$29*'Modelling Assumptions'!H$107 -> 1189.476 | I42: =$C42*I$29*'Modelling Assumptions'!I$107 -> 1189.476
A43: APA Material Costs | B43: =B33 -> 0 | C43: =B43*$C$24 -> 0 | D43: =C43*SUMPRODUCT(MaterialsAdjustmentFactor,E$29:I$29) -> 0 | E43: =$C43*E$29*'Modelling Assumptions'!E$108 -> 0 | F43: =$C43*F$29*'Modelling Assumptions'!F$108 -> 0 | G43: =$C43*G$29*'Modelling Assumptions'!G$108 -> 0 | H43: =$C43*H$29*'Modelling Assumptions'!H$108 -> 0 | I43: =$C43*I$29*'Modelling Assumptions'!I$108 -> 0
A44: Contractor Labour | B44: =B38 -> 75 | C44: =B44*$C$24 -> 4950 | D44: =C44*SUMPRODUCT(LabourAdjustmentFactor,E$29:I$29) -> 24750 | E44: =$C44*E$29*'Modelling Assumptions'!E$107 -> 4950 | F44: =$C44*F$29*'Modelling Assumptions'!F$107 -> 4950 | G44: =$C44*G$29*'Modelling Assumptions'!G$107 -> 4950 | H44: =$C44*H$29*'Modelling Assumptions'!H$107 -> 4950 | I44: =$C44*I$29*'Modelling Assumptions'!I$107 -> 4950
A45: Contractor Materials | B45: =B39 -> 0 | C45: =B45*$C$24 -> 0 | D45: =C45*SUMPRODUCT(MaterialsAdjustmentFactor,E$29:I$29) -> 0 | E45: =$C45*E$29*'Modelling Assumptions'!E$108 -> 0 | F45: =$C45*F$29*'Modelling Assumptions'!F$108 -> 0 | G45: =$C45*G$29*'Modelling Assumptions'!G$108 -> 0 | H45: =$C45*H$29*'Modelling Assumptions'!H$108 -> 0 | I45: =$C45*I$29*'Modelling Assumptions'!I$108 -> 0
A48: Scheduled Maintenance
A49: PM ID | B49: PM Name | C49: Parent Location | D49: Asset Name
A50: QLD-ET-WI-PM012-0038-BLA1 | B50: ZINC OXIDE SURGE ARRESTOR MAINTENANCE | C50: Bungalora | D50: Bungalora - System 1
A51: QLD-ET-WI-PM012-0038-BLA2 | B51: ZINC OXIDE SURGE ARRESTOR MAINTENANCE | C51: Bungalora | D51: Bungalora - System 2
A52: QLD-ET-WI-PM012-0038-BLA3 | B52: ZINC OXIDE SURGE ARRESTOR MAINTENANCE | C52: Bungalora | D52: Bungalora - System 3
A53: QLD-ET-WI-PM012-0038-MUL1 | B53: ZINC OXIDE SURGE ARRESTOR MAINTENANCE | C53: Mullumbimby | D53: Mullumbimby - System 1
A54: QLD-ET-WI-PM012-0038-MUL2 | B54: ZINC OXIDE SURGE ARRESTOR MAINTENANCE | C54: Mullumbimby | D54: Mullumbimby - System 2
A55: QLD-ET-WI-PM012-0038-MUL3 | B55: ZINC OXIDE SURGE ARRESTOR MAINTENANCE | C55: Mullumbimby | D55: Mullumbimby - System 3
A61: Work Order # | B61: ZINC OXIDE SURGE ARRESTOR MAINTENANCE
A62: QLD-166931 | B62: COOMBER Stuart | C62: PM | D62: 2013-07-19T15:46:00 | E62: out of service
A63: QLD-166932 | B63: COOMBER Stuart | C63: PM | D63: 2013-09-18T14:43:00 | E63: done, entered sc.
A64: QLD-166933 | B64: EDWARDS2 Luke | C64: PM | D64: 2013-09-16T17:43:00 | E64: done
A65: QLD-166934 | B65: COOMBER Stuart | C65: PM | D65: 2013-07-19T15:46:00 | E65: out of service
A66: QLD-166935 | B66: Thearle Electrical | C66: PM | D66: 2013-09-16T14:49:00 | E66: Done sc
A67: QLD-166936 | B67: Thearle Electrical | C67: PM | D67: 2013-09-16T14:49:00 | E67: Done sc

Sheet 0038 (2)
A1: Summary | B1: AIR GAP SURGE LIMITER MAINTENANCE
A2: Return to Index | D2: Total in AER Period | E2: =Summary!C4 -> 2015/16 | F2: =Summary!D4 -> 2016/17 | G2: =Summary!E4 -> 2017/18 | H2: =Summary!F4 -> 2018/19 | I2: =Summary!G4 -> 2019/20
A3: APA Staff Costs | D3: =D33 -> 5947.38 | E3: 1189.476 | F3: 1189.476 | G3: 1189.476 | H3: 1189.476 | I3: 1189.476
A4: APA Material Costs | D4: 0 | E4: 0 | F4: 0 | G4: 0 | H4: 0 | I4: 0
A5: Contractor Labour | D5: 1125 | E5: 225 | F5: 225 | G5: 225 | H5: 225 | I5: 225
A6: Contractor Materials | D6: 0 | E6: 0 | F6: 0 | G6: 0 | H6: 0 | I6: 0
A9: Scheduled Outage Required | B9: Yes
A10: Work Instruction | B10: DL-WI-34
A12: DC Cable Screen Arrestor
B13: U.F11 | C13: 6
A14: Number of Components to be serviced | C14: =SUM(C12:C13) -> 6
A16: Discussion
A17: Inspection of the surge limiters
A18: This worksheet does not make a material contribution to the total O&M Direct Cost
E19: =Summary!C4 -> 2015/16 | F19: =Summary!D4 -> 2016/17 | G19: =Summary!E4 -> 2017/18 | H19: =Summary!F4 -> 2018/19 | I19: =Summary!G4 -> 2019/20
B20: Every 1 year(s) | E20: 1 | F20: 1 | G20: 1 | H20: 1 | I20: 1
A21: APA Costs
A22: APA Maintenance Staff (Hrs) | B22: =APATechnicianHours/C14 -> 0.1666666667 | C22: Hours per arrestor
A23: APA Supervision (Hrs) | B23: =APASupervisorHours/C14 -> 1.430555556 | C23: Hours per arrestor
A24: APA Material Costs | B24: 0
A26: Contractor Costs
A27: Contractor Labour (Hrs) | B27: 0.5 | C27: Hours per arrestor (the ABB maintenance suggests that this will take 1 hour but have used the time suggested by APA staff)
A28: Contractor Hourly Rate | B28: =ElectricalContractorHourlyRate -> 75 | C28: Thearle/SAE
A29: Contractor Labour | B29: =B27*B28 -> 37.5
A30: Contractor Materials | B30: 0
B32: Reference Year | C32: Total in Reference Year | D32: Total in AER Period | E32: =Summary!C4 -> 2015/16 | F32: =Summary!D4 -> 2016/17 | G32: =Summary!E4 -> 2017/18 | H32: =Summary!F4 -> 2018/19 | I32: =Summary!G4 -> 2019/20
A33: APA Staff Costs | B33: =B22*HourlyRateAPAMaintenanceStaff+B23*HourlyRateAPAOMSupervisor -> 198.246 | C33: =B33*$C$14 -> 1189.476 | D33: =C33*SUMPRODUCT(LabourAdjustmentFactor,E$20:I$20) -> 5947.38 | E33: =$C33*E$20*'Modelling Assumptions'!E$107 -> 1189.476 | F33: =$C33*F$20*'Modelling Assumptions'!F$107 -> 1189.476 | G33: =$C33*G$20*'Modelling Assumptions'!G$107 -> 1189.476 | H33: =$C33*H$20*'Modelling Assumptions'!H$107 -> 1189.476 | I33: =$C33*I$20*'Modelling Assumptions'!I$107 -> 1189.476
A34: APA Material Costs | B34: =B24 -> 0 | C34: =B34*$C$14 -> 0 | D34: =C34*SUMPRODUCT(MaterialsAdjustmentFactor,E$20:I$20) -> 0 | E34: =$C34*E$20*'Modelling Assumptions'!E$108 -> 0 | F34: =$C34*F$20*'Modelling Assumptions'!F$108 -> 0 | G34: =$C34*G$20*'Modelling Assumptions'!G$108 -> 0 | H34: =$C34*H$20*'Modelling Assumptions'!H$108 -> 0 | I34: =$C34*I$20*'Modelling Assumptions'!I$108 -> 0
A35: Contractor Labour | B35: =B29 -> 37.5 | C35: =B35*$C$14 -> 225 | D35: =C35*SUMPRODUCT(LabourAdjustmentFactor,E$20:I$20) -> 1125 | E35: =$C35*E$20*'Modelling Assumptions'!E$107 -> 225 | F35: =$C35*F$20*'Modelling Assumptions'!F$107 -> 225 | G35: =$C35*G$20*'Modelling Assumptions'!G$107 -> 225 | H35: =$C35*H$20*'Modelling Assumptions'!H$107 -> 225 | I35: =$C35*I$20*'Modelling Assumptions'!I$107 -> 225
A36: Contractor Materials | B36: =B30 -> 0 | C36: =B36*$C$14 -> 0 | D36: =C36*SUMPRODUCT(MaterialsAdjustmentFactor,E$20:I$20) -> 0 | E36: =$C36*E$20*'Modelling Assumptions'!E$108 -> 0 | F36: =$C36*F$20*'Modelling Assumptions'!F$108 -> 0 | G36: =$C36*G$20*'Modelling Assumptions'!G$108 -> 0 | H36: =$C36*H$20*'Modelling Assumptions'!H$108 -> 0 | I36: =$C36*I$20*'Modelling Assumptions'!I$108 -> 0

Sheet 0042
A1: Summary | B1: AC FILTER RESISTOR MAINTENANCE
A2: Return to Index | D2: Total in AER Period | E2: =Summary!C4 -> 2015/16 | F2: =Summary!D4 -> 2016/17 | G2: =Summary!E4 -> 2017/18 | H2: =Summary!F4 -> 2018/19 | I2: =Summary!G4 -> 2019/20
A3: APA Staff Costs | D3: =D36 -> 5947.38 | E3: 1189.476 | F3: 1189.476 | G3: 1189.476 | H3: 1189.476 | I3: 1189.476
A4: APA Material Costs | D4: 0 | E4: 0 | F4: 0 | G4: 0 | H4: 0 | I4: 0
A5: Contractor Labour | D5: 20250 | E5: 4050 | F5: 4050 | G5: 4050 | H5: 4050 | I5: 4050
A6: Contractor Materials | D6: 0 | E6: 0 | F6: 0 | G6: 0 | H6: 0 | I6: 0
A9: Scheduled Outage Required | B9: Yes
A10: Work Instruction | B10: DL-WI-35 (does not include WT1.R1)
A14: AC Filter Resistor
B15: WT1.R1 | C15: 18
B16: WA.Z1.Z11.R1 | C16: 18
B17: WA.Z1.Z12.R1 | C17: 18
A18: Number of Components to be serviced | C18: =SUM(C15:C17) -> 54
A20: Discussion
A21: This worksheet does not make a material contribution to the total O&M Direct Cost
E22: =Summary!C4 -> 2015/16 | F22: =Summary!D4 -> 2016/17 | G22: =Summary!E4 -> 2017/18 | H22: =Summary!F4 -> 2018/19 | I22: =Summary!G4 -> 2019/20
A23: QLD-ET-WI-PM012-0042 | B23: Every 1 year(s) | E23: 1 | F23: 1 | G23: 1 | H23: 1 | I23: 1
A24: APA Costs
A25: APA Maintenance Staff (Hrs) | B25: =APATechnicianHours/C18 -> 0.01851851852 | C25: Hours per filter resistor
A26: APA Supervision (Hrs) | B26: =APASupervisorHours/C18 -> 0.1589506173 | C26: Hours per filter resistor
A27: APA Material Costs | B27: 0
A29: Contractor Costs
A30: Contractor Labour (Hrs) | B30: 1 | C30: Hours per filter resistor
A31: Contractor Hourly Rate | B31: =ElectricalContractorHourlyRate -> 75
A32: Contractor Labour | B32: =B30*B31 -> 75
A33: Contractor Materials | B33: 0
B35: Reference Year | C35: Total in Reference Year | D35: Total in AER Period | E35: =Summary!C4 -> 2015/16 | F35: =Summary!D4 -> 2016/17 | G35: =Summary!E4 -> 2017/18 | H35: =Summary!F4 -> 2018/19 | I35: =Summary!G4 -> 2019/20
A36: APA Staff Costs | B36: =B25*HourlyRateAPAMaintenanceStaff+B26*HourlyRateAPAOMSupervisor -> 22.02733333 | C36: =B36*$C$18 -> 1189.476 | D36: =C36*SUMPRODUCT(LabourAdjustmentFactor,E$23:I$23) -> 5947.38 | E36: =$C36*E$23*'Modelling Assumptions'!E$107 -> 1189.476 | F36: =$C36*F$23*'Modelling Assumptions'!F$107 -> 1189.476 | G36: =$C36*G$23*'Modelling Assumptions'!G$107 -> 1189.476 | H36: =$C36*H$23*'Modelling Assumptions'!H$107 -> 1189.476 | I36: =$C36*I$23*'Modelling Assumptions'!I$107 -> 1189.476
A37: APA Material Costs | B37: =B27 -> 0 | C37: =B37*$C$18 -> 0 | D37: =C37*SUMPRODUCT(MaterialsAdjustmentFactor,E$23:I$23) -> 0 | E37: =$C37*E$23*'Modelling Assumptions'!E$108 -> 0 | F37: =$C37*F$23*'Modelling Assumptions'!F$108 -> 0 | G37: =$C37*G$23*'Modelling Assumptions'!G$108 -> 0 | H37: =$C37*H$23*'Modelling Assumptions'!H$108 -> 0 | I37: =$C37*I$23*'Modelling Assumptions'!I$108 -> 0
A38: Contractor Labour | B38: =B32 -> 75 | C38: 4050 | D38: =C38*SUMPRODUCT(LabourAdjustmentFactor,E$23:I$23) -> 20250 | E38: =$C38*E$23*'Modelling Assumptions'!E$107 -> 4050 | F38: =$C38*F$23*'Modelling Assumptions'!F$107 -> 4050 | G38: =$C38*G$23*'Modelling Assumptions'!G$107 -> 4050 | H38: =$C38*H$23*'Modelling Assumptions'!H$107 -> 4050 | I38: =$C38*I$23*'Modelling Assumptions'!I$107 -> 4050
A39: Contractor Materials | B39: =B33 -> 0 | C39: 0 | D39: =C39*SUMPRODUCT(MaterialsAdjustmentFactor,E$23:I$23) -> 0 | E39: =$C39*E$23*'Modelling Assumptions'!E$108 -> 0 | F39: =$C39*F$23*'Modelling Assumptions'!F$108 -> 0 | G39: =$C39*G$23*'Modelling Assumptions'!G$108 -> 0 | H39: =$C39*H$23*'Modelling Assumptions'!H$108 -> 0 | I39: =$C39*I$23*'Modelling Assumptions'!I$108 -> 0
A42: Scheduled Maintenance
A43: PM ID | B43: PM Name | C43: Parent Location
A44: QLD-ET-WI-PM012-0042-BLA1 | B44: AC FILTER RESISTOR MAINTENANCE | C44: Bungalora - System 1 | D44: Bungalora System 1 - AC Filter Area
A45: QLD-ET-WI-PM012-0042-BLA2 | B45: AC FILTER RESISTOR MAINTENANCE | C45: Bungalora - System 2 | D45: Bungalora System 2 - AC Filter Area
A46: QLD-ET-WI-PM012-0042-BLA3 | B46: AC FILTER RESISTOR MAINTENANCE | C46: Bungalora - System 3 | D46: Bungalora System 3 - AC Filter Area
A47: QLD-ET-WI-PM012-0042-MUL1 | B47: AC FILTER RESISTOR MAINTENANCE | C47: Mullumbimby - System 1 | D47: Mullumbimby System 1 - AC Filter Area
A48: QLD-ET-WI-PM012-0042-MUL2 | B48: AC FILTER RESISTOR MAINTENANCE | C48: Mullumbimby - System 2 | D48: Mullumbimby System 2 - AC Filter Area
A49: QLD-ET-WI-PM012-0042-MUL3 | B49: AC FILTER RESISTOR MAINTENANCE | C49: Mullumbimby - System 3 | D49: Mullumbimby System 3 - AC Filter Area
A55: Work Order # | B55: AC FILTER RESISTOR MAINTENANCE
A56: QLD-166885 | B56: COOMBER Stuart | C56: PM | D56: 2013-09-18T13:21:00 | E56: decommissioned
A57: QLD-166937 | B57: EDWARDS2 Luke | C57: PM | D57: 2013-09-16T17:46:00 | E57: done
A58: QLD-166938 | B58: Thearle Electrical | C58: PM | D58: 2013-09-18T14:59:00 | E58: done theirls, done, entered sc.
A59: QLD-166939 | B59: COOMBER Stuart | C59: PM | D59: 2013-07-19T15:51:00 | E59: out of service
A60: QLD-166940 | B60: Thearle Electrical | C60: PM | D60: 2013-09-16T14:52:00 | E60: Done eneterd sc
A61: QLD-166941 | B61: Thearle Electrical | C61: PM | D61: 2013-09-16T14:52:00 | E61: Done eneterd sc

Sheet 0050 (1)
A1: Summary | B1: VALVE COOLING SYSTEM MAINTENANCE
A2: Return to Index | D2: Total in AER Period | E2: =Summary!C4 -> 2015/16 | F2: =Summary!D4 -> 2016/17 | G2: =Summary!E4 -> 2017/18 | H2: =Summary!F4 -> 2018/19 | I2: =Summary!G4 -> 2019/20
A3: APA Staff Costs | D3: =D39+D59+D80 -> 6755.733 | E3: =E39+E59+E80 -> 1543.527 | F3: 1189.476 | G3: 1416.627 | H3: 1189.476 | I3: 1416.627
A4: APA Material Costs | D4: =D40+D60+D81 -> 52500 | E4: 10500 | F4: 10500 | G4: 10500 | H4: 10500 | I4: 10500
A5: Contractor Labour | D5: =D41+D61+D82 -> 38250 | E5: 7950 | F5: 7200 | G5: 7950 | H5: 7200 | I5: 7950
A6: Contractor Materials | D6: =D42+D62+D83 -> 0 | E6: 0 | F6: 0 | G6: 0 | H6: 0 | I6: 0
A9: Scheduled Outage Required | B9: No
A10: Work Instruction | B10: not sighted
A13: Valve Cooling System Maintenance
B14: Sites | C14: 2
A15: Number of Components to be serviced | C15: =C14 -> 2
A17: Discussion
A18: Valve operation, replacing deionising resin, removing and inspecting strainers, testing safety valves, transducer checks
A19: Pump and motor alignment
E21: =Summary!C4 -> 2015/16 | F21: =Summary!D4 -> 2016/17 | G21: =Summary!E4 -> 2017/18 | H21: =Summary!F4 -> 2018/19 | I21: =Summary!G4 -> 2019/20
A22: QLD-ET-WI-PM012-0050 | B22: Every 1 year(s) | E22: 1 | F22: 1 | G22: 1 | H22: 1 | I22: 1
A23: APA Costs
A24: APA Maintenance Staff (Hrs) | B24: =APATechnicianHours/C15 -> 0.5 | C24: Hours per site per visit
A25: APA Supervision (Hrs) | B25: =APASupervisorHours/C15 -> 4.291666667 | C25: Hours per site
A26: APA Material Costs | B26: =(B35+B36)/C15 -> 5250
A28: Contractor Costs
A29: Contractor Labour (Hrs) | B29: =8*2*3 -> 48 | C29: Hours per site (Anecdotal: Operations Manager suggests 2 days per building with 3 buildings at each site)
A30: Contractor Hourly Rate | B30: =ElectricalContractorHourlyRate -> 75
A31: Contractor Labour | B31: =B29*B30 -> 3600 | C31: Hours per site
A32: Contractor Materials | B32: 0
A34: Materials
A35: Deionising resin | B35: 7000 | C35: Source: OPEX Budget indicates 800 litres required per year
A36: Pall Filter Cartridges | B36: =3500 -> 3500 | C36: Source: CY14/FY15 OPEX Budget
B38: Reference Year | C38: Total in Reference Year (per maintenance cycle) | D38: Total in AER Period | E38: =Summary!C4 -> 2015/16 | F38: =Summary!D4 -> 2016/17 | G38: =Summary!E4 -> 2017/18 | H38: =Summary!F4 -> 2018/19 | I38: =Summary!G4 -> 2019/20
A39: APA Staff Costs | B39: =B24*HourlyRateAPAMaintenanceStaff+B25*HourlyRateAPAOMSupervisor -> 594.738 | C39: =B39*$C$15 -> 1189.476 | D39: =C39*SUMPRODUCT(LabourAdjustmentFactor,E$22:I$22) -> 5947.38 | E39: =$C39*E$22*'Modelling Assumptions'!E$107 -> 1189.476 | F39: =$C39*F$22*'Modelling Assumptions'!F$107 -> 1189.476 | G39: =$C39*G$22*'Modelling Assumptions'!G$107 -> 1189.476 | H39: =$C39*H$22*'Modelling Assumptions'!H$107 -> 1189.476 | I39: =$C39*I$22*'Modelling Assumptions'!I$107 -> 1189.476
A40: APA Material Costs | B40: =B26 -> 5250 | C40: =B40*$C$15 -> 10500 | D40: =C40*SUMPRODUCT(MaterialsAdjustmentFactor,E$22:I$22) -> 52500 | E40: =$C40*E$22*'Modelling Assumptions'!E$108 -> 10500 | F40: =$C40*F$22*'Modelling Assumptions'!F$108 -> 10500 | G40: =$C40*G$22*'Modelling Assumptions'!G$108 -> 10500 | H40: =$C40*H$22*'Modelling Assumptions'!H$108 -> 10500 | I40: =$C40*I$22*'Modelling Assumptions'!I$108 -> 10500
A41: Contractor Labour | B41: =B31 -> 3600 | C41: =B41*$C$15 -> 7200 | D41: =C41*SUMPRODUCT(LabourAdjustmentFactor,E$22:I$22) -> 36000 | E41: =$C41*E$22*'Modelling Assumptions'!E$107 -> 7200 | F41: =$C41*F$22*'Modelling Assumptions'!F$107 -> 7200 | G41: =$C41*G$22*'Modelling Assumptions'!G$107 -> 7200 | H41: =$C41*H$22*'Modelling Assumptions'!H$107 -> 7200 | I41: =$C41*I$22*'Modelling Assumptions'!I$107 -> 7200
A42: Contractor Materials | B42: =B32 -> 0 | C42: =B42*$C$15 -> 0 | D42: =C42*SUMPRODUCT(MaterialsAdjustmentFactor,E$22:I$22) -> 0 | E42: =$C42*E$22*'Modelling Assumptions'!E$108 -> 0 | F42: =$C42*F$22*'Modelling Assumptions'!F$108 -> 0 | G42: =$C42*G$22*'Modelling Assumptions'!G$108 -> 0 | H42: =$C42*H$22*'Modelling Assumptions'!H$108 -> 0 | I42: =$C42*I$22*'Modelling Assumptions'!I$108 -> 0
E45: =Summary!C4 -> 2015/16 | F45: =Summary!D4 -> 2016/17 | G45: =Summary!E4 -> 2017/18 | H45: =Summary!F4 -> 2018/19 | I45: =Summary!G4 -> 2019/20
A46: QLD-ET-WI-PM024-0050 | B46: Every 2 year(s) | E46: 1 | F46: 0 | G46: 1 | H46: 0 | I46: 1
A47: APA Costs
A48: APA Maintenance Staff (Hrs) | B48: =APATechnicianHours/C15 -> 0.5 | C48: Hours per site
A49: APA Supervision (Hrs) | B49: =0.5 -> 0.5 | C49: Hours per site (minor extra allowance over annual to process the WO created by Maintenance Connection)
A50: APA Material Costs | B50: 0
A52: Contractor Costs
A53: Contractor Labour (Hrs) | B53: 5 | C53: Hours per site (taking times from ABB recommended maintenance of strainer and ion-exchange vessel)
A54: Contractor Hourly Rate | B54: =ElectricalContractorHourlyRate -> 75
A55: Contractor Labour | B55: =B53*B54 -> 375
A56: Contractor Materials | B56: 0
B58: Reference Year | C58: Total in Reference Year (per maintenance cycle) | D58: Total in AER Period | E58: =Summary!C4 -> 2015/16 | F58: =Summary!D4 -> 2016/17 | G58: =Summary!E4 -> 2017/18 | H58: =Summary!F4 -> 2018/19 | I58: =Summary!G4 -> 2019/20
A59: APA Staff Costs | B59: =B48*HourlyRateAPAMaintenanceStaff+B49*HourlyRateAPAOMSupervisor -> 113.5755 | C59: =B59*$C$15 -> 227.151 | D59: =C59*SUMPRODUCT(LabourAdjustmentFactor,E$46:I$46) -> 681.453 | E59: =$C59*E$46*'Modelling Assumptions'!E$107 -> 227.151 | F59: =$C59*F$46*'Modelling Assumptions'!F$107 -> 0 | G59: =$C59*G$46*'Modelling Assumptions'!G$107 -> 227.151 | H59: =$C59*H$46*'Modelling Assumptions'!H$107 -> 0 | I59: =$C59*I$46*'Modelling Assumptions'!I$107 -> 227.151
A60: APA Material Costs | B60: =B50 -> 0 | C60: =B60*$C$15 -> 0 | D60: =C60*SUMPRODUCT(MaterialsAdjustmentFactor,E$46:I$46) -> 0 | E60: =$C60*E$46*'Modelling Assumptions'!E$108 -> 0 | F60: =$C60*F$46*'Modelling Assumptions'!F$108 -> 0 | G60: =$C60*G$46*'Modelling Assumptions'!G$108 -> 0 | H60: =$C60*H$46*'Modelling Assumptions'!H$108 -> 0 | I60: =$C60*I$46*'Modelling Assumptions'!I$108 -> 0
A61: Contractor Labour | B61: =B55 -> 375 | C61: =B61*$C$15 -> 750 | D61: =C61*SUMPRODUCT(LabourAdjustmentFactor,E$46:I$46) -> 2250 | E61: =$C61*E$46*'Modelling Assumptions'!E$107 -> 750 | F61: =$C61*F$46*'Modelling Assumptions'!F$107 -> 0 | G61: =$C61*G$46*'Modelling Assumptions'!G$107 -> 750 | H61: =$C61*H$46*'Modelling Assumptions'!H$107 -> 0 | I61: =$C61*I$46*'Modelling Assumptions'!I$107 -> 750
A62: Contractor Materials | B62: =B56 -> 0 | C62: =B62*$C$15 -> 0 | D62: =C62*SUMPRODUCT(MaterialsAdjustmentFactor,E$46:I$46) -> 0 | E62: =$C62*E$46*'Modelling Assumptions'!E$108 -> 0 | F62: =$C62*F$46*'Modelling Assumptions'!F$108 -> 0 | G62: =$C62*G$46*'Modelling Assumptions'!G$108 -> 0 | H62: =$C62*H$46*'Modelling Assumptions'!H$108 -> 0 | I62: =$C62*I$46*'Modelling Assumptions'!I$108 -> 0
E65: =Summary!C4 -> 2015/16 | F65: =Summary!D4 -> 2016/17 | G65: =Summary!E4 -> 2017/18 | H65: =Summary!F4 -> 2018/19 | I65: =Summary!G4 -> 2019/20
A66: QLD-ET-WI-PM060-0050 | B66: Every 5 year(s) | E66: 1 | F66: 0 | G66: 0 | H66: 0 | I66: 0
A67: No maintenance has been costed for this PM - OEM instructions indicate 5 year maintenance not required
A68: APA Costs
A69: APA Maintenance Staff (Hrs) | B69: 0 | C69: Hours per site
A70: APA Supervision (Hrs) | B70: =0.5 -> 0.5 | C70: Hours per site (to close the WO generated by MC)
A71: APA Material Costs | B71: 0
A73: Contractor Costs
A74: Contractor Labour (Hrs) | C74: Hours per site
A75: Contractor Hourly Rate
A76: Contractor Labour | B76: 0 | C76: Included above
A77: Contractor Materials | B77: 0
B79: Reference Year | C79: Total in Reference Year (per maintenance cycle) | D79: Total in AER Period | E79: =Summary!C4 -> 2015/16 | F79: =Summary!D4 -> 2016/17 | G79: =Summary!E4 -> 2017/18 | H79: =Summary!F4 -> 2018/19 | I79: =Summary!G4 -> 2019/20
A80: APA Staff Costs | B80: =B69*HourlyRateAPAMaintenanceStaff+B70*HourlyRateAPAOMSupervisor -> 63.45 | C80: =B80*$C$15 -> 126.9 | D80: =C80*SUMPRODUCT(LabourAdjustmentFactor,E$66:I$66) -> 126.9 | E80: =$C80*E$66*'Modelling Assumptions'!E$107 -> 126.9 | F80: =$C80*F$66*'Modelling Assumptions'!F$107 -> 0 | G80: =$C80*G$66*'Modelling Assumptions'!G$107 -> 0 | H80: =$C80*H$66*'Modelling Assumptions'!H$107 -> 0 | I80: =$C80*I$66*'Modelling Assumptions'!I$107 -> 0
A81: APA Material Costs | B81: =B71 -> 0 | C81: =B81*$C$15 -> 0 | D81: =C81*SUMPRODUCT(MaterialsAdjustmentFactor,E$66:I$66) -> 0 | E81: =$C81*E$66*'Modelling Assumptions'!E$108 -> 0 | F81: =$C81*F$66*'Modelling Assumptions'!F$108 -> 0 | G81: =$C81*G$66*'Modelling Assumptions'!G$108 -> 0 | H81: =$C81*H$66*'Modelling Assumptions'!H$108 -> 0 | I81: =$C81*I$66*'Modelling Assumptions'!I$108 -> 0
A82: Contractor Labour | B82: =B76 -> 0 | C82: =B82*$C$15 -> 0 | D82: =C82*SUMPRODUCT(LabourAdjustmentFactor,E$66:I$66) -> 0 | E82: =$C82*E$66*'Modelling Assumptions'!E$107 -> 0 | F82: =$C82*F$66*'Modelling Assumptions'!F$107 -> 0 | G82: =$C82*G$66*'Modelling Assumptions'!G$107 -> 0 | H82: =$C82*H$66*'Modelling Assumptions'!H$107 -> 0 | I82: =$C82*I$66*'Modelling Assumptions'!I$107 -> 0
A83: Contractor Materials | B83: =B77 -> 0 | C83: =B83*$C$15 -> 0 | D83: =C83*SUMPRODUCT(MaterialsAdjustmentFactor,E$66:I$66) -> 0 | E83: =$C83*E$66*'Modelling Assumptions'!E$108 -> 0 | F83: =$C83*F$66*'Modelling Assumptions'!F$108 -> 0 | G83: =$C83*G$66*'Modelling Assumptions'!G$108 -> 0 | H83: =$C83*H$66*'Modelling Assumptions'!H$108 -> 0 | I83: =$C83*I$66*'Modelling Assumptions'!I$108 -> 0
A89: Scheduled Maintenance
A90: PM ID | B90: PM Name | C90: Parent Location
A91: QLD-ET-WI-PM012-0050 | B91: Every 1 year(s)
A92: QLD-ET-WI-PM012-0050 | B92: VALVE COOLING SYSTEM MAINTENANCE - 1YR | C92: Bungalora - System 1 | D92: Bungalora System 1 - Valve Cooling System
A93: QLD-ET-WI-PM012-0050 | B93: VALVE COOLING SYSTEM MAINTENANCE - 1YR | C93: Bungalora - System 2 | D93: Bungalora System 2 - Valve Cooling System
A94: QLD-ET-WI-PM012-0050 | B94: VALVE COOLING SYSTEM MAINTENANCE - 1YR | C94: Bungalora - System 3 | D94: Bungalora System 3 - Valve Cooling System
A95: QLD-ET-WI-PM012-0050 | B95: VALVE COOLING SYSTEM MAINTENANCE - 1YR | C95: Mullumbimby - System 1 | D95: Mullumbimby System 1 - Valve Cooling System
A96: QLD-ET-WI-PM012-0050 | B96: VALVE COOLING SYSTEM MAINTENANCE - 1YR | C96: Mullumbimby - System 2 | D96: Mullumbimby System 2 - Valve Cooling System
A97: QLD-ET-WI-PM012-0050 | B97: VALVE COOLING SYSTEM MAINTENANCE - 1YR | C97: Mullumbimby - System 3 | D97: Mullumbimby System 3 - Valve Cooling System
A99: QLD-ET-WI-PM024-0050 | B99: Every 2 year(s)
A100: QLD-ET-WI-PM024-0050 | B100: VALVE COOLING SYSTEM MAINTENANCE - 2YR | C100: Bungalora - System 1 | D100: Bungalora System 1 - Valve Cooling System
A101: QLD-ET-WI-PM024-0050 | B101: VALVE COOLING SYSTEM MAINTENANCE - 2YR | C101: Bungalora - System 2 | D101: Bungalora System 2 - Valve Cooling System
A102: QLD-ET-WI-PM024-0050 | B102: VALVE COOLING SYSTEM MAINTENANCE - 2YR | C102: Bungalora - System 3 | D102: Bungalora System 3 - Valve Cooling System
A103: QLD-ET-WI-PM024-0050 | B103: VALVE COOLING SYSTEM MAINTENANCE - 2YR | C103: Mullumbimby - System 1 | D103: Mullumbimby System 1 - Valve Cooling System
A104: QLD-ET-WI-PM024-0050 | B104: VALVE COOLING SYSTEM MAINTENANCE - 2YR | C104: Mullumbimby - System 2 | D104: Mullumbimby System 2 - Valve Cooling System
A105: QLD-ET-WI-PM024-0050 | B105: VALVE COOLING SYSTEM MAINTENANCE - 2YR | C105: Mullumbimby - System 3 | D105: Mullumbimby System 3 - Valve Cooling System
A107: QLD-ET-WI-PM060-0050 | B107: Every 5 year(s)
A108: QLD-ET-WI-PM060-0050-BLA1 | B108: VALVE COOLING SYSTEM MAINTENANCE - 5YR | C108: Bungalora - System 1 | D108: Bungalora System 1 - Valve Cooling System
A109: QLD-ET-WI-PM060-0050-BLA2 | B109: VALVE COOLING SYSTEM MAINTENANCE - 5YR | C109: Bungalora - System 2 | D109: Bungalora System 2 - Valve Cooling System
A110: QLD-ET-WI-PM060-0050-BLA3 | B110: VALVE COOLING SYSTEM MAINTENANCE - 5YR | C110: Bungalora - System 3 | D110: Bungalora System 3 - Valve Cooling System
A111: QLD-ET-WI-PM060-0050-MUL1 | B111: VALVE COOLING SYSTEM MAINTENANCE - 5YR | C111: Mullumbimby - System 1 | D111: Mullumbimby System 1 - Valve Cooling System
A112: QLD-ET-WI-PM060-0050-MUL2 | B112: VALVE COOLING SYSTEM MAINTENANCE - 5YR | C112: Mullumbimby - System 2 | D112: Mullumbimby System 2 - Valve Cooling System
A113: QLD-ET-WI-PM060-0050-MUL3 | B113: VALVE COOLING SYSTEM MAINTENANCE - 5YR | C113: Mullumbimby - System 3 | D113: Mullumbimby System 3 - Valve Cooling System

Sheet 0050 (2)
A1: Summary | B1: NITROGEN BOTTLE REPLACEMENT
A2: Return to Index | D2: Total in AER Period | E2: =Summary!C4 -> 2015/16 | F2: =Summary!D4 -> 2016/17 | G2: =Summary!E4 -> 2017/18 | H2: =Summary!F4 -> 2018/19 | I2: =Summary!G4 -> 2019/20
A3: APA Staff Costs | D3: =SUM(E3:I3) -> 31674.24 | E3: =E50 -> 6334.848 | F3: =F50 -> 6334.848 | G3: 6334.848 | H3: 6334.848 | I3: 6334.848
A4: APA Material Costs | D4: =SUM(E4:I4) -> 41209.6 | E4: =E51 -> 8241.92 | F4: 8241.92 | G4: 8241.92 | H4: 8241.92 | I4: 8241.92
A5: Contractor Labour | D5: =SUM(E5:I5) -> 0 | E5: =E52 -> 0 | F5: 0 | G5: 0 | H5: 0 | I5: 0
A6: Contractor Materials | D6: 0 | E6: =E53 -> 0 | F6: 0 | G6: 0 | H6: 0 | I6: 0
A9: Scheduled Outage Required | B9: No
A10: Work Instruction | B10: not sighted
A13: Nitrogen bottle replacement
B14: Sites | C14: 2 | D14: Per Site
A15: Number of Components to be serviced | C15: =C14 -> 2
A17: Discussion
A18: The nitrogen bottle must be replaced regularly
A19: Each converter building has 4 bottles (4 x 6 = 24 in total)
A20: The bottle are used in pairs - so when changed 2 bottles are replaced
A21: It takes an hour to replace the bottles (every 2 months per building)
A22: Another hour has been allocated for the exchange of the bottles (every 2 months per site) and to update the log
A23: The bottles remain the property of BOC with a monthly rental fee covering the hire of the bottle
A24: Directlink must also purchase the nitrogen gas they use
E25: =Summary!C4 -> 2015/16 | F25: =Summary!D4 -> 2016/17 | G25: =Summary!E4 -> 2017/18 | H25: =Summary!F4 -> 2018/19 | I25: =Summary!G4 -> 2019/20
A26: QLD-ET-WI-PM001-0050 | B26: Every 1 month(s) | E26: 12 | F26: 12 | G26: 12 | H26: 12 | I26: 12
A27: APA Costs
A28: APA Maintenance Staff (Hrs) | B28: =(1+1*3)/C15 -> 2 | C28: Hours per site (contractor on site and to install the bottles)
A29: APA Supervision (Hrs) | B29: =1/C15 -> 0.5 | C29: Hours per site (processing invoices)
A30: APA Material Costs | B30: =B39/C15/12 -> 343.4133333 | C30: Material Cost per site per month
A32: Contractor Costs
A33: Contractor Labour (Hrs)
A34: Contractor Hourly Rate
A35: Contractor Labour | B35: 0 | C35: Hours per building
A36: Contractor Materials | B36: 0
A38: Material Costs | C38: Anecdotal Information from Operations Manager
A39: Nitrogen Gas | B39: =B40*B41+B42*B43*12 -> 8241.92 | C39: Total Cost p.a. (from Operations Manager 7/5/14)
A40: Nitrogen Gas (refill) | B40: 33.04 | C40: Per bottle (From Operations Manager 7/5/14)
A41: Bottles per year | B41: 26 | C41: From Operations Manager 7/5/14
A42: Container service charge | B42: 51.27 | C42: per month (From Operations Manager 7/5/14)
A43: Number of "containers" | B43: 12 | C43: (From Operations Manager 7/5/14)
B49: Reference Year | C49: Total in Reference Year (per maintenance cycle) | D49: Total in AER Period | E49: =Summary!C4 -> 2015/16 | F49: =Summary!D4 -> 2016/17 | G49: =Summary!E4 -> 2017/18 | H49: =Summary!F4 -> 2018/19 | I49: =Summary!G4 -> 2019/20
A50: APA Staff Costs | B50: =B28*HourlyRateAPAMaintenanceStaff+B29*HourlyRateAPAOMSupervisor -> 263.952 | C50: =B50*$C$15 -> 527.904 | D50: =C50*SUMPRODUCT(LabourAdjustmentFactor,E$26:I$26) -> 31674.24 | E50: =$C50*E$26*'Modelling Assumptions'!E$107 -> 6334.848 | F50: =$C50*F$26*'Modelling Assumptions'!F$107 -> 6334.848 | G50: =$C50*G$26*'Modelling Assumptions'!G$107 -> 6334.848 | H50: =$C50*H$26*'Modelling Assumptions'!H$107 -> 6334.848 | I50: =$C50*I$26*'Modelling Assumptions'!I$107 -> 6334.848
A51: APA Material Costs | B51: =B30 -> 343.4133333 | C51: =B51*$C$15 -> 686.8266667 | D51: =C51*SUMPRODUCT(MaterialsAdjustmentFactor,E$26:I$26) -> 41209.6 | E51: =$C51*E$26*'Modelling Assumptions'!E$108 -> 8241.92 | F51: =$C51*F$26*'Modelling Assumptions'!F$108 -> 8241.92 | G51: =$C51*G$26*'Modelling Assumptions'!G$108 -> 8241.92 | H51: =$C51*H$26*'Modelling Assumptions'!H$108 -> 8241.92 | I51: =$C51*I$26*'Modelling Assumptions'!I$108 -> 8241.92
A52: Contractor Labour | B52: =B35 -> 0 | C52: =B52*$C$15 -> 0 | D52: =C52*SUMPRODUCT(LabourAdjustmentFactor,E$26:I$26) -> 0 | E52: =$C52*E$26*'Modelling Assumptions'!E$107 -> 0 | F52: =$C52*F$26*'Modelling Assumptions'!F$107 -> 0 | G52: =$C52*G$26*'Modelling Assumptions'!G$107 -> 0 | H52: =$C52*H$26*'Modelling Assumptions'!H$107 -> 0 | I52: =$C52*I$26*'Modelling Assumptions'!I$107 -> 0
A53: Contractor Materials | B53: =B36 -> 0 | C53: =B53*$C$15 -> 0 | D53: =C53*SUMPRODUCT(MaterialsAdjustmentFactor,E$26:I$26) -> 0 | E53: =$C53*E$26*'Modelling Assumptions'!E$108 -> 0 | F53: =$C53*F$26*'Modelling Assumptions'!F$108 -> 0 | G53: =$C53*G$26*'Modelling Assumptions'!G$108 -> 0 | H53: =$C53*H$26*'Modelling Assumptions'!H$108 -> 0 | I53: =$C53*I$26*'Modelling Assumptions'!I$108 -> 0

Sheet 0052
A1: Summary | B1: VALVE COOLING SYSTEM PUMP MAINTENANCE
A2: Return to Index | D2: Total in AER Period | E2: =Summary!C4 -> 2015/16 | F2: =Summary!D4 -> 2016/17 | G2: =Summary!E4 -> 2017/18 | H2: =Summary!F4 -> 2018/19 | I2: =Summary!G4 -> 2019/20
A3: APA Staff Costs | D3: =D35 -> 5947.38 | E3: 1189.476 | F3: 1189.476 | G3: 1189.476 | H3: 1189.476 | I3: 1189.476
A4: APA Material Costs | D4: 0 | E4: 0 | F4: 0 | G4: 0 | H4: 0 | I4: 0
A5: Contractor Labour | D5: 18000 | E5: 3600 | F5: 3600 | G5: 3600 | H5: 3600 | I5: 3600
A6: Contractor Materials | D6: 0 | E6: 0 | F6: 0 | G6: 0 | H6: 0 | I6: 0
A9: Scheduled Outage Required | B9: No
A10: Work Instruction | B10: not sighted
A12: Valve Cooling Pump Maintenance
B13: Pumps | C13: 12
A14: Number of Components to be serviced | C14: =SUM(C12:C13) -> 12 | D14: Two pumps per building
A16: Discussion
A17: Major corrective maintenance has been undertaken recently
A18: It is felt that this has addressed issues that were being experienced with these pumps (leaks)
A19: Annual maintenance is therefore assumed to be an inspection, check of the oil and check the alignment
A20: This worksheet does not make a material contribution to the total O&M Direct Cost
E21: =Summary!C4 -> 2015/16 | F21: =Summary!D4 -> 2016/17 | G21: =Summary!E4 -> 2017/18 | H21: =Summary!F4 -> 2018/19 | I21: =Summary!G4 -> 2019/20
A22: QLD-ET-WI-PM012-0052 | B22: Every 1 year(s) | E22: 1 | F22: 1 | G22: 1 | H22: 1 | I22: 1
A23: APA Costs
A24: APA Maintenance Staff (Hrs) | B24: =APATechnicianHours/C14 -> 0.08333333333 | C24: Hours per pump
A25: APA Supervision (Hrs) | B25: =APASupervisorHours/C14 -> 0.7152777778 | C25: Hours per pump
A26: APA Material Costs | B26: 0
A28: Contractor Costs
A29: Contractor Labour (Hrs) | B29: 4 | C29: Hours per pump (aligns with the ABB recommended time)
A30: Contractor Hourly Rate | B30: =ElectricalContractorHourlyRate -> 75
A31: Contractor Labour | B31: =B29*B30 -> 300
A32: Contractor Materials | B32: 0
B34: Reference Year | C34: Total in Reference Year | D34: Total in AER Period | E34: =Summary!C4 -> 2015/16 | F34: =Summary!D4 -> 2016/17 | G34: =Summary!E4 -> 2017/18 | H34: =Summary!F4 -> 2018/19 | I34: =Summary!G4 -> 2019/20
A35: APA Staff Costs | B35: =B24*HourlyRateAPAMaintenanceStaff+B25*HourlyRateAPAOMSupervisor -> 99.123 | C35: =B35*$C$14 -> 1189.476 | D35: =C35*SUMPRODUCT(LabourAdjustmentFactor,E$22:I$22) -> 5947.38 | E35: =$C35*E$22*'Modelling Assumptions'!E$107 -> 1189.476 | F35: =$C35*F$22*'Modelling Assumptions'!F$107 -> 1189.476 | G35: =$C35*G$22*'Modelling Assumptions'!G$107 -> 1189.476 | H35: =$C35*H$22*'Modelling Assumptions'!H$107 -> 1189.476 | I35: =$C35*I$22*'Modelling Assumptions'!I$107 -> 1189.476
A36: APA Material Costs | B36: =B26 -> 0 | C36: =B36*$C$14 -> 0 | D36: =C36*SUMPRODUCT(MaterialsAdjustmentFactor,E$22:I$22) -> 0 | E36: =$C36*E$22*'Modelling Assumptions'!E$108 -> 0 | F36: =$C36*F$22*'Modelling Assumptions'!F$108 -> 0 | G36: =$C36*G$22*'Modelling Assumptions'!G$108 -> 0 | H36: =$C36*H$22*'Modelling Assumptions'!H$108 -> 0 | I36: =$C36*I$22*'Modelling Assumptions'!I$108 -> 0
A37: Contractor Labour | B37: =B31 -> 300 | C37: 3600 | D37: =C37*SUMPRODUCT(LabourAdjustmentFactor,E$22:I$22) -> 18000 | E37: =$C37*E$22*'Modelling Assumptions'!E$107 -> 3600 | F37: =$C37*F$22*'Modelling Assumptions'!F$107 -> 3600 | G37: =$C37*G$22*'Modelling Assumptions'!G$107 -> 3600 | H37: =$C37*H$22*'Modelling Assumptions'!H$107 -> 3600 | I37: =$C37*I$22*'Modelling Assumptions'!I$107 -> 3600
A38: Contractor Materials | B38: =B32 -> 0 | C38: 0 | D38: =C38*SUMPRODUCT(MaterialsAdjustmentFactor,E$22:I$22) -> 0 | E38: =$C38*E$22*'Modelling Assumptions'!E$108 -> 0 | F38: =$C38*F$22*'Modelling Assumptions'!F$108 -> 0 | G38: =$C38*G$22*'Modelling Assumptions'!G$108 -> 0 | H38: =$C38*H$22*'Modelling Assumptions'!H$108 -> 0 | I38: =$C38*I$22*'Modelling Assumptions'!I$108 -> 0
A41: Scheduled Maintenance
A42: PM ID | B42: PM Name | C42: Parent Location
A43: QLD-ET-WI-PM012-0052 | B43: Every 1 year(s)
A44: QLD-ET-WI-PM012-0052-BLA1 | B44: VALVE COOLING SYSTEM PUMP MAINTENANCE | C44: Bungalora - System 1 | D44: Bungalora System 1 - Valve Cooling System
A45: QLD-ET-WI-PM012-0052-BLA2 | B45: VALVE COOLING SYSTEM PUMP MAINTENANCE | C45: Bungalora - System 2 | D45: Bungalora System 2 - Valve Cooling System
A46: QLD-ET-WI-PM012-0052-BLA3 | B46: VALVE COOLING SYSTEM PUMP MAINTENANCE | C46: Bungalora - System 3 | D46: Bungalora System 3 - Valve Cooling System
A47: QLD-ET-WI-PM012-0052-MUL1 | B47: VALVE COOLING SYSTEM PUMP MAINTENANCE | C47: Mullumbimby - System 1 | D47: Mullumbimby System 1 - Valve Cooling System
A48: QLD-ET-WI-PM012-0052-MUL2 | B48: VALVE COOLING SYSTEM PUMP MAINTENANCE | C48: Mullumbimby - System 2 | D48: Mullumbimby System 2 - Valve Cooling System
A49: QLD-ET-WI-PM012-0052-MUL3 | B49: VALVE COOLING SYSTEM PUMP MAINTENANCE | C49: Mullumbimby - System 3 | D49: Mullumbimby System 3 - Valve Cooling System
A55: Work Order # | B55: VALVE COOLING SYSTEM PUMP MAINTENANCE
A56: QLD-166330 | B56: EDWARDS2 Luke | C56: PM | D56: 2013-09-18T14:36:00 | E56: All reactors checked. All phase reactors need further investigation, extended shutdown
A57: QLD-166331 | B57: HARRIS James | C57: PM | D57: 2013-08-22T14:48:00 | E57: James harris insatlled and realigned pump and motor.%0D%0Atheirls changed bearings.
A58: QLD-166332 | B58: HARRIS James | C58: PM | D58: 2013-08-22T14:48:00 | E58: James harris insatlled and realigned pump and motor.%0D%0Atheirls changed bearings.
A59: QLD-166333 | B59: COOMBER Stuart | C59: PM | D59: 2013-08-22T14:47:00 | E59: out of service due to fire
A60: QLD-166334 | B60: HARRIS James | C60: PM | D60: 2013-08-22T14:48:00 | E60: James harris insatlled and realigned pump and motor.%0D%0Atheirls changed bearings.
A61: QLD-166335 | B61: HARRIS James | C61: PM | D61: 2013-08-22T14:48:00 | E61: James harris insatlled and realigned pump and motor.%0D%0Atheirls changed bearings.

Sheet 0054
A1: Summary | B1: VALVE COOLING MCC THERMOGRAPHIC IMAGING
A2: Return to Index | D2: Total in AER Period | E2: =Summary!C4 -> 2015/16 | F2: =Summary!D4 -> 2016/17 | G2: =Summary!E4 -> 2017/18 | H2: =Summary!F4 -> 2018/19 | I2: =Summary!G4 -> 2019/20
A3: APA Staff Costs | D3: =D34 -> 7216.38 | E3: 1443.276 | F3: 1443.276 | G3: 1443.276 | H3: 1443.276 | I3: 1443.276
A4: APA Material Costs | D4: 0 | E4: 0 | F4: 0 | G4: 0 | H4: 0 | I4: 0
A5: Contractor Labour | D5: 15000 | E5: 3000 | F5: 3000 | G5: 3000 | H5: 3000 | I5: 3000
A6: Contractor Materials | D6: 10000 | E6: 2000 | F6: 2000 | G6: 2000 | H6: 2000 | I6: 2000
A9: Scheduled Outage Required | B9: No
A10: Work Instruction | B10: not sighted
A12: Valve Cooling MCC Thermographic Imaging
B13: Sites | C13: 2
A14: Number of Components to be serviced | C14: =SUM(C12:C13) -> 2
A16: Discussion
A17: Using a thermographic camera take photographs of the various components looking for those which are running excessively hot
A18: Those components which are running excessively hot are probably faulty (and require further maintenance)
A19: This worksheet does not make a material contribution to the total O&M Direct Cost
E20: =Summary!C4 -> 2015/16 | F20: =Summary!D4 -> 2016/17 | G20: =Summary!E4 -> 2017/18 | H20: =Summary!F4 -> 2018/19 | I20: =Summary!G4 -> 2019/20
A21: QLD-ET-WI-PM012-0054 | B21: Every 1 year(s) | E21: 1 | F21: 1 | G21: 1 | H21: 1 | I21: 1
A22: APA Costs
A23: APA Maintenance Staff (Hrs) | B23: =APATechnicianHours/C14 -> 0.5 | C23: Hours per site
A24: APA Supervision (Hrs) | B24: =1+(APASupervisorHours/C14) -> 5.291666667 | C24: Hours per site (extra hour per site allocated for inspection of the photographs and storing)
A25: APA Material Costs | B25: 0
A27: Contractor Costs
A28: Contractor Labour (Hrs)
A29: Contractor Hourly Rate
A30: Contractor Labour | B30: =3000/C14 -> 1500 | C30: Thearle/SAE (Anecdotal: Works Scheduler stated it was a fixed price for the inspection and report)
A31: Contractor Materials | B31: =2000/C14 -> 1000 | C31: Anecdotal: Includes hire of the thermal imager (not possible to combine with 0126)
B33: Reference Year | C33: Total in Reference Year | D33: Total in AER Period | E33: =Summary!C4 -> 2015/16 | F33: =Summary!D4 -> 2016/17 | G33: =Summary!E4 -> 2017/18 | H33: =Summary!F4 -> 2018/19 | I33: =Summary!G4 -> 2019/20
A34: APA Staff Costs | B34: =B23*HourlyRateAPAMaintenanceStaff+B24*HourlyRateAPAOMSupervisor -> 721.638 | C34: =B34*$C$14 -> 1443.276 | D34: =C34*SUMPRODUCT(LabourAdjustmentFactor,E$21:I$21) -> 7216.38 | E34: =$C34*E$21*'Modelling Assumptions'!E$107 -> 1443.276 | F34: =$C34*F$21*'Modelling Assumptions'!F$107 -> 1443.276 | G34: =$C34*G$21*'Modelling Assumptions'!G$107 -> 1443.276 | H34: =$C34*H$21*'Modelling Assumptions'!H$107 -> 1443.276 | I34: =$C34*I$21*'Modelling Assumptions'!I$107 -> 1443.276
A35: APA Material Costs | B35: =B25 -> 0 | C35: =B35*$C$14 -> 0 | D35: =C35*SUMPRODUCT(MaterialsAdjustmentFactor,E$21:I$21) -> 0 | E35: =$C35*E$21*'Modelling Assumptions'!E$108 -> 0 | F35: =$C35*F$21*'Modelling Assumptions'!F$108 -> 0 | G35: =$C35*G$21*'Modelling Assumptions'!G$108 -> 0 | H35: =$C35*H$21*'Modelling Assumptions'!H$108 -> 0 | I35: =$C35*I$21*'Modelling Assumptions'!I$108 -> 0
A36: Contractor Labour | B36: =B30 -> 1500 | C36: 3000 | D36: =C36*SUMPRODUCT(LabourAdjustmentFactor,E$21:I$21) -> 15000 | E36: =$C36*E$21*'Modelling Assumptions'!E$107 -> 3000 | F36: =$C36*F$21*'Modelling Assumptions'!F$107 -> 3000 | G36: =$C36*G$21*'Modelling Assumptions'!G$107 -> 3000 | H36: =$C36*H$21*'Modelling Assumptions'!H$107 -> 3000 | I36: =$C36*I$21*'Modelling Assumptions'!I$107 -> 3000
A37: Contractor Materials | B37: =B31 -> 1000 | C37: 2000 | D37: =C37*SUMPRODUCT(MaterialsAdjustmentFactor,E$21:I$21) -> 10000 | E37: =$C37*E$21*'Modelling Assumptions'!E$108 -> 2000 | F37: =$C37*F$21*'Modelling Assumptions'!F$108 -> 2000 | G37: =$C37*G$21*'Modelling Assumptions'!G$108 -> 2000 | H37: =$C37*H$21*'Modelling Assumptions'!H$108 -> 2000 | I37: =$C37*I$21*'Modelling Assumptions'!I$108 -> 2000
A40: Scheduled Maintenance
A41: PM ID | B41: PM Name | C41: Parent Location
A42: QLD-ET-WI-PM012-0054 | B42: Every 1 year(s)
A43: QLD-ET-WI-PM012-0054 | B43: VALVE COOLING MCC THERMOGRAPHIC IMAGING | C43: Bungalora System 1 - Station Service Power System | D43: Bungalora System 1 - Valve Cooling Motor Control Centre | E43: 1 | F43: 1 | G43: 1 | H43: 1
A44: QLD-ET-WI-PM012-0054 | B44: VALVE COOLING MCC THERMOGRAPHIC IMAGING | C44: Bungalora System 2 - Station Service Power System | D44: Bungalora System 2 - Valve Cooling Motor Control Centre | E44: 1 | F44: 1 | G44: 1 | H44: 1
A45: QLD-ET-WI-PM012-0054 | B45: VALVE COOLING MCC THERMOGRAPHIC IMAGING | C45: Bungalora System 3 - Station Service Power System | D45: Bungalora System 3 - Valve Cooling Motor Control Centre | E45: 1 | F45: 1 | G45: 1 | H45: 1
A46: QLD-ET-WI-PM012-0054 | B46: VALVE COOLING MCC THERMOGRAPHIC IMAGING | C46: Mullumbimby System 1 - Station Service Power System | D46: Mullumbimby System 1 - Valve Cooling Motor Control Centre | E46: 1 | F46: 1 | G46: 1 | H46: 1
A47: QLD-ET-WI-PM012-0054 | B47: VALVE COOLING MCC THERMOGRAPHIC IMAGING | C47: Mullumbimby System 2 - Station Service Power System | D47: Mullumbimby System 2 - Valve Cooling Motor Control Centre | E47: 1 | F47: 1 | G47: 1 | H47: 1
A48: QLD-ET-WI-PM012-0054 | B48: VALVE COOLING MCC THERMOGRAPHIC IMAGING | C48: Mullumbimby System 3 - Station Service Power System | D48: Mullumbimby System 3 - Valve Cooling Motor Control Centre | E48: 1 | F48: 1 | G48: 1 | H48: 1
A54: Work Order # | B54: VALVE COOLING MCC THERMOGRAPHIC IMAGING
A55: QLD-166315 | B55: COOMBER Stuart | C55: PM | D55: 2013-08-22T14:51:00 | E55: out of service

Sheet 0056
A1: Summary | B1: AIR BLAST COOLER MAINTENANCE
A2: Return to Index | D2: Total in AER Period | E2: =Summary!C4 -> 2015/16 | F2: =Summary!D4 -> 2016/17 | G2: =Summary!E4 -> 2017/18 | H2: =Summary!F4 -> 2018/19 | I2: =Summary!G4 -> 2019/20
A3: APA Staff Costs | D3: =SUM(E3:I3) -> 39153.303 | E3: =E33+E52+E72 -> 8306.451 | F3: =F33+F52+F72 -> 7116.975 | G3: 8306.451 | H3: 7116.975 | I3: 8306.451
A4: APA Material Costs | D4: =SUM(E4:I4) -> 44100 | E4: =E34+E53+E73 -> 14700 | F4: 0 | G4: 14700 | H4: 0 | I4: 14700
A5: Contractor Labour | D5: 61425 | E5: =E35+E54+E74 -> 20475 | F5: 0 | G5: 20475 | H5: 0 | I5: 20475
A6: Contractor Materials | D6: 0 | E6: =E36+E55+E75 -> 0 | F6: 0 | G6: 0 | H6: 0 | I6: 0
A9: Scheduled Outage Required | B9: No
A10: Work Instruction | B10: not sighted
A12: Air Blast Cooler (Fan) Maintenance
B13: Fans | C13: =35*6 -> 210 | D13: Each air blast cooler comprises 7 banks of 5 in each building
A14: Number of Components to be serviced | C14: =SUM(C12:C13) -> 210
A16: Discussion
A17: 3 monthly check fans for imbalance | C17: Cleanliness - listening 1 minute per fan
A18: Annual check of motor current and current imbalance | C18: 10 minutes per motor
E19: =Summary!C4 -> 2015/16 | F19: =Summary!D4 -> 2016/17 | G19: =Summary!E4 -> 2017/18 | H19: =Summary!F4 -> 2018/19 | I19: =Summary!G4 -> 2019/20
A20: QLD-ET-WI-PM003-0056 | B20: Every 3 months(s) | C20: Check for imbalance | E20: 4 | F20: 4 | G20: 4 | H20: 4 | I20: 4
A21: APA Costs
A22: APA Maintenance Staff (Hrs) | B22: =1/60 -> 0.01666666667 | C22: Hours per fan (1 minute per fan motor)
A23: APA Supervision (Hrs) | B23: =2/$C$14 -> 0.009523809524 | C23: Hours per fan
A24: APA Material Costs | B24: 0
A26: Contractor Costs
A27: Contractor Labour (Hrs)
A28: Contractor Hourly Rate
A29: Contractor Labour | B29: 0
A30: Contractor Materials | B30: 0
B32: Reference Year | C32: Total in Reference Year | D32: Total in AER Period | E32: =Summary!C4 -> 2015/16 | F32: =Summary!D4 -> 2016/17 | G32: =Summary!E4 -> 2017/18 | H32: =Summary!F4 -> 2018/19 | I32: =Summary!G4 -> 2019/20
A33: APA Staff Costs | B33: =B22*HourlyRateAPAMaintenanceStaff+B23*HourlyRateAPAOMSupervisor -> 2.879421429 | C33: =B33*$C$14 -> 604.6785 | D33: =SUM(E33:I33) -> 12093.57 | E33: =$C33*E$20*'Modelling Assumptions'!E$107 -> 2418.714 | F33: =$C33*F$20*'Modelling Assumptions'!F$107 -> 2418.714 | G33: =$C33*G$20*'Modelling Assumptions'!G$107 -> 2418.714 | H33: =$C33*H$20*'Modelling Assumptions'!H$107 -> 2418.714 | I33: =$C33*I$20*'Modelling Assumptions'!I$107 -> 2418.714
A34: APA Material Costs | B34: =B24 -> 0 | C34: =B34*$C$14 -> 0 | D34: =SUM(E34:I34) -> 0 | E34: =$C34*E$59*'Modelling Assumptions'!E$108 -> 0 | F34: =$C34*F$59*'Modelling Assumptions'!F$108 -> 0 | G34: =$C34*G$59*'Modelling Assumptions'!G$108 -> 0 | H34: =$C34*H$59*'Modelling Assumptions'!H$108 -> 0 | I34: =$C34*I$59*'Modelling Assumptions'!I$108 -> 0
A35: Contractor Labour | B35: =B29 -> 0 | C35: 0 | D35: 0 | E35: =$C35*E$59*'Modelling Assumptions'!E$107 -> 0 | F35: =$C35*F$59*'Modelling Assumptions'!F$107 -> 0 | G35: =$C35*G$59*'Modelling Assumptions'!G$107 -> 0 | H35: =$C35*H$59*'Modelling Assumptions'!H$107 -> 0 | I35: =$C35*I$59*'Modelling Assumptions'!I$107 -> 0
A36: Contractor Materials | B36: =B30 -> 0 | C36: 0 | D36: 0 | E36: =$C36*E$59*'Modelling Assumptions'!E$108 -> 0 | F36: =$C36*F$59*'Modelling Assumptions'!F$108 -> 0 | G36: =$C36*G$59*'Modelling Assumptions'!G$108 -> 0 | H36: =$C36*H$59*'Modelling Assumptions'!H$108 -> 0 | I36: =$C36*I$59*'Modelling Assumptions'!I$108 -> 0
E38: =Summary!C4 -> 2015/16 | F38: =Summary!D4 -> 2016/17 | G38: =Summary!E4 -> 2017/18 | H38: =Summary!F4 -> 2018/19 | I38: =Summary!G4 -> 2019/20
A39: QLD-ET-WI-PM012-0056 | B39: Every 1 year(s) | C39: Check for current imbalance in the fan motors | E39: 1 | F39: 1 | G39: 1 | H39: 1 | I39: 1
A40: APA Costs
A41: APA Maintenance Staff (Hrs) | B41: =APATechnicianHours/C14+10/60 -> 0.1714285714 | C41: Hours per fan (10 minutes per fan motor)
A42: APA Supervision (Hrs) | B42: =APASupervisorHours/$C$14 -> 0.04087301587 | C42: Hours per fan
A43: APA Material Costs | B43: =B82+B88 -> 70 | C43: From below assuming required replacements are undertaken annually
A45: Contractor Costs
A46: Contractor Labour (Hrs) | B46: =B84+B90 -> 0.8 | C46: Hours per fan (to replace fans and motors)
A47: Contractor Hourly Rate | B47: =ElectricalContractorHourlyRate -> 75 | C47: Thearle/SAE
A48: Contractor Labour | B48: =B46*B47 -> 60
A49: Contractor Materials | B49: 0
B51: Reference Year | C51: Total in Reference Year | D51: Total in AER Period | E51: =Summary!C4 -> 2015/16 | F51: =Summary!D4 -> 2016/17 | G51: =Summary!E4 -> 2017/18 | H51: =Summary!F4 -> 2018/19 | I51: =Summary!G4 -> 2019/20
A52: APA Staff Costs | B52: =B41*HourlyRateAPAMaintenanceStaff+B42*HourlyRateAPAOMSupervisor -> 22.37267143 | C52: =B52*$C$14 -> 4698.261 | D52: =SUM(E52:I52) -> 23491.305 | E52: =$C52*E$39*'Modelling Assumptions'!E$107 -> 4698.261 | F52: =$C52*F$39*'Modelling Assumptions'!F$107 -> 4698.261 | G52: =$C52*G$39*'Modelling Assumptions'!G$107 -> 4698.261 | H52: =$C52*H$39*'Modelling Assumptions'!H$107 -> 4698.261 | I52: =$C52*I$39*'Modelling Assumptions'!I$107 -> 4698.261
A53: APA Material Costs | B53: =B43 -> 70 | C53: =B53*$C$14 -> 14700 | D53: =SUM(E53:I53) -> 44100 | E53: =$C53*E$59*'Modelling Assumptions'!E$108 -> 14700 | F53: =$C53*F$59*'Modelling Assumptions'!F$108 -> 0 | G53: =$C53*G$59*'Modelling Assumptions'!G$108 -> 14700 | H53: =$C53*H$59*'Modelling Assumptions'!H$108 -> 0 | I53: =$C53*I$59*'Modelling Assumptions'!I$108 -> 14700
A54: Contractor Labour | B54: =B48 -> 60 | C54: 12600 | D54: =SUM(E54:I54) -> 37800 | E54: =$C54*E$59*'Modelling Assumptions'!E$107 -> 12600 | F54: =$C54*F$59*'Modelling Assumptions'!F$107 -> 0 | G54: =$C54*G$59*'Modelling Assumptions'!G$107 -> 12600 | H54: =$C54*H$59*'Modelling Assumptions'!H$107 -> 0 | I54: =$C54*I$59*'Modelling Assumptions'!I$107 -> 12600
A55: Contractor Materials | B55: =B49 -> 0 | C55: 0 | D55: 0 | E55: =$C55*E$59*'Modelling Assumptions'!E$108 -> 0 | F55: =$C55*F$59*'Modelling Assumptions'!F$108 -> 0 | G55: =$C55*G$59*'Modelling Assumptions'!G$108 -> 0 | H55: =$C55*H$59*'Modelling Assumptions'!H$108 -> 0 | I55: =$C55*I$59*'Modelling Assumptions'!I$108 -> 0
E58: =Summary!C4 -> 2015/16 | F58: =Summary!D4 -> 2016/17 | G58: =Summary!E4 -> 2017/18 | H58: =Summary!F4 -> 2018/19 | I58: =Summary!G4 -> 2019/20
A59: QLD-ET-WI-PM024-0056 | B59: Every 2 year(s) | C59: Undertake Cleaning | E59: 1 | F59: 0 | G59: 1 | H59: 0 | I59: 1
A60: APA Costs
A61: APA Maintenance Staff (Hrs) | B61: =APATechnicianHours/C14 -> 0.004761904762 | C61: Hours per fan
A62: APA Supervision (Hrs) | B62: =APASupervisorHours/C14 -> 0.04087301587 | C62: Hours per fan
A63: APA Material Costs | B63: 0
A65: Contractor Costs
A66: Contractor Labour (Hrs) | B66: 0.5 | C66: Hours per fan
A67: Contractor Hourly Rate | B67: =ElectricalContractorHourlyRate -> 75
A68: Contractor Labour | B68: =B66*B67 -> 37.5
A69: Contractor Materials | B69: 0
B71: Reference Year | C71: Total in Reference Year | D71: Total in AER Period | E71: =Summary!C4 -> 2015/16 | F71: =Summary!D4 -> 2016/17 | G71: =Summary!E4 -> 2017/18 | H71: =Summary!F4 -> 2018/19 | I71: =Summary!G4 -> 2019/20
A72: APA Staff Costs | B72: =B61*HourlyRateAPAMaintenanceStaff+B62*HourlyRateAPAOMSupervisor -> 5.664171429 | C72: =B72*$C$14 -> 1189.476 | D72: =C72*SUMPRODUCT(LabourAdjustmentFactor,E$59:I$59) -> 3568.428 | E72: =$C72*E$59*'Modelling Assumptions'!E$107 -> 1189.476 | F72: =$C72*F$59*'Modelling Assumptions'!F$107 -> 0 | G72: =$C72*G$59*'Modelling Assumptions'!G$107 -> 1189.476 | H72: =$C72*H$59*'Modelling Assumptions'!H$107 -> 0 | I72: =$C72*I$59*'Modelling Assumptions'!I$107 -> 1189.476
A73: APA Material Costs | B73: =B63 -> 0 | C73: =B73*$C$14 -> 0 | D73: =C73*SUMPRODUCT(MaterialsAdjustmentFactor,E$59:I$59) -> 0 | E73: =$C73*E$59*'Modelling Assumptions'!E$108 -> 0 | F73: =$C73*F$59*'Modelling Assumptions'!F$108 -> 0 | G73: =$C73*G$59*'Modelling Assumptions'!G$108 -> 0 | H73: =$C73*H$59*'Modelling Assumptions'!H$108 -> 0 | I73: =$C73*I$59*'Modelling Assumptions'!I$108 -> 0
A74: Contractor Labour | B74: =B68 -> 37.5 | C74: 7875 | D74: =C74*SUMPRODUCT(LabourAdjustmentFactor,E$59:I$59) -> 23625 | E74: =$C74*E$59*'Modelling Assumptions'!E$107 -> 7875 | F74: =$C74*F$59*'Modelling Assumptions'!F$107 -> 0 | G74: =$C74*G$59*'Modelling Assumptions'!G$107 -> 7875 | H74: =$C74*H$59*'Modelling Assumptions'!H$107 -> 0 | I74: =$C74*I$59*'Modelling Assumptions'!I$107 -> 7875
A75: Contractor Materials | B75: =B69 -> 0 | C75: 0 | D75: =C75*SUMPRODUCT(MaterialsAdjustmentFactor,E$59:I$59) -> 0 | E75: =$C75*E$59*'Modelling Assumptions'!E$108 -> 0 | F75: =$C75*F$59*'Modelling Assumptions'!F$108 -> 0 | G75: =$C75*G$59*'Modelling Assumptions'!G$108 -> 0 | H75: =$C75*H$59*'Modelling Assumptions'!H$108 -> 0 | I75: =$C75*I$59*'Modelling Assumptions'!I$108 -> 0
A77: Material Costs
A79: Anecdotal: Discussed with the Works Scheduler and the Operations Manager
A80: Fan Motor replacement | B80: 250
A81: Fan Motor Lifetime | B81: 5 | C81: years
A82: Annual material cost (Fan Motors) | B82: =B80/B81 -> 50
A83: Time to replace (Fan Motors) | B83: 2 | C83: hours
A84: Annual maintenance hours (Fan Motors) | B84: =B83/B81 -> 0.4 | C84: hours / fan
A86: Fan Blade replacement | B86: 100
A87: Fan Blade Lifetime | B87: 5 | C87: years
A88: Annual material cost (Fan Blades) | B88: =B86/B87 -> 20 | C88: per fan
A89: Time to replace Fan Blade | B89: 2 | C89: hours
A90: Annual maintenance hours (Fan Blades) | B90: =B89/B87 -> 0.4 | C90: hours / fan
A93: Scheduled Maintenance
A94: PM ID | B94: PM Name | C94: Parent Location
A95: QLD-ET-WI-PM024-0056 | B95: Every 2 year(s)
A96: QLD-ET-WI-PM024-0056 | B96: AIR BLAST COOLER MAINTENANCE | C96: Bungalora System 1 - Valve Cooling System | D96: Bungalora System 1 - Valve Cooling Water Cooling Tower
A97: QLD-ET-WI-PM024-0056 | B97: AIR BLAST COOLER MAINTENANCE | C97: Bungalora System 2 - Valve Cooling System | D97: Bungalora System 2 - Valve Cooling Water Cooling Tower
A98: QLD-ET-WI-PM024-0056 | B98: AIR BLAST COOLER MAINTENANCE | C98: Bungalora System 3 - Valve Cooling System | D98: Bungalora System 3 - Valve Cooling Water Cooling Tower
A99: QLD-ET-WI-PM024-0056 | B99: AIR BLAST COOLER MAINTENANCE | C99: Mullumbimby System 1 - Valve Cooling System | D99: Mullumbimby System 1 - Valve Cooling Water Cooling Tower
A100: QLD-ET-WI-PM024-0056 | B100: AIR BLAST COOLER MAINTENANCE | C100: Mullumbimby System 2 - Valve Cooling System | D100: Mullumbimby System 2 - Valve Cooling Water Cooling Tower
A101: QLD-ET-WI-PM024-0056 | B101: AIR BLAST COOLER MAINTENANCE | C101: Mullumbimby System 3 - Valve Cooling System | D101: Mullumbimby System 3 - Valve Cooling Water Cooling Tower
A107: Work Order # | B107: AIR BLAST COOLER MAINTENANCE
A108: QLD-171841 | B108: COOMBER Stuart | C108: PM | D108: 2013-12-09T09:54:00 | E108: Notdone, system decommisioned
A109: QLD-171842 | B109: MCALLISTER Jack (no PIO) | C109: PM | D109: 2013-12-09T09:56:00 | E109: All cooling fins cleaned. Selected motors/Fans changed
A110: QLD-171843 | B110: MCALLISTER Jack (no PIO) | C110: PM | D110: 2013-12-09T09:56:00 | E110: All cooling fins cleaned. Selected motors/Fans changed
A111: QLD-171844 | B111: COOMBER Stuart | C111: PM | D111: 2013-09-19T10:02:00 | E111: decommissioned
A112: QLD-171845 | B112: MCALLISTER Jack (no PIO) | C112: PM | D112: 2013-12-09T09:56:00 | E112: All cooling fins cleaned. Selected motors/Fans changed
A113: QLD-171846 | B113: MCALLISTER Jack (no PIO) | C113: PM | D113: 2013-12-09T09:56:00 | E113: All cooling fins cleaned. Selected motors/Fans changed

Sheet 0060
A1: Summary | B1: VALVE DEHUMIDIFIER MAINTENANCE
A2: Return to Index | D2: Total in AER Period | E2: =Summary!C4 -> 2015/16 | F2: =Summary!D4 -> 2016/17 | G2: =Summary!E4 -> 2017/18 | H2: =Summary!F4 -> 2018/19 | I2: =Summary!G4 -> 2019/20
A3: APA Staff Costs | D3: =D37 -> 5947.38 | E3: 1189.476 | F3: 1189.476 | G3: 1189.476 | H3: 1189.476 | I3: 1189.476
A4: APA Material Costs | D4: 0 | E4: 0 | F4: 0 | G4: 0 | H4: 0 | I4: 0
A5: Contractor Labour | D5: 24000 | E5: 4800 | F5: 4800 | G5: 4800 | H5: 4800 | I5: 4800
A6: Contractor Materials | D6: 0 | E6: 0 | F6: 0 | G6: 0 | H6: 0 | I6: 0
A9: Scheduled Outage Required | B9: No
A10: Work Instruction | B10: DL-WI-25
A12: Valve Dehumidifier Maintenance
B13: Sites | C13: 2
A14: Number of Components to be serviced | C14: =SUM(C12:C13) -> 2
A16: Discussion
A17: ABB recommended inspection only checked that the fan motors where running
A18: Testing revealed the dehumidifiers were non-operational so fans were only circulating air …
A19: Non-operational status of the dehumidifiers was confirmed from testing by the OEM
A20: APA have updated the maintenance procedure to include a functional test of the dehumidifiers
A21: This enhanced maintenance is undertaken annually
A22: This worksheet does not make a material contribution to the total O&M Direct Cost
E23: =Summary!C4 -> 2015/16 | F23: =Summary!D4 -> 2016/17 | G23: =Summary!E4 -> 2017/18 | H23: =Summary!F4 -> 2018/19 | I23: =Summary!G4 -> 2019/20
A24: QLD-ET-WI-PM012-0060 | B24: Every 1 year(s) | E24: 1 | F24: 1 | G24: 1 | H24: 1 | I24: 1
A25: APA Costs
A26: APA Maintenance Staff (Hrs) | B26: =APATechnicianHours/C14 -> 0.5 | C26: Hours per site
A27: APA Supervision (Hrs) | B27: =APASupervisorHours/C14 -> 4.291666667 | C27: Hours per site
A28: APA Material Costs | B28: 0
A30: Contractor Costs
A31: Contractor Labour (Hrs) | B31: 32 | C31: Hours per site (Anecdotal: time suggested by the Operations Manager noting that there are three systems at each site)
A32: Contractor Hourly Rate | B32: 75 | C32: Have used the same cost as Thearle/SAE despite invoices showing Munters costs are somewhat higher
A33: Contractor Labour | B33: =B31*B32 -> 2400 | C33: Munters (Onsite OPEX suggests that this might be slightly too high as Mullumbimby only is shown as $1540)
A34: Contractor Materials | B34: 0 | C34: Invoices show that repairs are expensive so will accept slightly higher maintenance and $0 for materials
B36: Reference Year | C36: Total in Reference Year | D36: Total in AER Period | E36: =Summary!C4 -> 2015/16 | F36: =Summary!D4 -> 2016/17 | G36: =Summary!E4 -> 2017/18 | H36: =Summary!F4 -> 2018/19 | I36: =Summary!G4 -> 2019/20
A37: APA Staff Costs | B37: =B26*HourlyRateAPAMaintenanceStaff+B27*HourlyRateAPAOMSupervisor -> 594.738 | C37: =B37*$C$14 -> 1189.476 | D37: =C37*SUMPRODUCT(LabourAdjustmentFactor,E$24:I$24) -> 5947.38 | E37: =$C37*E$24*'Modelling Assumptions'!E$107 -> 1189.476 | F37: =$C37*F$24*'Modelling Assumptions'!F$107 -> 1189.476 | G37: =$C37*G$24*'Modelling Assumptions'!G$107 -> 1189.476 | H37: =$C37*H$24*'Modelling Assumptions'!H$107 -> 1189.476 | I37: =$C37*I$24*'Modelling Assumptions'!I$107 -> 1189.476
A38: APA Material Costs | B38: =B28 -> 0 | C38: =B38*$C$14 -> 0 | D38: =C38*SUMPRODUCT(MaterialsAdjustmentFactor,E$24:I$24) -> 0 | E38: =$C38*E$24*'Modelling Assumptions'!E$108 -> 0 | F38: =$C38*F$24*'Modelling Assumptions'!F$108 -> 0 | G38: =$C38*G$24*'Modelling Assumptions'!G$108 -> 0 | H38: =$C38*H$24*'Modelling Assumptions'!H$108 -> 0 | I38: =$C38*I$24*'Modelling Assumptions'!I$108 -> 0
A39: Contractor Labour | B39: =B33 -> 2400 | C39: 4800 | D39: =C39*SUMPRODUCT(LabourAdjustmentFactor,E$24:I$24) -> 24000 | E39: =$C39*E$24*'Modelling Assumptions'!E$107 -> 4800 | F39: =$C39*F$24*'Modelling Assumptions'!F$107 -> 4800 | G39: =$C39*G$24*'Modelling Assumptions'!G$107 -> 4800 | H39: =$C39*H$24*'Modelling Assumptions'!H$107 -> 4800 | I39: =$C39*I$24*'Modelling Assumptions'!I$107 -> 4800
A40: Contractor Materials | B40: =B34 -> 0 | C40: 0 | D40: =C40*SUMPRODUCT(MaterialsAdjustmentFactor,E$24:I$24) -> 0 | E40: =$C40*E$24*'Modelling Assumptions'!E$108 -> 0 | F40: =$C40*F$24*'Modelling Assumptions'!F$108 -> 0 | G40: =$C40*G$24*'Modelling Assumptions'!G$108 -> 0 | H40: =$C40*H$24*'Modelling Assumptions'!H$108 -> 0 | I40: =$C40*I$24*'Modelling Assumptions'!I$108 -> 0
A43: Scheduled Maintenance
A44: PM ID | B44: PM Name | C44: Parent Location
A45: QLD-ET-WI-PM012-0060 | B45: Every 1 year(s)
A46: QLD-ET-WI-PM012-0060 | B46: VALVE DEHUMIDIFIER MAINTENANCE | C46: Bungalora - System 1 | D46: Bungalora System 1 - Heating Ventilating & Air Conditioning | E46: 1 | F46: 1 | G46: 1 | H46: 1 | I46: 1
A47: QLD-ET-WI-PM012-0060 | B47: VALVE DEHUMIDIFIER MAINTENANCE | C47: Bungalora - System 2 | D47: Bungalora System 2 - Heating Ventilating & Air Conditioning | E47: 1 | F47: 1 | G47: 1 | H47: 1 | I47: 1
A48: QLD-ET-WI-PM012-0060 | B48: VALVE DEHUMIDIFIER MAINTENANCE | C48: Bungalora - System 3 | D48: Bungalora System 3 - Heating Ventilating & Air Conditioning | E48: 1 | F48: 1 | G48: 1 | H48: 1 | I48: 1
A49: QLD-ET-WI-PM012-0060 | B49: VALVE DEHUMIDIFIER MAINTENANCE | C49: Mullumbimby - System 1 | D49: Mullumbimby System 1 - Heating Ventilating & Air Conditioning | E49: 1 | F49: 1 | G49: 1 | H49: 1 | I49: 1
A50: QLD-ET-WI-PM012-0060 | B50: VALVE DEHUMIDIFIER MAINTENANCE | C50: Mullumbimby - System 2 | D50: Mullumbimby System 2 - Heating Ventilating & Air Conditioning | E50: 1 | F50: 1 | G50: 1 | H50: 1 | I50: 1
A51: QLD-ET-WI-PM012-0060 | B51: VALVE DEHUMIDIFIER MAINTENANCE | C51: Mullumbimby - System 3 | D51: Mullumbimby System 3 - Heating Ventilating & Air Conditioning | E51: 1 | F51: 1 | G51: 1 | H51: 1 | I51: 1
A57: Work Order # | B57: VALVE DEHUMIDIFIER MAINTENANCE
A58: QLD-166318 | B58: COOMBER Stuart | C58: PM | D58: 2013-12-09T09:57:00 | E58: System decommissioned. Munters looking after unit.
A59: QLD-166319 | B59: EDWARDS2 Luke | C59: PM | D59: 2013-12-09T13:59:00 | E59: Units failed annual maintenance checks. Munters have pulled units out and %0D%0Ataken away for overhaul. New work order number 191697
A60: QLD-166320 | B60: EDWARDS2 Luke | C60: PM | D60: 2013-12-09T14:03:00 | E60: Units failed annual maintenance checks.Munters have taken away for %0D%0Aoverhaul .New work order number 191694.
A61: QLD-166321 | B61: COOMBER Stuart | C61: PM | D61: 2013-08-22T14:50:00 | E61: out of service
A62: QLD-166322 | B62: HARRIS James | C62: PM | D62: 2013-12-09T14:05:00 | E62: Units failed annual maintenance checks.Munters have taken away for %0D%0Aoverhaul .New work order number 191700. reports on server
A63: QLD-166323 | B63: HARRIS James | C63: PM | D63: 2013-12-09T14:07:00 | E63: Units failed annual maintenance checks.Munters have taken away for %0D%0Aoverhaul .New work order number 191696.
A68: Task Num | B68: Expenditure Type | C68: Original Transaction Reference | D68: Quantity | E68: Cost Amount | F68: PA Description | G68: Vendor / Customer Name | H68: MA Account | I68: Task Name
A69: 560.01 PLANT AND EQUIP | B69: R/M - PLANT / EQUIP | C69: 6348904 | D69: 8770.94 | E69: 8770.94 | F69: Testing and Repair of Dehumidifiers at Bungalora | G69: MUNTERS PTY LTD | H69: Repairs & Maint - Routine | I69: PLANT AND EQUIPMENT
A70: 560.01 PLANT AND EQUIP | B70: R/M - PLANT / EQUIP | C70: 6348904 | D70: 12693.06 | E70: 12693.06 | F70: Testing and Repair of Dehumidifiers at Mullumbimby | G70: MUNTERS PTY LTD | H70: Repairs & Maint - Routine | I70: PLANT AND EQUIPMENT
A71: 560.01 PLANT AND EQUIP | B71: R/M-NON-ROUTINE MAINTENANCE | C71: 6302409 | D71: 1540 | E71: 1540 | F71: Munters to carry out annual maintenace on Mullumbimby dehumindifiers, quote No.AUSASPARO3167-001 | G71: MUNTERS PTY LTD | H71: Repairs & Maint - Non - Routine | I71: PLANT AND EQUIPMENT

Sheet 0062
A1: Summary | B1: VALVE HUMIDITY CONTROL SYSTEM
A2: Return to Index | D2: Total in AER Period | E2: =Summary!C4 -> 2015/16 | F2: =Summary!D4 -> 2016/17 | G2: =Summary!E4 -> 2017/18 | H2: =Summary!F4 -> 2018/19 | I2: =Summary!G4 -> 2019/20
A3: APA Staff Costs | D3: =D32 -> 0 | E3: 0 | F3: 0 | G3: 0 | H3: 0 | I3: 0
A4: APA Material Costs | D4: 0 | E4: 0 | F4: 0 | G4: 0 | H4: 0 | I4: 0
A5: Contractor Labour | D5: 0 | E5: 0 | F5: 0 | G5: 0 | H5: 0 | I5: 0
A6: Contractor Materials | D6: 0 | E6: 0 | F6: 0 | G6: 0 | H6: 0 | I6: 0
A9: Scheduled Outage Required | B9: No
A10: Work Instruction | B10: DL-WI-25
A12: Valve Humidifier Control System
B13: Sites | C13: 2
A14: Number of Components to be serviced | C14: =SUM(C12:C13) -> 2
A16: Discussion
A17: This maintenance is covered as a single item under 0060 (as outlined in discussions with the Works Scheduler)
E18: =Summary!C4 -> 2015/16 | F18: =Summary!D4 -> 2016/17 | G18: =Summary!E4 -> 2017/18 | H18: =Summary!F4 -> 2018/19 | I18: =Summary!G4 -> 2019/20
A19: QLD-ET-WI-PM012-0062 | B19: Every 1 year(s) | E19: 1 | F19: 1 | G19: 1 | H19: 1 | I19: 1
A20: APA Costs
A21: APA Maintenance Staff (Hrs) | B21: 0 | C21: Hours per site
A22: APA Supervision (Hrs) | B22: 0 | C22: Hours per site
A23: APA Material Costs | B23: 0
A25: Contractor Costs
A26: Contractor Labour (Hrs)
A27: Contractor Hourly Rate
A28: Contractor Labour | B28: =B26*B27 -> 0
A29: Contractor Materials | B29: 0
B31: Reference Year | C31: Total in Reference Year | D31: Total in AER Period | E31: =Summary!C4 -> 2015/16 | F31: =Summary!D4 -> 2016/17 | G31: =Summary!E4 -> 2017/18 | H31: =Summary!F4 -> 2018/19 | I31: =Summary!G4 -> 2019/20
A32: APA Staff Costs | B32: =B21*HourlyRateAPAMaintenanceStaff+B22*HourlyRateAPAOMSupervisor -> 0 | C32: =B32*$C$14 -> 0 | D32: =C32*SUMPRODUCT(LabourAdjustmentFactor,E$19:I$19) -> 0 | E32: =$C32*E$19*'Modelling Assumptions'!E$107 -> 0 | F32: =$C32*F$19*'Modelling Assumptions'!F$107 -> 0 | G32: =$C32*G$19*'Modelling Assumptions'!G$107 -> 0 | H32: =$C32*H$19*'Modelling Assumptions'!H$107 -> 0 | I32: =$C32*I$19*'Modelling Assumptions'!I$107 -> 0
A33: APA Material Costs | B33: =B23 -> 0 | C33: =B33*$C$14 -> 0 | D33: =C33*SUMPRODUCT(MaterialsAdjustmentFactor,E$19:I$19) -> 0 | E33: =$C33*E$19*'Modelling Assumptions'!E$108 -> 0 | F33: =$C33*F$19*'Modelling Assumptions'!F$108 -> 0 | G33: =$C33*G$19*'Modelling Assumptions'!G$108 -> 0 | H33: =$C33*H$19*'Modelling Assumptions'!H$108 -> 0 | I33: =$C33*I$19*'Modelling Assumptions'!I$108 -> 0
A34: Contractor Labour | B34: =B28 -> 0 | C34: 0 | D34: =C34*SUMPRODUCT(LabourAdjustmentFactor,E$19:I$19) -> 0 | E34: =$C34*E$19*'Modelling Assumptions'!E$107 -> 0 | F34: =$C34*F$19*'Modelling Assumptions'!F$107 -> 0 | G34: =$C34*G$19*'Modelling Assumptions'!G$107 -> 0 | H34: =$C34*H$19*'Modelling Assumptions'!H$107 -> 0 | I34: =$C34*I$19*'Modelling Assumptions'!I$107 -> 0
A35: Contractor Materials | B35: =B29 -> 0 | C35: 0 | D35: =C35*SUMPRODUCT(MaterialsAdjustmentFactor,E$19:I$19) -> 0 | E35: =$C35*E$19*'Modelling Assumptions'!E$108 -> 0 | F35: =$C35*F$19*'Modelling Assumptions'!F$108 -> 0 | G35: =$C35*G$19*'Modelling Assumptions'!G$108 -> 0 | H35: =$C35*H$19*'Modelling Assumptions'!H$108 -> 0 | I35: =$C35*I$19*'Modelling Assumptions'!I$108 -> 0
A38: Scheduled Maintenance
A39: PM ID | B39: PM Name | C39: Parent Location
A40: QLD-ET-WI-PM012-0062 | B40: Every 1 year(s)
A41: QLD-ET-WI-PM012-0062 | B41: VALVE HUMIDITY CONTROL SYSTEM | C41: Bungalora - System 1 | D41: Bungalora System 1 - Heating Ventilating & Air Conditioning | E41: 1 | F41: 1 | G41: 1 | H41: 1 | I41: 1
A42: QLD-ET-WI-PM012-0062 | B42: VALVE HUMIDITY CONTROL SYSTEM | C42: Bungalora - System 2 | D42: Bungalora System 2 - Heating Ventilating & Air Conditioning | E42: 1 | F42: 1 | G42: 1 | H42: 1 | I42: 1
A43: QLD-ET-WI-PM012-0062 | B43: VALVE HUMIDITY CONTROL SYSTEM | C43: Bungalora - System 3 | D43: Bungalora System 3 - Heating Ventilating & Air Conditioning | E43: 1 | F43: 1 | G43: 1 | H43: 1 | I43: 1
A44: QLD-ET-WI-PM012-0062 | B44: VALVE HUMIDITY CONTROL SYSTEM | C44: Mullumbimby - System 1 | D44: Mullumbimby System 1 - Heating Ventilating & Air Conditioning | E44: 1 | F44: 1 | G44: 1 | H44: 1 | I44: 1
A45: QLD-ET-WI-PM012-0062 | B45: VALVE HUMIDITY CONTROL SYSTEM | C45: Mullumbimby - System 2 | D45: Mullumbimby System 2 - Heating Ventilating & Air Conditioning | E45: 1 | F45: 1 | G45: 1 | H45: 1 | I45: 1
A46: QLD-ET-WI-PM012-0062 | B46: VALVE HUMIDITY CONTROL SYSTEM | C46: Mullumbimby - System 3 | D46: Mullumbimby System 3 - Heating Ventilating & Air Conditioning | E46: 1 | F46: 1 | G46: 1 | H46: 1 | I46: 1
A52: Work Order # | B52: VALVE HUMIDITY CONTROL SYSTEM
A53: QLD-166889 | B53: COOMBER Stuart | C53: PM | D53: 2013-07-19T11:56:00 | E53: no system 1 at Mullum
A54: QLD-166891 | B54: HARRIS James | C54: PM | D54: 2013-12-06T10:11:00 | E54: Done, Munters carrying out a full overhaul of dehumnidifiers

Sheet 0104 (1)
A1: Summary | B1: REACTOR MAINTENANCE
A2: Return to Index | D2: Total in AER Period | E2: =Summary!C4 -> 2015/16 | F2: =Summary!D4 -> 2016/17 | G2: =Summary!E4 -> 2017/18 | H2: =Summary!F4 -> 2018/19 | I2: =Summary!G4 -> 2019/20
A3: APA Staff Costs | D3: =D41+D61 -> 36095.859 | E3: 31337.955 | F3: 1189.476 | G3: 1189.476 | H3: 1189.476 | I3: 1189.476
A4: APA Material Costs | D4: 64000 | E4: 64000 | F4: 0 | G4: 0 | H4: 0 | I4: 0
A5: Contractor Labour | D5: 87187.5 | E5: 73237.5 | F5: 3487.5 | G5: 3487.5 | H5: 3487.5 | I5: 3487.5
A6: Contractor Materials | D6: 0 | E6: 0 | F6: 0 | G6: 0 | H6: 0 | I6: 0
A9: Scheduled Outage Required | B9: Yes
A10: Work Instruction | B10: DL-WI-29
A12: AC Reactor
B13: WT.L1 | C13: 6
B14: WT.L2 | C14: 6
B15: WT.L3 | C15: 6
B16: WA.Z1.L1 | C16: 18
B17: WA.Z1.Z11.L1 | C17: 18
B18: WA.Z1.Z12.L1 | C18: 18
B19: U.L1 | C19: 3 | D19: These 3 reactors are installed in the new Mullumbimby converter - the original phase reactors require special maintenance and are treated on sheet 0104 (2)
A21: DC Reactor
B22: U.L2 | C22: 6 | D22: 9th harmonic reactor added during plant commissioning
B23: WP1.L1 | C23: 6
B24: WP2.L1 | C24: 6
A25: Number of Components to be serviced | C25: =SUM(C13:C24) -> 93
E27: =Summary!C4 -> 2015/16 | F27: =Summary!D4 -> 2016/17 | G27: =Summary!E4 -> 2017/18 | H27: =Summary!F4 -> 2018/19 | I27: =Summary!G4 -> 2019/20
A28: QLD-ET-WI-PM012-0104 | B28: Every 1 year(s) | E28: 1 | F28: 1 | G28: 1 | H28: 1 | I28: 1
A29: APA Costs
A30: APA Maintenance Staff (Hrs) | B30: =APATechnicianHours/C25 -> 0.01075268817 | C30: Hours per reactor
A31: APA Supervision (Hrs) | B31: =APASupervisorHours/C25 -> 0.09229390681 | C31: Hours per reactor
A32: APA Material Costs | B32: 0
A34: Contractor Costs
A35: Contractor Labour (Hrs) | B35: 0.5 | C35: Hours per reactor since the WI requires them to be cleaned
A36: Contractor Hourly Rate | B36: =ElectricalContractorHourlyRate -> 75
A37: Contractor Labour | B37: =B35*B36 -> 37.5
A38: Contractor Materials | B38: 0
B40: Reference Year | C40: Total in Reference Year | D40: Total in AER Period | E40: =Summary!C4 -> 2015/16 | F40: =Summary!D4 -> 2016/17 | G40: =Summary!E4 -> 2017/18 | H40: =Summary!F4 -> 2018/19 | I40: =Summary!G4 -> 2019/20
A41: APA Staff Costs | B41: =B30*HourlyRateAPAMaintenanceStaff+B31*HourlyRateAPAOMSupervisor -> 12.79006452 | C41: =B41*$C$25 -> 1189.476 | D41: =C41*SUMPRODUCT(LabourAdjustmentFactor,E$28:I$28) -> 5947.38 | E41: =$C41*E$28*'Modelling Assumptions'!E$107 -> 1189.476 | F41: =$C41*F$28*'Modelling Assumptions'!F$107 -> 1189.476 | G41: =$C41*G$28*'Modelling Assumptions'!G$107 -> 1189.476 | H41: =$C41*H$28*'Modelling Assumptions'!H$107 -> 1189.476 | I41: =$C41*I$28*'Modelling Assumptions'!I$107 -> 1189.476
A42: APA Material Costs | B42: =B32 -> 0 | C42: =B42*$C$25 -> 0 | D42: =C42*SUMPRODUCT(MaterialsAdjustmentFactor,E$28:I$28) -> 0 | E42: =$C42*E$28*'Modelling Assumptions'!E$108 -> 0 | F42: =$C42*F$28*'Modelling Assumptions'!F$108 -> 0 | G42: =$C42*G$28*'Modelling Assumptions'!G$108 -> 0 | H42: =$C42*H$28*'Modelling Assumptions'!H$108 -> 0 | I42: =$C42*I$28*'Modelling Assumptions'!I$108 -> 0
A43: Contractor Labour | B43: =B37 -> 37.5 | C43: =B43*$C$25 -> 3487.5 | D43: =C43*SUMPRODUCT(LabourAdjustmentFactor,E$28:I$28) -> 17437.5 | E43: =$C43*E$28*'Modelling Assumptions'!E$107 -> 3487.5 | F43: =$C43*F$28*'Modelling Assumptions'!F$107 -> 3487.5 | G43: =$C43*G$28*'Modelling Assumptions'!G$107 -> 3487.5 | H43: =$C43*H$28*'Modelling Assumptions'!H$107 -> 3487.5 | I43: =$C43*I$28*'Modelling Assumptions'!I$107 -> 3487.5
A44: Contractor Materials | B44: =B38 -> 0 | C44: =B44*$C$25 -> 0 | D44: =C44*SUMPRODUCT(MaterialsAdjustmentFactor,E$28:I$28) -> 0 | E44: =$C44*E$28*'Modelling Assumptions'!E$108 -> 0 | F44: =$C44*F$28*'Modelling Assumptions'!F$108 -> 0 | G44: =$C44*G$28*'Modelling Assumptions'!G$108 -> 0 | H44: =$C44*H$28*'Modelling Assumptions'!H$108 -> 0 | I44: =$C44*I$28*'Modelling Assumptions'!I$108 -> 0
E47: =Summary!C4 -> 2015/16 | F47: =Summary!D4 -> 2016/17 | G47: =Summary!E4 -> 2017/18 | H47: =Summary!F4 -> 2018/19 | I47: =Summary!G4 -> 2019/20
A48: QLD-ET-WI-PM180-0104 | B48: Every 15 year(s) | E48: 1 | F48: 0 | G48: 0 | H48: 0 | I48: 0
A49: APA Costs
A50: APA Maintenance Staff (Hrs) | B50: 3 | C50: Hours per reactor (this task will take several days - but safety briefings will be required each day + assistance)
A51: APA Supervision (Hrs) | B51: =2*APASupervisorHours/C25 -> 0.1845878136 | C51: Hours per reactor (due to the extent of the 15 yr maintenance have allowed extra time)
A52: APA Material Costs | B52: =B86/$C$25 -> 688.172043 | C52: Average material cost per reactor
A54: Contractor Costs
A55: Contractor Labour (Hrs) | B55: 10 | C55: Hours per reactor
A56: Contractor Hourly Rate | B56: =ElectricalContractorHourlyRate -> 75
A57: Contractor Labour | B57: =B55*B56 -> 750
A58: Contractor Materials | B58: 0 | C58: Sandpaper, cleaners, brushes, etc
B60: Reference Year | C60: Total in Reference Year | D60: Total in AER Period | E60: =Summary!C4 -> 2015/16 | F60: =Summary!D4 -> 2016/17 | G60: =Summary!E4 -> 2017/18 | H60: =Summary!F4 -> 2018/19 | I60: =Summary!G4 -> 2019/20
A61: APA Staff Costs | B61: =B50*HourlyRateAPAMaintenanceStaff+B51*HourlyRateAPAOMSupervisor -> 324.1771935 | C61: =B61*$C$25 -> 30148.479 | D61: =C61*SUMPRODUCT(LabourAdjustmentFactor,E$48:I$48) -> 30148.479 | E61: =$C61*E$48*'Modelling Assumptions'!E$107 -> 30148.479 | F61: =$C61*F$48*'Modelling Assumptions'!F$107 -> 0 | G61: =$C61*G$48*'Modelling Assumptions'!G$107 -> 0 | H61: =$C61*H$48*'Modelling Assumptions'!H$107 -> 0 | I61: =$C61*I$48*'Modelling Assumptions'!I$107 -> 0
A62: APA Material Costs | B62: =B52 -> 688.172043 | C62: =B62*$C$25 -> 64000 | D62: =C62*SUMPRODUCT(MaterialsAdjustmentFactor,E$48:I$48) -> 64000 | E62: =$C62*E$48*'Modelling Assumptions'!E$108 -> 64000 | F62: =$C62*F$48*'Modelling Assumptions'!F$108 -> 0 | G62: =$C62*G$48*'Modelling Assumptions'!G$108 -> 0 | H62: =$C62*H$48*'Modelling Assumptions'!H$108 -> 0 | I62: =$C62*I$48*'Modelling Assumptions'!I$108 -> 0
A63: Contractor Labour | B63: =B57 -> 750 | C63: =B63*$C$25 -> 69750 | D63: =C63*SUMPRODUCT(LabourAdjustmentFactor,E$48:I$48) -> 69750 | E63: =$C63*E$48*'Modelling Assumptions'!E$107 -> 69750 | F63: =$C63*F$48*'Modelling Assumptions'!F$107 -> 0 | G63: =$C63*G$48*'Modelling Assumptions'!G$107 -> 0 | H63: =$C63*H$48*'Modelling Assumptions'!H$107 -> 0 | I63: =$C63*I$48*'Modelling Assumptions'!I$107 -> 0
A64: Contractor Materials | B64: =B58 -> 0 | C64: =B64*$C$25 -> 0 | D64: =C64*SUMPRODUCT(MaterialsAdjustmentFactor,E$48:I$48) -> 0 | E64: =$C64*E$48*'Modelling Assumptions'!E$108 -> 0 | F64: =$C64*F$48*'Modelling Assumptions'!F$108 -> 0 | G64: =$C64*G$48*'Modelling Assumptions'!G$108 -> 0 | H64: =$C64*H$48*'Modelling Assumptions'!H$108 -> 0 | I64: =$C64*I$48*'Modelling Assumptions'!I$108 -> 0
A66: Material Costs for 15 year maintenance
A68: All of the following figures were provided anecdotally by the Operations Manager
A69: Reactor | B69: diameter (m) | C69: length (m) | D69: Number | E69: Reactor Surface Area
A70: U.L2 | B70: =1.035 -> 1.035 | C70: =1.53 -> 1.53 | D70: 6 | E70: =2*PI()*B70*C70*D70 -> 59.69842856
A71: WP1.L1, WP2.L1 | B71: =1.125 -> 1.125 | C71: =1.495 -> 1.495 | D71: 12 | E71: 126.8103875
A72: Z11.L1 | B72: =0.935 -> 0.935 | C72: =0.84 -> 0.84 | D72: 18 | E72: 88.82664732
A73: Z12.L1 | B73: =0.57 -> 0.57 | C73: =0.63 -> 0.63 | D73: 18 | E73: 40.61325319
A74: Z1.L1 | B74: =0.796 -> 0.796 | C74: =0.93 -> 0.93 | D74: 18 | E74: 83.72369555
A75: WT.L1,2,3 | B75: =1.155 -> 1.155 | C75: =1.355 -> 1.355 | D75: 18 | E75: 177.0001575
A77: From the Material Data Sheet
A78: Coverage | B78: 6 | C78: m2/kg
A79: Cost | B79: 16000 | C79: $/tin | D79: Anecdotal: Provided by Operations Manager
A80: Tin Size | B80: 25 | C80: kg
A83: Total Area to be painted | B83: =SUM(E70:E75) -> 576.6725696 | C83: m^2 (from above table)
A84: kgs of paint | B84: =B83/B78 -> 96.11209494
A85: tins of paint | B85: =CEILING(B84/B80,1) -> 4 | C85: Whole Tins
A86: Cost of Paint | B86: =B85*B79 -> 64000
A90: Scheduled Maintenance
A91: PM ID | B91: PM Name | C91: Parent Location
A92: QLD-ET-WI-PM012-0104 | B92: REACTOR MAINTENANCE - 1YR | C92: Bungalora | D92: Bungalora
A93: QLD-ET-WI-PM012-0104 | B93: REACTOR MAINTENANCE - 1YR | C93: Bungalora | D93: Bungalora - System 2
A94: QLD-ET-WI-PM012-0104 | B94: REACTOR MAINTENANCE - 1YR | C94: Bungalora | D94: Bungalora - System 3
A95: QLD-ET-WI-PM012-0104 | B95: REACTOR MAINTENANCE - 1YR | C95: Mullumbimby | D95: Mullumbimby
A96: QLD-ET-WI-PM012-0104 | B96: REACTOR MAINTENANCE - 1YR | C96: Mullumbimby | D96: Mullumbimby - System 2
A97: QLD-ET-WI-PM012-0104 | B97: REACTOR MAINTENANCE - 1YR | C97: Mullumbimby | D97: Mullumbimby - System 3
A99: QLD-ET-WI-PM180-0104-BLA1 | B99: REACTOR MAINTENANCE - 15YR | C99: DirectLink | D99: Bungalora - System 1
A100: QLD-ET-WI-PM180-0104-BLA2 | B100: REACTOR MAINTENANCE - 15YR | C100: Bungalora | D100: Bungalora - System 2
A101: QLD-ET-WI-PM180-0104-BLA3 | B101: REACTOR MAINTENANCE - 15YR | C101: Bungalora | D101: Bungalora - System 3
A102: QLD-ET-WI-PM180-0104-MUL1 | B102: REACTOR MAINTENANCE - 15YR | C102: DirectLink | D102: Mullumbimby - System 1
A103: QLD-ET-WI-PM180-0104-MUL2 | B103: REACTOR MAINTENANCE - 15YR | C103: Mullumbimby | D103: Mullumbimby - System 2
A104: QLD-ET-WI-PM180-0104-MUL3 | B104: REACTOR MAINTENANCE - 15YR | C104: Mullumbimby | D104: Mullumbimby - System 3
A110: Work Order # | B110: REACTOR MAINTENANCE - 1YR
A111: QLD-164862 | B111: COOMBER Stuart | C111: PM | D111: 2013-09-18T13:07:00 | E111: decommissioned
A112: QLD-164863 | B112: EDWARDS2 Luke | C112: PM | D112: 2013-09-18T14:36:00 | E112: All reactors checked. All phase reactors need further investigation, extended shutdown
A113: QLD-164864 | B113: EDWARDS2 Luke | C113: PM | D113: 2013-09-18T14:36:00 | E113: All reactors checked. All phase reactors need further investigation, extended shutdown
A114: QLD-164865 | B114: COOMBER Stuart | C114: PM | D114: 2013-09-16T17:15:00 | E114: out of service
A115: QLD-164866 | B115: EDWARDS2 Luke | C115: PM | D115: 2013-09-18T14:36:00 | E115: All reactors checked. All phase reactors need further investigation, extended shutdown
A116: QLD-164867 | B116: EDWARDS2 Luke | C116: PM | D116: 2013-09-18T14:36:00 | E116: All reactors checked. All phase reactors need further investigation, extended shutdown

Sheet 0104 (2)
A1: Summary | B1: PHASE REACTOR MAINTENANCE
A2: Return to Index | D2: Total in AER Period | E2: =Summary!C4 -> 2015/16 | F2: =Summary!D4 -> 2016/17 | G2: =Summary!E4 -> 2017/18 | H2: =Summary!F4 -> 2018/19 | I2: =Summary!G4 -> 2019/20
A3: APA Staff Costs | D3: =SUM(E3:I3) -> 28550.6106 | E3: =E38 -> 26338.941 | F3: =F38 -> 552.9174 | G3: 552.9174 | H3: 552.9174 | I3: 552.9174
A4: APA Material Costs | D4: =SUM(E4:I4) -> 7260 | E4: =E39 -> 7260 | F4: 0 | G4: 0 | H4: 0 | I4: 0
A5: Contractor Labour | D5: 62500 | E5: =E40 -> 62500 | F5: 0 | G5: 0 | H5: 0 | I5: 0
A6: Contractor Materials | D6: 0 | E6: =E41 -> 0 | F6: 0 | G6: 0 | H6: 0 | I6: 0
A9: Scheduled Outage Required | B9: Yes
A10: Work Instruction | B10: DL-WI-46
A12: AC Reactor (Phase Reactor)
B13: U.L1 | C13: 15 | D13: Assumption this maintenance only applies to the original phase reactors
A14: Number of Components to be serviced | C14: =SUM(C13:C13) -> 15
A16: Discussion
A17: Air circulating through the ducting and reactor results in dust build up
A18: Fibre glass ducting is showing signs of cracking so are applying grease to the surface each year (must first remove the old grease)
A19: To clean the reactors a special machine grinds dry ice (CO2) and immediately uses it as the abrasive for blasting between the reactor coils (which also accumulate dust)
A20: It is assumed that the new Mullumbimby phase reactor will also be treated each year
A22: The new Mullumbimby station will have a different design of Phase Reactor which does not require the same level of maintenance
E24: =Summary!C4 -> 2015/16 | F24: =Summary!D4 -> 2016/17 | G24: =Summary!E4 -> 2017/18 | H24: =Summary!F4 -> 2018/19 | I24: =Summary!G4 -> 2019/20
A25: QLD-ET-WI-PM012-0104 | B25: Every 1 year(s) | E25: 1 | F25: 1 | G25: 1 | H25: 1 | I25: 1
A26: APA Costs
A27: APA Maintenance Staff (Hrs) | B27: =B45+B46 -> 16.06666667 | C27: Hours per reactor (no Gotland solution)
A28: APA Supervision (Hrs) | B28: =SUM(B49:B50) -> 1.144444444 | C28: Hours per reactor
A29: APA Material Costs | B29: =B77 -> 484 | C29: Average cost per reactor
A31: Contractor Costs
A32: Contractor Labour (Hrs)
A33: Contractor Hourly Rate
A34: Contractor Labour | B34: =B72/3 -> 4166.666667 | C34: Price per reactor for dry ice cleaning (Anecdotal: refer to discussion below)
A35: Contractor Materials | B35: 0 | C35: Cost of dry ice assumed to be included in the contractor cost
B37: Reference Year | C37: Total in Reference Year | D37: Total in AER Period | E37: =Summary!C4 -> 2015/16 | F37: =Summary!D4 -> 2016/17 | G37: =Summary!E4 -> 2017/18 | H37: =Summary!F4 -> 2018/19 | I37: =Summary!G4 -> 2019/20
A38: APA Staff Costs | B38: =B27*HourlyRateAPAMaintenanceStaff+B28*HourlyRateAPAOMSupervisor -> 1755.9294 | C38: =B38*$C$14 -> 26338.941 | D38: =SUM(E38:I38) -> 28550.6106 | E38: =$C38*E$25*'Modelling Assumptions'!E$107 -> 26338.941 | F38: =IF(GotlandPhaseReactorSolution=TRUE,($B45+$B58)*HourlyRateAPAMaintenanceStaff+$B28*HourlyRateAPAOMSupervisor,$C38*F$25)*'Modelling Assumptions'!F$107 -> 552.9174 | G38: =IF(GotlandPhaseReactorSolution=TRUE,($B45+$B58)*HourlyRateAPAMaintenanceStaff+$B28*HourlyRateAPAOMSupervisor,$C38*G$25)*'Modelling Assumptions'!G$107 -> 552.9174 | H38: =IF(GotlandPhaseReactorSolution=TRUE,($B45+$B58)*HourlyRateAPAMaintenanceStaff+$B28*HourlyRateAPAOMSupervisor,$C38*H$25)*'Modelling Assumptions'!H$107 -> 552.9174 | I38: =IF(GotlandPhaseReactorSolution=TRUE,($B45+$B58)*HourlyRateAPAMaintenanceStaff+$B28*HourlyRateAPAOMSupervisor,$C38*I$25)*'Modelling Assumptions'!I$107 -> 552.9174
A39: APA Material Costs | B39: =B29 -> 484 | C39: =B39*$C$14 -> 7260 | D39: =SUM(E39:I39) -> 7260 | E39: =$C39*E$25*'Modelling Assumptions'!E$108 -> 7260 | F39: =IF(GotlandPhaseReactorSolution=TRUE, 0, $C39*F$25*'Modelling Assumptions'!F$108) -> 0 | G39: =IF(GotlandPhaseReactorSolution=TRUE, 0, $C39*G$25*'Modelling Assumptions'!G$108) -> 0 | H39: =IF(GotlandPhaseReactorSolution=TRUE, 0, $C39*H$25*'Modelling Assumptions'!H$108) -> 0 | I39: =IF(GotlandPhaseReactorSolution=TRUE, 0, $C39*I$25*'Modelling Assumptions'!I$108) -> 0
A40: Contractor Labour | B40: =B34 -> 4166.666667 | C40: =B40*$C$14 -> 62500 | D40: 62500 | E40: =$C40*E$25*'Modelling Assumptions'!E$107 -> 62500 | F40: =IF(GotlandPhaseReactorSolution=TRUE, 0, $C40*F$25*'Modelling Assumptions'!F$107) -> 0 | G40: =IF(GotlandPhaseReactorSolution=TRUE, 0, $C40*G$25*'Modelling Assumptions'!G$107) -> 0 | H40: =IF(GotlandPhaseReactorSolution=TRUE, 0, $C40*H$25*'Modelling Assumptions'!H$107) -> 0 | I40: =IF(GotlandPhaseReactorSolution=TRUE, 0, $C40*I$25*'Modelling Assumptions'!I$107) -> 0
A41: Contractor Materials | B41: =B35 -> 0 | C41: =B41*$C$14 -> 0 | D41: 0 | E41: =$C41*E$25*'Modelling Assumptions'!E$108 -> 0 | F41: =$C41*F$25*'Modelling Assumptions'!F$108 -> 0 | G41: =$C41*G$25*'Modelling Assumptions'!G$108 -> 0 | H41: =$C41*H$25*'Modelling Assumptions'!H$108 -> 0 | I41: =$C41*I$25*'Modelling Assumptions'!I$108 -> 0
A43: APA Staff Hours
A44: Technicians
A45: Site Access for Contractors | B45: =APATechnicianHours/$C$14 -> 0.06666666667 | C45: Security briefing
A46: Application of grease | B46: 16 | C46: Requires close attention to detail - 2 staff for a full day each reactor
A48: O&M Supervisor
A49: Scheduling | B49: =APASupervisorHours/$C$14 -> 0.5722222222 | C49: Raise and close work order, arranging specialist Dry Ice contract cleaner, sourcing dry ice, purchasing grease, etc
A50: Additional due to critical nature | B50: =APASupervisorHours/$C$14 -> 0.5722222222 | C50: High priority item: EXTRA attention to detail
A52: Reliability Engineer | C52: This is a placeholder and is not being used on this worksheet
A53: Supervision during Dry Ice Cleaning | B53: 8 | C53: Work Instruction specifies that the reliability engineer must be present during dry ice cleaning (per building x 5)
A55: Gotland Phase Reactor Solution | C55: Will only be implemented in 2016/17 onwards
A56: If air filters are installed in 2015/16 then the maintenance of the igloos and dry ice cleaning is no longer required
A57: Instead maintenance of the air filters is required
A58: Technicians | B58: 4
A59: APA technical costs | B59: =B58*HourlyRateAPAMaintenanceStaff -> 401.004
A60: Material Costs | B60: 0 | C60: Replacement of the filters (maintenance of the fan motors, etc)
A63: Material Costs
A64: Coating the fibre glass in an insulating grease
A65: Additional control measure is to coat the fibre glassing in an insulating grease
A66: Bugs get caught in this grease | C66: Bugs per sq cm was 3 - 4 after only 4 months
A67: Need to clean off grease before the new coat is reapplied
A69: Dry Ice blasting of the phase reactor coil
A70: Cost of initial dry ice cleaning | B70: 25000 | C70: Per Building (Anecdotal: Provided by Operations Manager)
A71: Reduced time if cleaned annually | B71: 0.5
A72: Price per building | B72: =B70*B71 -> 12500 | C72: The original cost of applying the dry ice treatment was $25k per building. Annual cleaning will reduce the time (and cost)
A73: Price per reactor | B73: =B72/3 -> 4166.666667
A75: Cost of the insulating grease
A76: Price per tub | B76: 440 | C76: 22kg from Dow Corning (Anecdotal: Provided by Operations Manager)
A77: Cost per reactor | B77: =16.5/C14*B76 -> 484 | C77: 16.5 tubs used in the last maintenance cycle (Anecdotal: Operations Manager after discussion with onsite technicians)

Sheet 0104 (3)
A1: Summary | B1: PHASE REACTOR FAN MAINTENANCE
A2: Return to Index | D2: Total in AER Period | E2: =Summary!C4 -> 2015/16 | F2: =Summary!D4 -> 2016/17 | G2: =Summary!E4 -> 2017/18 | H2: =Summary!F4 -> 2018/19 | I2: =Summary!G4 -> 2019/20
A3: APA Staff Costs | D3: =D35+D55 -> 7136.856 | E3: 1189.476 | F3: 1189.476 | G3: 1189.476 | H3: 2378.952 | I3: 1189.476
A4: APA Material Costs | D4: 1600 | E4: 320 | F4: 320 | G4: 320 | H4: 320 | I4: 320
A5: Contractor Labour | D5: 13800 | E5: 1800 | F5: 1800 | G5: 1800 | H5: 6600 | I5: 1800
A6: Contractor Materials | D6: 0 | E6: 0 | F6: 0 | G6: 0 | H6: 0 | I6: 0
A9: Scheduled Outage Required | B9: Yes
A10: Work Instruction | B10: not sighted
A12: AC Reactor Cooling Fans
B13: Reactor Fans | C13: 32 | D13: 2 fans per reactor
A14: Number of Components to be serviced | C14: =SUM(C13:C13) -> 32
A16: Discussion
A17: While the new Mullumbimby converter has different phase reactors there will still be a need to check the phase reactor fans
A18: The 5 yearly maintenance of the Fans was last undertaken in 2013 - It will be due again in 2018
A19: It is assumed that the new Mullumbimby fans will have their 5 year inspection brought into line with the other reactor fans
A20: This worksheet does not make a material contribution to the total O&M Direct Cost
E21: =Summary!C4 -> 2015/16 | F21: =Summary!D4 -> 2016/17 | G21: =Summary!E4 -> 2017/18 | H21: =Summary!F4 -> 2018/19 | I21: =Summary!G4 -> 2019/20
A22: QLD-ET-WI-PM012-0104 | B22: Every 1 year(s) | E22: 1 | F22: 1 | G22: 1 | H22: 1 | I22: 1
A23: APA Costs
A24: APA Maintenance Staff (Hrs) | B24: =APATechnicianHours/C14 -> 0.03125 | C24: Hours per reactor fan
A25: APA Supervision (Hrs) | B25: =APASupervisorHours/C14 -> 0.2682291667 | C25: Hours per reactor fan
A26: APA Material Costs | B26: 10 | C26: Lubricant
A28: Contractor Costs
A29: Contractor Labour (Hrs) | B29: 0.75 | C29: Hours per reactor (assumes that ABB recommended time is per PAIR of fans)
A30: Contractor Hourly Rate | B30: =ElectricalContractorHourlyRate -> 75
A31: Contractor Labour | B31: =B29*B30 -> 56.25 | C31: Price per reactor
A32: Contractor Materials | B32: 0
B34: Reference Year | C34: Total in Reference Year | D34: Total in AER Period | E34: =Summary!C4 -> 2015/16 | F34: =Summary!D4 -> 2016/17 | G34: =Summary!E4 -> 2017/18 | H34: =Summary!F4 -> 2018/19 | I34: =Summary!G4 -> 2019/20
A35: APA Staff Costs | B35: =B24*HourlyRateAPAMaintenanceStaff+B25*HourlyRateAPAOMSupervisor -> 37.171125 | C35: =B35*$C$14 -> 1189.476 | D35: =C35*SUMPRODUCT(LabourAdjustmentFactor,E$22:I$22) -> 5947.38 | E35: =$C35*E$22*'Modelling Assumptions'!E$107 -> 1189.476 | F35: =$C35*F$22*'Modelling Assumptions'!F$107 -> 1189.476 | G35: =$C35*G$22*'Modelling Assumptions'!G$107 -> 1189.476 | H35: =$C35*H$22*'Modelling Assumptions'!H$107 -> 1189.476 | I35: =$C35*I$22*'Modelling Assumptions'!I$107 -> 1189.476
A36: APA Material Costs | B36: =B26 -> 10 | C36: =B36*$C$14 -> 320 | D36: =C36*SUMPRODUCT(MaterialsAdjustmentFactor,E$22:I$22) -> 1600 | E36: =$C36*E$22*'Modelling Assumptions'!E$108 -> 320 | F36: =$C36*F$22*'Modelling Assumptions'!F$108 -> 320 | G36: =$C36*G$22*'Modelling Assumptions'!G$108 -> 320 | H36: =$C36*H$22*'Modelling Assumptions'!H$108 -> 320 | I36: =$C36*I$22*'Modelling Assumptions'!I$108 -> 320
A37: Contractor Labour | B37: =B31 -> 56.25 | C37: =B37*$C$14 -> 1800 | D37: =C37*SUMPRODUCT(LabourAdjustmentFactor,E$22:I$22) -> 9000 | E37: =$C37*E$22*'Modelling Assumptions'!E$107 -> 1800 | F37: =$C37*F$22*'Modelling Assumptions'!F$107 -> 1800 | G37: =$C37*G$22*'Modelling Assumptions'!G$107 -> 1800 | H37: =$C37*H$22*'Modelling Assumptions'!H$107 -> 1800 | I37: =$C37*I$22*'Modelling Assumptions'!I$107 -> 1800
A38: Contractor Materials | B38: =B32 -> 0 | C38: =B38*$C$14 -> 0 | D38: =C38*SUMPRODUCT(MaterialsAdjustmentFactor,E$22:I$22) -> 0 | E38: =$C38*E$22*'Modelling Assumptions'!E$108 -> 0 | F38: =$C38*F$22*'Modelling Assumptions'!F$108 -> 0 | G38: =$C38*G$22*'Modelling Assumptions'!G$108 -> 0 | H38: =$C38*H$22*'Modelling Assumptions'!H$108 -> 0 | I38: =$C38*I$22*'Modelling Assumptions'!I$108 -> 0
E41: =Summary!C4 -> 2015/16 | F41: =Summary!D4 -> 2016/17 | G41: =Summary!E4 -> 2017/18 | H41: =Summary!F4 -> 2018/19 | I41: =Summary!G4 -> 2019/20 | GA41: Contractor Rate | GB41: 85 | GC41: per hour | GK41: Cost | GL41: 16000 | GM41: $/tin | GN41: Quote not yet received (in email)
A42: QLD-ET-WI-PM060-0104 | B42: Every 5 year(s) | E42: 0 | F42: 0 | G42: 0 | H42: 1 | I42: 0
A43: APA Costs
A44: APA Maintenance Staff (Hrs) | B44: =APATechnicianHours/$C$14 -> 0.03125 | C44: Hours per reactor fan
A45: APA Supervision (Hrs) | B45: =APASupervisorHours/$C$14 -> 0.2682291667 | C45: Hours per reactor fan
A46: APA Material Costs | B46: =B60 -> 0 | C46: Average cost per reactor fan
A48: Contractor Costs
A49: Contractor Labour (Hrs) | B49: 2 | C49: Requires measurements and anecdotally is described as "difficult to access"
A50: Contractor Hourly Rate | B50: =ElectricalContractorHourlyRate -> 75
A51: Contractor Labour | B51: =B49*B50 -> 150 | C51: Price per reactor fan
A52: Contractor Materials | B52: 0
B54: Reference Year | C54: Total in Reference Year | D54: Total in AER Period | E54: =Summary!C4 -> 2015/16 | F54: =Summary!D4 -> 2016/17 | G54: =Summary!E4 -> 2017/18 | H54: =Summary!F4 -> 2018/19 | I54: =Summary!G4 -> 2019/20
A55: APA Staff Costs | B55: =B44*HourlyRateAPAMaintenanceStaff+B45*HourlyRateAPAOMSupervisor -> 37.171125 | C55: =B55*$C$14 -> 1189.476 | D55: =SUM(E55:I55) -> 1189.476 | E55: =$C55*E$42*'Modelling Assumptions'!E$107 -> 0 | F55: =$C55*F$42*'Modelling Assumptions'!F$107 -> 0 | G55: =$C55*G$42*'Modelling Assumptions'!G$107 -> 0 | H55: =$C55*H$42*'Modelling Assumptions'!H$107 -> 1189.476 | I55: =$C55*I$42*'Modelling Assumptions'!I$107 -> 0
A56: APA Material Costs | B56: =B46 -> 0 | C56: =B56*$C$14 -> 0 | D56: =SUM(E56:I56) -> 0 | E56: =$C56*E$42*'Modelling Assumptions'!E$108 -> 0 | F56: =$C56*F$42*'Modelling Assumptions'!F$108 -> 0 | G56: =$C56*G$42*'Modelling Assumptions'!G$108 -> 0 | H56: =$C56*H$42*'Modelling Assumptions'!H$108 -> 0 | I56: =$C56*I$42*'Modelling Assumptions'!I$108 -> 0
A57: Contractor Labour | B57: =B51 -> 150 | C57: =B57*$C$14 -> 4800 | D57: 4800 | E57: =$C57*E$42*'Modelling Assumptions'!E$107 -> 0 | F57: =$C57*F$42*'Modelling Assumptions'!F$107 -> 0 | G57: =$C57*G$42*'Modelling Assumptions'!G$107 -> 0 | H57: =$C57*H$42*'Modelling Assumptions'!H$107 -> 4800 | I57: =$C57*I$42*'Modelling Assumptions'!I$107 -> 0
A58: Contractor Materials | B58: =B52 -> 0 | C58: =B58*$C$14 -> 0 | D58: 0 | E58: =$C58*E$42*'Modelling Assumptions'!E$108 -> 0 | F58: =$C58*F$42*'Modelling Assumptions'!F$108 -> 0 | G58: =$C58*G$42*'Modelling Assumptions'!G$108 -> 0 | H58: =$C58*H$42*'Modelling Assumptions'!H$108 -> 0 | I58: =$C58*I$42*'Modelling Assumptions'!I$108 -> 0

Sheet 0104 (4)
A1: Summary | B1: DC ZERO SEQUENCE SMOOTHING REACTOR MAINTENANCE
A2: Return to Index | D2: Total in AER Period | E2: =Summary!C4 -> 2015/16 | F2: =Summary!D4 -> 2016/17 | G2: =Summary!E4 -> 2017/18 | H2: =Summary!F4 -> 2018/19 | I2: =Summary!G4 -> 2019/20
A3: APA Staff Costs | D3: =D32 -> 5947.38 | E3: =E32 -> 1189.476 | F3: 1189.476 | G3: 1189.476 | H3: 1189.476 | I3: 1189.476
A4: APA Material Costs | D4: =D33 -> 0 | E4: 0 | F4: 0 | G4: 0 | H4: 0 | I4: 0
A5: Contractor Labour | D5: 1125 | E5: 225 | F5: 225 | G5: 225 | H5: 225 | I5: 225
A6: Contractor Materials | D6: 0 | E6: 0 | F6: 0 | G6: 0 | H6: 0 | I6: 0
A9: Scheduled Outage Required | B9: Yes
A10: Work Instruction | B10: DL-WI-46
A12: DC zero sequence smoothing reactor
B13: R1.L1 | C13: 6
A14: Number of Components to be serviced | C14: =SUM(C13:C13) -> 6
A16: Discussion
A17: This worksheet does not make a material contribution to the total O&M Direct Cost
E18: =Summary!C4 -> 2015/16 | F18: =Summary!D4 -> 2016/17 | G18: =Summary!E4 -> 2017/18 | H18: =Summary!F4 -> 2018/19 | I18: =Summary!G4 -> 2019/20
A19: QLD-ET-WI-PM012-0104 | B19: Every 1 year(s) | E19: 1 | F19: 1 | G19: 1 | H19: 1 | I19: 1
A20: APA Costs
A21: APA Maintenance Staff (Hrs) | B21: =APATechnicianHours/C14 -> 0.1666666667 | C21: Hours per reactor
A22: APA Supervision (Hrs) | B22: =APASupervisorHours/C14 -> 1.430555556 | C22: Hours per reactor
A23: APA Material Costs | B23: 0
A25: Contractor Costs
